Workbook

Sheet Medição (hidden)
B1: APOIO À MEDIÇÃO MENSAL
C3: ITEM | D3: POSTO DE TRABALHO | E3: QUANTIDADE | F3: SALÁRIO | G3: ADICIONAL DE PERICULOSIDADE | H3: ADICIONAL DE INSALUBRIDADE | I3: ADICIONAL NOTURNO | J3: OUTROS | K3: SALÁRIO COM ADICIONAIS | L3: AUXÍLIO ALIMENTAÇÃO | M3: AUXÍLIO TRANSPORTE | N3: OUTROS AUXÍLIOS | O3: INSUMOS DIVERSOS | P3: DIAS NO MÊS | Q3: FALTAS | R3: TOTAL MENSAL | S3: DESCONTOS | T3: TOTAL COM DESCONTOS
C4: 1 | D4: =HLOOKUP(C4,'Dados Gerais'!$D$6:$BI$11,6) -> SUPERVISOR TÉCNICO OPERACIONAL | E4: =HLOOKUP($C4,'Dados Gerais'!$D$6:$BI$15,10) -> 2 | F4: ='1'!$F$9 -> 15828.37 | G4: ='1'!$F$10 -> 0 | H4: ='1'!$F$11 -> 0 | I4: ='1'!$F$12 -> 0 | J4: ='1'!$F$13+'1'!$F$14 -> 0 | K4: =SUM(F4:J4) -> 15828.37 | L4: ='1'!$F$36 -> 957 | M4: ='1'!$F$35 -> 0 | N4: ='1'!$F$37+'1'!$F$38 -> 334.57 | O4: ='1'!$F$82 -> 0 | P4: =HLOOKUP($C4,'Dados Gerais'!$D$6:$BI$20,13) -> 22 | Q4: 12 | R4: =E4*(SUM(K4:O4)) -> 34239.88 | S4: =Q4*(K4+L4+M4+N4)/P4 -> 9338.149091 | T4: =R4-S4 -> 24901.73091
C5: 2 | D5: =HLOOKUP(C5,'Dados Gerais'!$D$6:$BI$11,6) -> SUPERVISOR TÉCNICO | E5: =HLOOKUP(C5,'Dados Gerais'!$D$6:$BI$15,10) -> 2 | F5: =#REF! ->  | G5: =#REF! ->  | H5: =#REF! ->  | I5: =#REF! ->  | J5: =#REF!+#REF! ->  | K5: =SUM(F5:J5) ->  | L5: =#REF! ->  | M5: =#REF! ->  | N5: =#REF!+#REF! ->  | O5: =#REF! ->  | P5: =HLOOKUP($C5,'Dados Gerais'!$D$6:$BI$20,13) -> 22 | Q5: 2 | R5: =E5*(SUM(K5:O5)) ->  | S5: =Q5*(K5+L5+M5+N5)/P5 ->  | T5: =R5-S5 -> 
C6: 3 | D6: =HLOOKUP(C6,'Dados Gerais'!$D$6:$BI$11,6) -> SUPERVISOR TÉCNICO (CENTRO DE TRANSMISSÃO) | E6: =HLOOKUP(C6,'Dados Gerais'!$D$6:$BI$15,10) -> 1 | F6: =#REF! ->  | G6: =#REF! ->  | H6: =#REF! ->  | I6: =#REF! ->  | J6: =#REF!+#REF! ->  | L6: =#REF! ->  | M6: =#REF! ->  | N6: =#REF!+#REF! ->  | O6: =#REF! ->  | P6: =HLOOKUP($C6,'Dados Gerais'!$D$6:$BI$20,13) -> 22 | Q6: 1
C7: 4 | D7: =HLOOKUP(C7,'Dados Gerais'!$D$6:$BI$11,6) -> SUPERVISOR DE OPERAÇÕES | E7: =HLOOKUP(C7,'Dados Gerais'!$D$6:$BI$15,10) -> 2 | F7: =#REF! ->  | G7: =#REF! ->  | H7: =#REF! ->  | I7: =#REF! ->  | J7: =#REF!+#REF! ->  | L7: =#REF! ->  | M7: =#REF! ->  | N7: =#REF!+#REF! ->  | O7: =#REF! ->  | P7: =HLOOKUP($C7,'Dados Gerais'!$D$6:$BI$20,13) -> 22 | Q7: 0
C8: 5 | D8: =HLOOKUP(C8,'Dados Gerais'!$D$6:$BI$11,6) -> DIRETOR DE IMAGENS – 30H | E8: =HLOOKUP(C8,'Dados Gerais'!$D$6:$BI$15,10) -> 24 | F8: =#REF! ->  | G8: =#REF! ->  | H8: =#REF! ->  | I8: =#REF! ->  | J8: =#REF!+#REF! ->  | L8: =#REF! ->  | M8: =#REF! ->  | N8: =#REF!+#REF! ->  | O8: =#REF! ->  | P8: =HLOOKUP($C8,'Dados Gerais'!$D$6:$BI$20,13) -> 22 | Q8: 4
C9: 6 | D9: =HLOOKUP(C9,'Dados Gerais'!$D$6:$BI$11,6) -> DIRETOR DE IMAGENS – 18H | E9: =HLOOKUP(C9,'Dados Gerais'!$D$6:$BI$15,10) -> 21 | F9: =#REF! ->  | G9: =#REF! ->  | H9: =#REF! ->  | I9: =#REF! ->  | J9: =#REF!+#REF! ->  | L9: =#REF! ->  | M9: =#REF! ->  | N9: =#REF!+#REF! ->  | O9: =#REF! ->  | P9: =HLOOKUP($C9,'Dados Gerais'!$D$6:$BI$20,13) -> 13 | Q9: 0
C10: 7 | D10: =HLOOKUP(C10,'Dados Gerais'!$D$6:$BI$11,6) -> TÉCNICO DE SISTEMAS AUDIOVISUAIS – especialidade Sistemas e Vídeo 36H | E10: =HLOOKUP(C10,'Dados Gerais'!$D$6:$BI$15,10) -> 4 | F10: =#REF! ->  | G10: =#REF! ->  | H10: =#REF! ->  | I10: =#REF! ->  | J10: =#REF!+#REF! ->  | L10: =#REF! ->  | M10: =#REF! ->  | N10: =#REF!+#REF! ->  | O10: =#REF! ->  | P10: =HLOOKUP($C10,'Dados Gerais'!$D$6:$BI$20,13) -> 22 | Q10: 3
C11: 8 | D11: =HLOOKUP(C11,'Dados Gerais'!$D$6:$BI$11,6) -> OPERADOR DE MÍDIA AUDIOVISUAL – 30H | E11: =HLOOKUP(C11,'Dados Gerais'!$D$6:$BI$15,10) -> 34 | F11: =#REF! ->  | G11: =#REF! ->  | H11: =#REF! ->  | I11: =#REF! ->  | J11: =#REF!+#REF! ->  | L11: =#REF! ->  | M11: =#REF! ->  | N11: =#REF!+#REF! ->  | O11: =#REF! ->  | P11: =HLOOKUP($C11,'Dados Gerais'!$D$6:$BI$20,13) -> 22 | Q11: 0
C12: 9 | D12: =HLOOKUP(C12,'Dados Gerais'!$D$6:$BI$11,6) -> OPERADOR DE MÍDIA AUDIOVISUAL – 18H | E12: =HLOOKUP(C12,'Dados Gerais'!$D$6:$BI$15,10) -> 26 | F12: =#REF! ->  | G12: =#REF! ->  | H12: =#REF! ->  | I12: =#REF! ->  | J12: =#REF!+#REF! ->  | L12: =#REF! ->  | M12: =#REF! ->  | N12: =#REF!+#REF! ->  | O12: =#REF! ->  | P12: =HLOOKUP($C12,'Dados Gerais'!$D$6:$BI$20,13) -> 13 | Q12: 2
C13: 10 | D13: =HLOOKUP(C13,'Dados Gerais'!$D$6:$BI$11,6) -> OPERADOR DE TRANSMISSOR – Rádio e TV - 24H | E13: =HLOOKUP(C13,'Dados Gerais'!$D$6:$BI$15,10) -> 5 | F13: =#REF! ->  | G13: =#REF! ->  | H13: =#REF! ->  | I13: =#REF! ->  | J13: =#REF!+#REF! ->  | L13: =#REF! ->  | M13: =#REF! ->  | N13: =#REF!+#REF! ->  | O13: =#REF! ->  | P13: =HLOOKUP($C13,'Dados Gerais'!$D$6:$BI$20,13) -> 17 | Q13: 1
C14: 11 | D14: =HLOOKUP(C14,'Dados Gerais'!$D$6:$BI$11,6) -> 0 | E14: =HLOOKUP(C14,'Dados Gerais'!$D$6:$BI$15,10) -> 0 | F14: ='11'!$F$9 -> 0 | G14: ='11'!$F$10 -> 0 | H14: ='11'!$F$11 -> 0 | I14: ='11'!$F$12 -> 0 | J14: ='11'!$F$13+'11'!$F$14 -> 0 | K14: 0 | L14: ='11'!$F$36 -> 0 | M14: ='11'!$F$35 -> 0 | N14: ='11'!$F$37+'11'!$F$38 -> 0 | O14: ='11'!$F$82 -> 0 | P14: =HLOOKUP($C14,'Dados Gerais'!$D$6:$BI$20,13) -> 0 | Q14: 0 | R14: 0
C15: 12 | D15: =HLOOKUP(C15,'Dados Gerais'!$D$6:$BI$11,6) -> 0 | E15: =HLOOKUP(C15,'Dados Gerais'!$D$6:$BI$15,10) -> 0 | F15: ='12'!$F$9 -> 0 | G15: ='12'!$F$10 -> 0 | H15: ='12'!$F$11 -> 0 | I15: ='12'!$F$12 -> 0 | J15: ='12'!$F$13+'12'!$F$14 -> 0 | K15: 0 | L15: ='12'!$F$36 -> 0 | M15: ='12'!$F$35 -> 0 | N15: ='12'!$F$37+'12'!$F$38 -> 0 | O15: ='12'!$F$82 -> 0 | P15: =HLOOKUP($C15,'Dados Gerais'!$D$6:$BI$20,13) -> 0 | Q15: 4 | R15: 0
C16: 13 | D16: =HLOOKUP(C16,'Dados Gerais'!$D$6:$BI$11,6) -> 0 | E16: =HLOOKUP(C16,'Dados Gerais'!$D$6:$BI$15,10) -> 0 | F16: ='13'!$F$9 -> 0 | G16: ='13'!$F$10 -> 0 | H16: ='13'!$F$11 -> 0 | I16: ='13'!$F$12 -> 0 | J16: ='13'!$F$13+'13'!$F$14 -> 0 | K16: 0 | L16: ='13'!$F$36 -> 0 | M16: ='13'!$F$35 -> 0 | N16: ='13'!$F$37+'13'!$F$38 -> 0 | O16: ='13'!$F$82 -> 0 | P16: =HLOOKUP($C16,'Dados Gerais'!$D$6:$BI$20,13) -> 0 | Q16: 0 | R16: 0
C17: 14 | D17: =HLOOKUP(C17,'Dados Gerais'!$D$6:$BI$11,6) -> 0 | E17: =HLOOKUP(C17,'Dados Gerais'!$D$6:$BI$15,10) -> 0 | F17: ='14'!$F$9 -> 0 | G17: ='14'!$F$10 -> 0 | H17: ='14'!$F$11 -> 0 | I17: ='14'!$F$12 -> 0 | J17: ='14'!$F$13+'14'!$F$14 -> 0 | K17: 0 | L17: ='14'!$F$36 -> 0 | M17: ='14'!$F$35 -> 0 | N17: ='14'!$F$37+'14'!$F$38 -> 0 | O17: ='14'!$F$82 -> 0 | P17: =HLOOKUP($C17,'Dados Gerais'!$D$6:$BI$20,13) -> 0 | Q17: 3 | R17: 0
C18: 15 | D18: =HLOOKUP(C18,'Dados Gerais'!$D$6:$BI$11,6) -> 0 | E18: =HLOOKUP(C18,'Dados Gerais'!$D$6:$BI$15,10) -> 0 | F18: ='15'!$F$9 -> 0 | G18: ='15'!$F$10 -> 0 | H18: ='15'!$F$11 -> 0 | I18: ='15'!$F$12 -> 0 | J18: ='15'!$F$13+'15'!$F$14 -> 0 | K18: 0 | L18: ='15'!$F$36 -> 0 | M18: ='15'!$F$35 -> 0 | N18: ='15'!$F$37+'15'!$F$38 -> 0 | O18: ='15'!$F$82 -> 0 | P18: =HLOOKUP($C18,'Dados Gerais'!$D$6:$BI$20,13) -> 0 | Q18: 0 | R18: 0
D20: TOTAL | E20: =SUM(E4:E18) -> 121 | P20: TOTAIS | Q20: =SUM(Q4:Q18) -> 32 | R20: =SUM(R4:R18) ->  | S20: =SUM(S4:S18) ->  | T20: =SUM(T4:T18) -> 

Sheet GUIA PARA PREENCHIMENTO
A1: GUIA PARA PREENCHIMENTO
A3: 1 - Preencher apenas as guias azuis:
A5: 2 - Recomendamos preencher somente as células com fundo azul claro. As demais possuem fórmulas e sugerimos não alterá-las.

Sheet MODELO PROPOSTA
B2: MODELO DA PROPOSTA COMPLETA
B4: .
B5: I – FORMALIZAÇÃO
B7: PREGÃO ELETRÔNICO N. 90003/2025
B8: OBJETO: Prestação de serviços continuados na área de operação de equipamentos de áudio, vídeo e geração de imagens para transmissão ao vivo por rádio, televisão e internet, pelo período de 30 (trinta) meses, conforme condições e exigências estabelecidas neste instrumento e em seus Anexos.
B9: LICITANTE: _____________________________________________________
B10: CNPJ: ________________________________________________________
B11: ENDEREÇO COMPLETO: _________________________________________
B12: TELEFONE:_____________________________________________________
B13: E-MAIL: ________________________________________________________
B15: Apresentamos nossa proposta para o item único da presente licitação, de acordo com as disposições do Edital.
B16: Decorre do conteúdo da presente proposta a explicitação do seguinte PREÇO DE JULGAMENTO (GLOBAL para 30 MESES) PARA O ITEM:
B17: =Resumo!H87 -> 45407196.15
B18: =Extenso_Valor(B17) -> quarenta e cinco milhões, quatrocentos e sete mil, cento e noventa e seis reais e quinze centavos
B20: (por extenso)
B22: No valor proposto estão incluídos todos os custos e todas as despesas, diretas e indiretas, para a execução dos serviços objeto da licitação, em conformidade com as especificações e demais condições e exigências constantes do Edital.
B23: Informamos que eventuais rubricas dispostas em Acordo ou Convenção Coletiva de Trabalho que não se relacionem ao custo direto da venda do serviço, tais como “Participação nos Resultados” e “Abono substitutivo de Participação nos Resultados”, serão consideradas nos custos indiretos da proposta.
B24: O prazo de validade da presente proposta é de ______ (por extenso) dias. (observado o disposto no Título 4 do Edital).
B26: Convenção coletiva de trabalho ou a norma coletiva a que estamos obrigados:
B27: Data-Base:
B28: Número do Registro no SRT:
B29: Regime de tributação da empresa:
B30: Empresa é beneficiada pela desoneração da folha de pagamento instituída pela Lei n. 12.546, de 2001, alterada pela Lei n. 13.161, de 2015?
B31: Empresa adere ao PAT (Programa de Alimentação do Trabalhador)?
B32: Na hipótese de adesão ao PAT e de previsão de qualquer desconto no valor do auxílio-alimentação em norma coletiva, os valores do auxílio-alimentação apresentados nesta proposta deverão corresponder aos valores líquidos efetivamente pagos pela empresa aos seus empregados.
B34: DECLARAÇÕES
B35: Declaramos que:
B36: a) disponibilizaremos todos os itens necessários à execução dos serviços, sejam eles insumos ou materiais, bem como pessoal técnico adequado para a realização do objeto da presente licitação;
B37: b) seremos responsável pelo descarte ambientalmente responsável de qualquer resíduo do serviço a ser prestado, objeto desta licitação – incluindo consumíveis, peças usadas, embalagens – e que temos conhecimento da legislação ambiental sobre o descarte de materiais, em especial a Lei n. 9.605/1998 e a Lei n. 12.305/2010, além da NBR 10.004.
B40: A SEREM PRESTADAS SOMENTE NA HIPÓTESE DE LICITANTE MICROEMPRESA OU EMPRESA DE PEQUENO PORTE, EM CONFORMIDADE COM OS ARTIGOS 17, 18, 30 E 31 DA LEI COMPLEMENTAR N. 123/2006, E O ACÓRDÃO TCU 2798/2010-PLENÁRIO
B43: Declaramos que:
B44: a) em se tratando dos serviços vedados descritos no artigo 17 da Lei Complementar n. 123/2006, notadamente os descritos no inciso XII (cessão ou locação de mão de obra), ressalvados os serviços listados nos § 5º-C, inciso VI, c/c § 5º-H do art. 18 ou no § 1º do art. 17 da referida Lei, a proposta apresentada não contempla qualquer benefício tributário referente ao SIMPLES NACIONAL, conforme os itens 4.20 e 4.21 do Edital;
B47: b) na hipótese de contratação desta Microempresa ou Empresa de Pequeno Porte inscrita no SIMPLES NACIONAL e executora de atividade vedada, ficamos sujeitos à exclusão obrigatória no SIMPLES NACIONAL a contar do mês seguinte ao da contratação, em consequência do que dispõem o artigo 17, inciso XII e o artigo 31, inciso II da Lei Complementar n, 123/2006, devendo entregar à Câmara dos Deputados, à título de comprovação, cópia de ofício – com comprovante de entrega e recebimento, que comunique a assinatura do contrato de prestação de serviços mediante cessão de mão de obra e encaminhado pela contratada à Secretaria Especial da Receita Federal do Brasil até o último dia útil do mês subsequente ao da contratação, consoante artigo 30, § 1º, inciso II da Lei Complementar n. 123/2006.
B51: A SEREM PRESTADAS SOMENTE NA HIPÓTESE DE LICITANTE NÃO BENEFICIADA PELA DESONERAÇÃO DA FOLHA DE PAGAMENTO INSTITUÍDA PELA LEI N. 12.546, DE 2011, ALTERADA PELA LEI N. 13.161, DE 2015
B54: Declaramos, sob as penas da Lei, que:
B55: a) não recolhemos a contribuição previdenciária incidente sobre o valor da receita bruta, em substituição às contribuições previdenciárias incidentes sobre a folha de pagamento, previstas nos incisos I e III do caput do artigo 22 da Lei n. 8.212/1991, na forma do caput do artigo 7º (ou 8º) da Lei n. 12.546/2011, alterada pela Lei n. 13.161/2015;;
B58: b) temos ciência que nossa manifestação, conforme alínea “a” anterior, será remetida à Secretaria Especial da Receita Federal do Brasil e que, em caso de constatação de falsidade, estará sujeita às sanções administrativas cabíveis, sem prejuízo do encaminhamento dos documentos ao Ministério Público para apuração de eventual responsabilidade criminal desta declarante.
B62: A SEREM PRESTADAS SOMENTE PARA A LICITANTE QUE SEJA A ATUAL TITULAR DO CONTRATO QUE SERÁ SUCEDIDO PELA CONTRATAÇÃO DECORRENTE DO PREGÃO EM EPÍGRAFE, NA HIPÓTESE DE HAVER SALÁRIO(S) PRATICADO(S) NO CONTRATO VIGENTE SUPERIOR(ES) AOS MÍNIMOS FIXADOS NO EDITAL E QUE TENHA OPTADO POR TOMAR COMO BASE EM SEUS LANCES E NA PRESENTE PROPOSTA DE PREÇOS SALÁRIO(S) FIXADO(S) NESTE EDITAL:
B65: Declaramos que:
B66: a) estamos cientes de que deveremos apresentar à Câmara dos Deputados, no prazo improrrogável de 60 (sessenta) dias, contado da data de início da vigência do contrato, a convenção ou o acordo coletivo de trabalho, entabulado com a participação do sindicato dos trabalhadores, em que se autoriza a redução salarial, na forma do art. 7°, VI, da Constituição Federal, considerado, ainda, o disposto no subitem 10.10.2.1 do Título 10 da minuta do Termo de Contrato anexa;
B70: b) estamos cientes de que, na hipótese de não cumprirmos o disposto no teor da declaração da alínea anterior (“a”) e não logrado êxito na contratação de remanescente, sendo necessária a realização de nova licitação, caso participemos do certame, deveremos tomar como base em nossos lances e em nossa proposta de preços o(s) salário(s) maior(es), absorvendo ou acrescentando eventual diferença no BDI, sob pena de desclassificação.
B73: É OBRIGATÓRIA A COMPROVAÇÃO A QUE SE REFERE O ITEM 4.3 DO TÍTULO 4 DO TERMO DE REFERÊNCIA
B76: (referente ao valor do Fator Acidentário de Prevenção (FAP)).
B80: DADOS PARA ASSINATURA DO CONTRATO
B81: Nome do signatário
B82: Cargo
B83: Qualificação (CPF, naturalidade e domicílio)
B84: OBS.: O signatário deve possuir poderes de administração estabelecidos em contrato social e/ou possuir procuração com poderes para assinar contratos em nome da empresa. A documentação comprobatória deverá ser encaminhada quando da assinatura do contrato.
B86: MODALIDADE DE GARANTIA:
B87: De acordo com o disposto no Termo de Referência anexo ao Edital, informamos que, caso o objeto nos seja adjudicado, optaremos pela seguinte modalidade de garantia de execução do contrato (artigos 96 e seguintes da Lei 14.133/2021):
B88: ____________________________________
B92: Brasília, de de | G92: 2025
B94: Assinatura do representante legal da empresa
B97: Nome do representante legal da empresa

Sheet Remunerações
B1: QUADRO DE REMUNERAÇÕES
C3: ITEM | D3: POSTO DE TRABALHO | E3: QUANTIDADE | F3: SALÁRIO | G3: ADICIONAL DE PERICULOSIDADE | H3: ADICIONAL DE INSALUBRIDADE | I3: ADICIONAL NOTURNO | J3: OUTROS | K3: SALÁRIO COM ADICIONAIS
C4: 1 | D4: =HLOOKUP(C4,'Dados Gerais'!$D$6:$BI$11,6) -> SUPERVISOR TÉCNICO OPERACIONAL | E4: =HLOOKUP($C4,'Dados Gerais'!$D$6:$BI$15,10) -> 2 | F4: ='1'!$F$9 -> 15828.37 | G4: ='1'!$F$10 -> 0 | H4: ='1'!$F$11 -> 0 | I4: ='1'!$F$12 -> 0 | J4: ='1'!$F$13+'1'!$F$14 -> 0 | K4: =SUM(F4:J4) -> 15828.37
C5: 2 | D5: =HLOOKUP(C5,'Dados Gerais'!$D$6:$BI$11,6) -> SUPERVISOR TÉCNICO | E5: =HLOOKUP(C5,'Dados Gerais'!$D$6:$BI$15,10) -> 2 | F5: ='2'!$F$9 -> 11305.98 | G5: ='2'!$F$10 -> 0 | H5: ='2'!$F$11 -> 0 | I5: ='2'!$F$12 -> 0 | J5: ='2'!$F$13+'2'!$F$14 -> 0 | K5: =SUM(F5:J5) -> 11305.98
C6: 3 | D6: =HLOOKUP(C6,'Dados Gerais'!$D$6:$BI$11,6) -> SUPERVISOR TÉCNICO (CENTRO DE TRANSMISSÃO) | E6: =HLOOKUP(C6,'Dados Gerais'!$D$6:$BI$15,10) -> 1 | F6: ='3'!$F$9 -> 11305.98 | G6: ='3'!$F$10 -> 0 | H6: ='3'!$F$11 -> 0 | I6: ='3'!$F$12 -> 0 | J6: ='3'!$F$13+'3'!$F$14 -> 0 | K6: 11305.98
C7: 4 | D7: =HLOOKUP(C7,'Dados Gerais'!$D$6:$BI$11,6) -> SUPERVISOR DE OPERAÇÕES | E7: =HLOOKUP(C7,'Dados Gerais'!$D$6:$BI$15,10) -> 2 | F7: ='4'!$F$9 -> 10867.58 | G7: ='4'!$F$10 -> 0 | H7: ='4'!$F$11 -> 0 | I7: ='4'!$F$12 -> 0 | J7: ='4'!$F$13+'4'!$F$14 -> 0 | K7: 10867.58
C8: 5 | D8: =HLOOKUP(C8,'Dados Gerais'!$D$6:$BI$11,6) -> DIRETOR DE IMAGENS – 30H | E8: =HLOOKUP(C8,'Dados Gerais'!$D$6:$BI$15,10) -> 24 | F8: ='5'!$F$9 -> 6492.64 | G8: ='5'!$F$10 -> 0 | H8: ='5'!$F$11 -> 0 | I8: ='5'!$F$12 -> 0 | J8: ='5'!$F$13+'5'!$F$14 -> 0 | K8: 6492.64
C9: 6 | D9: =HLOOKUP(C9,'Dados Gerais'!$D$6:$BI$11,6) -> DIRETOR DE IMAGENS – 18H | E9: =HLOOKUP(C9,'Dados Gerais'!$D$6:$BI$15,10) -> 21 | F9: ='6'!$F$9 -> 3895.59 | G9: ='6'!$F$10 -> 0 | H9: ='6'!$F$11 -> 0 | I9: ='6'!$F$12 -> 0 | J9: ='6'!$F$13+'6'!$F$14 -> 0 | K9: 3895.59
C10: 7 | D10: =HLOOKUP(C10,'Dados Gerais'!$D$6:$BI$11,6) -> TÉCNICO DE SISTEMAS AUDIOVISUAIS – especialidade Sistemas e Vídeo 36H | E10: =HLOOKUP(C10,'Dados Gerais'!$D$6:$BI$15,10) -> 4 | F10: ='7'!$F$9 -> 6660.16 | G10: ='7'!$F$10 -> 0 | H10: ='7'!$F$11 -> 0 | I10: ='7'!$F$12 -> 0 | J10: ='7'!$F$13+'7'!$F$14 -> 0 | K10: 6660.16
C11: 8 | D11: =HLOOKUP(C11,'Dados Gerais'!$D$6:$BI$11,6) -> OPERADOR DE MÍDIA AUDIOVISUAL – 30H | E11: =HLOOKUP(C11,'Dados Gerais'!$D$6:$BI$15,10) -> 34 | F11: ='8'!$F$9 -> 5394.03 | G11: ='8'!$F$10 -> 0 | H11: ='8'!$F$11 -> 0 | I11: ='8'!$F$12 -> 0 | J11: ='8'!$F$13+'8'!$F$14 -> 0 | K11: 5394.03
C12: 9 | D12: =HLOOKUP(C12,'Dados Gerais'!$D$6:$BI$11,6) -> OPERADOR DE MÍDIA AUDIOVISUAL – 18H | E12: =HLOOKUP(C12,'Dados Gerais'!$D$6:$BI$15,10) -> 26 | F12: ='9'!$F$9 -> 3236.42 | G12: ='9'!$F$10 -> 0 | H12: ='9'!$F$11 -> 0 | I12: ='9'!$F$12 -> 0 | J12: ='9'!$F$13+'9'!$F$14 -> 0 | K12: 3236.42
C13: 10 | D13: =HLOOKUP(C13,'Dados Gerais'!$D$6:$BI$11,6) -> OPERADOR DE TRANSMISSOR – Rádio e TV - 24H | E13: =HLOOKUP(C13,'Dados Gerais'!$D$6:$BI$15,10) -> 5 | F13: ='10'!$F$9 -> 3837.34 | G13: ='10'!$F$10 -> 0 | H13: ='10'!$F$11 -> 0 | I13: ='10'!$F$12 -> 0 | J13: ='10'!$F$13+'10'!$F$14 -> 0 | K13: 3837.34
C14: 11 | D14: =HLOOKUP(C14,'Dados Gerais'!$D$6:$BI$11,6) -> 0 | E14: =HLOOKUP(C14,'Dados Gerais'!$D$6:$BI$15,10) -> 0 | F14: ='11'!$F$9 -> 0 | G14: ='11'!$F$10 -> 0 | H14: ='11'!$F$11 -> 0 | I14: ='11'!$F$12 -> 0 | J14: ='11'!$F$13+'11'!$F$14 -> 0 | K14: 0
C15: 12 | D15: =HLOOKUP(C15,'Dados Gerais'!$D$6:$BI$11,6) -> 0 | E15: =HLOOKUP(C15,'Dados Gerais'!$D$6:$BI$15,10) -> 0 | F15: ='12'!$F$9 -> 0 | G15: ='12'!$F$10 -> 0 | H15: ='12'!$F$11 -> 0 | I15: ='12'!$F$12 -> 0 | J15: ='12'!$F$13+'12'!$F$14 -> 0 | K15: 0
C16: 13 | D16: =HLOOKUP(C16,'Dados Gerais'!$D$6:$BI$11,6) -> 0 | E16: =HLOOKUP(C16,'Dados Gerais'!$D$6:$BI$15,10) -> 0 | F16: ='13'!$F$9 -> 0 | G16: ='13'!$F$10 -> 0 | H16: ='13'!$F$11 -> 0 | I16: ='13'!$F$12 -> 0 | J16: ='13'!$F$13+'13'!$F$14 -> 0 | K16: 0
C17: 14 | D17: =HLOOKUP(C17,'Dados Gerais'!$D$6:$BI$11,6) -> 0 | E17: =HLOOKUP(C17,'Dados Gerais'!$D$6:$BI$15,10) -> 0 | F17: ='14'!$F$9 -> 0 | G17: ='14'!$F$10 -> 0 | H17: ='14'!$F$11 -> 0 | I17: ='14'!$F$12 -> 0 | J17: ='14'!$F$13+'14'!$F$14 -> 0 | K17: 0
C18: 15 | D18: =HLOOKUP(C18,'Dados Gerais'!$D$6:$BI$11,6) -> 0 | E18: =HLOOKUP(C18,'Dados Gerais'!$D$6:$BI$15,10) -> 0 | F18: ='15'!$F$9 -> 0 | G18: ='15'!$F$10 -> 0 | H18: ='15'!$F$11 -> 0 | I18: ='15'!$F$12 -> 0 | J18: ='15'!$F$13+'15'!$F$14 -> 0 | K18: 0
C19: 16 | D19: =HLOOKUP(C19,'Dados Gerais'!$D$6:$BI$11,6) -> 0 | E19: =HLOOKUP(C19,'Dados Gerais'!$D$6:$BI$15,10) -> 0 | F19: =#REF! ->  | G19: =#REF! ->  | H19: =#REF! ->  | I19: =#REF! ->  | J19: =#REF!+#REF! -> 
C20: 17 | D20: =HLOOKUP(C20,'Dados Gerais'!$D$6:$BI$11,6) -> 0 | E20: =HLOOKUP(C20,'Dados Gerais'!$D$6:$BI$15,10) -> 0 | F20: =#REF! ->  | G20: =#REF! ->  | H20: =#REF! ->  | I20: =#REF! ->  | J20: =#REF!+#REF! -> 
C21: 18 | D21: =HLOOKUP(C21,'Dados Gerais'!$D$6:$BI$11,6) -> 0 | E21: =HLOOKUP(C21,'Dados Gerais'!$D$6:$BI$15,10) -> 0 | F21: =#REF! ->  | G21: =#REF! ->  | H21: =#REF! ->  | I21: =#REF! ->  | J21: =#REF!+#REF! -> 
C22: 19 | D22: =HLOOKUP(C22,'Dados Gerais'!$D$6:$BI$11,6) -> 0 | E22: =HLOOKUP(C22,'Dados Gerais'!$D$6:$BI$15,10) -> 0 | F22: =#REF! ->  | G22: =#REF! ->  | H22: =#REF! ->  | I22: =#REF! ->  | J22: =#REF!+#REF! -> 
C23: 20 | D23: =HLOOKUP(C23,'Dados Gerais'!$D$6:$BI$11,6) -> 0 | E23: =HLOOKUP(C23,'Dados Gerais'!$D$6:$BI$15,10) -> 0 | F23: =#REF! ->  | G23: =#REF! ->  | H23: =#REF! ->  | I23: =#REF! ->  | J23: =#REF!+#REF! -> 
C24: 21 | D24: =HLOOKUP(C24,'Dados Gerais'!$D$6:$BI$11,6) -> 0 | E24: =HLOOKUP(C24,'Dados Gerais'!$D$6:$BI$15,10) -> 0 | F24: =#REF! ->  | G24: =#REF! ->  | H24: =#REF! ->  | I24: =#REF! ->  | J24: =#REF!+#REF! -> 
C25: 22 | D25: =HLOOKUP(C25,'Dados Gerais'!$D$6:$BI$11,6) -> 0 | E25: =HLOOKUP(C25,'Dados Gerais'!$D$6:$BI$15,10) -> 0 | F25: =#REF! ->  | G25: =#REF! ->  | H25: =#REF! ->  | I25: =#REF! ->  | J25: =#REF!+#REF! -> 
C26: 23 | D26: =HLOOKUP(C26,'Dados Gerais'!$D$6:$BI$11,6) -> 0 | E26: =HLOOKUP(C26,'Dados Gerais'!$D$6:$BI$15,10) -> 0 | F26: =#REF! ->  | G26: =#REF! ->  | H26: =#REF! ->  | I26: =#REF! ->  | J26: =#REF!+#REF! -> 
C27: 24 | D27: =HLOOKUP(C27,'Dados Gerais'!$D$6:$BI$11,6) -> 0 | E27: =HLOOKUP(C27,'Dados Gerais'!$D$6:$BI$15,10) -> 0 | F27: =#REF! ->  | G27: =#REF! ->  | H27: =#REF! ->  | I27: =#REF! ->  | J27: =#REF!+#REF! -> 
C28: 25 | D28: =HLOOKUP(C28,'Dados Gerais'!$D$6:$BI$11,6) -> 0 | E28: =HLOOKUP(C28,'Dados Gerais'!$D$6:$BI$15,10) -> 0 | F28: =#REF! ->  | G28: =#REF! ->  | H28: =#REF! ->  | I28: =#REF! ->  | J28: =#REF!+#REF! -> 
C29: 26 | D29: =HLOOKUP(C29,'Dados Gerais'!$D$6:$BI$11,6) -> 0 | E29: =HLOOKUP(C29,'Dados Gerais'!$D$6:$BI$15,10) -> 0 | F29: =#REF! ->  | G29: =#REF! ->  | H29: =#REF! ->  | I29: =#REF! ->  | J29: =#REF!+#REF! -> 
C30: 27 | D30: =HLOOKUP(C30,'Dados Gerais'!$D$6:$BI$11,6) -> 0 | E30: =HLOOKUP(C30,'Dados Gerais'!$D$6:$BI$15,10) -> 0 | F30: =#REF! ->  | G30: =#REF! ->  | H30: =#REF! ->  | I30: =#REF! ->  | J30: =#REF!+#REF! -> 
C31: 28 | D31: =HLOOKUP(C31,'Dados Gerais'!$D$6:$BI$11,6) -> 0 | E31: =HLOOKUP(C31,'Dados Gerais'!$D$6:$BI$15,10) -> 0 | F31: =#REF! ->  | G31: =#REF! ->  | H31: =#REF! ->  | I31: =#REF! ->  | J31: =#REF!+#REF! -> 
C32: 29 | D32: =HLOOKUP(C32,'Dados Gerais'!$D$6:$BI$11,6) -> 0 | E32: =HLOOKUP(C32,'Dados Gerais'!$D$6:$BI$15,10) -> 0 | F32: =#REF! ->  | G32: =#REF! ->  | H32: =#REF! ->  | I32: =#REF! ->  | J32: =#REF!+#REF! -> 
C33: 30 | D33: =HLOOKUP(C33,'Dados Gerais'!$D$6:$BI$11,6) -> 0 | E33: =HLOOKUP(C33,'Dados Gerais'!$D$6:$BI$15,10) -> 0 | F33: =#REF! ->  | G33: =#REF! ->  | H33: =#REF! ->  | I33: =#REF! ->  | J33: =#REF!+#REF! -> 
C34: 31 | D34: =HLOOKUP(C34,'Dados Gerais'!$D$6:$BI$11,6) -> 0 | E34: =HLOOKUP(C34,'Dados Gerais'!$D$6:$BI$15,10) -> 0 | F34: =#REF! ->  | G34: =#REF! ->  | H34: =#REF! ->  | I34: =#REF! ->  | J34: =#REF!+#REF! -> 
C35: 32 | D35: =HLOOKUP(C35,'Dados Gerais'!$D$6:$BI$11,6) -> 0 | E35: =HLOOKUP(C35,'Dados Gerais'!$D$6:$BI$15,10) -> 0 | F35: =#REF! ->  | G35: =#REF! ->  | H35: =#REF! ->  | I35: =#REF! ->  | J35: =#REF!+#REF! -> 
C36: 33 | D36: =HLOOKUP(C36,'Dados Gerais'!$D$6:$BI$11,6) -> 0 | E36: =HLOOKUP(C36,'Dados Gerais'!$D$6:$BI$15,10) -> 0 | F36: =#REF! ->  | G36: =#REF! ->  | H36: =#REF! ->  | I36: =#REF! ->  | J36: =#REF!+#REF! -> 
C37: 34 | D37: =HLOOKUP(C37,'Dados Gerais'!$D$6:$BI$11,6) -> 0 | E37: =HLOOKUP(C37,'Dados Gerais'!$D$6:$BI$15,10) -> 0 | F37: =#REF! ->  | G37: =#REF! ->  | H37: =#REF! ->  | I37: =#REF! ->  | J37: =#REF!+#REF! -> 
C38: 35 | D38: =HLOOKUP(C38,'Dados Gerais'!$D$6:$BI$11,6) -> 0 | E38: =HLOOKUP(C38,'Dados Gerais'!$D$6:$BI$15,10) -> 0 | F38: =#REF! ->  | G38: =#REF! ->  | H38: =#REF! ->  | I38: =#REF! ->  | J38: =#REF!+#REF! -> 
C39: 36 | D39: =HLOOKUP(C39,'Dados Gerais'!$D$6:$BI$11,6) -> 0 | E39: =HLOOKUP(C39,'Dados Gerais'!$D$6:$BI$15,10) -> 0 | F39: =#REF! ->  | G39: =#REF! ->  | H39: =#REF! ->  | I39: =#REF! ->  | J39: =#REF!+#REF! -> 
D41: TOTAL | E41: =SUM(E4:E39) -> 121

Sheet Dados Gerais
B4: INFORMAÇÕES DE ENTRADA
D6: 1 | E6: 2 | F6: 3 | G6: 4 | H6: 5 | I6: 6 | J6: 7 | K6: 8 | L6: 9 | M6: 10 | N6: 11 | O6: 12 | P6: 13 | Q6: 14 | R6: 15 | S6: 16 | T6: 17 | U6: 18 | V6: 19 | W6: 20 | X6: 21 | Y6: 22 | Z6: 23 | AA6: 24 | AB6: 25 | AC6: 26 | AD6: 27 | AE6: 28 | AF6: 29 | AG6: 30 | AH6: 31 | AI6: 32 | AJ6: 33 | AK6: 34 | AL6: 35 | AM6: 36 | AO6: 40 | AP6: 41 | AQ6: 42 | AR6: 43 | AS6: 44 | AT6: 45 | AU6: 46 | AV6: 47 | AW6: 48 | AX6: 49 | AY6: 50 | AZ6: 51 | BA6: 52 | BB6: 53 | BC6: 54 | BD6: 55 | BE6: 56 | BF6: 57 | BG6: 58 | BH6: 59 | BI6: 60
D7: CARGO 1 | E7: CARGO 2 | F7: CARGO 3 | G7: CARGO 4 | H7: CARGO 5 | I7: CARGO 6 | J7: CARGO 7 | K7: CARGO 8 | L7: CARGO 9 | M7: CARGO 10 | N7: CARGO 11 | O7: CARGO 12 | P7: CARGO 13 | Q7: CARGO 14 | R7: CARGO 15 | S7: CARGO 16 | T7: CARGO 17 | U7: CARGO 18 | V7: CARGO 19 | W7: CARGO 20 | X7: CARGO 21 | Y7: CARGO 22 | Z7: CARGO 23 | AA7: CARGO 24 | AB7: CARGO 25 | AC7: CARGO 26 | AD7: CARGO 27 | AE7: CARGO 28 | AF7: CARGO 29 | AG7: CARGO 30 | AH7: CARGO 31 | AI7: CARGO 32 | AJ7: CARGO 33 | AK7: CARGO 34 | AL7: CARGO 35 | AM7: CARGO 36 | AO7: CARGO 40 | AP7: CARGO 41 | AQ7: CARGO 42 | AR7: CARGO 43 | AS7: CARGO 44 | AT7: CARGO 45 | AU7: CARGO 46 | AV7: CARGO 47 | AW7: CARGO 48 | AX7: CARGO 49 | AY7: CARGO 50 | AZ7: CARGO 51 | BA7: CARGO 52 | BB7: CARGO 53 | BC7: CARGO 54 | BD7: CARGO 55 | BE7: CARGO 56 | BF7: CARGO 57 | BG7: CARGO 58 | BH7: CARGO 59 | BI7: CARGO 60
B8: INFORMAÇÕES BÁSICAS
B10: DESCRIÇÃO DOS POSTOS DE SERVIÇO
D11: SUPERVISOR TÉCNICO OPERACIONAL | E11: SUPERVISOR TÉCNICO | F11: SUPERVISOR TÉCNICO (CENTRO DE TRANSMISSÃO) | G11: SUPERVISOR DE OPERAÇÕES | H11: DIRETOR DE IMAGENS – 30H | I11: DIRETOR DE IMAGENS – 18H | J11: TÉCNICO DE SISTEMAS AUDIOVISUAIS – especialidade Sistemas e Vídeo 36H | K11: OPERADOR DE MÍDIA AUDIOVISUAL – 30H | L11: OPERADOR DE MÍDIA AUDIOVISUAL – 18H | M11: OPERADOR DE TRANSMISSOR – Rádio e TV - 24H
B12: REMUNERAÇÕES
D13: 15828.37 | E13: 11305.98 | F13: 11305.98 | G13: 10867.58 | H13: 6492.64 | I13: 3895.59 | J13: 6660.16 | K13: 5394.03 | L13: 3236.42 | M13: 3837.34
B14: QUANTIDADE DE POSTOS
D15: 2 | E15: 2 | F15: 1 | G15: 2 | H15: 24 | I15: 21 | J15: 4 | K15: 34 | L15: 26 | M15: 5
B16: JORNADA
C17: HORAS/DIA | D17: 8 | E17: 8 | F17: 8 | G17: 8 | H17: 6 | I17: 6 | J17: 6 | K17: 6 | L17: 6 | M17: 6
C18: DIAS/MÊS | D18: 22 | E18: 22 | F18: 22 | G18: 22 | H18: 22 | I18: =3*52/12 -> 13 | J18: 22 | K18: 22 | L18: =3*52/12 -> 13 | M18: =ROUNDDOWN(4*52/12,0) -> 17
C19: HORAS/MÊS | D19: =5*44 -> 220 | E19: =5*44 -> 220 | F19: =5*44 -> 220 | G19: =5*44 -> 220 | H19: =30*5 -> 150 | I19: =18*5 -> 90 | J19: =36*5 -> 180 | K19: =30*5 -> 150 | L19: =18*5 -> 90 | M19: =24*5 -> 120
B20: CCT UTILIZADA
C21: SINDICATOS E REFERÊNCIA | D21: SEAC/DF X SINRAD/DF CCT 2024/2024 N.º DF000133/2024 | E21: =D21 -> SEAC/DF X SINRAD/DF CCT 2024/2024 N.º DF000133/2024 | F21: =E21 -> SEAC/DF X SINRAD/DF CCT 2024/2024 N.º DF000133/2024 | G21: SEAC/DF X SINRAD/DF CCT 2024/2024 N.º DF000133/2024 | H21: SEAC/DF X SINRAD/DF CCT 2024/2024 N.º DF000133/2024 | I21: SEAC/DF X SINRAD/DF CCT 2024/2024 N.º DF000133/2024 | J21: SEAC/DF X SINRAD/DF CCT 2024/2024 N.º DF000133/2024 | K21: SEAC/DF X SINRAD/DF CCT 2024/2024 N.º DF000133/2024 | L21: SEAC/DF X SINRAD/DF CCT 2024/2024 N.º DF000133/2024 | M21: SEAC/DF X SINRAD/DF CCT 2024/2024 N.º DF000133/2024
C22: DATA-BASE | D22: 2024-01-01 | E22: =D22 -> 2024-01-01 | F22: =E22 -> 2024-01-01 | G22: 2024-01-01 | H22: 2024-01-01 | I22: 2024-01-01 | J22: 2024-01-01 | K22: 2024-01-01 | L22: 2024-01-01 | M22: 2024-01-01
B24: ADICIONAIS LEGAIS E GRATIFICAÇÕES
B26: PERICULOSIDADE (PERCENTUAL)
D27: 0 | E27: 0 | F27: 0 | G27: 0 | H27: 0 | I27: 0 | J27: 0 | K27: 0 | L27: 0 | M27: 0
B28: BASE DE CÁLCULO DO ADICIONAL DE PERICULOSIDADE (SALÁRIO BÁSICO)
D29: =D13 -> 15828.37 | E29: =E13 -> 11305.98 | F29: 15828.37 | G29: 11305.98 | H29: 11305.98 | I29: 10867.58 | J29: 6492.64 | K29: 3895.59 | L29: 6660.16 | M29: 5394.03
B30: VALOR MENSAL DO ADICIONAL DE PERICULOSIDADE
D31: =ROUND(D27*D13,2) -> 0 | E31: =ROUND(E27*E13,2) -> 0 | F31: 0 | G31: 0 | H31: 0 | I31: 0 | J31: 0 | K31: 0 | L31: 0 | M31: 0
B32: INSALUBRIDADE (PERCENTUAL)
D33: 0 | E33: 0 | F33: 0 | G33: 0 | H33: 0 | I33: 0 | J33: 0 | K33: 0 | L33: 0 | M33: 0
B34: BASE DE CÁLCULO DO ADICIONAL DE INSALUBRIDADE (SALÁRIO MÍNIMO LEGAL)
D35: 1412 | E35: =D35 -> 1412 | F35: =E35 -> 1412 | G35: =F35 -> 1412 | H35: =G35 -> 1412 | I35: 1412 | J35: 1412 | K35: 1412 | L35: 1412 | M35: 1412
B36: VALOR MENSAL DO ADICIONAL DE INSALUBRIDADE
D37: =ROUND(D33*D13,2) -> 0 | E37: =ROUND(E33*E35,2) -> 0 | F37: 0 | G37: 0 | H37: 0 | I37: 0 | J37: 0 | K37: 0 | L37: 0 | M37: 0
B38: GRATIFICAÇÃO - VALOR MENSAL (R$)
D39: 0 | E39: 0 | F39: 0 | G39: 0 | H39: 0 | I39: 0 | J39: 0 | K39: 0 | L39: 0 | M39: 0
B41: ADICIONAL NOTURNO
B43: INCIDÊNCIA (PERCENTUAL)
D44: 0.4 | E44: =D44 -> 0.4 | F44: =E44 -> 0.4 | G44: 0.4 | H44: 0.4 | I44: 0.4 | J44: 0.4 | K44: 0.4 | L44: 0.4 | M44: 0.4
B45: HORAS REAIS POR DIA
D46: 0 | E46: 0 | F46: 0 | G46: 0 | H46: 0 | I46: 0 | J46: 0 | K46: 0 | L46: 0 | M46: 0 | AN46: 0
B47: HORAS FICTAS POR DIA
D48: =D46*8/7 -> 0 | E48: 0 | F48: 0 | G48: 0 | H48: 0 | I48: 0 | J48: 0 | K48: =K46*8/7 -> 0 | L48: =L46*8/7 -> 0 | M48: =M46*8/7 -> 0
B49: BASE DE CÁLCULO DO ADICIONAL NOTURNO (INCLUINDO ADICIONAIS E GRATIFICAÇÕES)
D50: =D13+D31+D37+D39 -> 15828.37 | E50: 11305.98 | F50: =F13+F31+F37+F39 -> 11305.98 | G50: 10867.58 | H50: 6492.64 | I50: 3895.59 | J50: 6660.16 | K50: =K13+K31+K37+K39 -> 5394.03 | L50: =L13+L31+L37+L39 -> 3236.42 | M50: =M13+M31+M37+M39 -> 3837.34
B51: VALOR MENSAL DO ADICIONAL NOTURNO (HORA NORMAL + HORA REDUZIDA) - POR POSTO
D52: =ROUND(D48*D18*D44*D50/D19,2) -> 0 | E52: 0 | F52: =ROUND(F48*F18*F44*F50/F19,2) -> 0 | G52: 0 | H52: 0 | I52: 0 | J52: 0 | K52: =ROUND(K48*K18*K44*K50/K19,2) -> 0 | L52: =ROUND(L48*L18*L44*L50/L19,2) -> 0 | M52: =ROUND(M48*M18*M44*M50/M19,2) -> 0
B54: ADICIONAL DE HORA EXTRA
B56: INCIDÊNCIA (PERCENTUAL 1)
D57: 0.5 | E57: 0.5 | F57: 0.5 | G57: 0.5 | H57: 0.5 | I57: 0.5 | J57: 0.5 | K57: 0.5 | L57: 0.5 | M57: 0.5
B58: HORAS EXTRAS POR MÊS (PERCENTUAL 1)
D59: 0 | E59: 0 | F59: 0 | G59: 0 | H59: 0 | I59: 0 | J59: 0 | K59: 0 | L59: 0 | M59: 0
B60: VALOR MENSAL DO ADICIONAL DE HORAS EXTRAS (PERCENTUAL 1) - POR POSTO
D61: =ROUND(D59*D57*D13/D19,2) -> 0 | E61: 0 | F61: =ROUND(F59*F57*F13/F19,2) -> 0 | G61: 0 | H61: 0 | I61: 0 | J61: 0 | K61: =ROUND(K59*K57*K13/K19,2) -> 0 | L61: =ROUND(L59*L57*L13/L19,2) -> 0 | M61: =ROUND(M59*M57*M13/M19,2) -> 0
B62: INCIDÊNCIA (PERCENTUAL 2)
D63: 1 | E63: 1 | F63: 1 | G63: 1 | H63: 1 | I63: 1 | J63: 1 | K63: 1 | L63: 1 | M63: 1
B64: HORAS EXTRAS POR MÊS (PERCENTUAL 2)
D65: 0 | E65: 0 | F65: 0 | G65: 0 | H65: 0 | I65: 0 | J65: 0 | K65: 0 | L65: 0 | M65: 0
B66: VALOR MENSAL DO ADICIONAL DE HORAS EXTRAS (PERCENTUAL 2) - POR POSTO
D67: =ROUND(D65*D63*D13/D19,2) -> 0 | E67: 0 | F67: =ROUND(F65*F63*F13/F19,2) -> 0 | G67: 0 | H67: 0 | I67: 0 | J67: 0 | K67: =ROUND(K65*K63*K13/K19,2) -> 0 | L67: =ROUND(L65*L63*L13/L19,2) -> 0 | M67: =ROUND(M65*M63*M13/M19,2) -> 0
B68: TOTAL MENSAL DOS ADICIONAIS DE HORAS EXTRAS - POR POSTO
D69: =D67+D61 -> 0 | E69: 0 | F69: =F67+F61 -> 0 | G69: 0 | H69: 0 | I69: 0 | J69: 0 | K69: =K67+K61 -> 0 | L69: =L67+L61 -> 0 | M69: =M67+M61 -> 0
B71: BENEFÍCIOS COMUNS - AUXÍLIO TRANSPORTE
B73: DISTRIBUIÇÃO ESTIMADA DE PROCEDÊNCIA
C74: Cidade-satélite | D74: =100%-D75 -> 0.867768595 | E74: =D74 -> 0.867768595 | F74: =E74 -> 0.867768595 | G74: 0.867768595 | H74: 0.867768595 | I74: 0.867768595 | J74: 0.867768595 | K74: 0.867768595 | L74: 0.867768595 | M74: 0.867768595
C75: Região do entorno | D75: =16/Remunerações!E41 -> 0.132231405 | E75: =D75 -> 0.132231405 | F75: 0.132231405 | G75: 0.132231405 | H75: 0.132231405 | I75: 0.132231405 | J75: 0.132231405 | K75: 0.132231405 | L75: 0.132231405 | M75: 0.132231405
C76: Esplanada - apenas para os que vêm do entorno | D76: =D75 -> 0.132231405 | E76: 0.132231405 | F76: 0.132231405 | G76: 0.132231405 | H76: 0.132231405 | I76: 0.132231405 | J76: 0.132231405 | K76: 0.132231405 | L76: 0.132231405 | M76: 0.132231405
B77: VALORES DOS VALES
C78: Cidade-satélite | D78: 5.5 | E78: =D78 -> 5.5 | F78: =E78 -> 5.5 | G78: 5.5 | H78: 5.5 | I78: 5.5 | J78: 5.5 | K78: 5.5 | L78: 5.5 | M78: 5.5
C79: Região do entorno | D79: 8.78 | E79: =D79 -> 8.78 | F79: =E79 -> 8.78 | G79: 8.78 | H79: 8.78 | I79: 8.78 | J79: 8.78 | K79: 8.78 | L79: 8.78 | M79: 8.78
C80: Esplanada | D80: 2.75 | E80: =D80 -> 2.75 | F80: =E80 -> 2.75 | G80: 2.75 | H80: 2.75 | I80: 2.75 | J80: 2.75 | K80: 2.75 | L80: 2.75 | M80: 2.75
B81: VALOR MENSAL BRUTO DE PAGAMENTO - POR POSTO
D82: =ROUND((D74*D78+D75*D79+D76*D80)*2*D18,2) -> 277.08 | E82: 277.08 | F82: =ROUND((F74*F78+F75*F79+F76*F80)*2*F18,2) -> 277.08 | G82: 277.08 | H82: 277.08 | I82: 163.73 | J82: 277.08 | K82: =ROUND((K74*K78+K75*K79+K76*K80)*2*K18,2) -> 277.08 | L82: =ROUND((L74*L78+L75*L79+L76*L80)*2*L18,2) -> 163.73 | M82: =ROUND((M74*M78+M75*M79+M76*M80)*2*M18,2) -> 214.11
B83: PERCENTUAL DE DESCONTO
D84: 0.06 | E84: =D84 -> 0.06 | F84: =E84 -> 0.06 | G84: 0.06 | H84: 0.06 | I84: 0.06 | J84: 0.06 | K84: 0.06 | L84: 0.06 | M84: 0.06
B85: VALOR MENSAL DO DESCONTO - POR POSTO
D86: =ROUND(D84*D13,2) -> 949.7 | E86: 678.36 | F86: =ROUND(F84*F13,2) -> 678.36 | G86: 652.05 | H86: 389.56 | I86: 233.74 | J86: 399.61 | K86: =ROUND(K84*K13,2) -> 323.64 | L86: =ROUND(L84*L13,2) -> 194.19 | M86: =ROUND(M84*M13,2) -> 230.24
B87: VALOR MENSAL LÍQUIDO DO VALE TRANSPORTE - POR POSTO
D88: =IF(D82>D86,D82-D86,0) -> 0 | E88: 0 | F88: 0 | G88: 0 | H88: 0 | I88: 0 | J88: 0 | K88: =IF(K82>K86,K82-K86,0) -> 0 | L88: =IF(L82>L86,L82-L86,0) -> 0 | M88: =IF(M82>M86,M82-M86,0) -> 0
D89: =D88*D15 -> 0 | E89: =E88*E15 -> 0 | F89: =F88*F15 -> 0 | G89: =G88*G15 -> 0
B90: BENEFÍCIOS COMUNS - AUXÍLIO ALIMENTAÇÃO
C92: VALOR CCT | D92: 43.5 | E92: =D92 -> 43.5 | F92: 43.5 | G92: 43.5 | H92: 43.5 | I92: 43.5 | J92: 43.5 | K92: 43.5 | L92: 43.5 | M92: 43.5
C93: VALOR CD | D93: 35 | E93: =D93 -> 35 | F93: 35 | G93: 35 | H93: 35 | I93: 35 | J93: 35 | K93: 35 | L93: 35 | M93: 35
B94: VALOR MENSAL DO AUXÍLIO ALIMENTAÇÃO - POR POSTO
D95: =ROUND(LARGE(D92:D93,1)*D18,2) -> 957 | E95: =ROUND(LARGE(E92:E93,1)*E18,2) -> 957 | F95: =ROUND(LARGE(F92:F93,1)*F18,2) -> 957 | G95: 957 | H95: 957 | I95: 565.5 | J95: 957 | K95: 957 | L95: 565.5 | M95: 739.5
D96: =D95*D15 -> 1914 | E96: =E95*E15 -> 1914 | F96: =F95*F15 -> 957 | G96: =G95*G15 -> 1914
B97: BENEFÍCIOS ESPECIAIS - ASSISTÊNCIA MÉDICA E FAMILIAR
C99: OBRIGAÇÃO DE PAGTO | D99: NÃO | E99: =D99 -> NÃO | F99: =E99 -> NÃO | G99: NÃO | H99: NÃO | I99: NÃO | J99: NÃO | K99: NÃO | L99: NÃO | M99: NÃO
C100: VALOR CCT | D100: 0 | E100: =D100 -> 0 | F100: =E100 -> 0 | G100: 0 | H100: 0 | I100: 0 | J100: 0 | K100: 0 | L100: 0 | M100: 0
C101: VALOR MERCADO | D101: 0 | E101: =D101 -> 0 | F101: =E101 -> 0 | G101: 0 | H101: 0 | I101: 0 | J101: 0 | K101: 0 | L101: 0 | M101: 0
B102: VALOR MENSAL DO AUXÍLIO ESPECIAL - ASSISTÊNCIA MÉDICA E FAMILIAR - POR POSTO
D103: =IF(D99="SIM",ROUND(SMALL(D100:D101,1),2),0) -> 0 | E103: =D103 -> 0 | F103: =E103 -> 0 | G103: 0 | H103: 0 | I103: 0 | J103: 0 | K103: 0 | L103: 0 | M103: 0
B105: BENEFÍCIOS ESPECIAIS - SEGURO DE VIDA E AUXÍLIO-FUNERAL, AUX ODONT, AUX CRECHE
B107: SEGURO DE VIDA E AUXÍLIO FUNERAL
C108: OBRIGAÇÃO DE PAGTO | D108: SIM | E108: SIM | F108: SIM | G108: SIM | H108: SIM | I108: SIM | J108: SIM | K108: SIM | L108: SIM | M108: SIM
C109: VALOR CCT | D109: 3.9 | E109: =D109 -> 3.9 | F109: 3.9 | G109: 3.9 | H109: 3.9 | I109: 3.9 | J109: 3.9 | K109: 3.9 | L109: 3.9 | M109: 3.9
C110: VALOR MERCADO | D110: 18.4 | E110: 18.4 | F110: 18.4 | G110: 18.4 | H110: 18.4 | I110: 18.4 | J110: 18.4 | K110: 18.4 | L110: 18.4 | M110: 18.4
B111: VALOR MENSAL DO AUXÍLIO ESPECIAL - SEGURO DE VIDA E AUXÍLIO FUNERAL - POR POSTO
D112: =IF(D108="SIM",ROUND(SMALL(D109:D110,1),2),0) -> 3.9 | E112: 3.9 | F112: 3.9 | G112: 3.9 | H112: 3.9 | I112: 3.9 | J112: 3.9 | K112: 3.9 | L112: 3.9 | M112: 3.9
B113: AUXÍLIO ODONTOLÓGICO
C114: OBRIGAÇÃO DE PAGTO | D114: NÃO | E114: NÃO | F114: NÃO | G114: NÃO | H114: NÃO | I114: NÃO | J114: NÃO | K114: NÃO | L114: NÃO | M114: NÃO
C115: VALOR CCT | D115: 0 | E115: 0 | F115: 0 | G115: 0 | H115: 0 | I115: 0 | J115: 0 | K115: 0 | L115: 0 | M115: 0
C116: VALOR MERCADO | D116: 0 | E116: 0 | F116: 0 | G116: 0 | H116: 0 | I116: 0 | J116: 0 | K116: 0 | L116: 0 | M116: 0
B117: VALOR MENSAL DO AUXÍLIO ESPECIAL - AUXILIO ODONTOLOGICO - POR POSTO
D118: =IF(D114="SIM",ROUND(SMALL(D115:D116,1),2),0) -> 0 | E118: 0 | F118: 0 | G118: 0 | H118: 0 | I118: 0 | J118: 0 | K118: 0 | L118: 0 | M118: 0
B119: REEMBOLSO CRECHE
C120: OBRIGAÇÃO DE PAGTO | D120: SIM | E120: SIM | F120: SIM | G120: SIM | H120: SIM | I120: SIM | J120: SIM | K120: SIM | L120: SIM | M120: SIM
C121: VALOR CCT
C122: VALOR CALCULADO - % PESSOAS COM CRIANCAS ATE 6A - 20% | D122: =560*0.2 -> 112 | E122: =D122 -> 112 | F122: =E122 -> 112 | G122: =F122 -> 112 | H122: 112 | I122: 112 | J122: 112 | K122: 112 | L122: 112 | M122: 112
B123: VALOR MENSAL DO AUXÍLIO ESPECIAL - REEMBOLSO CRECHE - POR POSTO
D124: =IF(D120="SIM",ROUND(SMALL(D121:D122,1),2),0) -> 112 | E124: 112 | F124: 112 | G124: 112 | H124: 112 | I124: 112 | J124: 112 | K124: 112 | L124: 112 | M124: 112 | N124: =N95+N88 -> 0 | O124: 0 | P124: 0 | Q124: 0 | R124: 0 | S124: 0 | T124: 0 | U124: 0 | V124: 0 | W124: 0 | X124: 0 | Y124: 0 | Z124: 0 | AA124: 0 | AB124: 0 | AC124: 0 | AD124: 0 | AE124: 0 | AF124: 0 | AG124: 0 | AH124: 0 | AI124: 0 | AJ124: 0 | AK124: 0 | AL124: 0 | AM124: 0
B125: AUXÍLIO VESTUÁRIO ESPECIAL
C126: OBRIGAÇÃO DE PAGTO | D126: SIM | E126: SIM | F126: SIM | G126: SIM | H126: SIM | I126: SIM | J126: SIM | K126: SIM | L126: SIM | M126: NÃO
C127: VALOR CCT | D127: =1312/6 -> 218.6666667 | E127: =D127 -> 218.6666667 | F127: =E127 -> 218.6666667 | G127: =F127 -> 218.6666667 | H127: 218.6666667 | I127: 218.6666667 | J127: 218.6666667 | K127: 218.6666667 | L127: 218.6666667 | M127: 218.6666667
C128: VALOR MERCADO
B129: VALOR MENSAL DO AUXÍLIO ESPECIAL - VESTUTUÁRIO - POR POSTO
D130: =IF(D126="SIM",ROUND(SMALL(D127:D128,1),2),0) -> 218.67 | E130: 218.67 | F130: 218.67 | G130: 218.67 | H130: 218.67 | I130: 218.67 | J130: 218.67 | K130: =IF(K126="SIM",ROUND(SMALL(K127:K128,1),2),0) -> 218.67 | L130: =IF(L126="SIM",ROUND(SMALL(L127:L128,1),2),0) -> 218.67 | M130: =IF(M126="SIM",ROUND(SMALL(M127:M128,1),2),0) -> 0
B131: TOTAL MENSAL DOS AUXÍLIOS ESPECIAIS - POR POSTO
D132: =+D112+D118+D124+D130 -> 334.57 | E132: =+E112+E118+E124+E130 -> 334.57 | F132: =+F112+F118+F124+F130 -> 334.57 | G132: =+G112+G118+G124+G130 -> 334.57 | H132: =+H112+H118+H124+H130 -> 334.57 | I132: 334.57 | J132: 334.57 | K132: 334.57 | L132: 334.57 | M132: 115.9

Sheet Encargos Sociais
B4: ENCARGOS SOCIAIS SOBRE A MÃO DE OBRA
E5: Percentuais
B7: Referência:
C8: SINAPI
B10: Categorias:
C11: TODAS
B13: GRUPO A: Encargos Sociais Básicos - Previdenciários (GPS), Fundo de Garantia por Tempo de Serviço (FGTS) e Outras Contribuições | E13: =ROUND(SUM(E14:E22),4) -> 0.348
C14: A | D14: INSS (art. 22, inciso I, Lei nº 8.212/91) | E14: 0.2
C15: B | D15: Salário Educação (art. 3º, inciso I, Decreto nº 87.043/82) | E15: 0.025 | G15: * Nota 1 - Os percentuais dos encargos previdenciários, do FGTS e demais contribuições são estabelecidos por legislação vigente.
C16: C | D16: SAT/RAT (art. 22, II, Lei 8.212/91 e Anexo V, Decreto 6.042/07) - Enquadramento 5911-1/99 | E16: 0.01 | G16: * Nota 2 - O SAT, a depender do grau de risco do serviço, irá variar entre 1%, para risco leve, de 2%, para risco médio, e de 3% para risco grave.
C17: D | D17: SESC ou SESI (art. 30, Lei nº 8.036/90 e art. 1º, Lei 8.154/90) | E17: 0.015 | G17: * Nota 3 - Os percentuais do Submódulo 2.2 incidem sobre o Módulo 1, o Submódulo 2.1, o Módulo 3, o Módulo 4 e o Módulo 6.
C18: E | D18: SENAI ou SENAC (Decreto nº 2.318/86) | E18: 0.01
C19: F | D19: SEBRAE (§ 3º, art. 8º, Lei 8.029/90, alterada pela Lei nº 8.154/90) | E19: 0.006
C20: G | D20: INCRA (art. 1º, I, Decreto Lei 1.146/70 e Lei 7.787, de 30/06/89) | E20: 0.002
C21: H | D21: FGTS (Lei Complementar nº 110/01 e art. 30, Lei nº 8.036/90) | E21: 0.08
C22: I | D22: SECONCI (Convenções Coletivas de Trabalho da construção) | E22: 0
B24: GRUPO B: Encargos Sociais Relacionados ao Custo do Profissional Ausente - Ausências Legais | E24: =ROUND(SUM(E25:E33),4) -> 0.2245
C25: A | D25: Férias (Arts. 129 e 130, inc. I, da CLT) | E25: =ROUND(1/11,4) -> 0.0909 | G25: * Nota 1 - As alíneas “A” a “F” referem-se somente ao custo que será pago ao repositor pelos dias trabalhados quando da necessidade de substituir a mão de obra alocada na prestação do serviço.
C26: B | D26: Ausências Legais (Arts. 131 e 473 da CLT) | E26: =ROUND(2/252,4) -> 0.0079 | G26: * Nota 2 - Adotou-se a estimativa do SINAPI de 2 dias por ano. Em 252 dias úteis por ano.
C27: C | D27: Licença-Paternidade (Art. 7º, XIX, e art. 10, §1º, do ADCT, CF/1988 e Art. 1º, II, da Lei 11.770/2008) | E27: =ROUND((5/(30*12))*0.0596,4) -> 0.0008 | G27: * Nota 3 - Utilizada a proporção de 50% para homens, 5 dias de afastamento, e a probabilidade de um trabalhador requerer a Licença Paternidade em 5,96%, conforme SINAPI (Anuário Estatístico da Previdência Social - 2017)
C28: D | D28: Ausência por Acidente de Trabalho (Art. 131, III, da CLT) | E28: =ROUND(0.0205*15/360,4) -> 0.0009 | G28: * Nota 4 - Utilzada a estatística de 2,05% dos contribuintes beneficiados com a emissão do auxílio, conforme Anuário Estatístico da Previdência Social. Afastamento de 15 dias a cargo da empresa.
C29: E | D29: Afastamento Maternidade (Art. 71 da Lei nº 8.213/1991) | E29: =ROUND(0.0508*(120/360)*(30+30*4/3)/360,4) -> 0.0033 | G29: * Nota 5 - Utilizada a estimativa de 120 dias de afastamento, e a probabilidade de uma trabalhadora requerer a Licença Maternidade em 5,08%, conforme SINAPI (citando dados do IBGE 2017) - A própria previdência paga o benefício pelos 120 dias, contudo o empregador arca com o 13º e com as férias
C30: F | D30: Auxílio Enfermidade - Doença (Art. 59 da Lei nº 8.213/1991) | E30: =ROUND(((0.0376*15)+2)/360,4) -> 0.0071 | G30: * Nota 6 - Utilizada a estatística de 3,76% dos contribuintes beneficiados com o auxílio, conforme Anuário Estatístico da Previdência Social de 2016 (acrescidos de 2 dias ao ano, para os quais o trabalhador nem requer o benefício da Previdência - conforme SINAPI)
C31: G | D31: Adicional de Férias (componente do Submódulo 2.1) | E31: =ROUND(1/3*1/11,4) -> 0.0303 | G31: * Nota 7 - O adicional de férias contido no Submódulo 2.1 corresponde a 1/3 da remuneração que, por sua vez, é dividida por 11 conforme Nota 1.
C32: H | D32: 13º Salário (destacado na planilha de custos) | E32: =ROUND(1/12,4) -> 0.0833 | G32: * Nota 8 - Provisiona-se, mensalmente, o proporcional a 1/12 dos valores referentes a gratificação natalina e adicional de férias.
C33: I | D33: Intervalo para repouso ou alimentação (componente do Submódulo 4.2) | E33: 0
B35: GRUPO C: Encargos Sociais Relacionados à Previsão para Rescisão Trabalhista | E35: =ROUND(SUM(E36:E41),4) -> 0.0551
C36: A | D36: Aviso Prévio Indenizado (Art. 7º, inciso XXI, da CF/1988 e arts. 477, 487, §1º, e 491 da CLT) | E36: =ROUND(D54*30/360,4) -> 0.0042 | G36: * Nota 1 - Considerou-se 5% de demitidos sem justa causa ao ano e recebendo aviso indenizado (30 dias de aviso prévio / 360 dias ao ano)
C37: B | D37: Incidência do FGTS sobre o Aviso Prévio Indenizado (Súmula 305 TST) | E37: =ROUND(E21*E36,4) -> 0.0003
C38: C | D38: Multa do FGTS sobre o Aviso Prévio Indenizado (Art. 18, §1º, da Lei 8.036/1990) | E38: =ROUND((1+1/12+1/12+1/36)*0.4*E21*D54,4) -> 0.0019 | G38: * Nota 2 - Incide sobre a Remuneração + 13º salário (1/12) + Férias (1/12) + Adicional de Férias (1/36) x 40% multa para o empregador x 8% FGTS x taxa de rotatividade estimada 5%
C39: D | D39: Aviso Prévio Trabalhado (Art. 488, parágrafo único, CLT) | E39: =ROUND((7)*100%/(D56*30),4) -> 0.0078 | G39: * Nota 3 - Considerou-se demissões de 100% ao final do prazo do contrato. Assim, calcula-se 7 dias de aviso prévio trabalhado dividido pelo prazo do contrato.
C40: E | D40: Incidência de GPS, FGTS e outras contribuições sobre o Aviso Prévio Trabalhado | E40: =ROUND(E39*E13,4) -> 0.0027
C41: F | D41: Multa do FGTS | E41: =ROUND(((1+1/12+1/12+1/36)*0.4*E21),4) -> 0.0382 | G41: * Nota 4 - Incide sobre a Remuneração + 13º salário (1/12) + Férias (1/12) + Adicional de Férias (1/36) x 40% multa para o empregador x 8% FGTS
B43: GRUPO D: Reincidências | E43: =ROUND(SUM(E44:E44),4) -> 0.0781
C44: A | D44: Reincidência do Grupo A sobre o Grupo B | E44: =ROUND(E13*E24,4) -> 0.0781
D46: SOMATÓRIO - ENCARGOS SOCIAIS SOBRE A MÃO DE OBRA | E46: =E43+E35+E24+E13 -> 0.7057
C50: ENCARGOS SEM O 13º
D51: =E46-E32-E32*E13 -> 0.5934116
C53: % DEMIDIDOS AO LONGO DO ANO
D54: 0.05
C55: PRAZO DO CONTRATO (EM MESES)
D56: 30

Sheet Encargos Sociais HE (hidden)
B4: ENCARGOS SOCIAIS SOBRE A MÃO DE OBRA - HORAS EXTRAS
E5: Percentuais
B7: Referência:
C8: SINAPI OUT/2018
B10: Categorias:
C11: TODAS
B13: GRUPO A: Encargos Sociais Básicos - Previdenciários (GPS), Fundo de Garantia por Tempo de Serviço (FGTS) e Outras Contribuições | E13: =ROUND(SUM(E14:E22),4) -> 0.158
C14: A | D14: INSS (art. 22, inciso I, Lei nº 8.212/91) | E14: 0
C15: B | D15: Salário Educação (art. 3º, inciso I, Decreto nº 87.043/82) | E15: 0.025 | G15: * Nota 1 - Os percentuais dos encargos previdenciários, do FGTS e demais contribuições são estabelecidos por legislação vigente.
C16: C | D16: SAT/RAT (art. 22, II, Lei 8.212/91 e Anexo V, Decreto 6.042/07) - Enquadramento 4330-1/01 | E16: 0.01 | G16: * Nota 2 - O SAT, a depender do grau de risco do serviço, irá variar entre 1%, para risco leve, de 2%, para risco médio, e de 3% para risco grave.
C17: D | D17: SESC ou SESI (art. 30, Lei nº 8.036/90 e art. 1º, Lei 8.154/90) | E17: 0.015 | G17: * Nota 3 - Os percentuais do Submódulo 2.2 incidem sobre o Módulo 1, o Submódulo 2.1, o Módulo 3, o Módulo 4 e o Módulo 6.
C18: E | D18: SENAI ou SENAC (Decreto nº 2.318/86) | E18: 0.01
C19: F | D19: SEBRAE (§ 3º, art. 8º, Lei 8.029/90, alterada pela Lei nº 8.154/90) | E19: 0.006
C20: G | D20: INCRA (art. 1º, I, Decreto Lei 1.146/70 e Lei 7.787, de 30/06/89) | E20: 0.002
C21: H | D21: FGTS (Lei Complementar nº 110/01 e art. 30, Lei nº 8.036/90) | E21: 0.08
C22: I | D22: SECONCI (Convenções Coletivas de Trabalho da construção) | E22: 0.01
B24: GRUPO B: Encargos Sociais Relacionados ao Custo de Reposição do Profissional Ausente - Ausências Legais | E24: =ROUND(SUM(E25:E34),4) -> 0.3912
C25: A | D25: Férias (Arts. 129 e 130, inc. I, da CLT) | E25: =1/11 -> 0.09090909091 | G25: * Nota 1 - As alíneas “A” a “F” referem-se somente ao custo que será pago ao repositor pelos dias trabalhados quando da necessidade de substituir a mão de obra alocada na prestação do serviço.
C26: B | D26: Ausências Legais (Arts. 131 e 473 da CLT) | E26: =2/252 -> 0.007936507937 | G26: * Nota 2 - Adotou-se a estimativa do SINAPI de 2 dias por ano. Em 252 dias úteis por ano.
C27: C | D27: Licença-Paternidade (Art. 7º, XIX, e art. 10, §1º, do ADCT, CF/1988 e Art. 1º, II, da Lei 11.770/2008) | E27: =(5/(30*12))*0.0596 -> 0.0008277777778 | G27: * Nota 3 - Utilizada a proporção de 50% para homens, 5 dias de afastamento, e a probabilidade de um trabalhador requerer a Licença Paternidade em 5,96%, conforme SINAPI (Anuário Estatístico da Previdência Social - 2017)
C28: D | D28: Ausência por Acidente de Trabalho (Art. 131, III, da CLT) | E28: =0.0205*15/360 -> 0.0008541666667 | G28: * Nota 4 - Utilzada a estatística de 2,05% dos contribuintes beneficiados com a emissão do auxílio, conforme Anuário Estatístico da Previdência Social. Afastamento de 15 dias a cargo da empresa.
C29: E | D29: Afastamento Maternidade (Art. 71 da Lei nº 8.213/1991) | E29: =0.0508*(120/360)*(30+30*4/3)/360 -> 0.003292592593 | G29: * Nota 5 - Utilizada a estimativa de 120 dias de afastamento, e a probabilidade de uma trabalhadora requerer a Licença Maternidade em 5,08%, conforme SINAPI (citando dados do IBGE 2017) - A própria previdência paga o benefício pelos 120 dias, contudo o empregador arca com o 13º e com as férias
C30: F | D30: Auxílio Enfermidade - Doença (Art. 59 da Lei nº 8.213/1991) | E30: =((0.0376*15)+2)/360 -> 0.007122222222 | G30: * Nota 6 - Utilizada a estatística de 3,76% dos contribuintes beneficiados com o auxílio, conforme Anuário Estatístico da Previdência Social de 2016 (acrescidos de 2 dias ao ano, para os quais o trabalhador nem requer o benefício da Previdência - conforme SINAPI)
C31: G | D31: Adicional de Férias (componente do Submódulo 2.1) | E31: =1/3*1/11 -> 0.0303030303 | G31: * Nota 7 - O adicional de férias contido no Submódulo 2.1 corresponde a 1/3 da remuneração que, por sua vez, é dividida por 12 contome Nota 1.
C32: H | D32: 13º Salário (destacado na planilha de custos) | E32: =1/12 -> 0.08333333333 | G32: * Nota 8 - Provisiona-se, mensalmente, o proporcional a 1/12 dos valores referentes a gratificação natalina e adicional de férias.
C33: I | D33: Intervalo para repouso ou alimentação (componente do Submódulo 4.2) | E33: 0
C34: J | D34: Repouso Semanal Remunerado (DSR) | E34: =5/30 -> 0.1666666667 | G34: * Nota 9 - 5 dias de repouso por mês
B36: GRUPO C: Encargos Sociais Relacionados à Previsão para Rescisão Trabalhista | E36: =ROUND(SUM(E37:E42),4) -> 0.0251
C37: A | D37: Aviso Prévio Indenizado (Art. 7º, inciso XXI, da CF/1988 e arts. 477, 487, §1º, e 491 da CLT) | E37: =ROUND(0.1*30/360,4) -> 0.0083 | G37: * Nota 1 - Considerou-se demissões de 10% para substituições, a um prazo estimado de contrato de 30 meses. Considerou-se os 5% demitidos sem justa causa e recebendo aviso indenizado.
C38: B | D38: Incidência do FGTS sobre o Aviso Prévio Indenizado (Súmula 305 TST) | E38: =ROUND(E22*E37,4) -> 0.0001
C39: C | D39: Multa do FGTS (Art. 18, §1º, da Lei 8.036/1990) | E39: =ROUND((1+1/12+1/12+1/36)*0.4*E22*0.05,4) -> 0.0002 | G39: * Nota 2 - Incide sobre a Remuneração + 13º salário (1/12) + Férias (1/12) + Adicional de Férias (1/36) x 40% multa para o empregador x 8% FGTS x taxa de rotatividade estimada 5%
C40: D | D40: Aviso Prévio Trabalhado (Art. 488, parágrafo único, CLT) | E40: =ROUND(((7+2*3)*100%/360)/3,4) -> 0.012 | G40: * Nota 3 - Considerou-se demissões de 100% ao final do contrato, com um prazo médio estimado de 3 anos. Assim, calcula-se 7 dias para o 1º ano de contrato e mais 3 dias para os 2 anos seguintes. Total 13 dias.
C41: E | D41: Incidência de GPS, FGTS e outras contribuições sobre o Aviso Prévio Trabalhado | E41: =ROUND(E40*E14,4) -> 0
C42: F | D42: Multa do FGTS | E42: =ROUND((1+1/12+1/12+1/36)*0.4*E22*(1-0.05),4) -> 0.0045 | G42: * Nota 4 - Incide sobre a Remuneração + 13º salário (1/12) + Férias (1/12) + Adicional de Férias (1/36) x 40% multa para o empregador x 8% FGTS x (1- taxa de rotatividade estimada Nota2)
B44: GRUPO D: Reincidências | E44: =ROUND(SUM(E45:E45),4) -> 0.0618
C45: A | D45: Reincidência do Grupo A sobre o Grupo B | E45: =E13*E24 -> 0.0618096
D47: SOMATÓRIO - ENCARGOS SOCIAIS SOBRE A MÃO DE OBRA | E47: =E44+E36+E24+E13+0.01% -> 0.6362

Sheet BDI - Geral
B4: COMPOSIÇÃO DA TAXA DE CUSTOS INDIRETOS, TRIBUTOS E LUCRO - BDI
B5: APLICAÇÃO: MÃO DE OBRA, 13º, MATERIAIS, EPC E EQUIPAMENTO DE REGISTRO DE FREQUÊNCIA | E5: Percentuais
B7: Custos Indiretos da Contratada | E7: =SUM(E8:E9) -> 0.026
C8: A | D8: Administração Central | E8: 0.0206 | G8: * Nota 1 - O Somatório da Administração Central com o Lucro deve ser inferior a 12%
C9: B | D9: Seguros, Garantias e Riscos | E9: =0.34%+0.2% -> 0.0054 | G9: * Nota 2 - O risco previsto para o porte do contrato majorado em mais 0,20% devido ao não pagamento dos insumos componentes do custo do posto quando da ausência do mesmo.
B11: Lucro | E11: =SUM(E12:E12) -> 0.0334
C12: A | D12: Lucro Real sobre os Custos Administrados | E12: 0.0334
B14: Despesas Financeiras | E14: =E15 -> 0.005056956743
C15: A | D15: Cálculo Baseado no Prazo para a Restituição dos Desembolsos Realizados pelo Contratado e na Taxa de Retorno Arbitrada | E15: =(1+E17)^(E16/252)-1 -> 0.005056956743 | G15: * Nota 1 - DF = [(1+TR)^(DU/252)]/100
C16: A.1 | D16: Dias Úteis Considerados | E16: 11 | G16: * Nota 2 - Diferença de dias entre o desembolso, pelo contratado, e o pagamento, pela Câmara
C17: A.2 | D17: Taxa de Retorno | E17: 0.1225 | G17: * Nota 3 - A taxa sugerida é a meta da SELIC
B19: Impostos - Tributos Federais | E19: =SUM(E20:E22) -> 0.074
C20: A | D20: Contribuição para o Financiamento da Seguridade Social - COFINS | E20: =0.8*7.6% -> 0.0608 | G20: * Nota 1 - Redução de 20% considerando as deduções permitidas em Lei, conforme SENGE, citado pelo TCU - Acórdão 2622/2013
C21: B | D21: Programa de Integração Social - PIS | E21: =0.8*1.65% -> 0.0132 | G21: * Nota 2 - Redução de 20% considerando as deduções permitidas em Lei, conforme SENGE, citado pelo TCU - Acórdão 2622/2013
C22: C | D22: Contribuição Previdenciária sobre a Receita Bruta - CPRB | E22: 0 | G22: * Nota 3 - Lei 12.546/2011 - Verificar atualizações e setores beneficiados
B24: Impostos - Tributos Distritais | E24: =SUM(E25:E25) -> 0.05
C25: A | D25: Imposto sobre Serviço de Qualquer Natureza - ISS | E25: 0.05 | G25: * Nota 1 - Adotada a alíquota de 5% considerando o enquadramento como fornecimento de mão de obra contratada pelo prestador, serviço previsto no item 17.05 do Manual do Substitutivo Tributário do ISS/DF e artigo 27 do Decreto 25.508/2005 do GDF
D27: SOMATÓRIO - BDI | E27: =ROUND((((1+E7)*(1+E11)*(1+E14)/(1-E19-E24))-1),4) -> 0.2165 | G27: * Nota 1 - [(1+AC+SGR)*(1+L)*(1+DF)/(1-CONFINS-PIS-CPRB-ISS)]-1

Sheet BDI materiais (hidden)
B4: COMPOSIÇÃO DA TAXA DE CUSTOS INDIRETOS, TRIBUTOS E LUCRO - BDI
B5: APLICAÇÃO: MATERIAIS SOB DEMANDA | E5: Percentuais
B7: Custos Indiretos da Contratada | E7: =ROUND(SUM(E8:E9),4) -> 0.0207
C8: A | D8: Administração Central | E8: 0.0173 | G8: * Nota 1 - O Somatório da Administração Central com o Lucro deve ser inferior a 12%
C9: B | D9: Seguros, Garantias e Riscos | E9: 0.0034
B11: Lucro | E11: =SUM(E12:E12) -> 0.0267
C12: A | D12: Lucro Real sobre os Custos Administrados | E12: 0.0267
B14: Despesas Financeiras | E14: =E15 -> 0.0054
C15: A | D15: Cálculo Baseado no Prazo para a Restituição dos Desembolsos Realizados pelo Contratado e na Taxa de Retorno Arbitrada | E15: =ROUND((1+E17)^(E16/252)-1,4) -> 0.0054 | G15: * Nota 1 - DF = [(1+TR)^(DU/252)]/100
C16: A.1 | D16: Dias Úteis Considerados | E16: 11 | G16: * Nota 2 - Diferença de dias entre o desembolso, pelo contratado, e o pagamento, pela Câmara
C17: A.2 | D17: Taxa de Retorno | E17: 0.1325 | G17: * Nota 3 - A taxa sugerida é a meta da SELIC
B19: Impostos - Tributos Federais | E19: =SUM(E20:E22) -> 0.0465
C20: A | D20: Contribuição para o Financiamento da Seguridade Social - COFINS | E20: =ROUND(0.8*7.6%*E7*E11*E14,4) -> 0 | G20: * Nota 1 - Redução de 20% considerando as deduções permitidas em Lei, conforme SENGE, citado pelo TCU - Acórdão 2622/2013
C21: B | D21: Programa de Integração Social - PIS | E21: =ROUND(0.8*1.65%*0.11,4) -> 0.0015 | G21: * Nota 2 - Redução de 20% considerando as deduções permitidas em Lei, conforme SENGE, citado pelo TCU - Acórdão 2622/2013
C22: C | D22: Contribuição Previdenciária sobre a Receita Bruta - CPRB | E22: 0.045 | G22: * Nota 3 - Lei 12.546/2011 - Verificar atualizações e setores beneficiados
B24: Impostos - Tributos Distritais | E24: =SUM(E25:E25) -> 0
C25: A | D25: Imposto sobre Serviço de Qualquer Natureza - ISS | E25: 0
D27: SOMATÓRIO - BDI MATERIAIS | E27: =ROUND((((1+E7)*(1+E11)*(1+E14)/(1-E19-E24))-1),4) -> 0.105 | G27: * Nota 1 - [(1+AC+SGR)*(1+L)*(1+DF)/(1-CONFINS-PIS-CPRB-ISS)]-1

Sheet BDI servicos (hidden)
B4: COMPOSIÇÃO DA TAXA DE CUSTOS INDIRETOS, TRIBUTOS E LUCRO - BDI
B5: APLICAÇÃO: SERVIÇOS SOB DEMANDA | E5: Percentuais
B7: Custos Indiretos da Contratada | E7: =SUM(E8:E9) -> 0.1
C8: A | D8: Administração Central | E8: 0.05 | G8: * Nota 1 - O Somatório da Administração Central com o Lucro deve ser inferior a 12% | P8: Utilizado o parâmetro do TCU para obras (Acordão 2622/2013 - TCU - plenário)
C9: B | D9: Seguros, Garantias e Riscos | E9: 0.05 | P9: Utilizado o parâmetro do TCU para obras (Acordão 2622/2013 - TCU - plenário)
B11: Lucro | E11: =SUM(E12:E12) -> 0.0267
C12: A | D12: Lucro Real sobre os Custos Administrados | E12: 0.0267 | P12: Utilizado o parâmetro do TCU para obras (Acordão 2622/2013 - TCU - plenário)
B14: Despesas Financeiras | E14: =E15 -> 0.0054
C15: A | D15: Cálculo Baseado no Prazo para a Restituição dos Desembolsos Realizados pelo Contratado e na Taxa de Retorno Arbitrada | E15: =ROUND((1+E17)^(E16/252)-1,4) -> 0.0054 | G15: * Nota 1 - DF = [(1+TR)^(DU/252)]/100
C16: A.1 | D16: Dias Úteis Considerados | E16: 11 | G16: * Nota 2 - Diferença de dias entre o desembolso, pelo contratado, e o pagamento, pela Câmara
C17: A.2 | D17: Taxa de Retorno | E17: 0.1325 | G17: * Nota 3 - A taxa sugerida é a meta da SELIC
B19: Impostos - Tributos Federais | E19: =SUM(E20:E22) -> 0.0628
C20: A | D20: Contribuição para o Financiamento da Seguridade Social - COFINS | E20: =ROUND(0.8*7.6%*0.24,4) -> 0.0146 | G20: * Nota 1 - Redução de 20% considerando as deduções permitidas em Lei, conforme SENGE, citado pelo TCU - Acórdão 2622/2013
C21: B | D21: Programa de Integração Social - PIS | E21: =ROUND(0.8*1.65%*0.24,4) -> 0.0032 | G21: * Nota 2 - Redução de 20% considerando as deduções permitidas em Lei, conforme SENGE, citado pelo TCU - Acórdão 2622/2013
C22: C | D22: Contribuição Previdenciária sobre a Receita Bruta - CPRB | E22: 0.045 | G22: * Nota 3 - Lei 12.546/2011 - Verificar atualizações e setores beneficiados
B24: Impostos - Tributos Distritais | E24: =SUM(E25:E25) -> 0.02
C25: A | D25: Imposto sobre Serviço de Qualquer Natureza - ISS | E25: 0.02
D27: SOMATÓRIO - ENCARGOS SOCIAIS SOBRE A MÃO DE OBRA | E27: =ROUND((((1+E7)*(1+E11)*(1+E14)/(1-E19-E24))-1),4) -> 0.238 | G27: * Nota 1 - [(1+AC+SGR)*(1+L)*(1+DF)/(1-CONFINS-PIS-CPRB-ISS)]-1

Sheet Uniformes
B4: UNIFORMES - AQUISIÇÃO | K4: 1 | M4: =K4+1 -> 2 | O4: =M4+1 -> 3 | Q4: =O4+1 -> 4 | S4: =Q4+1 -> 5 | U4: =S4+1 -> 6 | W4: =U4+1 -> 7 | Y4: =W4+1 -> 8 | AA4: =Y4+1 -> 9 | AC4: =AA4+1 -> 10 | AE4: =AC4+1 -> 11 | AG4: =AE4+1 -> 12 | AI4: =AG4+1 -> 13 | AK4: =AI4+1 -> 14 | AM4: =AK4+1 -> 15 | AO4: =AM4+1 -> 16 | AQ4: =AO4+1 -> 17 | AS4: =AQ4+1 -> 18 | AU4: =AS4+1 -> 19 | AW4: =AU4+1 -> 20 | AY4: =AW4+1 -> 21 | BA4: =AY4+1 -> 22 | BC4: =BA4+1 -> 23 | BE4: =BC4+1 -> 24 | BG4: =BE4+1 -> 25 | BI4: =BG4+1 -> 26 | BK4: =BI4+1 -> 27 | BM4: =BK4+1 -> 28 | BO4: =BM4+1 -> 29 | BQ4: =BO4+1 -> 30 | BS4: =BQ4+1 -> 31 | BU4: =BS4+1 -> 32 | BW4: =BU4+1 -> 33 | BY4: =BW4+1 -> 34 | CA4: =BY4+1 -> 35 | CC4: =CA4+1 -> 36 | CE4: =CC4+1 -> 37 | CG4: =CE4+1 -> 38 | CI4: =CG4+1 -> 39 | CK4: =CI4+1 -> 40 | CM4: =CK4+1 -> 41 | CO4: =CM4+1 -> 42 | CQ4: =CO4+1 -> 43 | CS4: =CQ4+1 -> 44 | CU4: =CS4+1 -> 45 | CW4: =CU4+1 -> 46 | CY4: =CW4+1 -> 47 | DA4: =CY4+1 -> 48 | DC4: =DA4+1 -> 49 | DE4: =DC4+1 -> 50 | DG4: =DE4+1 -> 51 | DI4: =DG4+1 -> 52 | DK4: =DI4+1 -> 53 | DM4: =DK4+1 -> 54 | DO4: =DM4+1 -> 55 | DQ4: =DO4+1 -> 56 | DS4: =DQ4+1 -> 57 | DU4: =DS4+1 -> 58 | DW4: =DU4+1 -> 59 | DY4: =DW4+1 -> 60
K6: =ROUND(SUM(L8:L46),2) -> 0 | M6: =ROUND(SUM(N5:N47),2) -> 0 | O6: =ROUND(SUM(P5:P47),2) -> 0 | Q6: =ROUND(SUM(R5:R47),2) -> 0 | S6: =ROUND(SUM(T5:T47),2) -> 0 | U6: =ROUND(SUM(V5:V47),2) -> 0 | W6: =ROUND(SUM(X5:X47),2) -> 0 | Y6: =ROUND(SUM(Z5:Z47),2) -> 0 | AA6: =ROUND(SUM(AB5:AB47),2) -> 0 | AC6: =ROUND(SUM(AD5:AD47),2) -> 1438.48 | AE6: =ROUND(SUM(AF5:AF47),2) -> 0 | AG6: =ROUND(SUM(AH5:AH47),2) -> 0 | AI6: =ROUND(SUM(AJ5:AJ47),2) -> 0 | AK6: =ROUND(SUM(AL5:AL47),2) -> 0 | AM6: =ROUND(SUM(AN5:AN47),2) -> 0 | AO6: =ROUND(SUM(AP5:AP47),2) -> 0 | AQ6: =ROUND(SUM(AR5:AR47),2) -> 0 | AS6: =ROUND(SUM(AT5:AT47),2) -> 0 | AU6: =ROUND(SUM(AV5:AV47),2) -> 0 | AW6: =ROUND(SUM(AX5:AX47),2) -> 0 | AY6: =ROUND(SUM(AZ5:AZ47),2) -> 0 | BA6: =ROUND(SUM(BB5:BB47),2) -> 0 | BC6: =ROUND(SUM(BD5:BD47),2) -> 0 | BE6: =ROUND(SUM(BF5:BF47),2) -> 0 | BG6: =ROUND(SUM(BH5:BH47),2) -> 0 | BI6: =ROUND(SUM(BJ5:BJ47),2) -> 0 | BK6: =ROUND(SUM(BL5:BL47),2) -> 0 | BM6: =ROUND(SUM(BN5:BN47),2) -> 0 | BO6: =ROUND(SUM(BP5:BP47),2) -> 0 | BQ6: =ROUND(SUM(BR5:BR47),2) -> 0 | BS6: =ROUND(SUM(BT5:BT47),2) -> 0 | BU6: =ROUND(SUM(BV5:BV47),2) -> 0 | BW6: =ROUND(SUM(BX5:BX47),2) -> 0 | BY6: =ROUND(SUM(BZ5:BZ47),2) -> 0 | CA6: =ROUND(SUM(CB5:CB47),2) -> 0 | CC6: =ROUND(SUM(CD5:CD47),2) -> 0 | CE6: =ROUND(SUM(CF5:CF47),2) -> 0 | CG6: =ROUND(SUM(CH5:CH47),2) ->  | CI6: =ROUND(SUM(CJ5:CJ47),2) ->  | CK6: =ROUND(SUM(CL5:CL47),2) ->  | CM6: =ROUND(SUM(CN5:CN47),2) ->  | CO6: =ROUND(SUM(CP5:CP47),2) ->  | CQ6: =ROUND(SUM(CR5:CR47),2) ->  | CS6: =ROUND(SUM(CT5:CT47),2) ->  | CU6: =ROUND(SUM(CV5:CV47),2) ->  | CW6: =ROUND(SUM(CX5:CX47),2) ->  | CY6: =ROUND(SUM(CZ5:CZ47),2) ->  | DA6: =ROUND(SUM(DB5:DB47),2) ->  | DC6: =ROUND(SUM(DD5:DD47),2) ->  | DE6: =ROUND(SUM(DF5:DF47),2) ->  | DG6: =ROUND(SUM(DH5:DH47),2) ->  | DI6: =ROUND(SUM(DJ5:DJ47),2) ->  | DK6: =ROUND(SUM(DL5:DL47),2) ->  | DM6: =ROUND(SUM(DN5:DN47),2) ->  | DO6: =ROUND(SUM(DP5:DP47),2) ->  | DQ6: =ROUND(SUM(DR5:DR47),2) ->  | DS6: =ROUND(SUM(DT5:DT47),2) ->  | DU6: =ROUND(SUM(DV5:DV47),2) ->  | DW6: =ROUND(SUM(DX5:DX47),2) ->  | DY6: =ROUND(SUM(DZ5:DZ47),2) -> 
C7: CATEGORIAS | H7: QUANTIDADE
K8: =IF($C8=K$4,1,0) -> 0 | M8: =IF($C8=M$4,1,0) -> 0 | O8: =IF($C8=O$4,1,0) -> 0 | Q8: =IF($C8=Q$4,1,0) -> 0 | S8: =IF($C8=S$4,1,0) -> 0 | U8: =IF($C8=U$4,1,0) -> 0 | W8: =IF($C8=W$4,1,0) -> 0 | Y8: =IF($C8=Y$4,1,0) -> 0 | AA8: =IF($C8=AA$4,1,0) -> 0 | AC8: =IF($C8=AC$4,1,0) -> 0 | AE8: =IF($C8=AE$4,1,0) -> 0 | AG8: =IF($C8=AG$4,1,0) -> 0 | AI8: =IF($C8=AI$4,1,0) -> 0 | AK8: =IF($C8=AK$4,1,0) -> 0 | AM8: =IF($C8=AM$4,1,0) -> 0 | AO8: =IF($C8=AO$4,1,0) -> 0 | AQ8: =IF($C8=AQ$4,1,0) -> 0 | AS8: =IF($C8=AS$4,1,0) -> 0 | AU8: =IF($C8=AU$4,1,0) -> 0 | AW8: =IF($C8=AW$4,1,0) -> 0 | AY8: =IF($C8=AY$4,1,0) -> 0 | BA8: =IF($C8=BA$4,1,0) -> 0 | BC8: =IF($C8=BC$4,1,0) -> 0 | BE8: =IF($C8=BE$4,1,0) -> 0 | BG8: =IF($C8=BG$4,1,0) -> 0 | BI8: =IF($C8=BI$4,1,0) -> 0 | BK8: =IF($C8=BK$4,1,0) -> 0 | BM8: =IF($C8=BM$4,1,0) -> 0 | BO8: =IF($C8=BO$4,1,0) -> 0 | BQ8: =IF($C8=BQ$4,1,0) -> 0 | BS8: =IF($C8=BS$4,1,0) -> 0 | BU8: =IF($C8=BU$4,1,0) -> 0 | BW8: =IF($C8=BW$4,1,0) -> 0 | BY8: =IF($C8=BY$4,1,0) -> 0 | CA8: =IF($C8=CA$4,1,0) -> 0 | CC8: =IF($C8=CC$4,1,0) -> 0 | CE8: =IF($C8=CE$4,1,0) -> 0 | CG8: =IF($C8=CG$4,1,0) -> 0 | CI8: =IF($C8=CI$4,1,0) -> 0 | CK8: =IF($C8=CK$4,1,0) -> 0 | CM8: =IF($C8=CM$4,1,0) -> 0 | CO8: =IF($C8=CO$4,1,0) -> 0 | CQ8: =IF($C8=CQ$4,1,0) -> 0 | CS8: =IF($C8=CS$4,1,0) -> 0 | CU8: =IF($C8=CU$4,1,0) -> 0 | CW8: =IF($C8=CW$4,1,0) -> 0 | CY8: =IF($C8=CY$4,1,0) -> 0 | DA8: =IF($C8=DA$4,1,0) -> 0 | DC8: =IF($C8=DC$4,1,0) -> 0 | DE8: =IF($C8=DE$4,1,0) -> 0 | DG8: =IF($C8=DG$4,1,0) -> 0 | DI8: =IF($C8=DI$4,1,0) -> 0 | DK8: =IF($C8=DK$4,1,0) -> 0 | DM8: =IF($C8=DM$4,1,0) -> 0 | DO8: =IF($C8=DO$4,1,0) -> 0 | DQ8: =IF($C8=DQ$4,1,0) -> 0 | DS8: =IF($C8=DS$4,1,0) -> 0 | DU8: =IF($C8=DU$4,1,0) -> 0 | DW8: =IF($C8=DW$4,1,0) -> 0 | DY8: =IF($C8=DY$4,1,0) -> 0
C9: 10 | D9: =HLOOKUP($C9,'Dados Gerais'!$D$6:$BI$11,6) -> OPERADOR DE TRANSMISSOR – Rádio e TV - 24H | H9: =HLOOKUP($C9,'Dados Gerais'!$D$6:$BI$15,10) -> 5 | K9: 0 | M9: 0 | O9: 0 | Q9: 0 | S9: =IF($C9=S$4,1,0) -> 0 | U9: 0 | W9: 0 | Y9: 0 | AA9: 0 | AC9: 1 | AE9: 0 | AG9: 0 | AI9: 0 | AK9: 0 | AM9: 0 | AO9: 0 | AQ9: 0 | AS9: 0 | AU9: 0 | AW9: 0 | AY9: 0 | BA9: 0 | BC9: 0 | BE9: 0 | BG9: 0 | BI9: 0 | BK9: 0 | BM9: 0 | BO9: 0 | BQ9: 0 | BS9: 0 | BU9: 0 | BW9: 0 | BY9: 0 | CA9: 0 | CC9: 0 | CE9: 0 | CG9: 0 | CI9: 0 | CK9: 0 | CM9: 0 | CO9: 0 | CQ9: 0 | CS9: 0 | CU9: 0 | CW9: 0 | CY9: 0 | DA9: 0 | DC9: 0 | DE9: 0 | DG9: 0 | DI9: 0 | DK9: 0 | DM9: 0 | DO9: 0 | DQ9: 0 | DS9: 0 | DU9: 0 | DW9: 0 | DY9: 0
K10: 0 | M10: 0 | O10: 0 | Q10: 0 | S10: 0 | U10: 0 | W10: 0 | Y10: 0 | AA10: 0 | AC10: 0 | AE10: 0 | AG10: 0 | AI10: 0 | AK10: 0 | AM10: 0 | AO10: 0 | AQ10: 0 | AS10: 0 | AU10: 0 | AW10: 0 | AY10: 0 | BA10: 0 | BC10: 0 | BE10: 0 | BG10: 0 | BI10: 0 | BK10: 0 | BM10: 0 | BO10: 0 | BQ10: 0 | BS10: 0 | BU10: 0 | BW10: 0 | BY10: 0 | CA10: 0 | CC10: 0 | CE10: 0 | CG10: 0 | CI10: 0 | CK10: 0 | CM10: 0 | CO10: 0 | CQ10: 0 | CS10: 0 | CU10: 0 | CW10: 0 | CY10: 0 | DA10: 0 | DC10: 0 | DE10: 0 | DG10: 0 | DI10: 0 | DK10: 0 | DM10: 0 | DO10: 0 | DQ10: 0 | DS10: 0 | DU10: 0 | DW10: 0 | DY10: 0
K11: 0 | M11: 0 | O11: 0 | Q11: 0 | S11: 0 | U11: 0 | W11: 0 | Y11: 0 | AA11: 0 | AC11: 0 | AE11: 0 | AG11: 0 | AI11: 0 | AK11: 0 | AM11: 0 | AO11: 0 | AQ11: 0 | AS11: 0 | AU11: 0 | AW11: 0 | AY11: 0 | BA11: 0 | BC11: 0 | BE11: 0 | BG11: 0 | BI11: 0 | BK11: 0 | BM11: 0 | BO11: 0 | BQ11: 0 | BS11: 0 | BU11: 0 | BW11: 0 | BY11: 0 | CA11: 0 | CC11: 0 | CE11: 0 | CG11: 0 | CI11: 0 | CK11: 0 | CM11: 0 | CO11: 0 | CQ11: 0 | CS11: 0 | CU11: 0 | CW11: 0 | CY11: 0 | DA11: 0 | DC11: 0 | DE11: 0 | DG11: 0 | DI11: 0 | DK11: 0 | DM11: 0 | DO11: 0 | DQ11: 0 | DS11: 0 | DU11: 0 | DW11: 0 | DY11: 0
K12: 0 | M12: 0 | O12: 0 | Q12: 0 | S12: 0 | U12: 0 | W12: 0 | Y12: 0 | AA12: 0 | AC12: 0 | AE12: 0 | AG12: 0 | AI12: 0 | AK12: 0 | AM12: 0 | AO12: 0 | AQ12: 0 | AS12: 0 | AU12: 0 | AW12: 0 | AY12: 0 | BA12: 0 | BC12: 0 | BE12: 0 | BG12: 0 | BI12: 0 | BK12: 0 | BM12: 0 | BO12: 0 | BQ12: 0 | BS12: 0 | BU12: 0 | BW12: 0 | BY12: 0 | CA12: 0 | CC12: 0 | CE12: 0 | CG12: 0 | CI12: 0 | CK12: 0 | CM12: 0 | CO12: 0 | CQ12: 0 | CS12: 0 | CU12: 0 | CW12: 0 | CY12: 0 | DA12: 0 | DC12: 0 | DE12: 0 | DG12: 0 | DI12: 0 | DK12: 0 | DM12: 0 | DO12: 0 | DQ12: 0 | DS12: 0 | DU12: 0 | DW12: 0 | DY12: 0
K13: 0 | M13: 0 | O13: 0 | Q13: 0 | S13: 0 | U13: 0 | W13: 0 | Y13: 0 | AA13: 0 | AC13: 0 | AE13: 0 | AG13: 0 | AI13: 0 | AK13: 0 | AM13: 0 | AO13: 0 | AQ13: 0 | AS13: 0 | AU13: 0 | AW13: 0 | AY13: 0 | BA13: 0 | BC13: 0 | BE13: 0 | BG13: 0 | BI13: 0 | BK13: 0 | BM13: 0 | BO13: 0 | BQ13: 0 | BS13: 0 | BU13: 0 | BW13: 0 | BY13: 0 | CA13: 0 | CC13: 0 | CE13: 0 | CG13: 0 | CI13: 0 | CK13: 0 | CM13: 0 | CO13: 0 | CQ13: 0 | CS13: 0 | CU13: 0 | CW13: 0 | CY13: 0 | DA13: 0 | DC13: 0 | DE13: 0 | DG13: 0 | DI13: 0 | DK13: 0 | DM13: 0 | DO13: 0 | DQ13: 0 | DS13: 0 | DU13: 0 | DW13: 0 | DY13: 0
K14: 0 | M14: 0 | O14: 0 | Q14: 0 | S14: 0 | U14: 0 | W14: 0 | Y14: 0 | AA14: 0 | AC14: 0 | AE14: 0 | AG14: 0 | AI14: 0 | AK14: 0 | AM14: 0 | AO14: 0 | AQ14: 0 | AS14: 0 | AU14: 0 | AW14: 0 | AY14: 0 | BA14: 0 | BC14: 0 | BE14: 0 | BG14: 0 | BI14: 0 | BK14: 0 | BM14: 0 | BO14: 0 | BQ14: 0 | BS14: 0 | BU14: 0 | BW14: 0 | BY14: 0 | CA14: 0 | CC14: 0 | CE14: 0 | CG14: 0 | CI14: 0 | CK14: 0 | CM14: 0 | CO14: 0 | CQ14: 0 | CS14: 0 | CU14: 0 | CW14: 0 | CY14: 0 | DA14: 0 | DC14: 0 | DE14: 0 | DG14: 0 | DI14: 0 | DK14: 0 | DM14: 0 | DO14: 0 | DQ14: 0 | DS14: 0 | DU14: 0 | DW14: 0 | DY14: 0
C16: ITEM | D16: DESCRIÇÃO | E16: QUANT ANUAL POR POSTO | F16: Nº DE POSTOS | G16: QUANT ANUAL TOTAL | H16: VALOR
L17: =IF(SUM(K$8:K$8)>0,$E17*$H17,0) -> 0 | N17: =IF(SUM(M$8:M$8)>0,$E17*$H17,0) -> 0 | P17: =IF(SUM(O$8:O$8)>0,$E17*$H17,0) -> 0 | R17: =IF(SUM(Q$8:Q$8)>0,$E17*$H17,0) -> 0 | T17: =IF(SUM(S$8:S$8)>0,$E17*$H17,0) -> 0 | V17: =IF(SUM(U$8:U$8)>0,$E17*$H17,0) -> 0 | X17: =IF(SUM(W$8:W$8)>0,$E17*$H17,0) -> 0 | Z17: =IF(SUM(Y$8:Y$8)>0,$E17*$H17,0) -> 0 | AB17: =IF(SUM(AA$8:AA$8)>0,$E17*$H17,0) -> 0 | AD17: =IF(SUM(AC$8:AC$8)>0,$E17*$H17,0) -> 0 | AF17: =IF(SUM(AE$8:AE$8)>0,$E17*$H17,0) -> 0 | AH17: =IF(SUM(AG$8:AG$8)>0,$E17*$H17,0) -> 0 | AJ17: =IF(SUM(AI$8:AI$8)>0,$E17*$H17,0) -> 0 | AL17: =IF(SUM(AK$8:AK$8)>0,$E17*$H17,0) -> 0 | AN17: =IF(SUM(AM$8:AM$8)>0,$E17*$H17,0) -> 0 | AP17: =IF(SUM(AO$8:AO$8)>0,$E17*$H17,0) -> 0 | AR17: =IF(SUM(AQ$8:AQ$8)>0,$E17*$H17,0) -> 0 | AT17: =IF(SUM(AS$8:AS$8)>0,$E17*$H17,0) -> 0 | AV17: =IF(SUM(AU$8:AU$8)>0,$E17*$H17,0) -> 0 | AX17: =IF(SUM(AW$8:AW$8)>0,$E17*$H17,0) -> 0 | AZ17: =IF(SUM(AY$8:AY$8)>0,$E17*$H17,0) -> 0 | BB17: =IF(SUM(BA$8:BA$8)>0,$E17*$H17,0) -> 0 | BD17: =IF(SUM(BC$8:BC$8)>0,$E17*$H17,0) -> 0 | BF17: =IF(SUM(BE$8:BE$8)>0,$E17*$H17,0) -> 0 | BH17: =IF(SUM(BG$8:BG$8)>0,$E17*$H17,0) -> 0 | BJ17: =IF(SUM(BI$8:BI$8)>0,$E17*$H17,0) -> 0 | BL17: =IF(SUM(BK$8:BK$8)>0,$E17*$H17,0) -> 0 | BN17: =IF(SUM(BM$8:BM$8)>0,$E17*$H17,0) -> 0 | BP17: =IF(SUM(BO$8:BO$8)>0,$E17*$H17,0) -> 0 | BR17: =IF(SUM(BQ$8:BQ$8)>0,$E17*$H17,0) -> 0 | BT17: =IF(SUM(BS$8:BS$8)>0,$E17*$H17,0) -> 0 | BV17: =IF(SUM(BU$8:BU$8)>0,$E17*$H17,0) -> 0 | BX17: =IF(SUM(BW$8:BW$8)>0,$E17*$H17,0) -> 0 | BZ17: =IF(SUM(BY$8:BY$8)>0,$E17*$H17,0) -> 0 | CB17: =IF(SUM(CA$8:CA$8)>0,$E17*$H17,0) -> 0 | CD17: =IF(SUM(CC$8:CC$8)>0,$E17*$H17,0) -> 0 | CF17: =IF(SUM(CE$8:CE$8)>0,$E17*$H17,0) -> 0 | CH17: =IF(SUM(CG$8:CG$8)>0,$E17*$H17,0) -> 0 | CJ17: =IF(SUM(CI$8:CI$8)>0,$E17*$H17,0) -> 0 | CL17: =IF(SUM(CK$8:CK$8)>0,$E17*$H17,0) -> 0 | CN17: =IF(SUM(CM$8:CM$8)>0,$E17*$H17,0) -> 0 | CP17: =IF(SUM(CO$8:CO$8)>0,$E17*$H17,0) -> 0 | CR17: =IF(SUM(CQ$8:CQ$8)>0,$E17*$H17,0) -> 0 | CT17: =IF(SUM(CS$8:CS$8)>0,$E17*$H17,0) -> 0 | CV17: =IF(SUM(CU$8:CU$8)>0,$E17*$H17,0) -> 0 | CX17: =IF(SUM(CW$8:CW$8)>0,$E17*$H17,0) -> 0 | CZ17: =IF(SUM(CY$8:CY$8)>0,$E17*$H17,0) -> 0 | DB17: =IF(SUM(DA$8:DA$8)>0,$E17*$H17,0) -> 0 | DD17: =IF(SUM(DC$8:DC$8)>0,$E17*$H17,0) -> 0 | DF17: =IF(SUM(DE$8:DE$8)>0,$E17*$H17,0) -> 0 | DH17: =IF(SUM(DG$8:DG$8)>0,$E17*$H17,0) -> 0 | DJ17: =IF(SUM(DI$8:DI$8)>0,$E17*$H17,0) -> 0 | DL17: =IF(SUM(DK$8:DK$8)>0,$E17*$H17,0) -> 0 | DN17: =IF(SUM(DM$8:DM$8)>0,$E17*$H17,0) -> 0 | DP17: =IF(SUM(DO$8:DO$8)>0,$E17*$H17,0) -> 0 | DR17: =IF(SUM(DQ$8:DQ$8)>0,$E17*$H17,0) -> 0 | DT17: =IF(SUM(DS$8:DS$8)>0,$E17*$H17,0) -> 0 | DV17: =IF(SUM(DU$8:DU$8)>0,$E17*$H17,0) -> 0 | DX17: =IF(SUM(DW$8:DW$8)>0,$E17*$H17,0) -> 0 | DZ17: =IF(SUM(DY$8:DY$8)>0,$E17*$H17,0) -> 0
D18: Camisa social com manga comprida em poliéster na cor cinza | E18: 4 | F18: =SUM(H8:H14) -> 5 | G18: =E18*F18 -> 20 | H18: 94.92 | L18: =IF(SUM(K$8:K$14)>0,$E18*$H18,0) -> 0 | N18: =IF(SUM(M$8:M$14)>0,$E18*$H18,0) -> 0 | P18: =IF(SUM(O$8:O$14)>0,$E18*$H18,0) -> 0 | R18: =IF(SUM(Q$8:Q$14)>0,$E18*$H18,0) -> 0 | T18: =IF(SUM(S$8:S$14)>0,$E18*$H18,0) -> 0 | V18: =IF(SUM(U$8:U$14)>0,$E18*$H18,0) -> 0 | X18: =IF(SUM(W$8:W$14)>0,$E18*$H18,0) -> 0 | Z18: =IF(SUM(Y$8:Y$14)>0,$E18*$H18,0) -> 0 | AB18: =IF(SUM(AA$8:AA$14)>0,$E18*$H18,0) -> 0 | AD18: =IF(SUM(AC$8:AC$14)>0,$E18*$H18,0) -> 379.68 | AF18: =IF(SUM(AE$8:AE$14)>0,$E18*$H18,0) -> 0 | AH18: =IF(SUM(AG$8:AG$14)>0,$E18*$H18,0) -> 0 | AJ18: =IF(SUM(AI$8:AI$14)>0,$E18*$H18,0) -> 0 | AL18: =IF(SUM(AK$8:AK$14)>0,$E18*$H18,0) -> 0 | AN18: =IF(SUM(AM$8:AM$14)>0,$E18*$H18,0) -> 0 | AP18: =IF(SUM(AO$8:AO$14)>0,$E18*$H18,0) -> 0 | AR18: =IF(SUM(AQ$8:AQ$14)>0,$E18*$H18,0) -> 0 | AT18: =IF(SUM(AS$8:AS$14)>0,$E18*$H18,0) -> 0 | AV18: =IF(SUM(AU$8:AU$14)>0,$E18*$H18,0) -> 0 | AX18: =IF(SUM(AW$8:AW$14)>0,$E18*$H18,0) -> 0 | AZ18: =IF(SUM(AY$8:AY$14)>0,$E18*$H18,0) -> 0 | BB18: =IF(SUM(BA$8:BA$14)>0,$E18*$H18,0) -> 0 | BD18: =IF(SUM(BC$8:BC$14)>0,$E18*$H18,0) -> 0 | BF18: =IF(SUM(BE$8:BE$14)>0,$E18*$H18,0) -> 0 | BH18: =IF(SUM(BG$8:BG$14)>0,$E18*$H18,0) -> 0 | BJ18: =IF(SUM(BI$8:BI$14)>0,$E18*$H18,0) -> 0 | BL18: =IF(SUM(BK$8:BK$14)>0,$E18*$H18,0) -> 0 | BN18: =IF(SUM(BM$8:BM$14)>0,$E18*$H18,0) -> 0 | BP18: =IF(SUM(BO$8:BO$14)>0,$E18*$H18,0) -> 0 | BR18: =IF(SUM(BQ$8:BQ$14)>0,$E18*$H18,0) -> 0 | BT18: =IF(SUM(BS$8:BS$14)>0,$E18*$H18,0) -> 0 | BV18: =IF(SUM(BU$8:BU$14)>0,$E18*$H18,0) -> 0 | BX18: =IF(SUM(BW$8:BW$14)>0,$E18*$H18,0) -> 0 | BZ18: =IF(SUM(BY$8:BY$14)>0,$E18*$H18,0) -> 0 | CB18: =IF(SUM(CA$8:CA$14)>0,$E18*$H18,0) -> 0 | CD18: =IF(SUM(CC$8:CC$14)>0,$E18*$H18,0) -> 0 | CF18: =IF(SUM(CE$8:CE$14)>0,$E18*$H18,0) -> 0 | CH18: =IF(SUM(CG$8:CG$14)>0,$E18*$H18,0) -> 0 | CJ18: =IF(SUM(CI$8:CI$14)>0,$E18*$H18,0) -> 0 | CL18: =IF(SUM(CK$8:CK$14)>0,$E18*$H18,0) -> 0 | CN18: =IF(SUM(CM$8:CM$14)>0,$E18*$H18,0) -> 0 | CP18: =IF(SUM(CO$8:CO$14)>0,$E18*$H18,0) -> 0 | CR18: =IF(SUM(CQ$8:CQ$14)>0,$E18*$H18,0) -> 0 | CT18: =IF(SUM(CS$8:CS$14)>0,$E18*$H18,0) -> 0 | CV18: =IF(SUM(CU$8:CU$14)>0,$E18*$H18,0) -> 0 | CX18: =IF(SUM(CW$8:CW$14)>0,$E18*$H18,0) -> 0 | CZ18: =IF(SUM(CY$8:CY$14)>0,$E18*$H18,0) -> 0 | DB18: =IF(SUM(DA$8:DA$14)>0,$E18*$H18,0) -> 0 | DD18: =IF(SUM(DC$8:DC$14)>0,$E18*$H18,0) -> 0 | DF18: =IF(SUM(DE$8:DE$14)>0,$E18*$H18,0) -> 0 | DH18: =IF(SUM(DG$8:DG$14)>0,$E18*$H18,0) -> 0 | DJ18: =IF(SUM(DI$8:DI$14)>0,$E18*$H18,0) -> 0 | DL18: =IF(SUM(DK$8:DK$14)>0,$E18*$H18,0) -> 0 | DN18: =IF(SUM(DM$8:DM$14)>0,$E18*$H18,0) -> 0 | DP18: =IF(SUM(DO$8:DO$14)>0,$E18*$H18,0) -> 0 | DR18: =IF(SUM(DQ$8:DQ$14)>0,$E18*$H18,0) -> 0 | DT18: =IF(SUM(DS$8:DS$14)>0,$E18*$H18,0) -> 0 | DV18: =IF(SUM(DU$8:DU$14)>0,$E18*$H18,0) -> 0 | DX18: =IF(SUM(DW$8:DW$14)>0,$E18*$H18,0) -> 0 | DZ18: =IF(SUM(DY$8:DY$14)>0,$E18*$H18,0) -> 0
D19: Guarda-pó manga curta em poliéster na cor cinza | E19: 4 | F19: =F18 -> 5 | G19: =E19*F19 -> 20 | H19: 77.17 | L19: 0 | N19: 0 | P19: 0 | R19: 0 | T19: 0 | V19: 0 | X19: 0 | Z19: 0 | AB19: 0 | AD19: 308.68 | AF19: 0 | AH19: 0 | AJ19: 0 | AL19: 0 | AN19: 0 | AP19: 0 | AR19: 0 | AT19: 0 | AV19: 0 | AX19: 0 | AZ19: 0 | BB19: 0 | BD19: 0 | BF19: 0 | BH19: 0 | BJ19: 0 | BL19: 0 | BN19: 0 | BP19: 0 | BR19: 0 | BT19: 0 | BV19: 0 | BX19: 0 | BZ19: 0 | CB19: 0 | CD19: 0 | CF19: 0 | CH19: =IF(SUM(CG$8:CG$14)>0,$E19*$H19,0) -> 0 | CJ19: =IF(SUM(CI$8:CI$14)>0,$E19*$H19,0) -> 0 | CL19: =IF(SUM(CK$8:CK$14)>0,$E19*$H19,0) -> 0 | CN19: =IF(SUM(CM$8:CM$14)>0,$E19*$H19,0) -> 0 | CP19: =IF(SUM(CO$8:CO$14)>0,$E19*$H19,0) -> 0 | CR19: =IF(SUM(CQ$8:CQ$14)>0,$E19*$H19,0) -> 0 | CT19: =IF(SUM(CS$8:CS$14)>0,$E19*$H19,0) -> 0 | CV19: =IF(SUM(CU$8:CU$14)>0,$E19*$H19,0) -> 0 | CX19: =IF(SUM(CW$8:CW$14)>0,$E19*$H19,0) -> 0 | CZ19: =IF(SUM(CY$8:CY$14)>0,$E19*$H19,0) -> 0 | DB19: =IF(SUM(DA$8:DA$14)>0,$E19*$H19,0) -> 0 | DD19: =IF(SUM(DC$8:DC$14)>0,$E19*$H19,0) -> 0 | DF19: =IF(SUM(DE$8:DE$14)>0,$E19*$H19,0) -> 0 | DH19: =IF(SUM(DG$8:DG$14)>0,$E19*$H19,0) -> 0 | DJ19: =IF(SUM(DI$8:DI$14)>0,$E19*$H19,0) -> 0 | DL19: =IF(SUM(DK$8:DK$14)>0,$E19*$H19,0) -> 0 | DN19: =IF(SUM(DM$8:DM$14)>0,$E19*$H19,0) -> 0 | DP19: =IF(SUM(DO$8:DO$14)>0,$E19*$H19,0) -> 0 | DR19: =IF(SUM(DQ$8:DQ$14)>0,$E19*$H19,0) -> 0 | DT19: =IF(SUM(DS$8:DS$14)>0,$E19*$H19,0) -> 0 | DV19: =IF(SUM(DU$8:DU$14)>0,$E19*$H19,0) -> 0 | DX19: =IF(SUM(DW$8:DW$14)>0,$E19*$H19,0) -> 0 | DZ19: =IF(SUM(DY$8:DY$14)>0,$E19*$H19,0) -> 0
D20: Meia social, cano longo | E20: 4 | F20: =F19 -> 5 | G20: =E20*F20 -> 20 | H20: 14.45 | L20: 0 | N20: 0 | P20: 0 | R20: 0 | T20: 0 | V20: 0 | X20: 0 | Z20: 0 | AB20: 0 | AD20: 57.8 | AF20: 0 | AH20: 0 | AJ20: 0 | AL20: 0 | AN20: 0 | AP20: 0 | AR20: 0 | AT20: 0 | AV20: 0 | AX20: 0 | AZ20: 0 | BB20: 0 | BD20: 0 | BF20: 0 | BH20: 0 | BJ20: 0 | BL20: 0 | BN20: 0 | BP20: 0 | BR20: 0 | BT20: 0 | BV20: 0 | BX20: 0 | BZ20: 0 | CB20: 0 | CD20: 0 | CF20: 0 | CH20: =IF(SUM(CG$8:CG$14)>0,$E20*$H20,0) -> 0 | CJ20: =IF(SUM(CI$8:CI$14)>0,$E20*$H20,0) -> 0 | CL20: =IF(SUM(CK$8:CK$14)>0,$E20*$H20,0) -> 0 | CN20: =IF(SUM(CM$8:CM$14)>0,$E20*$H20,0) -> 0 | CP20: =IF(SUM(CO$8:CO$14)>0,$E20*$H20,0) -> 0 | CR20: =IF(SUM(CQ$8:CQ$14)>0,$E20*$H20,0) -> 0 | CT20: =IF(SUM(CS$8:CS$14)>0,$E20*$H20,0) -> 0 | CV20: =IF(SUM(CU$8:CU$14)>0,$E20*$H20,0) -> 0 | CX20: =IF(SUM(CW$8:CW$14)>0,$E20*$H20,0) -> 0 | CZ20: =IF(SUM(CY$8:CY$14)>0,$E20*$H20,0) -> 0 | DB20: =IF(SUM(DA$8:DA$14)>0,$E20*$H20,0) -> 0 | DD20: =IF(SUM(DC$8:DC$14)>0,$E20*$H20,0) -> 0 | DF20: =IF(SUM(DE$8:DE$14)>0,$E20*$H20,0) -> 0 | DH20: =IF(SUM(DG$8:DG$14)>0,$E20*$H20,0) -> 0 | DJ20: =IF(SUM(DI$8:DI$14)>0,$E20*$H20,0) -> 0 | DL20: =IF(SUM(DK$8:DK$14)>0,$E20*$H20,0) -> 0 | DN20: =IF(SUM(DM$8:DM$14)>0,$E20*$H20,0) -> 0 | DP20: =IF(SUM(DO$8:DO$14)>0,$E20*$H20,0) -> 0 | DR20: =IF(SUM(DQ$8:DQ$14)>0,$E20*$H20,0) -> 0 | DT20: =IF(SUM(DS$8:DS$14)>0,$E20*$H20,0) -> 0 | DV20: =IF(SUM(DU$8:DU$14)>0,$E20*$H20,0) -> 0 | DX20: =IF(SUM(DW$8:DW$14)>0,$E20*$H20,0) -> 0 | DZ20: =IF(SUM(DY$8:DY$14)>0,$E20*$H20,0) -> 0
D21: Sapato de couro preto com solado de borracha antiderrapante | E21: 4 | F21: =F20 -> 5 | G21: =E21*F21 -> 20 | H21: 139.95 | L21: 0 | N21: 0 | P21: 0 | R21: 0 | T21: 0 | V21: 0 | X21: 0 | Z21: 0 | AB21: 0 | AD21: 559.8 | AF21: 0 | AH21: 0 | AJ21: 0 | AL21: 0 | AN21: 0 | AP21: 0 | AR21: 0 | AT21: 0 | AV21: 0 | AX21: 0 | AZ21: 0 | BB21: 0 | BD21: 0 | BF21: 0 | BH21: 0 | BJ21: 0 | BL21: 0 | BN21: 0 | BP21: 0 | BR21: 0 | BT21: 0 | BV21: 0 | BX21: 0 | BZ21: 0 | CB21: 0 | CD21: 0 | CF21: 0 | CH21: =IF(SUM(CG$8:CG$14)>0,$E21*$H21,0) -> 0 | CJ21: =IF(SUM(CI$8:CI$14)>0,$E21*$H21,0) -> 0 | CL21: =IF(SUM(CK$8:CK$14)>0,$E21*$H21,0) -> 0 | CN21: =IF(SUM(CM$8:CM$14)>0,$E21*$H21,0) -> 0 | CP21: =IF(SUM(CO$8:CO$14)>0,$E21*$H21,0) -> 0 | CR21: =IF(SUM(CQ$8:CQ$14)>0,$E21*$H21,0) -> 0 | CT21: =IF(SUM(CS$8:CS$14)>0,$E21*$H21,0) -> 0 | CV21: =IF(SUM(CU$8:CU$14)>0,$E21*$H21,0) -> 0 | CX21: =IF(SUM(CW$8:CW$14)>0,$E21*$H21,0) -> 0 | CZ21: =IF(SUM(CY$8:CY$14)>0,$E21*$H21,0) -> 0 | DB21: =IF(SUM(DA$8:DA$14)>0,$E21*$H21,0) -> 0 | DD21: =IF(SUM(DC$8:DC$14)>0,$E21*$H21,0) -> 0 | DF21: =IF(SUM(DE$8:DE$14)>0,$E21*$H21,0) -> 0 | DH21: =IF(SUM(DG$8:DG$14)>0,$E21*$H21,0) -> 0 | DJ21: =IF(SUM(DI$8:DI$14)>0,$E21*$H21,0) -> 0 | DL21: =IF(SUM(DK$8:DK$14)>0,$E21*$H21,0) -> 0 | DN21: =IF(SUM(DM$8:DM$14)>0,$E21*$H21,0) -> 0 | DP21: =IF(SUM(DO$8:DO$14)>0,$E21*$H21,0) -> 0 | DR21: =IF(SUM(DQ$8:DQ$14)>0,$E21*$H21,0) -> 0 | DT21: =IF(SUM(DS$8:DS$14)>0,$E21*$H21,0) -> 0 | DV21: =IF(SUM(DU$8:DU$14)>0,$E21*$H21,0) -> 0 | DX21: =IF(SUM(DW$8:DW$14)>0,$E21*$H21,0) -> 0 | DZ21: =IF(SUM(DY$8:DY$14)>0,$E21*$H21,0) -> 0
D22: Cinto social em couro preto | E22: 2 | F22: =F21 -> 5 | G22: =E22*F22 -> 10 | H22: 66.26 | L22: 0 | N22: 0 | P22: 0 | R22: 0 | T22: 0 | V22: 0 | X22: 0 | Z22: 0 | AB22: 0 | AD22: 132.52 | AF22: 0 | AH22: 0 | AJ22: 0 | AL22: 0 | AN22: 0 | AP22: 0 | AR22: 0 | AT22: 0 | AV22: 0 | AX22: 0 | AZ22: 0 | BB22: 0 | BD22: 0 | BF22: 0 | BH22: 0 | BJ22: 0 | BL22: 0 | BN22: 0 | BP22: 0 | BR22: 0 | BT22: 0 | BV22: 0 | BX22: 0 | BZ22: 0 | CB22: 0 | CD22: 0 | CF22: 0 | CH22: =IF(SUM(CG$8:CG$14)>0,$E22*$H22,0) -> 0 | CJ22: =IF(SUM(CI$8:CI$14)>0,$E22*$H22,0) -> 0 | CL22: =IF(SUM(CK$8:CK$14)>0,$E22*$H22,0) -> 0 | CN22: =IF(SUM(CM$8:CM$14)>0,$E22*$H22,0) -> 0 | CP22: =IF(SUM(CO$8:CO$14)>0,$E22*$H22,0) -> 0 | CR22: =IF(SUM(CQ$8:CQ$14)>0,$E22*$H22,0) -> 0 | CT22: =IF(SUM(CS$8:CS$14)>0,$E22*$H22,0) -> 0 | CV22: =IF(SUM(CU$8:CU$14)>0,$E22*$H22,0) -> 0 | CX22: =IF(SUM(CW$8:CW$14)>0,$E22*$H22,0) -> 0 | CZ22: =IF(SUM(CY$8:CY$14)>0,$E22*$H22,0) -> 0 | DB22: =IF(SUM(DA$8:DA$14)>0,$E22*$H22,0) -> 0 | DD22: =IF(SUM(DC$8:DC$14)>0,$E22*$H22,0) -> 0 | DF22: =IF(SUM(DE$8:DE$14)>0,$E22*$H22,0) -> 0 | DH22: =IF(SUM(DG$8:DG$14)>0,$E22*$H22,0) -> 0 | DJ22: =IF(SUM(DI$8:DI$14)>0,$E22*$H22,0) -> 0 | DL22: =IF(SUM(DK$8:DK$14)>0,$E22*$H22,0) -> 0 | DN22: =IF(SUM(DM$8:DM$14)>0,$E22*$H22,0) -> 0 | DP22: =IF(SUM(DO$8:DO$14)>0,$E22*$H22,0) -> 0 | DR22: =IF(SUM(DQ$8:DQ$14)>0,$E22*$H22,0) -> 0 | DT22: =IF(SUM(DS$8:DS$14)>0,$E22*$H22,0) -> 0 | DV22: =IF(SUM(DU$8:DU$14)>0,$E22*$H22,0) -> 0 | DX22: =IF(SUM(DW$8:DW$14)>0,$E22*$H22,0) -> 0 | DZ22: =IF(SUM(DY$8:DY$14)>0,$E22*$H22,0) -> 0
L23: 0 | N23: 0 | P23: 0 | R23: 0 | T23: 0 | V23: 0 | X23: 0 | Z23: 0 | AB23: 0 | AD23: 0 | AF23: 0 | AH23: 0 | AJ23: 0 | AL23: 0 | AN23: 0 | AP23: 0 | AR23: 0 | AT23: 0 | AV23: 0 | AX23: 0 | AZ23: 0 | BB23: 0 | BD23: 0 | BF23: 0 | BH23: 0 | BJ23: 0 | BL23: 0 | BN23: 0 | BP23: 0 | BR23: 0 | BT23: 0 | BV23: 0 | BX23: 0 | BZ23: 0 | CB23: 0 | CD23: 0 | CF23: 0 | CH23: =IF(SUM(#REF!)>0,$E23*$H23,0) ->  | CJ23: =IF(SUM(#REF!)>0,$E23*$H23,0) ->  | CL23: =IF(SUM(#REF!)>0,$E23*$H23,0) ->  | CN23: =IF(SUM(#REF!)>0,$E23*$H23,0) ->  | CP23: =IF(SUM(#REF!)>0,$E23*$H23,0) ->  | CR23: =IF(SUM(#REF!)>0,$E23*$H23,0) ->  | CT23: =IF(SUM(#REF!)>0,$E23*$H23,0) ->  | CV23: =IF(SUM(#REF!)>0,$E23*$H23,0) ->  | CX23: =IF(SUM(#REF!)>0,$E23*$H23,0) ->  | CZ23: =IF(SUM(#REF!)>0,$E23*$H23,0) ->  | DB23: =IF(SUM(#REF!)>0,$E23*$H23,0) ->  | DD23: =IF(SUM(#REF!)>0,$E23*$H23,0) ->  | DF23: =IF(SUM(#REF!)>0,$E23*$H23,0) ->  | DH23: =IF(SUM(#REF!)>0,$E23*$H23,0) ->  | DJ23: =IF(SUM(#REF!)>0,$E23*$H23,0) ->  | DL23: =IF(SUM(#REF!)>0,$E23*$H23,0) ->  | DN23: =IF(SUM(#REF!)>0,$E23*$H23,0) ->  | DP23: =IF(SUM(#REF!)>0,$E23*$H23,0) ->  | DR23: =IF(SUM(#REF!)>0,$E23*$H23,0) ->  | DT23: =IF(SUM(#REF!)>0,$E23*$H23,0) ->  | DV23: =IF(SUM(#REF!)>0,$E23*$H23,0) ->  | DX23: =IF(SUM(#REF!)>0,$E23*$H23,0) ->  | DZ23: =IF(SUM(#REF!)>0,$E23*$H23,0) -> 
C24: CATEGORIAS | H24: QUANTIDADE
K25: =IF($C25=K$4,1,0) -> 0 | M25: =IF($C25=M$4,1,0) -> 0 | O25: =IF($C25=O$4,1,0) -> 0 | Q25: =IF($C25=Q$4,1,0) -> 0 | S25: =IF($C25=S$4,1,0) -> 0 | U25: =IF($C25=U$4,1,0) -> 0 | W25: =IF($C25=W$4,1,0) -> 0 | Y25: =IF($C25=Y$4,1,0) -> 0 | AA25: =IF($C25=AA$4,1,0) -> 0 | AC25: =IF($C25=AC$4,1,0) -> 0 | AE25: =IF($C25=AE$4,1,0) -> 0 | AG25: =IF($C25=AG$4,1,0) -> 0 | AI25: =IF($C25=AI$4,1,0) -> 0 | AK25: =IF($C25=AK$4,1,0) -> 0 | AM25: =IF($C25=AM$4,1,0) -> 0 | AO25: =IF($C25=AO$4,1,0) -> 0 | AQ25: =IF($C25=AQ$4,1,0) -> 0 | AS25: =IF($C25=AS$4,1,0) -> 0 | AU25: =IF($C25=AU$4,1,0) -> 0 | AW25: =IF($C25=AW$4,1,0) -> 0 | AY25: =IF($C25=AY$4,1,0) -> 0 | BA25: =IF($C25=BA$4,1,0) -> 0 | BC25: =IF($C25=BC$4,1,0) -> 0 | BE25: =IF($C25=BE$4,1,0) -> 0 | BG25: =IF($C25=BG$4,1,0) -> 0 | BI25: =IF($C25=BI$4,1,0) -> 0 | BK25: =IF($C25=BK$4,1,0) -> 0 | BM25: =IF($C25=BM$4,1,0) -> 0 | BO25: =IF($C25=BO$4,1,0) -> 0 | BQ25: =IF($C25=BQ$4,1,0) -> 0 | BS25: =IF($C25=BS$4,1,0) -> 0 | BU25: =IF($C25=BU$4,1,0) -> 0 | BW25: =IF($C25=BW$4,1,0) -> 0 | BY25: =IF($C25=BY$4,1,0) -> 0 | CA25: =IF($C25=CA$4,1,0) -> 0 | CC25: =IF($C25=CC$4,1,0) -> 0 | CE25: =IF($C25=CE$4,1,0) -> 0 | CG25: =IF($C25=CG$4,1,0) -> 0 | CI25: =IF($C25=CI$4,1,0) -> 0 | CK25: =IF($C25=CK$4,1,0) -> 0 | CM25: =IF($C25=CM$4,1,0) -> 0 | CO25: =IF($C25=CO$4,1,0) -> 0 | CQ25: =IF($C25=CQ$4,1,0) -> 0 | CS25: =IF($C25=CS$4,1,0) -> 0 | CU25: =IF($C25=CU$4,1,0) -> 0 | CW25: =IF($C25=CW$4,1,0) -> 0 | CY25: =IF($C25=CY$4,1,0) -> 0 | DA25: =IF($C25=DA$4,1,0) -> 0 | DC25: =IF($C25=DC$4,1,0) -> 0 | DE25: =IF($C25=DE$4,1,0) -> 0 | DG25: =IF($C25=DG$4,1,0) -> 0 | DI25: =IF($C25=DI$4,1,0) -> 0 | DK25: =IF($C25=DK$4,1,0) -> 0 | DM25: =IF($C25=DM$4,1,0) -> 0 | DO25: =IF($C25=DO$4,1,0) -> 0 | DQ25: =IF($C25=DQ$4,1,0) -> 0 | DS25: =IF($C25=DS$4,1,0) -> 0 | DU25: =IF($C25=DU$4,1,0) -> 0 | DW25: =IF($C25=DW$4,1,0) -> 0 | DY25: =IF($C25=DY$4,1,0) -> 0
D26: =HLOOKUP($C26,'Dados Gerais'!$D$6:$BI$11,6) ->  | H26: =HLOOKUP($C26,'Dados Gerais'!$D$6:$BI$15,10) ->  | K26: =IF($C26=K$4,1,0) -> 0 | M26: =IF($C26=M$4,1,0) -> 0 | O26: =IF($C26=O$4,1,0) -> 0 | Q26: =IF($C26=Q$4,1,0) -> 0 | S26: =IF($C26=S$4,1,0) -> 0 | U26: =IF($C26=U$4,1,0) -> 0 | W26: =IF($C26=W$4,1,0) -> 0 | Y26: =IF($C26=Y$4,1,0) -> 0 | AA26: =IF($C26=AA$4,1,0) -> 0 | AC26: =IF($C26=AC$4,1,0) -> 0 | AE26: =IF($C26=AE$4,1,0) -> 0 | AG26: =IF($C26=AG$4,1,0) -> 0 | AI26: =IF($C26=AI$4,1,0) -> 0 | AK26: =IF($C26=AK$4,1,0) -> 0 | AM26: =IF($C26=AM$4,1,0) -> 0 | AO26: =IF($C26=AO$4,1,0) -> 0 | AQ26: =IF($C26=AQ$4,1,0) -> 0 | AS26: =IF($C26=AS$4,1,0) -> 0 | AU26: =IF($C26=AU$4,1,0) -> 0 | AW26: =IF($C26=AW$4,1,0) -> 0 | AY26: =IF($C26=AY$4,1,0) -> 0 | BA26: =IF($C26=BA$4,1,0) -> 0 | BC26: =IF($C26=BC$4,1,0) -> 0 | BE26: =IF($C26=BE$4,1,0) -> 0 | BG26: =IF($C26=BG$4,1,0) -> 0 | BI26: =IF($C26=BI$4,1,0) -> 0 | BK26: =IF($C26=BK$4,1,0) -> 0 | BM26: =IF($C26=BM$4,1,0) -> 0 | BO26: =IF($C26=BO$4,1,0) -> 0 | BQ26: =IF($C26=BQ$4,1,0) -> 0 | BS26: =IF($C26=BS$4,1,0) -> 0 | BU26: =IF($C26=BU$4,1,0) -> 0 | BW26: =IF($C26=BW$4,1,0) -> 0 | BY26: =IF($C26=BY$4,1,0) -> 0 | CA26: =IF($C26=CA$4,1,0) -> 0 | CC26: =IF($C26=CC$4,1,0) -> 0 | CE26: =IF($C26=CE$4,1,0) -> 0 | CG26: =IF($C26=CG$4,1,0) -> 0 | CI26: =IF($C26=CI$4,1,0) -> 0 | CK26: =IF($C26=CK$4,1,0) -> 0 | CM26: =IF($C26=CM$4,1,0) -> 0 | CO26: =IF($C26=CO$4,1,0) -> 0 | CQ26: =IF($C26=CQ$4,1,0) -> 0 | CS26: =IF($C26=CS$4,1,0) -> 0 | CU26: =IF($C26=CU$4,1,0) -> 0 | CW26: =IF($C26=CW$4,1,0) -> 0 | CY26: =IF($C26=CY$4,1,0) -> 0 | DA26: =IF($C26=DA$4,1,0) -> 0 | DC26: =IF($C26=DC$4,1,0) -> 0 | DE26: =IF($C26=DE$4,1,0) -> 0 | DG26: =IF($C26=DG$4,1,0) -> 0 | DI26: =IF($C26=DI$4,1,0) -> 0 | DK26: =IF($C26=DK$4,1,0) -> 0 | DM26: =IF($C26=DM$4,1,0) -> 0 | DO26: =IF($C26=DO$4,1,0) -> 0 | DQ26: =IF($C26=DQ$4,1,0) -> 0 | DS26: =IF($C26=DS$4,1,0) -> 0 | DU26: =IF($C26=DU$4,1,0) -> 0 | DW26: =IF($C26=DW$4,1,0) -> 0 | DY26: =IF($C26=DY$4,1,0) -> 0
D27: =HLOOKUP($C27,'Dados Gerais'!$D$6:$BI$11,6) ->  | H27: =HLOOKUP($C27,'Dados Gerais'!$D$6:$BI$15,10) ->  | K27: =IF($C27=K$4,1,0) -> 0 | M27: =IF($C27=M$4,1,0) -> 0 | O27: =IF($C27=O$4,1,0) -> 0 | Q27: =IF($C27=Q$4,1,0) -> 0 | S27: =IF($C27=S$4,1,0) -> 0 | U27: =IF($C27=U$4,1,0) -> 0 | W27: =IF($C27=W$4,1,0) -> 0 | Y27: =IF($C27=Y$4,1,0) -> 0 | AA27: =IF($C27=AA$4,1,0) -> 0 | AC27: =IF($C27=AC$4,1,0) -> 0 | AE27: =IF($C27=AE$4,1,0) -> 0 | AG27: =IF($C27=AG$4,1,0) -> 0 | AI27: =IF($C27=AI$4,1,0) -> 0 | AK27: =IF($C27=AK$4,1,0) -> 0 | AM27: =IF($C27=AM$4,1,0) -> 0 | AO27: =IF($C27=AO$4,1,0) -> 0 | AQ27: =IF($C27=AQ$4,1,0) -> 0 | AS27: =IF($C27=AS$4,1,0) -> 0 | AU27: =IF($C27=AU$4,1,0) -> 0 | AW27: =IF($C27=AW$4,1,0) -> 0 | AY27: =IF($C27=AY$4,1,0) -> 0 | BA27: =IF($C27=BA$4,1,0) -> 0 | BC27: =IF($C27=BC$4,1,0) -> 0 | BE27: =IF($C27=BE$4,1,0) -> 0 | BG27: =IF($C27=BG$4,1,0) -> 0 | BI27: =IF($C27=BI$4,1,0) -> 0 | BK27: =IF($C27=BK$4,1,0) -> 0 | BM27: =IF($C27=BM$4,1,0) -> 0 | BO27: =IF($C27=BO$4,1,0) -> 0 | BQ27: =IF($C27=BQ$4,1,0) -> 0 | BS27: =IF($C27=BS$4,1,0) -> 0 | BU27: =IF($C27=BU$4,1,0) -> 0 | BW27: =IF($C27=BW$4,1,0) -> 0 | BY27: =IF($C27=BY$4,1,0) -> 0 | CA27: =IF($C27=CA$4,1,0) -> 0 | CC27: =IF($C27=CC$4,1,0) -> 0 | CE27: =IF($C27=CE$4,1,0) -> 0 | CG27: =IF($C27=CG$4,1,0) -> 0 | CI27: =IF($C27=CI$4,1,0) -> 0 | CK27: =IF($C27=CK$4,1,0) -> 0 | CM27: =IF($C27=CM$4,1,0) -> 0 | CO27: =IF($C27=CO$4,1,0) -> 0 | CQ27: =IF($C27=CQ$4,1,0) -> 0 | CS27: =IF($C27=CS$4,1,0) -> 0 | CU27: =IF($C27=CU$4,1,0) -> 0 | CW27: =IF($C27=CW$4,1,0) -> 0 | CY27: =IF($C27=CY$4,1,0) -> 0 | DA27: =IF($C27=DA$4,1,0) -> 0 | DC27: =IF($C27=DC$4,1,0) -> 0 | DE27: =IF($C27=DE$4,1,0) -> 0 | DG27: =IF($C27=DG$4,1,0) -> 0 | DI27: =IF($C27=DI$4,1,0) -> 0 | DK27: =IF($C27=DK$4,1,0) -> 0 | DM27: =IF($C27=DM$4,1,0) -> 0 | DO27: =IF($C27=DO$4,1,0) -> 0 | DQ27: =IF($C27=DQ$4,1,0) -> 0 | DS27: =IF($C27=DS$4,1,0) -> 0 | DU27: =IF($C27=DU$4,1,0) -> 0 | DW27: =IF($C27=DW$4,1,0) -> 0 | DY27: =IF($C27=DY$4,1,0) -> 0
D28: =HLOOKUP($C28,'Dados Gerais'!$D$6:$BI$11,6) ->  | H28: =HLOOKUP($C28,'Dados Gerais'!$D$6:$BI$15,10) ->  | K28: 0 | M28: 0 | O28: 0 | Q28: 0 | S28: 0 | U28: 0 | W28: 0 | Y28: 0 | AA28: 0 | AC28: 0 | AE28: 0 | AG28: 0 | AI28: 0 | AK28: 0 | AM28: 0 | AO28: 0 | AQ28: 0 | AS28: 0 | AU28: 0 | AW28: 0 | AY28: 0 | BA28: 0 | BC28: 0 | BE28: 0 | BG28: 0 | BI28: 0 | BK28: 0 | BM28: 0 | BO28: 0 | BQ28: 0 | BS28: 0 | BU28: 0 | BW28: 0 | BY28: 0 | CA28: 0 | CC28: 0 | CE28: 0 | CG28: 0 | CI28: 0 | CK28: 0 | CM28: 0 | CO28: 0 | CQ28: 0 | CS28: 0 | CU28: 0 | CW28: 0 | CY28: 0 | DA28: 0 | DC28: 0 | DE28: 0 | DG28: 0 | DI28: 0 | DK28: 0 | DM28: 0 | DO28: 0 | DQ28: 0 | DS28: 0 | DU28: 0 | DW28: 0 | DY28: 0
D29: =HLOOKUP($C29,'Dados Gerais'!$D$6:$BI$11,6) ->  | H29: =HLOOKUP($C29,'Dados Gerais'!$D$6:$BI$15,10) ->  | K29: 0 | M29: 0 | O29: 0 | Q29: 0 | S29: 0 | U29: 0 | W29: 0 | Y29: 0 | AA29: 0 | AC29: 0 | AE29: 0 | AG29: 0 | AI29: 0 | AK29: 0 | AM29: 0 | AO29: 0 | AQ29: 0 | AS29: 0 | AU29: 0 | AW29: 0 | AY29: 0 | BA29: 0 | BC29: 0 | BE29: 0 | BG29: 0 | BI29: 0 | BK29: 0 | BM29: 0 | BO29: 0 | BQ29: 0 | BS29: 0 | BU29: 0 | BW29: 0 | BY29: 0 | CA29: 0 | CC29: 0 | CE29: 0 | CG29: 0 | CI29: 0 | CK29: 0 | CM29: 0 | CO29: 0 | CQ29: 0 | CS29: 0 | CU29: 0 | CW29: 0 | CY29: 0 | DA29: 0 | DC29: 0 | DE29: 0 | DG29: 0 | DI29: 0 | DK29: 0 | DM29: 0 | DO29: 0 | DQ29: 0 | DS29: 0 | DU29: 0 | DW29: 0 | DY29: 0
D30: =HLOOKUP($C30,'Dados Gerais'!$D$6:$BI$11,6) ->  | H30: =HLOOKUP($C30,'Dados Gerais'!$D$6:$BI$15,10) ->  | K30: 0 | M30: 0 | O30: 0 | Q30: 0 | S30: 0 | U30: 0 | W30: 0 | Y30: 0 | AA30: 0 | AC30: 0 | AE30: 0 | AG30: 0 | AI30: 0 | AK30: 0 | AM30: 0 | AO30: 0 | AQ30: 0 | AS30: 0 | AU30: 0 | AW30: 0 | AY30: 0 | BA30: 0 | BC30: 0 | BE30: 0 | BG30: 0 | BI30: 0 | BK30: 0 | BM30: 0 | BO30: 0 | BQ30: 0 | BS30: 0 | BU30: 0 | BW30: 0 | BY30: 0 | CA30: 0 | CC30: 0 | CE30: 0 | CG30: 0 | CI30: 0 | CK30: 0 | CM30: 0 | CO30: 0 | CQ30: 0 | CS30: 0 | CU30: 0 | CW30: 0 | CY30: 0 | DA30: 0 | DC30: 0 | DE30: 0 | DG30: 0 | DI30: 0 | DK30: 0 | DM30: 0 | DO30: 0 | DQ30: 0 | DS30: 0 | DU30: 0 | DW30: 0 | DY30: 0
D31: =HLOOKUP($C31,'Dados Gerais'!$D$6:$BI$11,6) ->  | H31: =HLOOKUP($C31,'Dados Gerais'!$D$6:$BI$15,10) ->  | K31: 0 | M31: 0 | O31: 0 | Q31: 0 | S31: 0 | U31: 0 | W31: 0 | Y31: 0 | AA31: 0 | AC31: 0 | AE31: 0 | AG31: 0 | AI31: 0 | AK31: 0 | AM31: 0 | AO31: 0 | AQ31: 0 | AS31: 0 | AU31: 0 | AW31: 0 | AY31: 0 | BA31: 0 | BC31: 0 | BE31: 0 | BG31: 0 | BI31: 0 | BK31: 0 | BM31: 0 | BO31: 0 | BQ31: 0 | BS31: 0 | BU31: 0 | BW31: 0 | BY31: 0 | CA31: 0 | CC31: 0 | CE31: 0 | CG31: 0 | CI31: 0 | CK31: 0 | CM31: 0 | CO31: 0 | CQ31: 0 | CS31: 0 | CU31: 0 | CW31: 0 | CY31: 0 | DA31: 0 | DC31: 0 | DE31: 0 | DG31: 0 | DI31: 0 | DK31: 0 | DM31: 0 | DO31: 0 | DQ31: 0 | DS31: 0 | DU31: 0 | DW31: 0 | DY31: 0
D32: =HLOOKUP($C32,'Dados Gerais'!$D$6:$BI$11,6) ->  | H32: =HLOOKUP($C32,'Dados Gerais'!$D$6:$BI$15,10) ->  | K32: 0 | M32: 0 | O32: 0 | Q32: 0 | S32: 0 | U32: 0 | W32: 0 | Y32: 0 | AA32: 0 | AC32: 0 | AE32: 0 | AG32: 0 | AI32: 0 | AK32: 0 | AM32: 0 | AO32: 0 | AQ32: 0 | AS32: 0 | AU32: 0 | AW32: 0 | AY32: 0 | BA32: 0 | BC32: 0 | BE32: 0 | BG32: 0 | BI32: 0 | BK32: 0 | BM32: 0 | BO32: 0 | BQ32: 0 | BS32: 0 | BU32: 0 | BW32: 0 | BY32: 0 | CA32: 0 | CC32: 0 | CE32: 0 | CG32: 0 | CI32: 0 | CK32: 0 | CM32: 0 | CO32: 0 | CQ32: 0 | CS32: 0 | CU32: 0 | CW32: 0 | CY32: 0 | DA32: 0 | DC32: 0 | DE32: 0 | DG32: 0 | DI32: 0 | DK32: 0 | DM32: 0 | DO32: 0 | DQ32: 0 | DS32: 0 | DU32: 0 | DW32: 0 | DY32: 0
D33: =HLOOKUP($C33,'Dados Gerais'!$D$6:$BI$11,6) ->  | H33: =HLOOKUP($C33,'Dados Gerais'!$D$6:$BI$15,10) ->  | K33: =IF($C33=K$4,1,0) -> 0 | M33: =IF($C33=M$4,1,0) -> 0 | O33: =IF($C33=O$4,1,0) -> 0 | Q33: =IF($C33=Q$4,1,0) -> 0 | S33: =IF($C33=S$4,1,0) -> 0 | U33: =IF($C33=U$4,1,0) -> 0 | W33: =IF($C33=W$4,1,0) -> 0 | Y33: =IF($C33=Y$4,1,0) -> 0 | AA33: =IF($C33=AA$4,1,0) -> 0 | AC33: =IF($C33=AC$4,1,0) -> 0 | AE33: =IF($C33=AE$4,1,0) -> 0 | AG33: =IF($C33=AG$4,1,0) -> 0 | AI33: =IF($C33=AI$4,1,0) -> 0 | AK33: =IF($C33=AK$4,1,0) -> 0 | AM33: =IF($C33=AM$4,1,0) -> 0 | AO33: =IF($C33=AO$4,1,0) -> 0 | AQ33: =IF($C33=AQ$4,1,0) -> 0 | AS33: =IF($C33=AS$4,1,0) -> 0 | AU33: =IF($C33=AU$4,1,0) -> 0 | AW33: =IF($C33=AW$4,1,0) -> 0 | AY33: =IF($C33=AY$4,1,0) -> 0 | BA33: =IF($C33=BA$4,1,0) -> 0 | BC33: =IF($C33=BC$4,1,0) -> 0 | BE33: =IF($C33=BE$4,1,0) -> 0 | BG33: =IF($C33=BG$4,1,0) -> 0 | BI33: =IF($C33=BI$4,1,0) -> 0 | BK33: =IF($C33=BK$4,1,0) -> 0 | BM33: =IF($C33=BM$4,1,0) -> 0 | BO33: =IF($C33=BO$4,1,0) -> 0 | BQ33: =IF($C33=BQ$4,1,0) -> 0 | BS33: =IF($C33=BS$4,1,0) -> 0 | BU33: =IF($C33=BU$4,1,0) -> 0 | BW33: =IF($C33=BW$4,1,0) -> 0 | BY33: =IF($C33=BY$4,1,0) -> 0 | CA33: =IF($C33=CA$4,1,0) -> 0 | CC33: =IF($C33=CC$4,1,0) -> 0 | CE33: =IF($C33=CE$4,1,0) -> 0 | CG33: =IF($C33=CG$4,1,0) -> 0 | CI33: =IF($C33=CI$4,1,0) -> 0 | CK33: =IF($C33=CK$4,1,0) -> 0 | CM33: =IF($C33=CM$4,1,0) -> 0 | CO33: =IF($C33=CO$4,1,0) -> 0 | CQ33: =IF($C33=CQ$4,1,0) -> 0 | CS33: =IF($C33=CS$4,1,0) -> 0 | CU33: =IF($C33=CU$4,1,0) -> 0 | CW33: =IF($C33=CW$4,1,0) -> 0 | CY33: =IF($C33=CY$4,1,0) -> 0 | DA33: =IF($C33=DA$4,1,0) -> 0 | DC33: =IF($C33=DC$4,1,0) -> 0 | DE33: =IF($C33=DE$4,1,0) -> 0 | DG33: =IF($C33=DG$4,1,0) -> 0 | DI33: =IF($C33=DI$4,1,0) -> 0 | DK33: =IF($C33=DK$4,1,0) -> 0 | DM33: =IF($C33=DM$4,1,0) -> 0 | DO33: =IF($C33=DO$4,1,0) -> 0 | DQ33: =IF($C33=DQ$4,1,0) -> 0 | DS33: =IF($C33=DS$4,1,0) -> 0 | DU33: =IF($C33=DU$4,1,0) -> 0 | DW33: =IF($C33=DW$4,1,0) -> 0 | DY33: =IF($C33=DY$4,1,0) -> 0
D34: =HLOOKUP($C34,'Dados Gerais'!$D$6:$BI$11,6) ->  | H34: =HLOOKUP($C34,'Dados Gerais'!$D$6:$BI$15,10) ->  | K34: 0 | M34: 0 | O34: 0 | Q34: 0 | S34: 0 | U34: 0 | W34: 0 | Y34: 0 | AA34: 0 | AC34: 0 | AE34: 0 | AG34: 0 | AI34: 0 | AK34: 0 | AM34: 0 | AO34: 0 | AQ34: 0 | AS34: 0 | AU34: 0 | AW34: 0 | AY34: 0 | BA34: 0 | BC34: 0 | BE34: 0 | BG34: 0 | BI34: 0 | BK34: 0 | BM34: 0 | BO34: 0 | BQ34: 0 | BS34: 0 | BU34: 0 | BW34: 0 | BY34: 0 | CA34: 0 | CC34: 0 | CE34: 0 | CG34: 0 | CI34: 0 | CK34: 0 | CM34: 0 | CO34: 0 | CQ34: 0 | CS34: 0 | CU34: 0 | CW34: 0 | CY34: 0 | DA34: 0 | DC34: 0 | DE34: 0 | DG34: 0 | DI34: 0 | DK34: 0 | DM34: 0 | DO34: 0 | DQ34: 0 | DS34: 0 | DU34: 0 | DW34: 0 | DY34: 0
D35: =HLOOKUP($C35,'Dados Gerais'!$D$6:$BI$11,6) ->  | H35: =HLOOKUP($C35,'Dados Gerais'!$D$6:$BI$15,10) ->  | K35: 0 | M35: 0 | O35: 0 | Q35: 0 | S35: 0 | U35: 0 | W35: 0 | Y35: 0 | AA35: 0 | AC35: 0 | AE35: 0 | AG35: 0 | AI35: 0 | AK35: 0 | AM35: 0 | AO35: 0 | AQ35: 0 | AS35: 0 | AU35: 0 | AW35: 0 | AY35: 0 | BA35: 0 | BC35: 0 | BE35: 0 | BG35: 0 | BI35: 0 | BK35: 0 | BM35: 0 | BO35: 0 | BQ35: 0 | BS35: 0 | BU35: 0 | BW35: 0 | BY35: 0 | CA35: 0 | CC35: 0 | CE35: 0 | CG35: 0 | CI35: 0 | CK35: 0 | CM35: 0 | CO35: 0 | CQ35: 0 | CS35: 0 | CU35: 0 | CW35: 0 | CY35: 0 | DA35: 0 | DC35: 0 | DE35: 0 | DG35: 0 | DI35: 0 | DK35: 0 | DM35: 0 | DO35: 0 | DQ35: 0 | DS35: 0 | DU35: 0 | DW35: 0 | DY35: 0
K36: =IF($C36=K$4,1,0) -> 0 | M36: =IF($C36=M$4,1,0) -> 0 | O36: =IF($C36=O$4,1,0) -> 0 | Q36: =IF($C36=Q$4,1,0) -> 0 | S36: =IF($C36=S$4,1,0) -> 0 | U36: =IF($C36=U$4,1,0) -> 0 | W36: =IF($C36=W$4,1,0) -> 0 | Y36: =IF($C36=Y$4,1,0) -> 0 | AA36: =IF($C36=AA$4,1,0) -> 0 | AC36: =IF($C36=AC$4,1,0) -> 0 | AE36: =IF($C36=AE$4,1,0) -> 0 | AG36: =IF($C36=AG$4,1,0) -> 0 | AI36: =IF($C36=AI$4,1,0) -> 0 | AK36: =IF($C36=AK$4,1,0) -> 0 | AM36: =IF($C36=AM$4,1,0) -> 0 | AO36: =IF($C36=AO$4,1,0) -> 0 | AQ36: =IF($C36=AQ$4,1,0) -> 0 | AS36: =IF($C36=AS$4,1,0) -> 0 | AU36: =IF($C36=AU$4,1,0) -> 0 | AW36: =IF($C36=AW$4,1,0) -> 0 | AY36: =IF($C36=AY$4,1,0) -> 0 | BA36: =IF($C36=BA$4,1,0) -> 0 | BC36: =IF($C36=BC$4,1,0) -> 0 | BE36: =IF($C36=BE$4,1,0) -> 0 | BG36: =IF($C36=BG$4,1,0) -> 0 | BI36: =IF($C36=BI$4,1,0) -> 0 | BK36: =IF($C36=BK$4,1,0) -> 0 | BM36: =IF($C36=BM$4,1,0) -> 0 | BO36: =IF($C36=BO$4,1,0) -> 0 | BQ36: =IF($C36=BQ$4,1,0) -> 0 | BS36: =IF($C36=BS$4,1,0) -> 0 | BU36: =IF($C36=BU$4,1,0) -> 0 | BW36: =IF($C36=BW$4,1,0) -> 0 | BY36: =IF($C36=BY$4,1,0) -> 0 | CA36: =IF($C36=CA$4,1,0) -> 0 | CC36: =IF($C36=CC$4,1,0) -> 0 | CE36: =IF($C36=CE$4,1,0) -> 0 | CG36: =IF($C36=CG$4,1,0) -> 0 | CI36: =IF($C36=CI$4,1,0) -> 0 | CK36: =IF($C36=CK$4,1,0) -> 0 | CM36: =IF($C36=CM$4,1,0) -> 0 | CO36: =IF($C36=CO$4,1,0) -> 0 | CQ36: =IF($C36=CQ$4,1,0) -> 0 | CS36: =IF($C36=CS$4,1,0) -> 0 | CU36: =IF($C36=CU$4,1,0) -> 0 | CW36: =IF($C36=CW$4,1,0) -> 0 | CY36: =IF($C36=CY$4,1,0) -> 0 | DA36: =IF($C36=DA$4,1,0) -> 0 | DC36: =IF($C36=DC$4,1,0) -> 0 | DE36: =IF($C36=DE$4,1,0) -> 0 | DG36: =IF($C36=DG$4,1,0) -> 0 | DI36: =IF($C36=DI$4,1,0) -> 0 | DK36: =IF($C36=DK$4,1,0) -> 0 | DM36: =IF($C36=DM$4,1,0) -> 0 | DO36: =IF($C36=DO$4,1,0) -> 0 | DQ36: =IF($C36=DQ$4,1,0) -> 0 | DS36: =IF($C36=DS$4,1,0) -> 0 | DU36: =IF($C36=DU$4,1,0) -> 0 | DW36: =IF($C36=DW$4,1,0) -> 0 | DY36: =IF($C36=DY$4,1,0) -> 0
C38: ITEM | D38: DESCRIÇÃO | E38: QUANT ANUAL POR POSTO | F38: Nº DE POSTOS | G38: QUANT ANUAL TOTAL | H38: VALOR
L39: =IF(SUM(K$8:K$8)>0,$E39*$H39,0) -> 0 | N39: =IF(SUM(M$8:M$8)>0,$E39*$H39,0) -> 0 | P39: =IF(SUM(O$8:O$8)>0,$E39*$H39,0) -> 0 | R39: =IF(SUM(Q$8:Q$8)>0,$E39*$H39,0) -> 0 | T39: =IF(SUM(S$8:S$8)>0,$E39*$H39,0) -> 0 | V39: =IF(SUM(U$8:U$8)>0,$E39*$H39,0) -> 0 | X39: =IF(SUM(W$8:W$8)>0,$E39*$H39,0) -> 0 | Z39: =IF(SUM(Y$8:Y$8)>0,$E39*$H39,0) -> 0 | AB39: =IF(SUM(AA$8:AA$8)>0,$E39*$H39,0) -> 0 | AD39: =IF(SUM(AC$8:AC$8)>0,$E39*$H39,0) -> 0 | AF39: =IF(SUM(AE$8:AE$8)>0,$E39*$H39,0) -> 0 | AH39: =IF(SUM(AG$8:AG$8)>0,$E39*$H39,0) -> 0 | AJ39: =IF(SUM(AI$8:AI$8)>0,$E39*$H39,0) -> 0 | AL39: =IF(SUM(AK$8:AK$8)>0,$E39*$H39,0) -> 0 | AN39: =IF(SUM(AM$8:AM$8)>0,$E39*$H39,0) -> 0 | AP39: =IF(SUM(AO$8:AO$8)>0,$E39*$H39,0) -> 0 | AR39: =IF(SUM(AQ$8:AQ$8)>0,$E39*$H39,0) -> 0 | AT39: =IF(SUM(AS$8:AS$8)>0,$E39*$H39,0) -> 0 | AV39: =IF(SUM(AU$8:AU$8)>0,$E39*$H39,0) -> 0 | AX39: =IF(SUM(AW$8:AW$8)>0,$E39*$H39,0) -> 0 | AZ39: =IF(SUM(AY$8:AY$8)>0,$E39*$H39,0) -> 0 | BB39: =IF(SUM(BA$8:BA$8)>0,$E39*$H39,0) -> 0 | BD39: =IF(SUM(BC$8:BC$8)>0,$E39*$H39,0) -> 0 | BF39: =IF(SUM(BE$8:BE$8)>0,$E39*$H39,0) -> 0 | BH39: =IF(SUM(BG$8:BG$8)>0,$E39*$H39,0) -> 0 | BJ39: =IF(SUM(BI$8:BI$8)>0,$E39*$H39,0) -> 0 | BL39: =IF(SUM(BK$8:BK$8)>0,$E39*$H39,0) -> 0 | BN39: =IF(SUM(BM$8:BM$8)>0,$E39*$H39,0) -> 0 | BP39: =IF(SUM(BO$8:BO$8)>0,$E39*$H39,0) -> 0 | BR39: =IF(SUM(BQ$8:BQ$8)>0,$E39*$H39,0) -> 0 | BT39: =IF(SUM(BS$8:BS$8)>0,$E39*$H39,0) -> 0 | BV39: =IF(SUM(BU$8:BU$8)>0,$E39*$H39,0) -> 0 | BX39: =IF(SUM(BW$8:BW$8)>0,$E39*$H39,0) -> 0 | BZ39: =IF(SUM(BY$8:BY$8)>0,$E39*$H39,0) -> 0 | CB39: =IF(SUM(CA$8:CA$8)>0,$E39*$H39,0) -> 0 | CD39: =IF(SUM(CC$8:CC$8)>0,$E39*$H39,0) -> 0 | CF39: =IF(SUM(CE$8:CE$8)>0,$E39*$H39,0) -> 0 | CH39: =IF(SUM(CG$8:CG$8)>0,$E39*$H39,0) -> 0 | CJ39: =IF(SUM(CI$8:CI$8)>0,$E39*$H39,0) -> 0 | CL39: =IF(SUM(CK$8:CK$8)>0,$E39*$H39,0) -> 0 | CN39: =IF(SUM(CM$8:CM$8)>0,$E39*$H39,0) -> 0 | CP39: =IF(SUM(CO$8:CO$8)>0,$E39*$H39,0) -> 0 | CR39: =IF(SUM(CQ$8:CQ$8)>0,$E39*$H39,0) -> 0 | CT39: =IF(SUM(CS$8:CS$8)>0,$E39*$H39,0) -> 0 | CV39: =IF(SUM(CU$8:CU$8)>0,$E39*$H39,0) -> 0 | CX39: =IF(SUM(CW$8:CW$8)>0,$E39*$H39,0) -> 0 | CZ39: =IF(SUM(CY$8:CY$8)>0,$E39*$H39,0) -> 0 | DB39: =IF(SUM(DA$8:DA$8)>0,$E39*$H39,0) -> 0 | DD39: =IF(SUM(DC$8:DC$8)>0,$E39*$H39,0) -> 0 | DF39: =IF(SUM(DE$8:DE$8)>0,$E39*$H39,0) -> 0 | DH39: =IF(SUM(DG$8:DG$8)>0,$E39*$H39,0) -> 0 | DJ39: =IF(SUM(DI$8:DI$8)>0,$E39*$H39,0) -> 0 | DL39: =IF(SUM(DK$8:DK$8)>0,$E39*$H39,0) -> 0 | DN39: =IF(SUM(DM$8:DM$8)>0,$E39*$H39,0) -> 0 | DP39: =IF(SUM(DO$8:DO$8)>0,$E39*$H39,0) -> 0 | DR39: =IF(SUM(DQ$8:DQ$8)>0,$E39*$H39,0) -> 0 | DT39: =IF(SUM(DS$8:DS$8)>0,$E39*$H39,0) -> 0 | DV39: =IF(SUM(DU$8:DU$8)>0,$E39*$H39,0) -> 0 | DX39: =IF(SUM(DW$8:DW$8)>0,$E39*$H39,0) -> 0 | DZ39: =IF(SUM(DY$8:DY$8)>0,$E39*$H39,0) -> 0
F40: =SUM(H25:H36) ->  | G40: =E40*F40 ->  | L40: =IF(SUM(K$25:K$36)>0,$E40*$H40,0) -> 0 | N40: =IF(SUM(M$25:M$36)>0,$E40*$H40,0) -> 0 | P40: =IF(SUM(O$25:O$36)>0,$E40*$H40,0) -> 0 | R40: =IF(SUM(Q$25:Q$36)>0,$E40*$H40,0) -> 0 | T40: =IF(SUM(S$25:S$36)>0,$E40*$H40,0) -> 0 | V40: =IF(SUM(U$25:U$36)>0,$E40*$H40,0) -> 0 | X40: =IF(SUM(W$25:W$36)>0,$E40*$H40,0) -> 0 | Z40: =IF(SUM(Y$25:Y$36)>0,$E40*$H40,0) -> 0 | AB40: =IF(SUM(AA$25:AA$36)>0,$E40*$H40,0) -> 0 | AD40: =IF(SUM(AC$25:AC$36)>0,$E40*$H40,0) -> 0 | AF40: =IF(SUM(AE$25:AE$36)>0,$E40*$H40,0) -> 0 | AH40: =IF(SUM(AG$25:AG$36)>0,$E40*$H40,0) -> 0 | AJ40: =IF(SUM(AI$25:AI$36)>0,$E40*$H40,0) -> 0 | AL40: =IF(SUM(AK$25:AK$36)>0,$E40*$H40,0) -> 0 | AN40: =IF(SUM(AM$25:AM$36)>0,$E40*$H40,0) -> 0 | AP40: =IF(SUM(AO$25:AO$36)>0,$E40*$H40,0) -> 0 | AR40: =IF(SUM(AQ$25:AQ$36)>0,$E40*$H40,0) -> 0 | AT40: =IF(SUM(AS$25:AS$36)>0,$E40*$H40,0) -> 0 | AV40: =IF(SUM(AU$25:AU$36)>0,$E40*$H40,0) -> 0 | AX40: =IF(SUM(AW$25:AW$36)>0,$E40*$H40,0) -> 0 | AZ40: =IF(SUM(AY$25:AY$36)>0,$E40*$H40,0) -> 0 | BB40: =IF(SUM(BA$25:BA$36)>0,$E40*$H40,0) -> 0 | BD40: =IF(SUM(BC$25:BC$36)>0,$E40*$H40,0) -> 0 | BF40: =IF(SUM(BE$25:BE$36)>0,$E40*$H40,0) -> 0 | BH40: =IF(SUM(BG$25:BG$36)>0,$E40*$H40,0) -> 0 | BJ40: =IF(SUM(BI$25:BI$36)>0,$E40*$H40,0) -> 0 | BL40: =IF(SUM(BK$25:BK$36)>0,$E40*$H40,0) -> 0 | BN40: =IF(SUM(BM$25:BM$36)>0,$E40*$H40,0) -> 0 | BP40: =IF(SUM(BO$25:BO$36)>0,$E40*$H40,0) -> 0 | BR40: =IF(SUM(BQ$25:BQ$36)>0,$E40*$H40,0) -> 0 | BT40: =IF(SUM(BS$25:BS$36)>0,$E40*$H40,0) -> 0 | BV40: =IF(SUM(BU$25:BU$36)>0,$E40*$H40,0) -> 0 | BX40: =IF(SUM(BW$25:BW$36)>0,$E40*$H40,0) -> 0 | BZ40: =IF(SUM(BY$25:BY$36)>0,$E40*$H40,0) -> 0 | CB40: =IF(SUM(CA$25:CA$36)>0,$E40*$H40,0) -> 0 | CD40: =IF(SUM(CC$25:CC$36)>0,$E40*$H40,0) -> 0 | CF40: =IF(SUM(CE$25:CE$36)>0,$E40*$H40,0) -> 0 | CH40: =IF(SUM(CG$25:CG$36)>0,$E40*$H40,0) -> 0 | CJ40: =IF(SUM(CI$25:CI$36)>0,$E40*$H40,0) -> 0 | CL40: =IF(SUM(CK$25:CK$36)>0,$E40*$H40,0) -> 0 | CN40: =IF(SUM(CM$25:CM$36)>0,$E40*$H40,0) -> 0 | CP40: =IF(SUM(CO$25:CO$36)>0,$E40*$H40,0) -> 0 | CR40: =IF(SUM(CQ$25:CQ$36)>0,$E40*$H40,0) -> 0 | CT40: =IF(SUM(CS$25:CS$36)>0,$E40*$H40,0) -> 0 | CV40: =IF(SUM(CU$25:CU$36)>0,$E40*$H40,0) -> 0 | CX40: =IF(SUM(CW$25:CW$36)>0,$E40*$H40,0) -> 0 | CZ40: =IF(SUM(CY$25:CY$36)>0,$E40*$H40,0) -> 0 | DB40: =IF(SUM(DA$25:DA$36)>0,$E40*$H40,0) -> 0 | DD40: =IF(SUM(DC$25:DC$36)>0,$E40*$H40,0) -> 0 | DF40: =IF(SUM(DE$25:DE$36)>0,$E40*$H40,0) -> 0 | DH40: =IF(SUM(DG$25:DG$36)>0,$E40*$H40,0) -> 0 | DJ40: =IF(SUM(DI$25:DI$36)>0,$E40*$H40,0) -> 0 | DL40: =IF(SUM(DK$25:DK$36)>0,$E40*$H40,0) -> 0 | DN40: =IF(SUM(DM$25:DM$36)>0,$E40*$H40,0) -> 0 | DP40: =IF(SUM(DO$25:DO$36)>0,$E40*$H40,0) -> 0 | DR40: =IF(SUM(DQ$25:DQ$36)>0,$E40*$H40,0) -> 0 | DT40: =IF(SUM(DS$25:DS$36)>0,$E40*$H40,0) -> 0 | DV40: =IF(SUM(DU$25:DU$36)>0,$E40*$H40,0) -> 0 | DX40: =IF(SUM(DW$25:DW$36)>0,$E40*$H40,0) -> 0 | DZ40: =IF(SUM(DY$25:DY$36)>0,$E40*$H40,0) -> 0
F41: =F40 ->  | L41: 0 | N41: 0 | P41: 0 | R41: 0 | T41: 0 | V41: 0 | X41: 0 | Z41: 0 | AB41: 0 | AD41: 0 | AF41: 0 | AH41: 0 | AJ41: 0 | AL41: 0 | AN41: 0 | AP41: 0 | AR41: 0 | AT41: 0 | AV41: 0 | AX41: 0 | AZ41: 0 | BB41: 0 | BD41: 0 | BF41: 0 | BH41: 0 | BJ41: 0 | BL41: 0 | BN41: 0 | BP41: 0 | BR41: 0 | BT41: 0 | BV41: 0 | BX41: 0 | BZ41: 0 | CB41: 0 | CD41: 0 | CF41: 0 | CH41: 0 | CJ41: 0 | CL41: 0 | CN41: 0 | CP41: 0 | CR41: 0 | CT41: 0 | CV41: 0 | CX41: 0 | CZ41: 0 | DB41: 0 | DD41: 0 | DF41: 0 | DH41: 0 | DJ41: 0 | DL41: 0 | DN41: 0 | DP41: 0 | DR41: 0 | DT41: 0 | DV41: 0 | DX41: 0 | DZ41: 0
F42: =F41 ->  | L42: 0 | N42: 0 | P42: 0 | R42: 0 | T42: 0 | V42: 0 | X42: 0 | Z42: 0 | AB42: 0 | AD42: 0 | AF42: 0 | AH42: 0 | AJ42: 0 | AL42: 0 | AN42: 0 | AP42: 0 | AR42: 0 | AT42: 0 | AV42: 0 | AX42: 0 | AZ42: 0 | BB42: 0 | BD42: 0 | BF42: 0 | BH42: 0 | BJ42: 0 | BL42: 0 | BN42: 0 | BP42: 0 | BR42: 0 | BT42: 0 | BV42: 0 | BX42: 0 | BZ42: 0 | CB42: 0 | CD42: 0 | CF42: 0 | CH42: 0 | CJ42: 0 | CL42: 0 | CN42: 0 | CP42: 0 | CR42: 0 | CT42: 0 | CV42: 0 | CX42: 0 | CZ42: 0 | DB42: 0 | DD42: 0 | DF42: 0 | DH42: 0 | DJ42: 0 | DL42: 0 | DN42: 0 | DP42: 0 | DR42: 0 | DT42: 0 | DV42: 0 | DX42: 0 | DZ42: 0
F43: =F42 ->  | L43: 0 | N43: 0 | P43: 0 | R43: 0 | T43: 0 | V43: 0 | X43: 0 | Z43: 0 | AB43: 0 | AD43: 0 | AF43: 0 | AH43: 0 | AJ43: 0 | AL43: 0 | AN43: 0 | AP43: 0 | AR43: 0 | AT43: 0 | AV43: 0 | AX43: 0 | AZ43: 0 | BB43: 0 | BD43: 0 | BF43: 0 | BH43: 0 | BJ43: 0 | BL43: 0 | BN43: 0 | BP43: 0 | BR43: 0 | BT43: 0 | BV43: 0 | BX43: 0 | BZ43: 0 | CB43: 0 | CD43: 0 | CF43: 0 | CH43: 0 | CJ43: 0 | CL43: 0 | CN43: 0 | CP43: 0 | CR43: 0 | CT43: 0 | CV43: 0 | CX43: 0 | CZ43: 0 | DB43: 0 | DD43: 0 | DF43: 0 | DH43: 0 | DJ43: 0 | DL43: 0 | DN43: 0 | DP43: 0 | DR43: 0 | DT43: 0 | DV43: 0 | DX43: 0 | DZ43: 0
F44: =F43 ->  | L44: 0 | N44: 0 | P44: 0 | R44: 0 | T44: 0 | V44: 0 | X44: 0 | Z44: 0 | AB44: 0 | AD44: 0 | AF44: 0 | AH44: 0 | AJ44: 0 | AL44: 0 | AN44: 0 | AP44: 0 | AR44: 0 | AT44: 0 | AV44: 0 | AX44: 0 | AZ44: 0 | BB44: 0 | BD44: 0 | BF44: 0 | BH44: 0 | BJ44: 0 | BL44: 0 | BN44: 0 | BP44: 0 | BR44: 0 | BT44: 0 | BV44: 0 | BX44: 0 | BZ44: 0 | CB44: 0 | CD44: 0 | CF44: 0 | CH44: 0 | CJ44: 0 | CL44: 0 | CN44: 0 | CP44: 0 | CR44: 0 | CT44: 0 | CV44: 0 | CX44: 0 | CZ44: 0 | DB44: 0 | DD44: 0 | DF44: 0 | DH44: 0 | DJ44: 0 | DL44: 0 | DN44: 0 | DP44: 0 | DR44: 0 | DT44: 0 | DV44: 0 | DX44: 0 | DZ44: 0
F45: =F44 ->  | L45: 0 | N45: 0 | P45: 0 | R45: 0 | T45: 0 | V45: 0 | X45: 0 | Z45: 0 | AB45: 0 | AD45: 0 | AF45: 0 | AH45: 0 | AJ45: 0 | AL45: 0 | AN45: 0 | AP45: 0 | AR45: 0 | AT45: 0 | AV45: 0 | AX45: 0 | AZ45: 0 | BB45: 0 | BD45: 0 | BF45: 0 | BH45: 0 | BJ45: 0 | BL45: 0 | BN45: 0 | BP45: 0 | BR45: 0 | BT45: 0 | BV45: 0 | BX45: 0 | BZ45: 0 | CB45: 0 | CD45: 0 | CF45: 0 | CH45: 0 | CJ45: 0 | CL45: 0 | CN45: 0 | CP45: 0 | CR45: 0 | CT45: 0 | CV45: 0 | CX45: 0 | CZ45: 0 | DB45: 0 | DD45: 0 | DF45: 0 | DH45: 0 | DJ45: 0 | DL45: 0 | DN45: 0 | DP45: 0 | DR45: 0 | DT45: 0 | DV45: 0 | DX45: 0 | DZ45: 0

Sheet EPI
B4: EQUIPAMENTOS DE PROTEÇÃO INDIVIDUAL - AQUISIÇÃO | K4: 1 | M4: =K4+1 -> 2 | O4: =M4+1 -> 3 | Q4: 4 | S4: 5 | U4: 6 | W4: 7 | Y4: 8 | AA4: 9 | AC4: 10 | AE4: 11 | AG4: 12 | AI4: 13 | AK4: 14 | AM4: 15 | AO4: 16 | AQ4: 17 | AS4: 18 | AU4: 19 | AW4: 20 | AY4: 21 | BA4: 22 | BC4: 23 | BE4: 24 | BG4: 25 | BI4: 26 | BK4: 27 | BM4: 28 | BO4: 29 | BQ4: 30 | BS4: 31 | BU4: 32 | BW4: 33 | BY4: 34
K6: =ROUND(SUM(L5:L315),2) -> 0 | M6: =ROUND(SUM(N5:N315),2) -> 0 | O6: =ROUND(SUM(P5:P315),2) -> 303.4 | Q6: =ROUND(SUM(R5:R315),2) -> 0 | S6: =ROUND(SUM(T5:T315),2) -> 0 | U6: =ROUND(SUM(V5:V315),2) -> 0 | W6: =ROUND(SUM(X5:X315),2) -> 0 | Y6: =ROUND(SUM(Z5:Z315),2) -> 0 | AA6: =ROUND(SUM(AB5:AB315),2) -> 0 | AC6: =ROUND(SUM(AD5:AD315),2) -> 351.04 | AE6: =ROUND(SUM(AF5:AF315),2) -> 0 | AG6: =ROUND(SUM(AH5:AH315),2) -> 0 | AI6: =ROUND(SUM(AJ5:AJ315),2) -> 0 | AK6: =ROUND(SUM(AL5:AL315),2) -> 0 | AM6: =ROUND(SUM(AN5:AN315),2) -> 0 | AO6: =ROUND(SUM(AP5:AP315),2) -> 0 | AQ6: =ROUND(SUM(AR5:AR315),2) -> 0 | AS6: =ROUND(SUM(AT5:AT315),2) -> 0 | AU6: =ROUND(SUM(AV5:AV315),2) -> 0 | AW6: =ROUND(SUM(AX5:AX315),2) -> 0 | AY6: =ROUND(SUM(AZ5:AZ315),2) -> 0 | BA6: =ROUND(SUM(BB5:BB315),2) -> 0 | BC6: =ROUND(SUM(BD5:BD315),2) -> 0 | BE6: =ROUND(SUM(BF5:BF315),2) -> 0 | BG6: =ROUND(SUM(BH5:BH315),2) -> 0 | BI6: =ROUND(SUM(BJ5:BJ315),2) -> 0 | BK6: =ROUND(SUM(BL5:BL315),2) -> 0 | BM6: =ROUND(SUM(BN5:BN315),2) -> 0 | BO6: =ROUND(SUM(BP5:BP315),2) -> 0 | BQ6: =ROUND(SUM(BR5:BR315),2) -> 0 | BS6: =ROUND(SUM(BT5:BT315),2) -> 0 | BU6: =ROUND(SUM(BV5:BV315),2) -> 0 | BW6: =ROUND(SUM(BX5:BX315),2) -> 0 | BY6: =ROUND(SUM(BZ5:BZ315),2) -> 0 | CA6: =ROUND(SUM(CB5:CB315),2) -> 0
C7: CATEGORIAS | H7: QUANTIDADE
K8: =IF($C8=K$4,1,0) -> 0 | M8: =IF($C8=M$4,1,0) -> 0 | O8: =IF($C8=O$4,1,0) -> 0 | Q8: =IF($C8=Q$4,1,0) -> 0 | S8: =IF($C8=S$4,1,0) -> 0 | U8: =IF($C8=U$4,1,0) -> 0 | W8: =IF($C8=W$4,1,0) -> 0 | Y8: =IF($C8=Y$4,1,0) -> 0 | AA8: =IF($C8=AA$4,1,0) -> 0 | AC8: =IF($C8=AC$4,1,0) -> 0 | AE8: =IF($C8=AE$4,1,0) -> 0 | AG8: =IF($C8=AG$4,1,0) -> 0 | AI8: =IF($C8=AI$4,1,0) -> 0 | AK8: =IF($C8=AK$4,1,0) -> 0 | AM8: =IF($C8=AM$4,1,0) -> 0 | AO8: =IF($C8=AO$4,1,0) -> 0 | AQ8: =IF($C8=AQ$4,1,0) -> 0 | AS8: =IF($C8=AS$4,1,0) -> 0 | AU8: =IF($C8=AU$4,1,0) -> 0 | AW8: =IF($C8=AW$4,1,0) -> 0 | AY8: =IF($C8=AY$4,1,0) -> 0 | BA8: =IF($C8=BA$4,1,0) -> 0 | BC8: =IF($C8=BC$4,1,0) -> 0 | BE8: =IF($C8=BE$4,1,0) -> 0 | BG8: =IF($C8=BG$4,1,0) -> 0 | BI8: =IF($C8=BI$4,1,0) -> 0 | BK8: =IF($C8=BK$4,1,0) -> 0 | BM8: =IF($C8=BM$4,1,0) -> 0 | BO8: =IF($C8=BO$4,1,0) -> 0 | BQ8: =IF($C8=BQ$4,1,0) -> 0 | BS8: =IF($C8=BS$4,1,0) -> 0 | BU8: =IF($C8=BU$4,1,0) -> 0 | BW8: =IF($C8=BW$4,1,0) -> 0 | BY8: =IF($C8=BY$4,1,0) -> 0
C9: 3 | D9: =HLOOKUP($C9,'Dados Gerais'!$D$6:$BI$11,6) -> SUPERVISOR TÉCNICO (CENTRO DE TRANSMISSÃO) | H9: =HLOOKUP($C9,'Dados Gerais'!$D$6:$BI$15,10) -> 1 | K9: =IF($C9=K$4,1,0) -> 0 | M9: =IF($C9=M$4,1,0) -> 0 | O9: =IF($C9=O$4,1,0) -> 1 | Q9: =IF($C9=Q$4,1,0) -> 0 | S9: =IF($C9=S$4,1,0) -> 0 | U9: =IF($C9=U$4,1,0) -> 0 | W9: =IF($C9=W$4,1,0) -> 0 | Y9: =IF($C9=Y$4,1,0) -> 0 | AA9: =IF($C9=AA$4,1,0) -> 0 | AC9: =IF($C9=AC$4,1,0) -> 0 | AE9: =IF($C9=AE$4,1,0) -> 0 | AG9: =IF($C9=AG$4,1,0) -> 0 | AI9: =IF($C9=AI$4,1,0) -> 0 | AK9: =IF($C9=AK$4,1,0) -> 0 | AM9: =IF($C9=AM$4,1,0) -> 0 | AO9: =IF($C9=AO$4,1,0) -> 0 | AQ9: =IF($C9=AQ$4,1,0) -> 0 | AS9: =IF($C9=AS$4,1,0) -> 0 | AU9: =IF($C9=AU$4,1,0) -> 0 | AW9: =IF($C9=AW$4,1,0) -> 0 | AY9: =IF($C9=AY$4,1,0) -> 0 | BA9: =IF($C9=BA$4,1,0) -> 0 | BC9: =IF($C9=BC$4,1,0) -> 0 | BE9: =IF($C9=BE$4,1,0) -> 0 | BG9: =IF($C9=BG$4,1,0) -> 0 | BI9: =IF($C9=BI$4,1,0) -> 0 | BK9: =IF($C9=BK$4,1,0) -> 0 | BM9: =IF($C9=BM$4,1,0) -> 0 | BO9: =IF($C9=BO$4,1,0) -> 0 | BQ9: =IF($C9=BQ$4,1,0) -> 0 | BS9: =IF($C9=BS$4,1,0) -> 0 | BU9: =IF($C9=BU$4,1,0) -> 0 | BW9: =IF($C9=BW$4,1,0) -> 0 | BY9: =IF($C9=BY$4,1,0) -> 0
K10: =IF($C10=K$4,1,0) -> 0 | M10: =IF($C10=M$4,1,0) -> 0 | O10: =IF($C10=O$4,1,0) -> 0 | Q10: =IF($C10=Q$4,1,0) -> 0 | S10: =IF($C10=S$4,1,0) -> 0 | U10: =IF($C10=U$4,1,0) -> 0 | W10: =IF($C10=W$4,1,0) -> 0 | Y10: =IF($C10=Y$4,1,0) -> 0 | AA10: =IF($C10=AA$4,1,0) -> 0 | AC10: =IF($C10=AC$4,1,0) -> 0 | AE10: =IF($C10=AE$4,1,0) -> 0 | AG10: =IF($C10=AG$4,1,0) -> 0 | AI10: =IF($C10=AI$4,1,0) -> 0 | AK10: =IF($C10=AK$4,1,0) -> 0 | AM10: =IF($C10=AM$4,1,0) -> 0 | AO10: =IF($C10=AO$4,1,0) -> 0 | AQ10: =IF($C10=AQ$4,1,0) -> 0 | AS10: =IF($C10=AS$4,1,0) -> 0 | AU10: =IF($C10=AU$4,1,0) -> 0 | AW10: =IF($C10=AW$4,1,0) -> 0 | AY10: =IF($C10=AY$4,1,0) -> 0 | BA10: =IF($C10=BA$4,1,0) -> 0 | BC10: =IF($C10=BC$4,1,0) -> 0 | BE10: =IF($C10=BE$4,1,0) -> 0 | BG10: =IF($C10=BG$4,1,0) -> 0 | BI10: =IF($C10=BI$4,1,0) -> 0 | BK10: =IF($C10=BK$4,1,0) -> 0 | BM10: =IF($C10=BM$4,1,0) -> 0 | BO10: =IF($C10=BO$4,1,0) -> 0 | BQ10: =IF($C10=BQ$4,1,0) -> 0 | BS10: =IF($C10=BS$4,1,0) -> 0 | BU10: =IF($C10=BU$4,1,0) -> 0 | BW10: =IF($C10=BW$4,1,0) -> 0 | BY10: =IF($C10=BY$4,1,0) -> 0
C12: ITEM | D12: DESCRIÇÃO | E12: QUANT ANUAL POR POSTO | F12: UNIDADE | G12: QUANT DE POSTOS | H12: VALOR
L13: =IF(SUM(K$8:K$10)>0,$E13*$H13,0) -> 0 | N13: =IF(SUM(M$8:M$10)>0,$E13*$H13,0) -> 0 | P13: =IF(SUM(O$8:O$10)>0,$E13*$H13,0) -> 0 | R13: =IF(SUM(Q$8:Q$10)>0,$E13*$H13,0) -> 0 | T13: =IF(SUM(S$8:S$10)>0,$E13*$H13,0) -> 0 | V13: =IF(SUM(U$8:U$10)>0,$E13*$H13,0) -> 0 | X13: =IF(SUM(W$8:W$10)>0,$E13*$H13,0) -> 0 | Z13: =IF(SUM(Y$8:Y$10)>0,$E13*$H13,0) -> 0 | AB13: =IF(SUM(AA$8:AA$10)>0,$E13*$H13,0) -> 0 | AD13: =IF(SUM(AC$8:AC$10)>0,$E13*$H13,0) -> 0 | AF13: =IF(SUM(AE$8:AE$10)>0,$E13*$H13,0) -> 0 | AH13: =IF(SUM(AG$8:AG$10)>0,$E13*$H13,0) -> 0 | AJ13: =IF(SUM(AI$8:AI$10)>0,$E13*$H13,0) -> 0 | AL13: =IF(SUM(AK$8:AK$10)>0,$E13*$H13,0) -> 0 | AN13: =IF(SUM(AM$8:AM$10)>0,$E13*$H13,0) -> 0 | AP13: =IF(SUM(AO$8:AO$10)>0,$E13*$H13,0) -> 0 | AR13: =IF(SUM(AQ$8:AQ$10)>0,$E13*$H13,0) -> 0 | AT13: =IF(SUM(AS$8:AS$10)>0,$E13*$H13,0) -> 0 | AV13: =IF(SUM(AU$8:AU$10)>0,$E13*$H13,0) -> 0 | AX13: =IF(SUM(AW$8:AW$10)>0,$E13*$H13,0) -> 0 | AZ13: =IF(SUM(AY$8:AY$10)>0,$E13*$H13,0) -> 0 | BB13: =IF(SUM(BA$8:BA$10)>0,$E13*$H13,0) -> 0 | BD13: =IF(SUM(BC$8:BC$10)>0,$E13*$H13,0) -> 0 | BF13: =IF(SUM(BE$8:BE$10)>0,$E13*$H13,0) -> 0 | BH13: =IF(SUM(BG$8:BG$10)>0,$E13*$H13,0) -> 0 | BJ13: =IF(SUM(BI$8:BI$10)>0,$E13*$H13,0) -> 0 | BL13: =IF(SUM(BK$8:BK$10)>0,$E13*$H13,0) -> 0 | BN13: =IF(SUM(BM$8:BM$10)>0,$E13*$H13,0) -> 0 | BP13: =IF(SUM(BO$8:BO$10)>0,$E13*$H13,0) -> 0 | BR13: =IF(SUM(BQ$8:BQ$10)>0,$E13*$H13,0) -> 0 | BT13: =IF(SUM(BS$8:BS$10)>0,$E13*$H13,0) -> 0 | BV13: =IF(SUM(BU$8:BU$10)>0,$E13*$H13,0) -> 0 | BX13: =IF(SUM(BW$8:BW$10)>0,$E13*$H13,0) -> 0 | BZ13: =IF(SUM(BY$8:BY$10)>0,$E13*$H13,0) -> 0
C14: 1 | D14: Respirador purificador de ar tipo, peça semifacial filtrante para partículas (PFF2), com formato dobrável, solda ultra-Respirador purificador de ar tipo, peça semifacial filtrante para partículas (PFF2), com formato dobrável, solda ultra-sônica em todo o seu perímetro. Fita elástica branca fixada nas laterais externas do respirador, perfazendo uma alça na para fixação na parte superior da cabeça e a outra na parte inferior, para fixação na altura da nuca do usuário. A parte superior externa da peça possui tira de material metálico moldável, utilizada para ajuste no septo nasal. Dispositivo de material plástico na face lateral do respirador dotado internamente de válvula de exalação. DEVERÁ APRESENTAR O SELO DE APROVAÇÃO DO INMETRO. Ref.: 3M | E14: 4 | F14: und | G14: =H9 -> 1 | H14: 1.97 | L14: =ROUND(IF(SUM(K$8:K$10)>0,$E14*$G14*$H14/$H$9,0),2) -> 0 | N14: =ROUND(IF(SUM(M$8:M$10)>0,$E14*$G14*$H14/$H$9,0),2) -> 0 | P14: =ROUND(IF(SUM(O$8:O$10)>0,$E14*$G14*$H14/$H$9,0),2) -> 7.88 | R14: =ROUND(IF(SUM(Q$8:Q$10)>0,$E14*$G14*$H14/$H$9,0),2) -> 0 | T14: =ROUND(IF(SUM(S$8:S$10)>0,$E14*$G14*$H14/$H$9,0),2) -> 0 | V14: =ROUND(IF(SUM(U$8:U$10)>0,$E14*$G14*$H14/$H$9,0),2) -> 0 | X14: =ROUND(IF(SUM(W$8:W$10)>0,$E14*$G14*$H14/$H$9,0),2) -> 0 | Z14: =ROUND(IF(SUM(Y$8:Y$10)>0,$E14*$G14*$H14/$H$9,0),2) -> 0 | AB14: =ROUND(IF(SUM(AA$8:AA$10)>0,$E14*$G14*$H14/$H$9,0),2) -> 0 | AD14: =ROUND(IF(SUM(AC$8:AC$10)>0,$E14*$G14*$H14/$H$9,0),2) -> 0 | AF14: =ROUND(IF(SUM(AE$8:AE$10)>0,$E14*$G14*$H14/$H$9,0),2) -> 0 | AH14: =ROUND(IF(SUM(AG$8:AG$10)>0,$E14*$G14*$H14/$H$9,0),2) -> 0 | AJ14: =ROUND(IF(SUM(AI$8:AI$10)>0,$E14*$G14*$H14/$H$9,0),2) -> 0 | AL14: =ROUND(IF(SUM(AK$8:AK$10)>0,$E14*$G14*$H14/$H$9,0),2) -> 0 | AN14: =ROUND(IF(SUM(AM$8:AM$10)>0,$E14*$G14*$H14/$H$9,0),2) -> 0 | AP14: =ROUND(IF(SUM(AO$8:AO$10)>0,$E14*$G14*$H14/$H$9,0),2) -> 0 | AR14: =ROUND(IF(SUM(AQ$8:AQ$10)>0,$E14*$G14*$H14/$H$9,0),2) -> 0 | AT14: =ROUND(IF(SUM(AS$8:AS$10)>0,$E14*$G14*$H14/$H$9,0),2) -> 0 | AV14: =ROUND(IF(SUM(AU$8:AU$10)>0,$E14*$G14*$H14/$H$9,0),2) -> 0 | AX14: =ROUND(IF(SUM(AW$8:AW$10)>0,$E14*$G14*$H14/$H$9,0),2) -> 0 | AZ14: =ROUND(IF(SUM(AY$8:AY$10)>0,$E14*$G14*$H14/$H$9,0),2) -> 0 | BB14: =ROUND(IF(SUM(BA$8:BA$10)>0,$E14*$G14*$H14/$H$9,0),2) -> 0 | BD14: =ROUND(IF(SUM(BC$8:BC$10)>0,$E14*$G14*$H14/$H$9,0),2) -> 0 | BF14: =ROUND(IF(SUM(BE$8:BE$10)>0,$E14*$G14*$H14/$H$9,0),2) -> 0 | BH14: =ROUND(IF(SUM(BG$8:BG$10)>0,$E14*$G14*$H14/$H$9,0),2) -> 0 | BJ14: =ROUND(IF(SUM(BI$8:BI$10)>0,$E14*$G14*$H14/$H$9,0),2) -> 0 | BL14: =ROUND(IF(SUM(BK$8:BK$10)>0,$E14*$G14*$H14/$H$9,0),2) -> 0 | BN14: =ROUND(IF(SUM(BM$8:BM$10)>0,$E14*$G14*$H14/$H$9,0),2) -> 0 | BP14: =ROUND(IF(SUM(BO$8:BO$10)>0,$E14*$G14*$H14/$H$9,0),2) -> 0 | BR14: =ROUND(IF(SUM(BQ$8:BQ$10)>0,$E14*$G14*$H14/$H$9,0),2) -> 0 | BT14: =ROUND(IF(SUM(BS$8:BS$10)>0,$E14*$G14*$H14/$H$9,0),2) -> 0 | BV14: =ROUND(IF(SUM(BU$8:BU$10)>0,$E14*$G14*$H14/$H$9,0),2) -> 0 | BX14: =ROUND(IF(SUM(BW$8:BW$10)>0,$E14*$G14*$H14/$H$9,0),2) -> 0 | BZ14: =ROUND(IF(SUM(BY$8:BY$10)>0,$E14*$G14*$H14/$H$9,0),2) -> 0
C15: 2 | D15: Protetor auditivo, do tipo inserção pré-moldado, de silicone, lavável, com cordão e tamanho único, com proteção mínima de 18 dB(A) de atenuação pelo método NRRsf. Ref: 3M | E15: 2 | F15: und | G15: =G14 -> 1 | H15: 2.35 | L15: =ROUND(IF(SUM(K$8:K$10)>0,$E15*$G15*$H15/$H$9,0),2) -> 0 | N15: =ROUND(IF(SUM(M$8:M$10)>0,$E15*$G15*$H15/$H$9,0),2) -> 0 | P15: =ROUND(IF(SUM(O$8:O$10)>0,$E15*$G15*$H15/$H$9,0),2) -> 4.7 | R15: =ROUND(IF(SUM(Q$8:Q$10)>0,$E15*$G15*$H15/$H$9,0),2) -> 0 | T15: =ROUND(IF(SUM(S$8:S$10)>0,$E15*$G15*$H15/$H$9,0),2) -> 0 | V15: =ROUND(IF(SUM(U$8:U$10)>0,$E15*$G15*$H15/$H$9,0),2) -> 0 | X15: =ROUND(IF(SUM(W$8:W$10)>0,$E15*$G15*$H15/$H$9,0),2) -> 0 | Z15: =ROUND(IF(SUM(Y$8:Y$10)>0,$E15*$G15*$H15/$H$9,0),2) -> 0 | AB15: =ROUND(IF(SUM(AA$8:AA$10)>0,$E15*$G15*$H15/$H$9,0),2) -> 0 | AD15: =ROUND(IF(SUM(AC$8:AC$10)>0,$E15*$G15*$H15/$H$9,0),2) -> 0 | AF15: =ROUND(IF(SUM(AE$8:AE$10)>0,$E15*$G15*$H15/$H$9,0),2) -> 0 | AH15: =ROUND(IF(SUM(AG$8:AG$10)>0,$E15*$G15*$H15/$H$9,0),2) -> 0 | AJ15: =ROUND(IF(SUM(AI$8:AI$10)>0,$E15*$G15*$H15/$H$9,0),2) -> 0 | AL15: =ROUND(IF(SUM(AK$8:AK$10)>0,$E15*$G15*$H15/$H$9,0),2) -> 0 | AN15: =ROUND(IF(SUM(AM$8:AM$10)>0,$E15*$G15*$H15/$H$9,0),2) -> 0 | AP15: =ROUND(IF(SUM(AO$8:AO$10)>0,$E15*$G15*$H15/$H$9,0),2) -> 0 | AR15: =ROUND(IF(SUM(AQ$8:AQ$10)>0,$E15*$G15*$H15/$H$9,0),2) -> 0 | AT15: =ROUND(IF(SUM(AS$8:AS$10)>0,$E15*$G15*$H15/$H$9,0),2) -> 0 | AV15: =ROUND(IF(SUM(AU$8:AU$10)>0,$E15*$G15*$H15/$H$9,0),2) -> 0 | AX15: =ROUND(IF(SUM(AW$8:AW$10)>0,$E15*$G15*$H15/$H$9,0),2) -> 0 | AZ15: =ROUND(IF(SUM(AY$8:AY$10)>0,$E15*$G15*$H15/$H$9,0),2) -> 0 | BB15: =ROUND(IF(SUM(BA$8:BA$10)>0,$E15*$G15*$H15/$H$9,0),2) -> 0 | BD15: =ROUND(IF(SUM(BC$8:BC$10)>0,$E15*$G15*$H15/$H$9,0),2) -> 0 | BF15: =ROUND(IF(SUM(BE$8:BE$10)>0,$E15*$G15*$H15/$H$9,0),2) -> 0 | BH15: =ROUND(IF(SUM(BG$8:BG$10)>0,$E15*$G15*$H15/$H$9,0),2) -> 0 | BJ15: =ROUND(IF(SUM(BI$8:BI$10)>0,$E15*$G15*$H15/$H$9,0),2) -> 0 | BL15: =ROUND(IF(SUM(BK$8:BK$10)>0,$E15*$G15*$H15/$H$9,0),2) -> 0 | BN15: =ROUND(IF(SUM(BM$8:BM$10)>0,$E15*$G15*$H15/$H$9,0),2) -> 0 | BP15: =ROUND(IF(SUM(BO$8:BO$10)>0,$E15*$G15*$H15/$H$9,0),2) -> 0 | BR15: =ROUND(IF(SUM(BQ$8:BQ$10)>0,$E15*$G15*$H15/$H$9,0),2) -> 0 | BT15: =ROUND(IF(SUM(BS$8:BS$10)>0,$E15*$G15*$H15/$H$9,0),2) -> 0 | BV15: =ROUND(IF(SUM(BU$8:BU$10)>0,$E15*$G15*$H15/$H$9,0),2) -> 0 | BX15: =ROUND(IF(SUM(BW$8:BW$10)>0,$E15*$G15*$H15/$H$9,0),2) -> 0 | BZ15: =ROUND(IF(SUM(BY$8:BY$10)>0,$E15*$G15*$H15/$H$9,0),2) -> 0
C16: 3 | D16: Botina de segurança confeccionada em couro nobuck e material têxtil; proteção contra risco elétrico; fechamento em cadarço; colarinho acolchoado; forração em tecido transpirável; palmilha de montagem em não tecido costurada/fixada junto ao cabedal; biqueira em composite; solado em PU bidensidade bicolor com sistema de absorção de impacto, injetado diretamente no cabedal; resistência ao escorregamento SRC. Cor preta ou marrom escura (café). Ref.: Bracol, modelo Dubai. | E16: 2 | F16: und | G16: =G15 -> 1 | H16: 141.78 | L16: =ROUND(IF(SUM(K$8:K$10)>0,$E16*$G16*$H16/$H$9,0),2) -> 0 | N16: =ROUND(IF(SUM(M$8:M$10)>0,$E16*$G16*$H16/$H$9,0),2) -> 0 | P16: =ROUND(IF(SUM(O$8:O$10)>0,$E16*$G16*$H16/$H$9,0),2) -> 283.56 | R16: =ROUND(IF(SUM(Q$8:Q$10)>0,$E16*$G16*$H16/$H$9,0),2) -> 0 | T16: =ROUND(IF(SUM(S$8:S$10)>0,$E16*$G16*$H16/$H$9,0),2) -> 0 | V16: =ROUND(IF(SUM(U$8:U$10)>0,$E16*$G16*$H16/$H$9,0),2) -> 0 | X16: =ROUND(IF(SUM(W$8:W$10)>0,$E16*$G16*$H16/$H$9,0),2) -> 0 | Z16: =ROUND(IF(SUM(Y$8:Y$10)>0,$E16*$G16*$H16/$H$9,0),2) -> 0 | AB16: =ROUND(IF(SUM(AA$8:AA$10)>0,$E16*$G16*$H16/$H$9,0),2) -> 0 | AD16: =ROUND(IF(SUM(AC$8:AC$10)>0,$E16*$G16*$H16/$H$9,0),2) -> 0 | AF16: =ROUND(IF(SUM(AE$8:AE$10)>0,$E16*$G16*$H16/$H$9,0),2) -> 0 | AH16: =ROUND(IF(SUM(AG$8:AG$10)>0,$E16*$G16*$H16/$H$9,0),2) -> 0 | AJ16: =ROUND(IF(SUM(AI$8:AI$10)>0,$E16*$G16*$H16/$H$9,0),2) -> 0 | AL16: =ROUND(IF(SUM(AK$8:AK$10)>0,$E16*$G16*$H16/$H$9,0),2) -> 0 | AN16: =ROUND(IF(SUM(AM$8:AM$10)>0,$E16*$G16*$H16/$H$9,0),2) -> 0 | AP16: =ROUND(IF(SUM(AO$8:AO$10)>0,$E16*$G16*$H16/$H$9,0),2) -> 0 | AR16: =ROUND(IF(SUM(AQ$8:AQ$10)>0,$E16*$G16*$H16/$H$9,0),2) -> 0 | AT16: =ROUND(IF(SUM(AS$8:AS$10)>0,$E16*$G16*$H16/$H$9,0),2) -> 0 | AV16: =ROUND(IF(SUM(AU$8:AU$10)>0,$E16*$G16*$H16/$H$9,0),2) -> 0 | AX16: =ROUND(IF(SUM(AW$8:AW$10)>0,$E16*$G16*$H16/$H$9,0),2) -> 0 | AZ16: =ROUND(IF(SUM(AY$8:AY$10)>0,$E16*$G16*$H16/$H$9,0),2) -> 0 | BB16: =ROUND(IF(SUM(BA$8:BA$10)>0,$E16*$G16*$H16/$H$9,0),2) -> 0 | BD16: =ROUND(IF(SUM(BC$8:BC$10)>0,$E16*$G16*$H16/$H$9,0),2) -> 0 | BF16: =ROUND(IF(SUM(BE$8:BE$10)>0,$E16*$G16*$H16/$H$9,0),2) -> 0 | BH16: =ROUND(IF(SUM(BG$8:BG$10)>0,$E16*$G16*$H16/$H$9,0),2) -> 0 | BJ16: =ROUND(IF(SUM(BI$8:BI$10)>0,$E16*$G16*$H16/$H$9,0),2) -> 0 | BL16: =ROUND(IF(SUM(BK$8:BK$10)>0,$E16*$G16*$H16/$H$9,0),2) -> 0 | BN16: =ROUND(IF(SUM(BM$8:BM$10)>0,$E16*$G16*$H16/$H$9,0),2) -> 0 | BP16: =ROUND(IF(SUM(BO$8:BO$10)>0,$E16*$G16*$H16/$H$9,0),2) -> 0 | BR16: =ROUND(IF(SUM(BQ$8:BQ$10)>0,$E16*$G16*$H16/$H$9,0),2) -> 0 | BT16: =ROUND(IF(SUM(BS$8:BS$10)>0,$E16*$G16*$H16/$H$9,0),2) -> 0 | BV16: =ROUND(IF(SUM(BU$8:BU$10)>0,$E16*$G16*$H16/$H$9,0),2) -> 0 | BX16: =ROUND(IF(SUM(BW$8:BW$10)>0,$E16*$G16*$H16/$H$9,0),2) -> 0 | BZ16: =ROUND(IF(SUM(BY$8:BY$10)>0,$E16*$G16*$H16/$H$9,0),2) -> 0
C17: 4 | D17: Luvas em poliuretano, cor preta, acabamento liso, com forro em poliamida, sem costura, punho tricotado c/ elástico. tamanho P, M e G. Ref. Promat modelo multitato 750 PT | E17: 2 | F17: und | G17: =G16 -> 1 | H17: 3.63 | L17: =ROUND(IF(SUM(K$8:K$10)>0,$E17*$G17*$H17/$H$9,0),2) -> 0 | N17: =ROUND(IF(SUM(M$8:M$10)>0,$E17*$G17*$H17/$H$9,0),2) -> 0 | P17: =ROUND(IF(SUM(O$8:O$10)>0,$E17*$G17*$H17/$H$9,0),2) -> 7.26 | R17: =ROUND(IF(SUM(Q$8:Q$10)>0,$E17*$G17*$H17/$H$9,0),2) -> 0 | T17: =ROUND(IF(SUM(S$8:S$10)>0,$E17*$G17*$H17/$H$9,0),2) -> 0 | V17: =ROUND(IF(SUM(U$8:U$10)>0,$E17*$G17*$H17/$H$9,0),2) -> 0 | X17: =ROUND(IF(SUM(W$8:W$10)>0,$E17*$G17*$H17/$H$9,0),2) -> 0 | Z17: =ROUND(IF(SUM(Y$8:Y$10)>0,$E17*$G17*$H17/$H$9,0),2) -> 0 | AB17: =ROUND(IF(SUM(AA$8:AA$10)>0,$E17*$G17*$H17/$H$9,0),2) -> 0 | AD17: =ROUND(IF(SUM(AC$8:AC$10)>0,$E17*$G17*$H17/$H$9,0),2) -> 0 | AF17: =ROUND(IF(SUM(AE$8:AE$10)>0,$E17*$G17*$H17/$H$9,0),2) -> 0 | AH17: =ROUND(IF(SUM(AG$8:AG$10)>0,$E17*$G17*$H17/$H$9,0),2) -> 0 | AJ17: =ROUND(IF(SUM(AI$8:AI$10)>0,$E17*$G17*$H17/$H$9,0),2) -> 0 | AL17: =ROUND(IF(SUM(AK$8:AK$10)>0,$E17*$G17*$H17/$H$9,0),2) -> 0 | AN17: =ROUND(IF(SUM(AM$8:AM$10)>0,$E17*$G17*$H17/$H$9,0),2) -> 0 | AP17: =ROUND(IF(SUM(AO$8:AO$10)>0,$E17*$G17*$H17/$H$9,0),2) -> 0 | AR17: =ROUND(IF(SUM(AQ$8:AQ$10)>0,$E17*$G17*$H17/$H$9,0),2) -> 0 | AT17: =ROUND(IF(SUM(AS$8:AS$10)>0,$E17*$G17*$H17/$H$9,0),2) -> 0 | AV17: =ROUND(IF(SUM(AU$8:AU$10)>0,$E17*$G17*$H17/$H$9,0),2) -> 0 | AX17: =ROUND(IF(SUM(AW$8:AW$10)>0,$E17*$G17*$H17/$H$9,0),2) -> 0 | AZ17: =ROUND(IF(SUM(AY$8:AY$10)>0,$E17*$G17*$H17/$H$9,0),2) -> 0 | BB17: =ROUND(IF(SUM(BA$8:BA$10)>0,$E17*$G17*$H17/$H$9,0),2) -> 0 | BD17: =ROUND(IF(SUM(BC$8:BC$10)>0,$E17*$G17*$H17/$H$9,0),2) -> 0 | BF17: =ROUND(IF(SUM(BE$8:BE$10)>0,$E17*$G17*$H17/$H$9,0),2) -> 0 | BH17: =ROUND(IF(SUM(BG$8:BG$10)>0,$E17*$G17*$H17/$H$9,0),2) -> 0 | BJ17: =ROUND(IF(SUM(BI$8:BI$10)>0,$E17*$G17*$H17/$H$9,0),2) -> 0 | BL17: =ROUND(IF(SUM(BK$8:BK$10)>0,$E17*$G17*$H17/$H$9,0),2) -> 0 | BN17: =ROUND(IF(SUM(BM$8:BM$10)>0,$E17*$G17*$H17/$H$9,0),2) -> 0 | BP17: =ROUND(IF(SUM(BO$8:BO$10)>0,$E17*$G17*$H17/$H$9,0),2) -> 0 | BR17: =ROUND(IF(SUM(BQ$8:BQ$10)>0,$E17*$G17*$H17/$H$9,0),2) -> 0 | BT17: =ROUND(IF(SUM(BS$8:BS$10)>0,$E17*$G17*$H17/$H$9,0),2) -> 0 | BV17: =ROUND(IF(SUM(BU$8:BU$10)>0,$E17*$G17*$H17/$H$9,0),2) -> 0 | BX17: =ROUND(IF(SUM(BW$8:BW$10)>0,$E17*$G17*$H17/$H$9,0),2) -> 0 | BZ17: =ROUND(IF(SUM(BY$8:BY$10)>0,$E17*$G17*$H17/$H$9,0),2) -> 0
C19: CATEGORIAS | H19: QUANTIDADE
K20: =IF($C20=K$4,1,0) -> 0 | M20: =IF($C20=M$4,1,0) -> 0 | O20: =IF($C20=O$4,1,0) -> 0 | Q20: =IF($C20=Q$4,1,0) -> 0 | S20: =IF($C20=S$4,1,0) -> 0 | U20: =IF($C20=U$4,1,0) -> 0 | W20: =IF($C20=W$4,1,0) -> 0 | Y20: =IF($C20=Y$4,1,0) -> 0 | AA20: =IF($C20=AA$4,1,0) -> 0 | AC20: =IF($C20=AC$4,1,0) -> 0 | AE20: =IF($C20=AE$4,1,0) -> 0 | AG20: =IF($C20=AG$4,1,0) -> 0 | AI20: =IF($C20=AI$4,1,0) -> 0 | AK20: =IF($C20=AK$4,1,0) -> 0 | AM20: =IF($C20=AM$4,1,0) -> 0 | AO20: =IF($C20=AO$4,1,0) -> 0 | AQ20: =IF($C20=AQ$4,1,0) -> 0 | AS20: =IF($C20=AS$4,1,0) -> 0 | AU20: =IF($C20=AU$4,1,0) -> 0 | AW20: =IF($C20=AW$4,1,0) -> 0 | AY20: =IF($C20=AY$4,1,0) -> 0 | BA20: =IF($C20=BA$4,1,0) -> 0 | BC20: =IF($C20=BC$4,1,0) -> 0 | BE20: =IF($C20=BE$4,1,0) -> 0 | BG20: =IF($C20=BG$4,1,0) -> 0 | BI20: =IF($C20=BI$4,1,0) -> 0 | BK20: =IF($C20=BK$4,1,0) -> 0 | BM20: =IF($C20=BM$4,1,0) -> 0 | BO20: =IF($C20=BO$4,1,0) -> 0 | BQ20: =IF($C20=BQ$4,1,0) -> 0 | BS20: =IF($C20=BS$4,1,0) -> 0 | BU20: =IF($C20=BU$4,1,0) -> 0 | BW20: =IF($C20=BW$4,1,0) -> 0 | BY20: =IF($C20=BY$4,1,0) -> 0
C21: 10 | D21: =HLOOKUP($C21,'Dados Gerais'!$D$6:$BI$11,6) -> OPERADOR DE TRANSMISSOR – Rádio e TV - 24H | H21: =HLOOKUP($C21,'Dados Gerais'!$D$6:$BI$15,10) -> 5 | K21: =IF($C21=K$4,1,0) -> 0 | M21: =IF($C21=M$4,1,0) -> 0 | O21: =IF($C21=O$4,1,0) -> 0 | Q21: =IF($C21=Q$4,1,0) -> 0 | S21: =IF($C21=S$4,1,0) -> 0 | U21: =IF($C21=U$4,1,0) -> 0 | W21: =IF($C21=W$4,1,0) -> 0 | Y21: =IF($C21=Y$4,1,0) -> 0 | AA21: =IF($C21=AA$4,1,0) -> 0 | AC21: =IF($C21=AC$4,1,0) -> 1 | AE21: =IF($C21=AE$4,1,0) -> 0 | AG21: =IF($C21=AG$4,1,0) -> 0 | AI21: =IF($C21=AI$4,1,0) -> 0 | AK21: =IF($C21=AK$4,1,0) -> 0 | AM21: =IF($C21=AM$4,1,0) -> 0 | AO21: =IF($C21=AO$4,1,0) -> 0 | AQ21: =IF($C21=AQ$4,1,0) -> 0 | AS21: =IF($C21=AS$4,1,0) -> 0 | AU21: =IF($C21=AU$4,1,0) -> 0 | AW21: =IF($C21=AW$4,1,0) -> 0 | AY21: =IF($C21=AY$4,1,0) -> 0 | BA21: =IF($C21=BA$4,1,0) -> 0 | BC21: =IF($C21=BC$4,1,0) -> 0 | BE21: =IF($C21=BE$4,1,0) -> 0 | BG21: =IF($C21=BG$4,1,0) -> 0 | BI21: =IF($C21=BI$4,1,0) -> 0 | BK21: =IF($C21=BK$4,1,0) -> 0 | BM21: =IF($C21=BM$4,1,0) -> 0 | BO21: =IF($C21=BO$4,1,0) -> 0 | BQ21: =IF($C21=BQ$4,1,0) -> 0 | BS21: =IF($C21=BS$4,1,0) -> 0 | BU21: =IF($C21=BU$4,1,0) -> 0 | BW21: =IF($C21=BW$4,1,0) -> 0 | BY21: =IF($C21=BY$4,1,0) -> 0
K22: =IF($C22=K$4,1,0) -> 0 | M22: =IF($C22=M$4,1,0) -> 0 | O22: =IF($C22=O$4,1,0) -> 0 | Q22: =IF($C22=Q$4,1,0) -> 0 | S22: =IF($C22=S$4,1,0) -> 0 | U22: =IF($C22=U$4,1,0) -> 0 | W22: =IF($C22=W$4,1,0) -> 0 | Y22: =IF($C22=Y$4,1,0) -> 0 | AA22: =IF($C22=AA$4,1,0) -> 0 | AC22: =IF($C22=AC$4,1,0) -> 0 | AE22: =IF($C22=AE$4,1,0) -> 0 | AG22: =IF($C22=AG$4,1,0) -> 0 | AI22: =IF($C22=AI$4,1,0) -> 0 | AK22: =IF($C22=AK$4,1,0) -> 0 | AM22: =IF($C22=AM$4,1,0) -> 0 | AO22: =IF($C22=AO$4,1,0) -> 0 | AQ22: =IF($C22=AQ$4,1,0) -> 0 | AS22: =IF($C22=AS$4,1,0) -> 0 | AU22: =IF($C22=AU$4,1,0) -> 0 | AW22: =IF($C22=AW$4,1,0) -> 0 | AY22: =IF($C22=AY$4,1,0) -> 0 | BA22: =IF($C22=BA$4,1,0) -> 0 | BC22: =IF($C22=BC$4,1,0) -> 0 | BE22: =IF($C22=BE$4,1,0) -> 0 | BG22: =IF($C22=BG$4,1,0) -> 0 | BI22: =IF($C22=BI$4,1,0) -> 0 | BK22: =IF($C22=BK$4,1,0) -> 0 | BM22: =IF($C22=BM$4,1,0) -> 0 | BO22: =IF($C22=BO$4,1,0) -> 0 | BQ22: =IF($C22=BQ$4,1,0) -> 0 | BS22: =IF($C22=BS$4,1,0) -> 0 | BU22: =IF($C22=BU$4,1,0) -> 0 | BW22: =IF($C22=BW$4,1,0) -> 0 | BY22: =IF($C22=BY$4,1,0) -> 0
C24: ITEM | D24: DESCRIÇÃO | E24: QUANT ANUAL POR POSTO | F24: UNIDADE | G24: QUANT DE POSTOS | H24: VALOR
L25: =IF(SUM(K$8:K$10)>0,$E25*$H25,0) -> 0 | N25: =IF(SUM(M$8:M$10)>0,$E25*$H25,0) -> 0 | P25: =IF(SUM(O$8:O$10)>0,$E25*$H25,0) -> 0 | R25: =IF(SUM(Q$8:Q$10)>0,$E25*$H25,0) -> 0 | T25: =IF(SUM(S$8:S$10)>0,$E25*$H25,0) -> 0 | V25: =IF(SUM(U$8:U$10)>0,$E25*$H25,0) -> 0 | X25: =IF(SUM(W$8:W$10)>0,$E25*$H25,0) -> 0 | Z25: =IF(SUM(Y$8:Y$10)>0,$E25*$H25,0) -> 0 | AB25: =IF(SUM(AA$8:AA$10)>0,$E25*$H25,0) -> 0 | AD25: =IF(SUM(AC$8:AC$10)>0,$E25*$H25,0) -> 0 | AF25: =IF(SUM(AE$8:AE$10)>0,$E25*$H25,0) -> 0 | AH25: =IF(SUM(AG$8:AG$10)>0,$E25*$H25,0) -> 0 | AJ25: =IF(SUM(AI$8:AI$10)>0,$E25*$H25,0) -> 0 | AL25: =IF(SUM(AK$8:AK$10)>0,$E25*$H25,0) -> 0 | AN25: =IF(SUM(AM$8:AM$10)>0,$E25*$H25,0) -> 0 | AP25: =IF(SUM(AO$8:AO$10)>0,$E25*$H25,0) -> 0 | AR25: =IF(SUM(AQ$8:AQ$10)>0,$E25*$H25,0) -> 0 | AT25: =IF(SUM(AS$8:AS$10)>0,$E25*$H25,0) -> 0 | AV25: =IF(SUM(AU$8:AU$10)>0,$E25*$H25,0) -> 0 | AX25: =IF(SUM(AW$8:AW$10)>0,$E25*$H25,0) -> 0 | AZ25: =IF(SUM(AY$8:AY$10)>0,$E25*$H25,0) -> 0 | BB25: =IF(SUM(BA$8:BA$10)>0,$E25*$H25,0) -> 0 | BD25: =IF(SUM(BC$8:BC$10)>0,$E25*$H25,0) -> 0 | BF25: =IF(SUM(BE$8:BE$10)>0,$E25*$H25,0) -> 0 | BH25: =IF(SUM(BG$8:BG$10)>0,$E25*$H25,0) -> 0 | BJ25: =IF(SUM(BI$8:BI$10)>0,$E25*$H25,0) -> 0 | BL25: =IF(SUM(BK$8:BK$10)>0,$E25*$H25,0) -> 0 | BN25: =IF(SUM(BM$8:BM$10)>0,$E25*$H25,0) -> 0 | BP25: =IF(SUM(BO$8:BO$10)>0,$E25*$H25,0) -> 0 | BR25: =IF(SUM(BQ$8:BQ$10)>0,$E25*$H25,0) -> 0 | BT25: =IF(SUM(BS$8:BS$10)>0,$E25*$H25,0) -> 0 | BV25: =IF(SUM(BU$8:BU$10)>0,$E25*$H25,0) -> 0 | BX25: =IF(SUM(BW$8:BW$10)>0,$E25*$H25,0) -> 0 | BZ25: =IF(SUM(BY$8:BY$10)>0,$E25*$H25,0) -> 0
C26: 1 | D26: Respirador purificador de ar tipo, peça semifacial filtrante para partículas (PFF2), com formato dobrável, solda ultra-Respirador purificador de ar tipo, peça semifacial filtrante para partículas (PFF2), com formato dobrável, solda ultra-sônica em todo o seu perímetro. Fita elástica branca fixada nas laterais externas do respirador, perfazendo uma alça na para fixação na parte superior da cabeça e a outra na parte inferior, para fixação na altura da nuca do usuário. A parte superior externa da peça possui tira de material metálico moldável, utilizada para ajuste no septo nasal. Dispositivo de material plástico na face lateral do respirador dotado internamente de válvula de exalação. DEVERÁ APRESENTAR O SELO DE APROVAÇÃO DO INMETRO. Ref.: 3M | E26: 6 | F26: und | G26: =H21 -> 5 | H26: =H14 -> 1.97 | L26: =ROUND(IF(SUM(K$20:K$22)>0,$E26*$G26*$H26/$H$21,0),2) -> 0 | N26: =ROUND(IF(SUM(M$20:M$22)>0,$E26*$G26*$H26/$H$21,0),2) -> 0 | P26: =ROUND(IF(SUM(O$20:O$22)>0,$E26*$G26*$H26/$H$21,0),2) -> 0 | R26: =ROUND(IF(SUM(Q$20:Q$22)>0,$E26*$G26*$H26/$H$21,0),2) -> 0 | T26: =ROUND(IF(SUM(S$20:S$22)>0,$E26*$G26*$H26/$H$21,0),2) -> 0 | V26: =ROUND(IF(SUM(U$20:U$22)>0,$E26*$G26*$H26/$H$21,0),2) -> 0 | X26: =ROUND(IF(SUM(W$20:W$22)>0,$E26*$G26*$H26/$H$21,0),2) -> 0 | Z26: =ROUND(IF(SUM(Y$20:Y$22)>0,$E26*$G26*$H26/$H$21,0),2) -> 0 | AB26: =ROUND(IF(SUM(AA$20:AA$22)>0,$E26*$G26*$H26/$H$21,0),2) -> 0 | AD26: =ROUND(IF(SUM(AC$20:AC$22)>0,$E26*$G26*$H26/$H$21,0),2) -> 11.82 | AF26: =ROUND(IF(SUM(AE$20:AE$22)>0,$E26*$G26*$H26/$H$21,0),2) -> 0 | AH26: =ROUND(IF(SUM(AG$20:AG$22)>0,$E26*$G26*$H26/$H$21,0),2) -> 0 | AJ26: =ROUND(IF(SUM(AI$20:AI$22)>0,$E26*$G26*$H26/$H$21,0),2) -> 0 | AL26: =ROUND(IF(SUM(AK$20:AK$22)>0,$E26*$G26*$H26/$H$21,0),2) -> 0 | AN26: =ROUND(IF(SUM(AM$20:AM$22)>0,$E26*$G26*$H26/$H$21,0),2) -> 0 | AP26: =ROUND(IF(SUM(AO$20:AO$22)>0,$E26*$G26*$H26/$H$21,0),2) -> 0 | AR26: =ROUND(IF(SUM(AQ$20:AQ$22)>0,$E26*$G26*$H26/$H$21,0),2) -> 0 | AT26: =ROUND(IF(SUM(AS$20:AS$22)>0,$E26*$G26*$H26/$H$21,0),2) -> 0 | AV26: =ROUND(IF(SUM(AU$20:AU$22)>0,$E26*$G26*$H26/$H$21,0),2) -> 0 | AX26: =ROUND(IF(SUM(AW$20:AW$22)>0,$E26*$G26*$H26/$H$21,0),2) -> 0 | AZ26: =ROUND(IF(SUM(AY$20:AY$22)>0,$E26*$G26*$H26/$H$21,0),2) -> 0 | BB26: =ROUND(IF(SUM(BA$20:BA$22)>0,$E26*$G26*$H26/$H$21,0),2) -> 0 | BD26: =ROUND(IF(SUM(BC$20:BC$22)>0,$E26*$G26*$H26/$H$21,0),2) -> 0 | BF26: =ROUND(IF(SUM(BE$20:BE$22)>0,$E26*$G26*$H26/$H$21,0),2) -> 0 | BH26: =ROUND(IF(SUM(BG$20:BG$22)>0,$E26*$G26*$H26/$H$21,0),2) -> 0 | BJ26: =ROUND(IF(SUM(BI$20:BI$22)>0,$E26*$G26*$H26/$H$21,0),2) -> 0 | BL26: =ROUND(IF(SUM(BK$20:BK$22)>0,$E26*$G26*$H26/$H$21,0),2) -> 0 | BN26: =ROUND(IF(SUM(BM$20:BM$22)>0,$E26*$G26*$H26/$H$21,0),2) -> 0 | BP26: =ROUND(IF(SUM(BO$20:BO$22)>0,$E26*$G26*$H26/$H$21,0),2) -> 0 | BR26: =ROUND(IF(SUM(BQ$20:BQ$22)>0,$E26*$G26*$H26/$H$21,0),2) -> 0 | BT26: =ROUND(IF(SUM(BS$20:BS$22)>0,$E26*$G26*$H26/$H$21,0),2) -> 0 | BV26: =ROUND(IF(SUM(BU$20:BU$22)>0,$E26*$G26*$H26/$H$21,0),2) -> 0 | BX26: =ROUND(IF(SUM(BW$20:BW$22)>0,$E26*$G26*$H26/$H$21,0),2) -> 0 | BZ26: =ROUND(IF(SUM(BY$20:BY$22)>0,$E26*$G26*$H26/$H$21,0),2) -> 0
C27: 2 | D27: Protetor auditivo, do tipo inserção pré-moldado, de silicone, lavável, com cordão e tamanho único, com proteção mínima de 18 dB(A) de atenuação pelo método NRRsf. Ref: 3M | E27: 4 | F27: und | G27: =G26 -> 5 | H27: =H15 -> 2.35 | L27: =ROUND(IF(SUM(K$20:K$22)>0,$E27*$G27*$H27/$H$21,0),2) -> 0 | N27: =ROUND(IF(SUM(M$20:M$22)>0,$E27*$G27*$H27/$H$21,0),2) -> 0 | P27: =ROUND(IF(SUM(O$20:O$22)>0,$E27*$G27*$H27/$H$21,0),2) -> 0 | R27: =ROUND(IF(SUM(Q$20:Q$22)>0,$E27*$G27*$H27/$H$21,0),2) -> 0 | T27: =ROUND(IF(SUM(S$20:S$22)>0,$E27*$G27*$H27/$H$21,0),2) -> 0 | V27: =ROUND(IF(SUM(U$20:U$22)>0,$E27*$G27*$H27/$H$21,0),2) -> 0 | X27: =ROUND(IF(SUM(W$20:W$22)>0,$E27*$G27*$H27/$H$21,0),2) -> 0 | Z27: =ROUND(IF(SUM(Y$20:Y$22)>0,$E27*$G27*$H27/$H$21,0),2) -> 0 | AB27: =ROUND(IF(SUM(AA$20:AA$22)>0,$E27*$G27*$H27/$H$21,0),2) -> 0 | AD27: =ROUND(IF(SUM(AC$20:AC$22)>0,$E27*$G27*$H27/$H$21,0),2) -> 9.4 | AF27: =ROUND(IF(SUM(AE$20:AE$22)>0,$E27*$G27*$H27/$H$21,0),2) -> 0 | AH27: =ROUND(IF(SUM(AG$20:AG$22)>0,$E27*$G27*$H27/$H$21,0),2) -> 0 | AJ27: =ROUND(IF(SUM(AI$20:AI$22)>0,$E27*$G27*$H27/$H$21,0),2) -> 0 | AL27: =ROUND(IF(SUM(AK$20:AK$22)>0,$E27*$G27*$H27/$H$21,0),2) -> 0 | AN27: =ROUND(IF(SUM(AM$20:AM$22)>0,$E27*$G27*$H27/$H$21,0),2) -> 0 | AP27: =ROUND(IF(SUM(AO$20:AO$22)>0,$E27*$G27*$H27/$H$21,0),2) -> 0 | AR27: =ROUND(IF(SUM(AQ$20:AQ$22)>0,$E27*$G27*$H27/$H$21,0),2) -> 0 | AT27: =ROUND(IF(SUM(AS$20:AS$22)>0,$E27*$G27*$H27/$H$21,0),2) -> 0 | AV27: =ROUND(IF(SUM(AU$20:AU$22)>0,$E27*$G27*$H27/$H$21,0),2) -> 0 | AX27: =ROUND(IF(SUM(AW$20:AW$22)>0,$E27*$G27*$H27/$H$21,0),2) -> 0 | AZ27: =ROUND(IF(SUM(AY$20:AY$22)>0,$E27*$G27*$H27/$H$21,0),2) -> 0 | BB27: =ROUND(IF(SUM(BA$20:BA$22)>0,$E27*$G27*$H27/$H$21,0),2) -> 0 | BD27: =ROUND(IF(SUM(BC$20:BC$22)>0,$E27*$G27*$H27/$H$21,0),2) -> 0 | BF27: =ROUND(IF(SUM(BE$20:BE$22)>0,$E27*$G27*$H27/$H$21,0),2) -> 0 | BH27: =ROUND(IF(SUM(BG$20:BG$22)>0,$E27*$G27*$H27/$H$21,0),2) -> 0 | BJ27: =ROUND(IF(SUM(BI$20:BI$22)>0,$E27*$G27*$H27/$H$21,0),2) -> 0 | BL27: =ROUND(IF(SUM(BK$20:BK$22)>0,$E27*$G27*$H27/$H$21,0),2) -> 0 | BN27: =ROUND(IF(SUM(BM$20:BM$22)>0,$E27*$G27*$H27/$H$21,0),2) -> 0 | BP27: =ROUND(IF(SUM(BO$20:BO$22)>0,$E27*$G27*$H27/$H$21,0),2) -> 0 | BR27: =ROUND(IF(SUM(BQ$20:BQ$22)>0,$E27*$G27*$H27/$H$21,0),2) -> 0 | BT27: =ROUND(IF(SUM(BS$20:BS$22)>0,$E27*$G27*$H27/$H$21,0),2) -> 0 | BV27: =ROUND(IF(SUM(BU$20:BU$22)>0,$E27*$G27*$H27/$H$21,0),2) -> 0 | BX27: =ROUND(IF(SUM(BW$20:BW$22)>0,$E27*$G27*$H27/$H$21,0),2) -> 0 | BZ27: =ROUND(IF(SUM(BY$20:BY$22)>0,$E27*$G27*$H27/$H$21,0),2) -> 0
C28: 3 | D28: Botina de segurança confeccionada em couro nobuck e material têxtil; proteção contra risco elétrico; fechamento em cadarço; colarinho acolchoado; forração em tecido transpirável; palmilha de montagem em não tecido costurada/fixada junto ao cabedal; biqueira em composite; solado em PU bidensidade bicolor com sistema de absorção de impacto, injetado diretamente no cabedal; resistência ao escorregamento SRC. Cor preta ou marrom escura (café). Ref.: Bracol, modelo Dubai. | E28: 2 | F28: und | G28: =G27 -> 5 | H28: =H16 -> 141.78 | L28: =ROUND(IF(SUM(K$20:K$22)>0,$E28*$G28*$H28/$H$21,0),2) -> 0 | N28: =ROUND(IF(SUM(M$20:M$22)>0,$E28*$G28*$H28/$H$21,0),2) -> 0 | P28: =ROUND(IF(SUM(O$20:O$22)>0,$E28*$G28*$H28/$H$21,0),2) -> 0 | R28: =ROUND(IF(SUM(Q$20:Q$22)>0,$E28*$G28*$H28/$H$21,0),2) -> 0 | T28: =ROUND(IF(SUM(S$20:S$22)>0,$E28*$G28*$H28/$H$21,0),2) -> 0 | V28: =ROUND(IF(SUM(U$20:U$22)>0,$E28*$G28*$H28/$H$21,0),2) -> 0 | X28: =ROUND(IF(SUM(W$20:W$22)>0,$E28*$G28*$H28/$H$21,0),2) -> 0 | Z28: =ROUND(IF(SUM(Y$20:Y$22)>0,$E28*$G28*$H28/$H$21,0),2) -> 0 | AB28: =ROUND(IF(SUM(AA$20:AA$22)>0,$E28*$G28*$H28/$H$21,0),2) -> 0 | AD28: =ROUND(IF(SUM(AC$20:AC$22)>0,$E28*$G28*$H28/$H$21,0),2) -> 283.56 | AF28: =ROUND(IF(SUM(AE$20:AE$22)>0,$E28*$G28*$H28/$H$21,0),2) -> 0 | AH28: =ROUND(IF(SUM(AG$20:AG$22)>0,$E28*$G28*$H28/$H$21,0),2) -> 0 | AJ28: =ROUND(IF(SUM(AI$20:AI$22)>0,$E28*$G28*$H28/$H$21,0),2) -> 0 | AL28: =ROUND(IF(SUM(AK$20:AK$22)>0,$E28*$G28*$H28/$H$21,0),2) -> 0 | AN28: =ROUND(IF(SUM(AM$20:AM$22)>0,$E28*$G28*$H28/$H$21,0),2) -> 0 | AP28: =ROUND(IF(SUM(AO$20:AO$22)>0,$E28*$G28*$H28/$H$21,0),2) -> 0 | AR28: =ROUND(IF(SUM(AQ$20:AQ$22)>0,$E28*$G28*$H28/$H$21,0),2) -> 0 | AT28: =ROUND(IF(SUM(AS$20:AS$22)>0,$E28*$G28*$H28/$H$21,0),2) -> 0 | AV28: =ROUND(IF(SUM(AU$20:AU$22)>0,$E28*$G28*$H28/$H$21,0),2) -> 0 | AX28: =ROUND(IF(SUM(AW$20:AW$22)>0,$E28*$G28*$H28/$H$21,0),2) -> 0 | AZ28: =ROUND(IF(SUM(AY$20:AY$22)>0,$E28*$G28*$H28/$H$21,0),2) -> 0 | BB28: =ROUND(IF(SUM(BA$20:BA$22)>0,$E28*$G28*$H28/$H$21,0),2) -> 0 | BD28: =ROUND(IF(SUM(BC$20:BC$22)>0,$E28*$G28*$H28/$H$21,0),2) -> 0 | BF28: =ROUND(IF(SUM(BE$20:BE$22)>0,$E28*$G28*$H28/$H$21,0),2) -> 0 | BH28: =ROUND(IF(SUM(BG$20:BG$22)>0,$E28*$G28*$H28/$H$21,0),2) -> 0 | BJ28: =ROUND(IF(SUM(BI$20:BI$22)>0,$E28*$G28*$H28/$H$21,0),2) -> 0 | BL28: =ROUND(IF(SUM(BK$20:BK$22)>0,$E28*$G28*$H28/$H$21,0),2) -> 0 | BN28: =ROUND(IF(SUM(BM$20:BM$22)>0,$E28*$G28*$H28/$H$21,0),2) -> 0 | BP28: =ROUND(IF(SUM(BO$20:BO$22)>0,$E28*$G28*$H28/$H$21,0),2) -> 0 | BR28: =ROUND(IF(SUM(BQ$20:BQ$22)>0,$E28*$G28*$H28/$H$21,0),2) -> 0 | BT28: =ROUND(IF(SUM(BS$20:BS$22)>0,$E28*$G28*$H28/$H$21,0),2) -> 0 | BV28: =ROUND(IF(SUM(BU$20:BU$22)>0,$E28*$G28*$H28/$H$21,0),2) -> 0 | BX28: =ROUND(IF(SUM(BW$20:BW$22)>0,$E28*$G28*$H28/$H$21,0),2) -> 0 | BZ28: =ROUND(IF(SUM(BY$20:BY$22)>0,$E28*$G28*$H28/$H$21,0),2) -> 0
C29: 4 | D29: Luvas em poliuretano, cor preta, acabamento liso, com forro em poliamida, sem costura, punho tricotado c/ elástico. tamanho P, M e G. Ref. Promat modelo multitato 750 PT | E29: 4 | F29: und | G29: =G28 -> 5 | H29: =H17 -> 3.63 | L29: =ROUND(IF(SUM(K$20:K$22)>0,$E29*$G29*$H29/$H$21,0),2) -> 0 | N29: =ROUND(IF(SUM(M$20:M$22)>0,$E29*$G29*$H29/$H$21,0),2) -> 0 | P29: =ROUND(IF(SUM(O$20:O$22)>0,$E29*$G29*$H29/$H$21,0),2) -> 0 | R29: =ROUND(IF(SUM(Q$20:Q$22)>0,$E29*$G29*$H29/$H$21,0),2) -> 0 | T29: =ROUND(IF(SUM(S$20:S$22)>0,$E29*$G29*$H29/$H$21,0),2) -> 0 | V29: =ROUND(IF(SUM(U$20:U$22)>0,$E29*$G29*$H29/$H$21,0),2) -> 0 | X29: =ROUND(IF(SUM(W$20:W$22)>0,$E29*$G29*$H29/$H$21,0),2) -> 0 | Z29: =ROUND(IF(SUM(Y$20:Y$22)>0,$E29*$G29*$H29/$H$21,0),2) -> 0 | AB29: =ROUND(IF(SUM(AA$20:AA$22)>0,$E29*$G29*$H29/$H$21,0),2) -> 0 | AD29: =ROUND(IF(SUM(AC$20:AC$22)>0,$E29*$G29*$H29/$H$21,0),2) -> 14.52 | AF29: =ROUND(IF(SUM(AE$20:AE$22)>0,$E29*$G29*$H29/$H$21,0),2) -> 0 | AH29: =ROUND(IF(SUM(AG$20:AG$22)>0,$E29*$G29*$H29/$H$21,0),2) -> 0 | AJ29: =ROUND(IF(SUM(AI$20:AI$22)>0,$E29*$G29*$H29/$H$21,0),2) -> 0 | AL29: =ROUND(IF(SUM(AK$20:AK$22)>0,$E29*$G29*$H29/$H$21,0),2) -> 0 | AN29: =ROUND(IF(SUM(AM$20:AM$22)>0,$E29*$G29*$H29/$H$21,0),2) -> 0 | AP29: =ROUND(IF(SUM(AO$20:AO$22)>0,$E29*$G29*$H29/$H$21,0),2) -> 0 | AR29: =ROUND(IF(SUM(AQ$20:AQ$22)>0,$E29*$G29*$H29/$H$21,0),2) -> 0 | AT29: =ROUND(IF(SUM(AS$20:AS$22)>0,$E29*$G29*$H29/$H$21,0),2) -> 0 | AV29: =ROUND(IF(SUM(AU$20:AU$22)>0,$E29*$G29*$H29/$H$21,0),2) -> 0 | AX29: =ROUND(IF(SUM(AW$20:AW$22)>0,$E29*$G29*$H29/$H$21,0),2) -> 0 | AZ29: =ROUND(IF(SUM(AY$20:AY$22)>0,$E29*$G29*$H29/$H$21,0),2) -> 0 | BB29: =ROUND(IF(SUM(BA$20:BA$22)>0,$E29*$G29*$H29/$H$21,0),2) -> 0 | BD29: =ROUND(IF(SUM(BC$20:BC$22)>0,$E29*$G29*$H29/$H$21,0),2) -> 0 | BF29: =ROUND(IF(SUM(BE$20:BE$22)>0,$E29*$G29*$H29/$H$21,0),2) -> 0 | BH29: =ROUND(IF(SUM(BG$20:BG$22)>0,$E29*$G29*$H29/$H$21,0),2) -> 0 | BJ29: =ROUND(IF(SUM(BI$20:BI$22)>0,$E29*$G29*$H29/$H$21,0),2) -> 0 | BL29: =ROUND(IF(SUM(BK$20:BK$22)>0,$E29*$G29*$H29/$H$21,0),2) -> 0 | BN29: =ROUND(IF(SUM(BM$20:BM$22)>0,$E29*$G29*$H29/$H$21,0),2) -> 0 | BP29: =ROUND(IF(SUM(BO$20:BO$22)>0,$E29*$G29*$H29/$H$21,0),2) -> 0 | BR29: =ROUND(IF(SUM(BQ$20:BQ$22)>0,$E29*$G29*$H29/$H$21,0),2) -> 0 | BT29: =ROUND(IF(SUM(BS$20:BS$22)>0,$E29*$G29*$H29/$H$21,0),2) -> 0 | BV29: =ROUND(IF(SUM(BU$20:BU$22)>0,$E29*$G29*$H29/$H$21,0),2) -> 0 | BX29: =ROUND(IF(SUM(BW$20:BW$22)>0,$E29*$G29*$H29/$H$21,0),2) -> 0 | BZ29: =ROUND(IF(SUM(BY$20:BY$22)>0,$E29*$G29*$H29/$H$21,0),2) -> 0
C30: 5 | D30: Óculos de segurança constituídos de armação e visor confeccionados em uma única peça de policarbonato INCOLOR, anti-risco, apoio nasal de plástico maleável ou elastômero. Hastes tipo espátula confeccionadas de material plástico, com acabamento emborrachado, articuladas através de parafusos metálicos. Resistente a alto impacto, devendo apresentar a marcação na lente em conformidade com a norma ANSI/ISEA Z87.1-2015. Ref.: 3M, modelo Securefit 400. | E30: 1 | F30: und | G30: =G29 -> 5 | H30: 31.74 | L30: =ROUND(IF(SUM(K$20:K$22)>0,$E30*$G30*$H30/$H$21,0),2) -> 0 | N30: =ROUND(IF(SUM(M$20:M$22)>0,$E30*$G30*$H30/$H$21,0),2) -> 0 | P30: =ROUND(IF(SUM(O$20:O$22)>0,$E30*$G30*$H30/$H$21,0),2) -> 0 | R30: =ROUND(IF(SUM(Q$20:Q$22)>0,$E30*$G30*$H30/$H$21,0),2) -> 0 | T30: =ROUND(IF(SUM(S$20:S$22)>0,$E30*$G30*$H30/$H$21,0),2) -> 0 | V30: =ROUND(IF(SUM(U$20:U$22)>0,$E30*$G30*$H30/$H$21,0),2) -> 0 | X30: =ROUND(IF(SUM(W$20:W$22)>0,$E30*$G30*$H30/$H$21,0),2) -> 0 | Z30: =ROUND(IF(SUM(Y$20:Y$22)>0,$E30*$G30*$H30/$H$21,0),2) -> 0 | AB30: =ROUND(IF(SUM(AA$20:AA$22)>0,$E30*$G30*$H30/$H$21,0),2) -> 0 | AD30: =ROUND(IF(SUM(AC$20:AC$22)>0,$E30*$G30*$H30/$H$21,0),2) -> 31.74 | AF30: =ROUND(IF(SUM(AE$20:AE$22)>0,$E30*$G30*$H30/$H$21,0),2) -> 0 | AH30: =ROUND(IF(SUM(AG$20:AG$22)>0,$E30*$G30*$H30/$H$21,0),2) -> 0 | AJ30: =ROUND(IF(SUM(AI$20:AI$22)>0,$E30*$G30*$H30/$H$21,0),2) -> 0 | AL30: =ROUND(IF(SUM(AK$20:AK$22)>0,$E30*$G30*$H30/$H$21,0),2) -> 0 | AN30: =ROUND(IF(SUM(AM$20:AM$22)>0,$E30*$G30*$H30/$H$21,0),2) -> 0 | AP30: =ROUND(IF(SUM(AO$20:AO$22)>0,$E30*$G30*$H30/$H$21,0),2) -> 0 | AR30: =ROUND(IF(SUM(AQ$20:AQ$22)>0,$E30*$G30*$H30/$H$21,0),2) -> 0 | AT30: =ROUND(IF(SUM(AS$20:AS$22)>0,$E30*$G30*$H30/$H$21,0),2) -> 0 | AV30: =ROUND(IF(SUM(AU$20:AU$22)>0,$E30*$G30*$H30/$H$21,0),2) -> 0 | AX30: =ROUND(IF(SUM(AW$20:AW$22)>0,$E30*$G30*$H30/$H$21,0),2) -> 0 | AZ30: =ROUND(IF(SUM(AY$20:AY$22)>0,$E30*$G30*$H30/$H$21,0),2) -> 0 | BB30: =ROUND(IF(SUM(BA$20:BA$22)>0,$E30*$G30*$H30/$H$21,0),2) -> 0 | BD30: =ROUND(IF(SUM(BC$20:BC$22)>0,$E30*$G30*$H30/$H$21,0),2) -> 0 | BF30: =ROUND(IF(SUM(BE$20:BE$22)>0,$E30*$G30*$H30/$H$21,0),2) -> 0 | BH30: =ROUND(IF(SUM(BG$20:BG$22)>0,$E30*$G30*$H30/$H$21,0),2) -> 0 | BJ30: =ROUND(IF(SUM(BI$20:BI$22)>0,$E30*$G30*$H30/$H$21,0),2) -> 0 | BL30: =ROUND(IF(SUM(BK$20:BK$22)>0,$E30*$G30*$H30/$H$21,0),2) -> 0 | BN30: =ROUND(IF(SUM(BM$20:BM$22)>0,$E30*$G30*$H30/$H$21,0),2) -> 0 | BP30: =ROUND(IF(SUM(BO$20:BO$22)>0,$E30*$G30*$H30/$H$21,0),2) -> 0 | BR30: =ROUND(IF(SUM(BQ$20:BQ$22)>0,$E30*$G30*$H30/$H$21,0),2) -> 0 | BT30: =ROUND(IF(SUM(BS$20:BS$22)>0,$E30*$G30*$H30/$H$21,0),2) -> 0 | BV30: =ROUND(IF(SUM(BU$20:BU$22)>0,$E30*$G30*$H30/$H$21,0),2) -> 0 | BX30: =ROUND(IF(SUM(BW$20:BW$22)>0,$E30*$G30*$H30/$H$21,0),2) -> 0 | BZ30: =ROUND(IF(SUM(BY$20:BY$22)>0,$E30*$G30*$H30/$H$21,0),2) -> 0
C32: CATEGORIAS | H32: QUANTIDADE
K33: =IF($C33=K$4,1,0) -> 0 | M33: =IF($C33=M$4,1,0) -> 0 | O33: =IF($C33=O$4,1,0) -> 0 | Q33: =IF($C33=Q$4,1,0) -> 0 | S33: =IF($C33=S$4,1,0) -> 0 | U33: =IF($C33=U$4,1,0) -> 0 | W33: =IF($C33=W$4,1,0) -> 0 | Y33: =IF($C33=Y$4,1,0) -> 0 | AA33: =IF($C33=AA$4,1,0) -> 0 | AC33: =IF($C33=AC$4,1,0) -> 0 | AE33: =IF($C33=AE$4,1,0) -> 0 | AG33: =IF($C33=AG$4,1,0) -> 0 | AI33: =IF($C33=AI$4,1,0) -> 0 | AK33: =IF($C33=AK$4,1,0) -> 0 | AM33: =IF($C33=AM$4,1,0) -> 0 | AO33: =IF($C33=AO$4,1,0) -> 0 | AQ33: =IF($C33=AQ$4,1,0) -> 0 | AS33: =IF($C33=AS$4,1,0) -> 0 | AU33: =IF($C33=AU$4,1,0) -> 0 | AW33: =IF($C33=AW$4,1,0) -> 0 | AY33: =IF($C33=AY$4,1,0) -> 0 | BA33: =IF($C33=BA$4,1,0) -> 0 | BC33: =IF($C33=BC$4,1,0) -> 0 | BE33: =IF($C33=BE$4,1,0) -> 0 | BG33: =IF($C33=BG$4,1,0) -> 0 | BI33: =IF($C33=BI$4,1,0) -> 0 | BK33: =IF($C33=BK$4,1,0) -> 0 | BM33: =IF($C33=BM$4,1,0) -> 0 | BO33: =IF($C33=BO$4,1,0) -> 0 | BQ33: =IF($C33=BQ$4,1,0) -> 0 | BS33: =IF($C33=BS$4,1,0) -> 0 | BU33: =IF($C33=BU$4,1,0) -> 0 | BW33: =IF($C33=BW$4,1,0) -> 0 | BY33: =IF($C33=BY$4,1,0) -> 0
D34: =HLOOKUP($C34,'Dados Gerais'!$D$6:$BI$11,6) ->  | H34: =HLOOKUP($C34,'Dados Gerais'!$D$6:$BI$15,10) ->  | K34: =IF($C34=K$4,1,0) -> 0 | M34: =IF($C34=M$4,1,0) -> 0 | O34: =IF($C34=O$4,1,0) -> 0 | Q34: =IF($C34=Q$4,1,0) -> 0 | S34: =IF($C34=S$4,1,0) -> 0 | U34: =IF($C34=U$4,1,0) -> 0 | W34: =IF($C34=W$4,1,0) -> 0 | Y34: =IF($C34=Y$4,1,0) -> 0 | AA34: =IF($C34=AA$4,1,0) -> 0 | AC34: =IF($C34=AC$4,1,0) -> 0 | AE34: =IF($C34=AE$4,1,0) -> 0 | AG34: =IF($C34=AG$4,1,0) -> 0 | AI34: =IF($C34=AI$4,1,0) -> 0 | AK34: =IF($C34=AK$4,1,0) -> 0 | AM34: =IF($C34=AM$4,1,0) -> 0 | AO34: =IF($C34=AO$4,1,0) -> 0 | AQ34: =IF($C34=AQ$4,1,0) -> 0 | AS34: =IF($C34=AS$4,1,0) -> 0 | AU34: =IF($C34=AU$4,1,0) -> 0 | AW34: =IF($C34=AW$4,1,0) -> 0 | AY34: =IF($C34=AY$4,1,0) -> 0 | BA34: =IF($C34=BA$4,1,0) -> 0 | BC34: =IF($C34=BC$4,1,0) -> 0 | BE34: =IF($C34=BE$4,1,0) -> 0 | BG34: =IF($C34=BG$4,1,0) -> 0 | BI34: =IF($C34=BI$4,1,0) -> 0 | BK34: =IF($C34=BK$4,1,0) -> 0 | BM34: =IF($C34=BM$4,1,0) -> 0 | BO34: =IF($C34=BO$4,1,0) -> 0 | BQ34: =IF($C34=BQ$4,1,0) -> 0 | BS34: =IF($C34=BS$4,1,0) -> 0 | BU34: =IF($C34=BU$4,1,0) -> 0 | BW34: =IF($C34=BW$4,1,0) -> 0 | BY34: =IF($C34=BY$4,1,0) -> 0
K35: =IF($C35=K$4,1,0) -> 0 | M35: =IF($C35=M$4,1,0) -> 0 | O35: =IF($C35=O$4,1,0) -> 0 | Q35: =IF($C35=Q$4,1,0) -> 0 | S35: =IF($C35=S$4,1,0) -> 0 | U35: =IF($C35=U$4,1,0) -> 0 | W35: =IF($C35=W$4,1,0) -> 0 | Y35: =IF($C35=Y$4,1,0) -> 0 | AA35: =IF($C35=AA$4,1,0) -> 0 | AC35: =IF($C35=AC$4,1,0) -> 0 | AE35: =IF($C35=AE$4,1,0) -> 0 | AG35: =IF($C35=AG$4,1,0) -> 0 | AI35: =IF($C35=AI$4,1,0) -> 0 | AK35: =IF($C35=AK$4,1,0) -> 0 | AM35: =IF($C35=AM$4,1,0) -> 0 | AO35: =IF($C35=AO$4,1,0) -> 0 | AQ35: =IF($C35=AQ$4,1,0) -> 0 | AS35: =IF($C35=AS$4,1,0) -> 0 | AU35: =IF($C35=AU$4,1,0) -> 0 | AW35: =IF($C35=AW$4,1,0) -> 0 | AY35: =IF($C35=AY$4,1,0) -> 0 | BA35: =IF($C35=BA$4,1,0) -> 0 | BC35: =IF($C35=BC$4,1,0) -> 0 | BE35: =IF($C35=BE$4,1,0) -> 0 | BG35: =IF($C35=BG$4,1,0) -> 0 | BI35: =IF($C35=BI$4,1,0) -> 0 | BK35: =IF($C35=BK$4,1,0) -> 0 | BM35: =IF($C35=BM$4,1,0) -> 0 | BO35: =IF($C35=BO$4,1,0) -> 0 | BQ35: =IF($C35=BQ$4,1,0) -> 0 | BS35: =IF($C35=BS$4,1,0) -> 0 | BU35: =IF($C35=BU$4,1,0) -> 0 | BW35: =IF($C35=BW$4,1,0) -> 0 | BY35: =IF($C35=BY$4,1,0) -> 0
C37: ITEM | D37: DESCRIÇÃO | E37: QUANT ANUAL POR POSTO | F37: UNIDADE | G37: QUANT DE POSTOS | H37: VALOR
L38: =IF(SUM(K$8:K$10)>0,$E38*$H38,0) -> 0 | N38: =IF(SUM(M$8:M$10)>0,$E38*$H38,0) -> 0 | P38: =IF(SUM(O$8:O$10)>0,$E38*$H38,0) -> 0 | R38: =IF(SUM(Q$8:Q$10)>0,$E38*$H38,0) -> 0 | T38: =IF(SUM(S$8:S$10)>0,$E38*$H38,0) -> 0 | V38: =IF(SUM(U$8:U$10)>0,$E38*$H38,0) -> 0 | X38: =IF(SUM(W$8:W$10)>0,$E38*$H38,0) -> 0 | Z38: =IF(SUM(Y$8:Y$10)>0,$E38*$H38,0) -> 0 | AB38: =IF(SUM(AA$8:AA$10)>0,$E38*$H38,0) -> 0 | AD38: =IF(SUM(AC$8:AC$10)>0,$E38*$H38,0) -> 0 | AF38: =IF(SUM(AE$8:AE$10)>0,$E38*$H38,0) -> 0 | AH38: =IF(SUM(AG$8:AG$10)>0,$E38*$H38,0) -> 0 | AJ38: =IF(SUM(AI$8:AI$10)>0,$E38*$H38,0) -> 0 | AL38: =IF(SUM(AK$8:AK$10)>0,$E38*$H38,0) -> 0 | AN38: =IF(SUM(AM$8:AM$10)>0,$E38*$H38,0) -> 0 | AP38: =IF(SUM(AO$8:AO$10)>0,$E38*$H38,0) -> 0 | AR38: =IF(SUM(AQ$8:AQ$10)>0,$E38*$H38,0) -> 0 | AT38: =IF(SUM(AS$8:AS$10)>0,$E38*$H38,0) -> 0 | AV38: =IF(SUM(AU$8:AU$10)>0,$E38*$H38,0) -> 0 | AX38: =IF(SUM(AW$8:AW$10)>0,$E38*$H38,0) -> 0 | AZ38: =IF(SUM(AY$8:AY$10)>0,$E38*$H38,0) -> 0 | BB38: =IF(SUM(BA$8:BA$10)>0,$E38*$H38,0) -> 0 | BD38: =IF(SUM(BC$8:BC$10)>0,$E38*$H38,0) -> 0 | BF38: =IF(SUM(BE$8:BE$10)>0,$E38*$H38,0) -> 0 | BH38: =IF(SUM(BG$8:BG$10)>0,$E38*$H38,0) -> 0 | BJ38: =IF(SUM(BI$8:BI$10)>0,$E38*$H38,0) -> 0 | BL38: =IF(SUM(BK$8:BK$10)>0,$E38*$H38,0) -> 0 | BN38: =IF(SUM(BM$8:BM$10)>0,$E38*$H38,0) -> 0 | BP38: =IF(SUM(BO$8:BO$10)>0,$E38*$H38,0) -> 0 | BR38: =IF(SUM(BQ$8:BQ$10)>0,$E38*$H38,0) -> 0 | BT38: =IF(SUM(BS$8:BS$10)>0,$E38*$H38,0) -> 0 | BV38: =IF(SUM(BU$8:BU$10)>0,$E38*$H38,0) -> 0 | BX38: =IF(SUM(BW$8:BW$10)>0,$E38*$H38,0) -> 0 | BZ38: =IF(SUM(BY$8:BY$10)>0,$E38*$H38,0) -> 0
L39: =ROUND(IF(SUM(K$33:K$35)>0,$E39*$G39*$H39/$H$34,0),2) -> 0 | N39: =ROUND(IF(SUM(M$33:M$35)>0,$E39*$G39*$H39/$H$34,0),2) -> 0 | P39: =ROUND(IF(SUM(O$33:O$35)>0,$E39*$G39*$H39/$H$34,0),2) -> 0 | R39: =ROUND(IF(SUM(Q$33:Q$35)>0,$E39*$G39*$H39/$H$34,0),2) -> 0 | T39: =ROUND(IF(SUM(S$33:S$35)>0,$E39*$G39*$H39/$H$34,0),2) -> 0 | V39: =ROUND(IF(SUM(U$33:U$35)>0,$E39*$G39*$H39/$H$34,0),2) -> 0 | X39: =ROUND(IF(SUM(W$33:W$35)>0,$E39*$G39*$H39/$H$34,0),2) -> 0 | Z39: =ROUND(IF(SUM(Y$33:Y$35)>0,$E39*$G39*$H39/$H$34,0),2) -> 0 | AB39: =ROUND(IF(SUM(AA$33:AA$35)>0,$E39*$G39*$H39/$H$34,0),2) -> 0 | AD39: =ROUND(IF(SUM(AC$33:AC$35)>0,$E39*$G39*$H39/$H$34,0),2) -> 0 | AF39: =ROUND(IF(SUM(AE$33:AE$35)>0,$E39*$G39*$H39/$H$34,0),2) -> 0 | AH39: =ROUND(IF(SUM(AG$33:AG$35)>0,$E39*$G39*$H39/$H$34,0),2) -> 0 | AJ39: =ROUND(IF(SUM(AI$33:AI$35)>0,$E39*$G39*$H39/$H$34,0),2) -> 0 | AL39: =ROUND(IF(SUM(AK$33:AK$35)>0,$E39*$G39*$H39/$H$34,0),2) -> 0 | AN39: =ROUND(IF(SUM(AM$33:AM$35)>0,$E39*$G39*$H39/$H$34,0),2) -> 0 | AP39: =ROUND(IF(SUM(AO$33:AO$35)>0,$E39*$G39*$H39/$H$34,0),2) -> 0 | AR39: =ROUND(IF(SUM(AQ$33:AQ$35)>0,$E39*$G39*$H39/$H$34,0),2) -> 0 | AT39: =ROUND(IF(SUM(AS$33:AS$35)>0,$E39*$G39*$H39/$H$34,0),2) -> 0 | AV39: =ROUND(IF(SUM(AU$33:AU$35)>0,$E39*$G39*$H39/$H$34,0),2) -> 0 | AX39: =ROUND(IF(SUM(AW$33:AW$35)>0,$E39*$G39*$H39/$H$34,0),2) -> 0 | AZ39: =ROUND(IF(SUM(AY$33:AY$35)>0,$E39*$G39*$H39/$H$34,0),2) -> 0 | BB39: =ROUND(IF(SUM(BA$33:BA$35)>0,$E39*$G39*$H39/$H$34,0),2) -> 0 | BD39: =ROUND(IF(SUM(BC$33:BC$35)>0,$E39*$G39*$H39/$H$34,0),2) -> 0 | BF39: =ROUND(IF(SUM(BE$33:BE$35)>0,$E39*$G39*$H39/$H$34,0),2) -> 0 | BH39: =ROUND(IF(SUM(BG$33:BG$35)>0,$E39*$G39*$H39/$H$34,0),2) -> 0 | BJ39: =ROUND(IF(SUM(BI$33:BI$35)>0,$E39*$G39*$H39/$H$34,0),2) -> 0 | BL39: =ROUND(IF(SUM(BK$33:BK$35)>0,$E39*$G39*$H39/$H$34,0),2) -> 0 | BN39: =ROUND(IF(SUM(BM$33:BM$35)>0,$E39*$G39*$H39/$H$34,0),2) -> 0 | BP39: =ROUND(IF(SUM(BO$33:BO$35)>0,$E39*$G39*$H39/$H$34,0),2) -> 0 | BR39: =ROUND(IF(SUM(BQ$33:BQ$35)>0,$E39*$G39*$H39/$H$34,0),2) -> 0 | BT39: =ROUND(IF(SUM(BS$33:BS$35)>0,$E39*$G39*$H39/$H$34,0),2) -> 0 | BV39: =ROUND(IF(SUM(BU$33:BU$35)>0,$E39*$G39*$H39/$H$34,0),2) -> 0 | BX39: =ROUND(IF(SUM(BW$33:BW$35)>0,$E39*$G39*$H39/$H$34,0),2) -> 0 | BZ39: =ROUND(IF(SUM(BY$33:BY$35)>0,$E39*$G39*$H39/$H$34,0),2) -> 0
L40: 0 | N40: 0 | P40: 0 | R40: 0 | T40: 0 | V40: 0 | X40: 0 | Z40: 0 | AB40: 0 | AD40: 0 | AF40: 0 | AH40: 0 | AJ40: 0 | AL40: 0 | AN40: 0 | AP40: 0 | AR40: 0 | AT40: 0 | AV40: 0 | AX40: 0 | AZ40: 0 | BB40: 0 | BD40: 0 | BF40: 0 | BH40: 0 | BJ40: 0 | BL40: 0 | BN40: 0 | BP40: 0 | BR40: 0 | BT40: 0 | BV40: 0 | BX40: 0 | BZ40: 0
L41: 0 | N41: 0 | P41: 0 | R41: 0 | T41: 0 | V41: 0 | X41: 0 | Z41: 0 | AB41: 0 | AD41: 0 | AF41: 0 | AH41: 0 | AJ41: 0 | AL41: 0 | AN41: 0 | AP41: 0 | AR41: 0 | AT41: 0 | AV41: 0 | AX41: 0 | AZ41: 0 | BB41: 0 | BD41: 0 | BF41: 0 | BH41: 0 | BJ41: 0 | BL41: 0 | BN41: 0 | BP41: 0 | BR41: 0 | BT41: 0 | BV41: 0 | BX41: 0 | BZ41: 0
L42: 0 | N42: 0 | P42: 0 | R42: 0 | T42: 0 | V42: 0 | X42: 0 | Z42: 0 | AB42: 0 | AD42: 0 | AF42: 0 | AH42: 0 | AJ42: 0 | AL42: 0 | AN42: 0 | AP42: 0 | AR42: 0 | AT42: 0 | AV42: 0 | AX42: 0 | AZ42: 0 | BB42: 0 | BD42: 0 | BF42: 0 | BH42: 0 | BJ42: 0 | BL42: 0 | BN42: 0 | BP42: 0 | BR42: 0 | BT42: 0 | BV42: 0 | BX42: 0 | BZ42: 0
L43: 0 | N43: 0 | P43: 0 | R43: 0 | T43: 0 | V43: 0 | X43: 0 | Z43: 0 | AB43: 0 | AD43: 0 | AF43: 0 | AH43: 0 | AJ43: 0 | AL43: 0 | AN43: 0 | AP43: 0 | AR43: 0 | AT43: 0 | AV43: 0 | AX43: 0 | AZ43: 0 | BB43: 0 | BD43: 0 | BF43: 0 | BH43: 0 | BJ43: 0 | BL43: 0 | BN43: 0 | BP43: 0 | BR43: 0 | BT43: 0 | BV43: 0 | BX43: 0 | BZ43: 0
L44: 0 | N44: 0 | P44: 0 | R44: 0 | T44: 0 | V44: 0 | X44: 0 | Z44: 0 | AB44: 0 | AD44: 0 | AF44: 0 | AH44: 0 | AJ44: 0 | AL44: 0 | AN44: 0 | AP44: 0 | AR44: 0 | AT44: 0 | AV44: 0 | AX44: 0 | AZ44: 0 | BB44: 0 | BD44: 0 | BF44: 0 | BH44: 0 | BJ44: 0 | BL44: 0 | BN44: 0 | BP44: 0 | BR44: 0 | BT44: 0 | BV44: 0 | BX44: 0 | BZ44: 0
C46: CATEGORIAS | H46: QUANTIDADE
K47: =IF($C47=K$4,1,0) -> 0 | M47: =IF($C47=M$4,1,0) -> 0 | O47: =IF($C47=O$4,1,0) -> 0 | Q47: =IF($C47=Q$4,1,0) -> 0 | S47: =IF($C47=S$4,1,0) -> 0 | U47: =IF($C47=U$4,1,0) -> 0 | W47: =IF($C47=W$4,1,0) -> 0 | Y47: =IF($C47=Y$4,1,0) -> 0 | AA47: =IF($C47=AA$4,1,0) -> 0 | AC47: =IF($C47=AC$4,1,0) -> 0 | AE47: =IF($C47=AE$4,1,0) -> 0 | AG47: =IF($C47=AG$4,1,0) -> 0 | AI47: =IF($C47=AI$4,1,0) -> 0 | AK47: =IF($C47=AK$4,1,0) -> 0 | AM47: =IF($C47=AM$4,1,0) -> 0 | AO47: =IF($C47=AO$4,1,0) -> 0 | AQ47: =IF($C47=AQ$4,1,0) -> 0 | AS47: =IF($C47=AS$4,1,0) -> 0 | AU47: =IF($C47=AU$4,1,0) -> 0 | AW47: =IF($C47=AW$4,1,0) -> 0 | AY47: =IF($C47=AY$4,1,0) -> 0 | BA47: =IF($C47=BA$4,1,0) -> 0 | BC47: =IF($C47=BC$4,1,0) -> 0 | BE47: =IF($C47=BE$4,1,0) -> 0 | BG47: =IF($C47=BG$4,1,0) -> 0 | BI47: =IF($C47=BI$4,1,0) -> 0 | BK47: =IF($C47=BK$4,1,0) -> 0 | BM47: =IF($C47=BM$4,1,0) -> 0 | BO47: =IF($C47=BO$4,1,0) -> 0 | BQ47: =IF($C47=BQ$4,1,0) -> 0 | BS47: =IF($C47=BS$4,1,0) -> 0 | BU47: =IF($C47=BU$4,1,0) -> 0 | BW47: =IF($C47=BW$4,1,0) -> 0 | BY47: =IF($C47=BY$4,1,0) -> 0
D48: =HLOOKUP($C48,'Dados Gerais'!$D$6:$BI$11,6) ->  | H48: =HLOOKUP($C48,'Dados Gerais'!$D$6:$BI$15,10) ->  | K48: =IF($C48=K$4,1,0) -> 0 | M48: =IF($C48=M$4,1,0) -> 0 | O48: =IF($C48=O$4,1,0) -> 0 | Q48: =IF($C48=Q$4,1,0) -> 0 | S48: =IF($C48=S$4,1,0) -> 0 | U48: =IF($C48=U$4,1,0) -> 0 | W48: =IF($C48=W$4,1,0) -> 0 | Y48: =IF($C48=Y$4,1,0) -> 0 | AA48: =IF($C48=AA$4,1,0) -> 0 | AC48: =IF($C48=AC$4,1,0) -> 0 | AE48: =IF($C48=AE$4,1,0) -> 0 | AG48: =IF($C48=AG$4,1,0) -> 0 | AI48: =IF($C48=AI$4,1,0) -> 0 | AK48: =IF($C48=AK$4,1,0) -> 0 | AM48: =IF($C48=AM$4,1,0) -> 0 | AO48: =IF($C48=AO$4,1,0) -> 0 | AQ48: =IF($C48=AQ$4,1,0) -> 0 | AS48: =IF($C48=AS$4,1,0) -> 0 | AU48: =IF($C48=AU$4,1,0) -> 0 | AW48: =IF($C48=AW$4,1,0) -> 0 | AY48: =IF($C48=AY$4,1,0) -> 0 | BA48: =IF($C48=BA$4,1,0) -> 0 | BC48: =IF($C48=BC$4,1,0) -> 0 | BE48: =IF($C48=BE$4,1,0) -> 0 | BG48: =IF($C48=BG$4,1,0) -> 0 | BI48: =IF($C48=BI$4,1,0) -> 0 | BK48: =IF($C48=BK$4,1,0) -> 0 | BM48: =IF($C48=BM$4,1,0) -> 0 | BO48: =IF($C48=BO$4,1,0) -> 0 | BQ48: =IF($C48=BQ$4,1,0) -> 0 | BS48: =IF($C48=BS$4,1,0) -> 0 | BU48: =IF($C48=BU$4,1,0) -> 0 | BW48: =IF($C48=BW$4,1,0) -> 0 | BY48: =IF($C48=BY$4,1,0) -> 0
K49: =IF($C49=K$4,1,0) -> 0 | M49: =IF($C49=M$4,1,0) -> 0 | O49: =IF($C49=O$4,1,0) -> 0 | Q49: =IF($C49=Q$4,1,0) -> 0 | S49: =IF($C49=S$4,1,0) -> 0 | U49: =IF($C49=U$4,1,0) -> 0 | W49: =IF($C49=W$4,1,0) -> 0 | Y49: =IF($C49=Y$4,1,0) -> 0 | AA49: =IF($C49=AA$4,1,0) -> 0 | AC49: =IF($C49=AC$4,1,0) -> 0 | AE49: =IF($C49=AE$4,1,0) -> 0 | AG49: =IF($C49=AG$4,1,0) -> 0 | AI49: =IF($C49=AI$4,1,0) -> 0 | AK49: =IF($C49=AK$4,1,0) -> 0 | AM49: =IF($C49=AM$4,1,0) -> 0 | AO49: =IF($C49=AO$4,1,0) -> 0 | AQ49: =IF($C49=AQ$4,1,0) -> 0 | AS49: =IF($C49=AS$4,1,0) -> 0 | AU49: =IF($C49=AU$4,1,0) -> 0 | AW49: =IF($C49=AW$4,1,0) -> 0 | AY49: =IF($C49=AY$4,1,0) -> 0 | BA49: =IF($C49=BA$4,1,0) -> 0 | BC49: =IF($C49=BC$4,1,0) -> 0 | BE49: =IF($C49=BE$4,1,0) -> 0 | BG49: =IF($C49=BG$4,1,0) -> 0 | BI49: =IF($C49=BI$4,1,0) -> 0 | BK49: =IF($C49=BK$4,1,0) -> 0 | BM49: =IF($C49=BM$4,1,0) -> 0 | BO49: =IF($C49=BO$4,1,0) -> 0 | BQ49: =IF($C49=BQ$4,1,0) -> 0 | BS49: =IF($C49=BS$4,1,0) -> 0 | BU49: =IF($C49=BU$4,1,0) -> 0 | BW49: =IF($C49=BW$4,1,0) -> 0 | BY49: =IF($C49=BY$4,1,0) -> 0
C51: ITEM | D51: DESCRIÇÃO | E51: QUANT ANUAL POR POSTO | F51: UNIDADE | G51: QUANT DE POSTOS | H51: VALOR
L52: =IF(SUM(K$8:K$10)>0,$E52*$H52,0) -> 0 | N52: =IF(SUM(M$8:M$10)>0,$E52*$H52,0) -> 0 | P52: =IF(SUM(O$8:O$10)>0,$E52*$H52,0) -> 0 | R52: =IF(SUM(Q$8:Q$10)>0,$E52*$H52,0) -> 0 | T52: =IF(SUM(S$8:S$10)>0,$E52*$H52,0) -> 0 | V52: =IF(SUM(U$8:U$10)>0,$E52*$H52,0) -> 0 | X52: =IF(SUM(W$8:W$10)>0,$E52*$H52,0) -> 0 | Z52: =IF(SUM(Y$8:Y$10)>0,$E52*$H52,0) -> 0 | AB52: =IF(SUM(AA$8:AA$10)>0,$E52*$H52,0) -> 0 | AD52: =IF(SUM(AC$8:AC$10)>0,$E52*$H52,0) -> 0 | AF52: =IF(SUM(AE$8:AE$10)>0,$E52*$H52,0) -> 0 | AH52: =IF(SUM(AG$8:AG$10)>0,$E52*$H52,0) -> 0 | AJ52: =IF(SUM(AI$8:AI$10)>0,$E52*$H52,0) -> 0 | AL52: =IF(SUM(AK$8:AK$10)>0,$E52*$H52,0) -> 0 | AN52: =IF(SUM(AM$8:AM$10)>0,$E52*$H52,0) -> 0 | AP52: =IF(SUM(AO$8:AO$10)>0,$E52*$H52,0) -> 0 | AR52: =IF(SUM(AQ$8:AQ$10)>0,$E52*$H52,0) -> 0 | AT52: =IF(SUM(AS$8:AS$10)>0,$E52*$H52,0) -> 0 | AV52: =IF(SUM(AU$8:AU$10)>0,$E52*$H52,0) -> 0 | AX52: =IF(SUM(AW$8:AW$10)>0,$E52*$H52,0) -> 0 | AZ52: =IF(SUM(AY$8:AY$10)>0,$E52*$H52,0) -> 0 | BB52: =IF(SUM(BA$8:BA$10)>0,$E52*$H52,0) -> 0 | BD52: =IF(SUM(BC$8:BC$10)>0,$E52*$H52,0) -> 0 | BF52: =IF(SUM(BE$8:BE$10)>0,$E52*$H52,0) -> 0 | BH52: =IF(SUM(BG$8:BG$10)>0,$E52*$H52,0) -> 0 | BJ52: =IF(SUM(BI$8:BI$10)>0,$E52*$H52,0) -> 0 | BL52: =IF(SUM(BK$8:BK$10)>0,$E52*$H52,0) -> 0 | BN52: =IF(SUM(BM$8:BM$10)>0,$E52*$H52,0) -> 0 | BP52: =IF(SUM(BO$8:BO$10)>0,$E52*$H52,0) -> 0 | BR52: =IF(SUM(BQ$8:BQ$10)>0,$E52*$H52,0) -> 0 | BT52: =IF(SUM(BS$8:BS$10)>0,$E52*$H52,0) -> 0 | BV52: =IF(SUM(BU$8:BU$10)>0,$E52*$H52,0) -> 0 | BX52: =IF(SUM(BW$8:BW$10)>0,$E52*$H52,0) -> 0 | BZ52: =IF(SUM(BY$8:BY$10)>0,$E52*$H52,0) -> 0
L53: =ROUND(IF(SUM(K$47:K$49)>0,$E53*$G53*$H53/$H$48,0),2) -> 0 | N53: =ROUND(IF(SUM(M$47:M$49)>0,$E53*$G53*$H53/$H$48,0),2) -> 0 | P53: =ROUND(IF(SUM(O$47:O$49)>0,$E53*$G53*$H53/$H$48,0),2) -> 0 | R53: =ROUND(IF(SUM(Q$47:Q$49)>0,$E53*$G53*$H53/$H$48,0),2) -> 0 | T53: =ROUND(IF(SUM(S$47:S$49)>0,$E53*$G53*$H53/$H$48,0),2) -> 0 | V53: =ROUND(IF(SUM(U$47:U$49)>0,$E53*$G53*$H53/$H$48,0),2) -> 0 | X53: =ROUND(IF(SUM(W$47:W$49)>0,$E53*$G53*$H53/$H$48,0),2) -> 0 | Z53: =ROUND(IF(SUM(Y$47:Y$49)>0,$E53*$G53*$H53/$H$48,0),2) -> 0 | AB53: =ROUND(IF(SUM(AA$47:AA$49)>0,$E53*$G53*$H53/$H$48,0),2) -> 0 | AD53: =ROUND(IF(SUM(AC$47:AC$49)>0,$E53*$G53*$H53/$H$48,0),2) -> 0 | AF53: =ROUND(IF(SUM(AE$47:AE$49)>0,$E53*$G53*$H53/$H$48,0),2) -> 0 | AH53: =ROUND(IF(SUM(AG$47:AG$49)>0,$E53*$G53*$H53/$H$48,0),2) -> 0 | AJ53: =ROUND(IF(SUM(AI$47:AI$49)>0,$E53*$G53*$H53/$H$48,0),2) -> 0 | AL53: =ROUND(IF(SUM(AK$47:AK$49)>0,$E53*$G53*$H53/$H$48,0),2) -> 0 | AN53: =ROUND(IF(SUM(AM$47:AM$49)>0,$E53*$G53*$H53/$H$48,0),2) -> 0 | AP53: =ROUND(IF(SUM(AO$47:AO$49)>0,$E53*$G53*$H53/$H$48,0),2) -> 0 | AR53: =ROUND(IF(SUM(AQ$47:AQ$49)>0,$E53*$G53*$H53/$H$48,0),2) -> 0 | AT53: =ROUND(IF(SUM(AS$47:AS$49)>0,$E53*$G53*$H53/$H$48,0),2) -> 0 | AV53: =ROUND(IF(SUM(AU$47:AU$49)>0,$E53*$G53*$H53/$H$48,0),2) -> 0 | AX53: =ROUND(IF(SUM(AW$47:AW$49)>0,$E53*$G53*$H53/$H$48,0),2) -> 0 | AZ53: =ROUND(IF(SUM(AY$47:AY$49)>0,$E53*$G53*$H53/$H$48,0),2) -> 0 | BB53: =ROUND(IF(SUM(BA$47:BA$49)>0,$E53*$G53*$H53/$H$48,0),2) -> 0 | BD53: =ROUND(IF(SUM(BC$47:BC$49)>0,$E53*$G53*$H53/$H$48,0),2) -> 0 | BF53: =ROUND(IF(SUM(BE$47:BE$49)>0,$E53*$G53*$H53/$H$48,0),2) -> 0 | BH53: =ROUND(IF(SUM(BG$47:BG$49)>0,$E53*$G53*$H53/$H$48,0),2) -> 0 | BJ53: =ROUND(IF(SUM(BI$47:BI$49)>0,$E53*$G53*$H53/$H$48,0),2) -> 0 | BL53: =ROUND(IF(SUM(BK$47:BK$49)>0,$E53*$G53*$H53/$H$48,0),2) -> 0 | BN53: =ROUND(IF(SUM(BM$47:BM$49)>0,$E53*$G53*$H53/$H$48,0),2) -> 0 | BP53: =ROUND(IF(SUM(BO$47:BO$49)>0,$E53*$G53*$H53/$H$48,0),2) -> 0 | BR53: =ROUND(IF(SUM(BQ$47:BQ$49)>0,$E53*$G53*$H53/$H$48,0),2) -> 0 | BT53: =ROUND(IF(SUM(BS$47:BS$49)>0,$E53*$G53*$H53/$H$48,0),2) -> 0 | BV53: =ROUND(IF(SUM(BU$47:BU$49)>0,$E53*$G53*$H53/$H$48,0),2) -> 0 | BX53: =ROUND(IF(SUM(BW$47:BW$49)>0,$E53*$G53*$H53/$H$48,0),2) -> 0 | BZ53: =ROUND(IF(SUM(BY$47:BY$49)>0,$E53*$G53*$H53/$H$48,0),2) -> 0
L54: 0 | N54: 0 | P54: 0 | R54: =ROUND(IF(SUM(Q$47:Q$49)>0,$E54*$G54*$H54/$H$48,0),2) -> 0 | T54: 0 | V54: 0 | X54: 0 | Z54: 0 | AB54: 0 | AD54: 0 | AF54: 0 | AH54: 0 | AJ54: 0 | AL54: 0 | AN54: 0 | AP54: 0 | AR54: 0 | AT54: 0 | AV54: 0 | AX54: 0 | AZ54: 0 | BB54: 0 | BD54: 0 | BF54: 0 | BH54: 0 | BJ54: 0 | BL54: 0 | BN54: 0 | BP54: 0 | BR54: 0 | BT54: 0 | BV54: 0 | BX54: 0 | BZ54: 0
L55: 0 | N55: 0 | P55: 0 | R55: 0 | T55: 0 | V55: 0 | X55: 0 | Z55: 0 | AB55: 0 | AD55: 0 | AF55: 0 | AH55: 0 | AJ55: 0 | AL55: 0 | AN55: 0 | AP55: 0 | AR55: 0 | AT55: 0 | AV55: 0 | AX55: 0 | AZ55: 0 | BB55: 0 | BD55: 0 | BF55: 0 | BH55: 0 | BJ55: 0 | BL55: 0 | BN55: 0 | BP55: 0 | BR55: 0 | BT55: 0 | BV55: 0 | BX55: 0 | BZ55: 0
L56: 0 | N56: 0 | P56: 0 | R56: 0 | T56: 0 | V56: 0 | X56: 0 | Z56: 0 | AB56: 0 | AD56: 0 | AF56: 0 | AH56: 0 | AJ56: 0 | AL56: 0 | AN56: 0 | AP56: 0 | AR56: 0 | AT56: 0 | AV56: 0 | AX56: 0 | AZ56: 0 | BB56: 0 | BD56: 0 | BF56: 0 | BH56: 0 | BJ56: 0 | BL56: 0 | BN56: 0 | BP56: 0 | BR56: 0 | BT56: 0 | BV56: 0 | BX56: 0 | BZ56: 0
L57: 0 | N57: 0 | P57: 0 | R57: 0 | T57: 0 | V57: 0 | X57: 0 | Z57: 0 | AB57: 0 | AD57: 0 | AF57: 0 | AH57: 0 | AJ57: 0 | AL57: 0 | AN57: 0 | AP57: 0 | AR57: 0 | AT57: 0 | AV57: 0 | AX57: 0 | AZ57: 0 | BB57: 0 | BD57: 0 | BF57: 0 | BH57: 0 | BJ57: 0 | BL57: 0 | BN57: 0 | BP57: 0 | BR57: 0 | BT57: 0 | BV57: 0 | BX57: 0 | BZ57: 0
L58: 0 | N58: 0 | P58: 0 | R58: 0 | T58: 0 | V58: 0 | X58: 0 | Z58: 0 | AB58: 0 | AD58: 0 | AF58: 0 | AH58: 0 | AJ58: 0 | AL58: 0 | AN58: 0 | AP58: 0 | AR58: 0 | AT58: 0 | AV58: 0 | AX58: 0 | AZ58: 0 | BB58: 0 | BD58: 0 | BF58: 0 | BH58: 0 | BJ58: 0 | BL58: 0 | BN58: 0 | BP58: 0 | BR58: 0 | BT58: 0 | BV58: 0 | BX58: 0 | BZ58: 0
L59: 0 | N59: 0 | P59: 0 | R59: 0 | T59: 0 | V59: 0 | X59: 0 | Z59: 0 | AB59: 0 | AD59: 0 | AF59: 0 | AH59: 0 | AJ59: 0 | AL59: 0 | AN59: 0 | AP59: 0 | AR59: 0 | AT59: 0 | AV59: 0 | AX59: 0 | AZ59: 0 | BB59: 0 | BD59: 0 | BF59: 0 | BH59: 0 | BJ59: 0 | BL59: 0 | BN59: 0 | BP59: 0 | BR59: 0 | BT59: 0 | BV59: 0 | BX59: 0 | BZ59: 0
L60: 0 | N60: 0 | P60: 0 | R60: 0 | T60: 0 | V60: 0 | X60: 0 | Z60: 0 | AB60: 0 | AD60: 0 | AF60: 0 | AH60: 0 | AJ60: 0 | AL60: 0 | AN60: 0 | AP60: 0 | AR60: 0 | AT60: 0 | AV60: 0 | AX60: 0 | AZ60: 0 | BB60: 0 | BD60: 0 | BF60: 0 | BH60: 0 | BJ60: 0 | BL60: 0 | BN60: 0 | BP60: 0 | BR60: 0 | BT60: 0 | BV60: 0 | BX60: 0 | BZ60: 0
L61: 0 | N61: 0 | P61: 0 | R61: 0 | T61: 0 | V61: 0 | X61: 0 | Z61: 0 | AB61: 0 | AD61: 0 | AF61: 0 | AH61: 0 | AJ61: 0 | AL61: 0 | AN61: 0 | AP61: 0 | AR61: 0 | AT61: 0 | AV61: 0 | AX61: 0 | AZ61: 0 | BB61: 0 | BD61: 0 | BF61: 0 | BH61: 0 | BJ61: 0 | BL61: 0 | BN61: 0 | BP61: 0 | BR61: 0 | BT61: 0 | BV61: 0 | BX61: 0 | BZ61: 0
L62: 0 | N62: 0 | P62: 0 | R62: 0 | T62: 0 | V62: 0 | X62: 0 | Z62: 0 | AB62: 0 | AD62: 0 | AF62: 0 | AH62: 0 | AJ62: 0 | AL62: 0 | AN62: 0 | AP62: 0 | AR62: 0 | AT62: 0 | AV62: 0 | AX62: 0 | AZ62: 0 | BB62: 0 | BD62: 0 | BF62: 0 | BH62: 0 | BJ62: 0 | BL62: 0 | BN62: 0 | BP62: 0 | BR62: 0 | BT62: 0 | BV62: 0 | BX62: 0 | BZ62: 0
L63: 0 | N63: 0 | P63: 0 | R63: 0 | T63: 0 | V63: 0 | X63: 0 | Z63: 0 | AB63: 0 | AD63: 0 | AF63: 0 | AH63: 0 | AJ63: 0 | AL63: 0 | AN63: 0 | AP63: 0 | AR63: 0 | AT63: 0 | AV63: 0 | AX63: 0 | AZ63: 0 | BB63: 0 | BD63: 0 | BF63: 0 | BH63: 0 | BJ63: 0 | BL63: 0 | BN63: 0 | BP63: 0 | BR63: 0 | BT63: 0 | BV63: 0 | BX63: 0 | BZ63: 0
L64: 0 | N64: 0 | P64: 0 | R64: 0 | T64: 0 | V64: 0 | X64: 0 | Z64: 0 | AB64: 0 | AD64: 0 | AF64: 0 | AH64: 0 | AJ64: 0 | AL64: 0 | AN64: 0 | AP64: 0 | AR64: 0 | AT64: 0 | AV64: 0 | AX64: 0 | AZ64: 0 | BB64: 0 | BD64: 0 | BF64: 0 | BH64: 0 | BJ64: 0 | BL64: 0 | BN64: 0 | BP64: 0 | BR64: 0 | BT64: 0 | BV64: 0 | BX64: 0 | BZ64: 0
L65: 0 | N65: 0 | P65: 0 | R65: 0 | T65: 0 | V65: 0 | X65: 0 | Z65: 0 | AB65: 0 | AD65: 0 | AF65: 0 | AH65: 0 | AJ65: 0 | AL65: 0 | AN65: 0 | AP65: 0 | AR65: 0 | AT65: 0 | AV65: 0 | AX65: 0 | AZ65: 0 | BB65: 0 | BD65: 0 | BF65: 0 | BH65: 0 | BJ65: 0 | BL65: 0 | BN65: 0 | BP65: 0 | BR65: 0 | BT65: 0 | BV65: 0 | BX65: 0 | BZ65: 0
L66: 0 | N66: 0 | P66: 0 | R66: 0 | T66: 0 | V66: 0 | X66: 0 | Z66: 0 | AB66: 0 | AD66: 0 | AF66: 0 | AH66: 0 | AJ66: 0 | AL66: 0 | AN66: 0 | AP66: 0 | AR66: 0 | AT66: 0 | AV66: 0 | AX66: 0 | AZ66: 0 | BB66: 0 | BD66: 0 | BF66: 0 | BH66: 0 | BJ66: 0 | BL66: 0 | BN66: 0 | BP66: 0 | BR66: 0 | BT66: 0 | BV66: 0 | BX66: 0 | BZ66: 0
L67: 0 | N67: 0 | P67: 0 | R67: 0 | T67: 0 | V67: 0 | X67: 0 | Z67: 0 | AB67: 0 | AD67: 0 | AF67: 0 | AH67: 0 | AJ67: 0 | AL67: 0 | AN67: 0 | AP67: 0 | AR67: 0 | AT67: 0 | AV67: 0 | AX67: 0 | AZ67: 0 | BB67: 0 | BD67: 0 | BF67: 0 | BH67: 0 | BJ67: 0 | BL67: 0 | BN67: 0 | BP67: 0 | BR67: 0 | BT67: 0 | BV67: 0 | BX67: 0 | BZ67: 0
L68: 0 | N68: 0 | P68: 0 | R68: 0 | T68: 0 | V68: 0 | X68: 0 | Z68: 0 | AB68: 0 | AD68: 0 | AF68: 0 | AH68: 0 | AJ68: 0 | AL68: 0 | AN68: 0 | AP68: 0 | AR68: 0 | AT68: 0 | AV68: 0 | AX68: 0 | AZ68: 0 | BB68: 0 | BD68: 0 | BF68: 0 | BH68: 0 | BJ68: 0 | BL68: 0 | BN68: 0 | BP68: 0 | BR68: 0 | BT68: 0 | BV68: 0 | BX68: 0 | BZ68: 0
L69: 0 | N69: 0 | P69: 0 | R69: 0 | T69: 0 | V69: 0 | X69: 0 | Z69: 0 | AB69: 0 | AD69: 0 | AF69: 0 | AH69: 0 | AJ69: 0 | AL69: 0 | AN69: 0 | AP69: 0 | AR69: 0 | AT69: 0 | AV69: 0 | AX69: 0 | AZ69: 0 | BB69: 0 | BD69: 0 | BF69: 0 | BH69: 0 | BJ69: 0 | BL69: 0 | BN69: 0 | BP69: 0 | BR69: 0 | BT69: 0 | BV69: 0 | BX69: 0 | BZ69: 0
L70: 0 | N70: 0 | P70: 0 | R70: 0 | T70: 0 | V70: 0 | X70: 0 | Z70: 0 | AB70: 0 | AD70: 0 | AF70: 0 | AH70: 0 | AJ70: 0 | AL70: 0 | AN70: 0 | AP70: 0 | AR70: 0 | AT70: 0 | AV70: 0 | AX70: 0 | AZ70: 0 | BB70: 0 | BD70: 0 | BF70: 0 | BH70: 0 | BJ70: 0 | BL70: 0 | BN70: 0 | BP70: 0 | BR70: 0 | BT70: 0 | BV70: 0 | BX70: 0 | BZ70: 0
L71: 0 | N71: 0 | P71: 0 | R71: 0 | T71: 0 | V71: 0 | X71: 0 | Z71: 0 | AB71: 0 | AD71: 0 | AF71: 0 | AH71: 0 | AJ71: 0 | AL71: 0 | AN71: 0 | AP71: 0 | AR71: 0 | AT71: 0 | AV71: 0 | AX71: 0 | AZ71: 0 | BB71: 0 | BD71: 0 | BF71: 0 | BH71: 0 | BJ71: 0 | BL71: 0 | BN71: 0 | BP71: 0 | BR71: 0 | BT71: 0 | BV71: 0 | BX71: 0 | BZ71: 0
L72: 0 | N72: 0 | P72: 0 | R72: 0 | T72: 0 | V72: 0 | X72: 0 | Z72: 0 | AB72: 0 | AD72: 0 | AF72: 0 | AH72: 0 | AJ72: 0 | AL72: 0 | AN72: 0 | AP72: 0 | AR72: 0 | AT72: 0 | AV72: 0 | AX72: 0 | AZ72: 0 | BB72: 0 | BD72: 0 | BF72: 0 | BH72: 0 | BJ72: 0 | BL72: 0 | BN72: 0 | BP72: 0 | BR72: 0 | BT72: 0 | BV72: 0 | BX72: 0 | BZ72: 0
L73: 0 | N73: 0 | P73: 0 | R73: 0 | T73: 0 | V73: 0 | X73: 0 | Z73: 0 | AB73: 0 | AD73: 0 | AF73: 0 | AH73: 0 | AJ73: 0 | AL73: 0 | AN73: 0 | AP73: 0 | AR73: 0 | AT73: 0 | AV73: 0 | AX73: 0 | AZ73: 0 | BB73: 0 | BD73: 0 | BF73: 0 | BH73: 0 | BJ73: 0 | BL73: 0 | BN73: 0 | BP73: 0 | BR73: 0 | BT73: 0 | BV73: 0 | BX73: 0 | BZ73: 0
C75: CATEGORIAS | H75: QUANTIDADE
K76: =IF($C76=K$4,1,0) -> 0 | M76: =IF($C76=M$4,1,0) -> 0 | O76: =IF($C76=O$4,1,0) -> 0 | Q76: =IF($C76=Q$4,1,0) -> 0 | S76: =IF($C76=S$4,1,0) -> 0 | U76: =IF($C76=U$4,1,0) -> 0 | W76: =IF($C76=W$4,1,0) -> 0 | Y76: =IF($C76=Y$4,1,0) -> 0 | AA76: =IF($C76=AA$4,1,0) -> 0 | AC76: =IF($C76=AC$4,1,0) -> 0 | AE76: =IF($C76=AE$4,1,0) -> 0 | AG76: =IF($C76=AG$4,1,0) -> 0 | AI76: =IF($C76=AI$4,1,0) -> 0 | AK76: =IF($C76=AK$4,1,0) -> 0 | AM76: =IF($C76=AM$4,1,0) -> 0 | AO76: =IF($C76=AO$4,1,0) -> 0 | AQ76: =IF($C76=AQ$4,1,0) -> 0 | AS76: =IF($C76=AS$4,1,0) -> 0 | AU76: =IF($C76=AU$4,1,0) -> 0 | AW76: =IF($C76=AW$4,1,0) -> 0 | AY76: =IF($C76=AY$4,1,0) -> 0 | BA76: =IF($C76=BA$4,1,0) -> 0 | BC76: =IF($C76=BC$4,1,0) -> 0 | BE76: =IF($C76=BE$4,1,0) -> 0 | BG76: =IF($C76=BG$4,1,0) -> 0 | BI76: =IF($C76=BI$4,1,0) -> 0 | BK76: =IF($C76=BK$4,1,0) -> 0 | BM76: =IF($C76=BM$4,1,0) -> 0 | BO76: =IF($C76=BO$4,1,0) -> 0 | BQ76: =IF($C76=BQ$4,1,0) -> 0 | BS76: =IF($C76=BS$4,1,0) -> 0 | BU76: =IF($C76=BU$4,1,0) -> 0 | BW76: =IF($C76=BW$4,1,0) -> 0 | BY76: =IF($C76=BY$4,1,0) -> 0
D77: =HLOOKUP($C77,'Dados Gerais'!$D$6:$BI$11,6) ->  | H77: =HLOOKUP($C77,'Dados Gerais'!$D$6:$BI$15,10) ->  | K77: =IF($C77=K$4,1,0) -> 0 | M77: =IF($C77=M$4,1,0) -> 0 | O77: =IF($C77=O$4,1,0) -> 0 | Q77: =IF($C77=Q$4,1,0) -> 0 | S77: =IF($C77=S$4,1,0) -> 0 | U77: =IF($C77=U$4,1,0) -> 0 | W77: =IF($C77=W$4,1,0) -> 0 | Y77: =IF($C77=Y$4,1,0) -> 0 | AA77: =IF($C77=AA$4,1,0) -> 0 | AC77: =IF($C77=AC$4,1,0) -> 0 | AE77: =IF($C77=AE$4,1,0) -> 0 | AG77: =IF($C77=AG$4,1,0) -> 0 | AI77: =IF($C77=AI$4,1,0) -> 0 | AK77: =IF($C77=AK$4,1,0) -> 0 | AM77: =IF($C77=AM$4,1,0) -> 0 | AO77: =IF($C77=AO$4,1,0) -> 0 | AQ77: =IF($C77=AQ$4,1,0) -> 0 | AS77: =IF($C77=AS$4,1,0) -> 0 | AU77: =IF($C77=AU$4,1,0) -> 0 | AW77: =IF($C77=AW$4,1,0) -> 0 | AY77: =IF($C77=AY$4,1,0) -> 0 | BA77: =IF($C77=BA$4,1,0) -> 0 | BC77: =IF($C77=BC$4,1,0) -> 0 | BE77: =IF($C77=BE$4,1,0) -> 0 | BG77: =IF($C77=BG$4,1,0) -> 0 | BI77: =IF($C77=BI$4,1,0) -> 0 | BK77: =IF($C77=BK$4,1,0) -> 0 | BM77: =IF($C77=BM$4,1,0) -> 0 | BO77: =IF($C77=BO$4,1,0) -> 0 | BQ77: =IF($C77=BQ$4,1,0) -> 0 | BS77: =IF($C77=BS$4,1,0) -> 0 | BU77: =IF($C77=BU$4,1,0) -> 0 | BW77: =IF($C77=BW$4,1,0) -> 0 | BY77: =IF($C77=BY$4,1,0) -> 0
K78: =IF($C78=K$4,1,0) -> 0 | M78: =IF($C78=M$4,1,0) -> 0 | O78: =IF($C78=O$4,1,0) -> 0 | Q78: =IF($C78=Q$4,1,0) -> 0 | S78: =IF($C78=S$4,1,0) -> 0 | U78: =IF($C78=U$4,1,0) -> 0 | W78: =IF($C78=W$4,1,0) -> 0 | Y78: =IF($C78=Y$4,1,0) -> 0 | AA78: =IF($C78=AA$4,1,0) -> 0 | AC78: =IF($C78=AC$4,1,0) -> 0 | AE78: =IF($C78=AE$4,1,0) -> 0 | AG78: =IF($C78=AG$4,1,0) -> 0 | AI78: =IF($C78=AI$4,1,0) -> 0 | AK78: =IF($C78=AK$4,1,0) -> 0 | AM78: =IF($C78=AM$4,1,0) -> 0 | AO78: =IF($C78=AO$4,1,0) -> 0 | AQ78: =IF($C78=AQ$4,1,0) -> 0 | AS78: =IF($C78=AS$4,1,0) -> 0 | AU78: =IF($C78=AU$4,1,0) -> 0 | AW78: =IF($C78=AW$4,1,0) -> 0 | AY78: =IF($C78=AY$4,1,0) -> 0 | BA78: =IF($C78=BA$4,1,0) -> 0 | BC78: =IF($C78=BC$4,1,0) -> 0 | BE78: =IF($C78=BE$4,1,0) -> 0 | BG78: =IF($C78=BG$4,1,0) -> 0 | BI78: =IF($C78=BI$4,1,0) -> 0 | BK78: =IF($C78=BK$4,1,0) -> 0 | BM78: =IF($C78=BM$4,1,0) -> 0 | BO78: =IF($C78=BO$4,1,0) -> 0 | BQ78: =IF($C78=BQ$4,1,0) -> 0 | BS78: =IF($C78=BS$4,1,0) -> 0 | BU78: =IF($C78=BU$4,1,0) -> 0 | BW78: =IF($C78=BW$4,1,0) -> 0 | BY78: =IF($C78=BY$4,1,0) -> 0
C80: ITEM | D80: DESCRIÇÃO | E80: QUANT ANUAL POR POSTO | F80: UNIDADE | G80: QUANT DE POSTOS | H80: VALOR
L81: =IF(SUM(K$8:K$10)>0,$E81*$H81,0) -> 0 | N81: =IF(SUM(M$8:M$10)>0,$E81*$H81,0) -> 0 | P81: =IF(SUM(O$8:O$10)>0,$E81*$H81,0) -> 0 | R81: =IF(SUM(Q$8:Q$10)>0,$E81*$H81,0) -> 0 | T81: =IF(SUM(S$8:S$10)>0,$E81*$H81,0) -> 0 | V81: =IF(SUM(U$8:U$10)>0,$E81*$H81,0) -> 0 | X81: =IF(SUM(W$8:W$10)>0,$E81*$H81,0) -> 0 | Z81: =IF(SUM(Y$8:Y$10)>0,$E81*$H81,0) -> 0 | AB81: =IF(SUM(AA$8:AA$10)>0,$E81*$H81,0) -> 0 | AD81: =IF(SUM(AC$8:AC$10)>0,$E81*$H81,0) -> 0 | AF81: =IF(SUM(AE$8:AE$10)>0,$E81*$H81,0) -> 0 | AH81: =IF(SUM(AG$8:AG$10)>0,$E81*$H81,0) -> 0 | AJ81: =IF(SUM(AI$8:AI$10)>0,$E81*$H81,0) -> 0 | AL81: =IF(SUM(AK$8:AK$10)>0,$E81*$H81,0) -> 0 | AN81: =IF(SUM(AM$8:AM$10)>0,$E81*$H81,0) -> 0 | AP81: =IF(SUM(AO$8:AO$10)>0,$E81*$H81,0) -> 0 | AR81: =IF(SUM(AQ$8:AQ$10)>0,$E81*$H81,0) -> 0 | AT81: =IF(SUM(AS$8:AS$10)>0,$E81*$H81,0) -> 0 | AV81: =IF(SUM(AU$8:AU$10)>0,$E81*$H81,0) -> 0 | AX81: =IF(SUM(AW$8:AW$10)>0,$E81*$H81,0) -> 0 | AZ81: =IF(SUM(AY$8:AY$10)>0,$E81*$H81,0) -> 0 | BB81: =IF(SUM(BA$8:BA$10)>0,$E81*$H81,0) -> 0 | BD81: =IF(SUM(BC$8:BC$10)>0,$E81*$H81,0) -> 0 | BF81: =IF(SUM(BE$8:BE$10)>0,$E81*$H81,0) -> 0 | BH81: =IF(SUM(BG$8:BG$10)>0,$E81*$H81,0) -> 0 | BJ81: =IF(SUM(BI$8:BI$10)>0,$E81*$H81,0) -> 0 | BL81: =IF(SUM(BK$8:BK$10)>0,$E81*$H81,0) -> 0 | BN81: =IF(SUM(BM$8:BM$10)>0,$E81*$H81,0) -> 0 | BP81: =IF(SUM(BO$8:BO$10)>0,$E81*$H81,0) -> 0 | BR81: =IF(SUM(BQ$8:BQ$10)>0,$E81*$H81,0) -> 0 | BT81: =IF(SUM(BS$8:BS$10)>0,$E81*$H81,0) -> 0 | BV81: =IF(SUM(BU$8:BU$10)>0,$E81*$H81,0) -> 0 | BX81: =IF(SUM(BW$8:BW$10)>0,$E81*$H81,0) -> 0 | BZ81: =IF(SUM(BY$8:BY$10)>0,$E81*$H81,0) -> 0
L82: =ROUND(IF(SUM(K$76:K$78)>0,$E82*$G82*$H82/$H$77,0),2) -> 0 | N82: =ROUND(IF(SUM(M$76:M$78)>0,$E82*$G82*$H82/$H$77,0),2) -> 0 | P82: =ROUND(IF(SUM(O$76:O$78)>0,$E82*$G82*$H82/$H$77,0),2) -> 0 | R82: =ROUND(IF(SUM(Q$76:Q$78)>0,$E82*$G82*$H82/$H$77,0),2) -> 0 | T82: =ROUND(IF(SUM(S$76:S$78)>0,$E82*$G82*$H82/$H$77,0),2) -> 0 | V82: =ROUND(IF(SUM(U$76:U$78)>0,$E82*$G82*$H82/$H$77,0),2) -> 0 | X82: =ROUND(IF(SUM(W$76:W$78)>0,$E82*$G82*$H82/$H$77,0),2) -> 0 | Z82: =ROUND(IF(SUM(Y$76:Y$78)>0,$E82*$G82*$H82/$H$77,0),2) -> 0 | AB82: =ROUND(IF(SUM(AA$76:AA$78)>0,$E82*$G82*$H82/$H$77,0),2) -> 0 | AD82: =ROUND(IF(SUM(AC$76:AC$78)>0,$E82*$G82*$H82/$H$77,0),2) -> 0 | AF82: =ROUND(IF(SUM(AE$76:AE$78)>0,$E82*$G82*$H82/$H$77,0),2) -> 0 | AH82: =ROUND(IF(SUM(AG$76:AG$78)>0,$E82*$G82*$H82/$H$77,0),2) -> 0 | AJ82: =ROUND(IF(SUM(AI$76:AI$78)>0,$E82*$G82*$H82/$H$77,0),2) -> 0 | AL82: =ROUND(IF(SUM(AK$76:AK$78)>0,$E82*$G82*$H82/$H$77,0),2) -> 0 | AN82: =ROUND(IF(SUM(AM$76:AM$78)>0,$E82*$G82*$H82/$H$77,0),2) -> 0 | AP82: =ROUND(IF(SUM(AO$76:AO$78)>0,$E82*$G82*$H82/$H$77,0),2) -> 0 | AR82: =ROUND(IF(SUM(AQ$76:AQ$78)>0,$E82*$G82*$H82/$H$77,0),2) -> 0 | AT82: =ROUND(IF(SUM(AS$76:AS$78)>0,$E82*$G82*$H82/$H$77,0),2) -> 0 | AV82: =ROUND(IF(SUM(AU$76:AU$78)>0,$E82*$G82*$H82/$H$77,0),2) -> 0 | AX82: =ROUND(IF(SUM(AW$76:AW$78)>0,$E82*$G82*$H82/$H$77,0),2) -> 0 | AZ82: =ROUND(IF(SUM(AY$76:AY$78)>0,$E82*$G82*$H82/$H$77,0),2) -> 0 | BB82: =ROUND(IF(SUM(BA$76:BA$78)>0,$E82*$G82*$H82/$H$77,0),2) -> 0 | BD82: =ROUND(IF(SUM(BC$76:BC$78)>0,$E82*$G82*$H82/$H$77,0),2) -> 0 | BF82: =ROUND(IF(SUM(BE$76:BE$78)>0,$E82*$G82*$H82/$H$77,0),2) -> 0 | BH82: =ROUND(IF(SUM(BG$76:BG$78)>0,$E82*$G82*$H82/$H$77,0),2) -> 0 | BJ82: =ROUND(IF(SUM(BI$76:BI$78)>0,$E82*$G82*$H82/$H$77,0),2) -> 0 | BL82: =ROUND(IF(SUM(BK$76:BK$78)>0,$E82*$G82*$H82/$H$77,0),2) -> 0 | BN82: =ROUND(IF(SUM(BM$76:BM$78)>0,$E82*$G82*$H82/$H$77,0),2) -> 0 | BP82: =ROUND(IF(SUM(BO$76:BO$78)>0,$E82*$G82*$H82/$H$77,0),2) -> 0 | BR82: =ROUND(IF(SUM(BQ$76:BQ$78)>0,$E82*$G82*$H82/$H$77,0),2) -> 0 | BT82: =ROUND(IF(SUM(BS$76:BS$78)>0,$E82*$G82*$H82/$H$77,0),2) -> 0 | BV82: =ROUND(IF(SUM(BU$76:BU$78)>0,$E82*$G82*$H82/$H$77,0),2) -> 0 | BX82: =ROUND(IF(SUM(BW$76:BW$78)>0,$E82*$G82*$H82/$H$77,0),2) -> 0 | BZ82: =ROUND(IF(SUM(BY$76:BY$78)>0,$E82*$G82*$H82/$H$77,0),2) -> 0
L83: 0 | N83: 0 | P83: 0 | R83: 0 | T83: 0 | V83: 0 | X83: 0 | Z83: 0 | AB83: 0 | AD83: 0 | AF83: 0 | AH83: 0 | AJ83: 0 | AL83: 0 | AN83: 0 | AP83: 0 | AR83: 0 | AT83: 0 | AV83: 0 | AX83: 0 | AZ83: 0 | BB83: 0 | BD83: 0 | BF83: 0 | BH83: 0 | BJ83: 0 | BL83: 0 | BN83: 0 | BP83: 0 | BR83: 0 | BT83: 0 | BV83: 0 | BX83: 0 | BZ83: 0
L84: 0 | N84: 0 | P84: 0 | R84: 0 | T84: 0 | V84: 0 | X84: 0 | Z84: 0 | AB84: 0 | AD84: 0 | AF84: 0 | AH84: 0 | AJ84: 0 | AL84: 0 | AN84: 0 | AP84: 0 | AR84: 0 | AT84: 0 | AV84: 0 | AX84: 0 | AZ84: 0 | BB84: 0 | BD84: 0 | BF84: 0 | BH84: 0 | BJ84: 0 | BL84: 0 | BN84: 0 | BP84: 0 | BR84: 0 | BT84: 0 | BV84: 0 | BX84: 0 | BZ84: 0
L85: 0 | N85: 0 | P85: 0 | R85: 0 | T85: 0 | V85: 0 | X85: 0 | Z85: 0 | AB85: 0 | AD85: 0 | AF85: 0 | AH85: 0 | AJ85: 0 | AL85: 0 | AN85: 0 | AP85: 0 | AR85: 0 | AT85: 0 | AV85: 0 | AX85: 0 | AZ85: 0 | BB85: 0 | BD85: 0 | BF85: 0 | BH85: 0 | BJ85: 0 | BL85: 0 | BN85: 0 | BP85: 0 | BR85: 0 | BT85: 0 | BV85: 0 | BX85: 0 | BZ85: 0
L86: 0 | N86: 0 | P86: 0 | R86: 0 | T86: 0 | V86: 0 | X86: 0 | Z86: 0 | AB86: 0 | AD86: 0 | AF86: 0 | AH86: 0 | AJ86: 0 | AL86: 0 | AN86: 0 | AP86: 0 | AR86: 0 | AT86: 0 | AV86: 0 | AX86: 0 | AZ86: 0 | BB86: 0 | BD86: 0 | BF86: 0 | BH86: 0 | BJ86: 0 | BL86: 0 | BN86: 0 | BP86: 0 | BR86: 0 | BT86: 0 | BV86: 0 | BX86: 0 | BZ86: 0
L87: 0 | N87: 0 | P87: 0 | R87: 0 | T87: 0 | V87: 0 | X87: 0 | Z87: 0 | AB87: 0 | AD87: 0 | AF87: 0 | AH87: 0 | AJ87: 0 | AL87: 0 | AN87: 0 | AP87: 0 | AR87: 0 | AT87: 0 | AV87: 0 | AX87: 0 | AZ87: 0 | BB87: 0 | BD87: 0 | BF87: 0 | BH87: 0 | BJ87: 0 | BL87: 0 | BN87: 0 | BP87: 0 | BR87: 0 | BT87: 0 | BV87: 0 | BX87: 0 | BZ87: 0
L88: 0 | N88: 0 | P88: 0 | R88: 0 | T88: 0 | V88: 0 | X88: 0 | Z88: 0 | AB88: 0 | AD88: 0 | AF88: 0 | AH88: 0 | AJ88: 0 | AL88: 0 | AN88: 0 | AP88: 0 | AR88: 0 | AT88: 0 | AV88: 0 | AX88: 0 | AZ88: 0 | BB88: 0 | BD88: 0 | BF88: 0 | BH88: 0 | BJ88: 0 | BL88: 0 | BN88: 0 | BP88: 0 | BR88: 0 | BT88: 0 | BV88: 0 | BX88: 0 | BZ88: 0
L89: 0 | N89: 0 | P89: 0 | R89: 0 | T89: 0 | V89: 0 | X89: 0 | Z89: 0 | AB89: 0 | AD89: 0 | AF89: 0 | AH89: 0 | AJ89: 0 | AL89: 0 | AN89: 0 | AP89: 0 | AR89: 0 | AT89: 0 | AV89: 0 | AX89: 0 | AZ89: 0 | BB89: 0 | BD89: 0 | BF89: 0 | BH89: 0 | BJ89: 0 | BL89: 0 | BN89: 0 | BP89: 0 | BR89: 0 | BT89: 0 | BV89: 0 | BX89: 0 | BZ89: 0
L90: 0 | N90: 0 | P90: 0 | R90: 0 | T90: 0 | V90: 0 | X90: 0 | Z90: 0 | AB90: 0 | AD90: 0 | AF90: 0 | AH90: 0 | AJ90: 0 | AL90: 0 | AN90: 0 | AP90: 0 | AR90: 0 | AT90: 0 | AV90: 0 | AX90: 0 | AZ90: 0 | BB90: 0 | BD90: 0 | BF90: 0 | BH90: 0 | BJ90: 0 | BL90: 0 | BN90: 0 | BP90: 0 | BR90: 0 | BT90: 0 | BV90: 0 | BX90: 0 | BZ90: 0
L91: 0 | N91: 0 | P91: 0 | R91: 0 | T91: 0 | V91: 0 | X91: 0 | Z91: 0 | AB91: 0 | AD91: 0 | AF91: 0 | AH91: 0 | AJ91: 0 | AL91: 0 | AN91: 0 | AP91: 0 | AR91: 0 | AT91: 0 | AV91: 0 | AX91: 0 | AZ91: 0 | BB91: 0 | BD91: 0 | BF91: 0 | BH91: 0 | BJ91: 0 | BL91: 0 | BN91: 0 | BP91: 0 | BR91: 0 | BT91: 0 | BV91: 0 | BX91: 0 | BZ91: 0
L92: 0 | N92: 0 | P92: 0 | R92: 0 | T92: 0 | V92: 0 | X92: 0 | Z92: 0 | AB92: 0 | AD92: 0 | AF92: 0 | AH92: 0 | AJ92: 0 | AL92: 0 | AN92: 0 | AP92: 0 | AR92: 0 | AT92: 0 | AV92: 0 | AX92: 0 | AZ92: 0 | BB92: 0 | BD92: 0 | BF92: 0 | BH92: 0 | BJ92: 0 | BL92: 0 | BN92: 0 | BP92: 0 | BR92: 0 | BT92: 0 | BV92: 0 | BX92: 0 | BZ92: 0
L93: 0 | N93: 0 | P93: 0 | R93: 0 | T93: 0 | V93: 0 | X93: 0 | Z93: 0 | AB93: 0 | AD93: 0 | AF93: 0 | AH93: 0 | AJ93: 0 | AL93: 0 | AN93: 0 | AP93: 0 | AR93: 0 | AT93: 0 | AV93: 0 | AX93: 0 | AZ93: 0 | BB93: 0 | BD93: 0 | BF93: 0 | BH93: 0 | BJ93: 0 | BL93: 0 | BN93: 0 | BP93: 0 | BR93: 0 | BT93: 0 | BV93: 0 | BX93: 0 | BZ93: 0
L94: 0 | N94: 0 | P94: 0 | R94: 0 | T94: 0 | V94: 0 | X94: 0 | Z94: 0 | AB94: 0 | AD94: 0 | AF94: 0 | AH94: 0 | AJ94: 0 | AL94: 0 | AN94: 0 | AP94: 0 | AR94: 0 | AT94: 0 | AV94: 0 | AX94: 0 | AZ94: 0 | BB94: 0 | BD94: 0 | BF94: 0 | BH94: 0 | BJ94: 0 | BL94: 0 | BN94: 0 | BP94: 0 | BR94: 0 | BT94: 0 | BV94: 0 | BX94: 0 | BZ94: 0
L95: 0 | N95: 0 | P95: 0 | R95: 0 | T95: 0 | V95: 0 | X95: 0 | Z95: 0 | AB95: 0 | AD95: 0 | AF95: 0 | AH95: 0 | AJ95: 0 | AL95: 0 | AN95: 0 | AP95: 0 | AR95: 0 | AT95: 0 | AV95: 0 | AX95: 0 | AZ95: 0 | BB95: 0 | BD95: 0 | BF95: 0 | BH95: 0 | BJ95: 0 | BL95: 0 | BN95: 0 | BP95: 0 | BR95: 0 | BT95: 0 | BV95: 0 | BX95: 0 | BZ95: 0
L96: 0 | N96: 0 | P96: 0 | R96: 0 | T96: 0 | V96: 0 | X96: 0 | Z96: 0 | AB96: 0 | AD96: 0 | AF96: 0 | AH96: 0 | AJ96: 0 | AL96: 0 | AN96: 0 | AP96: 0 | AR96: 0 | AT96: 0 | AV96: 0 | AX96: 0 | AZ96: 0 | BB96: 0 | BD96: 0 | BF96: 0 | BH96: 0 | BJ96: 0 | BL96: 0 | BN96: 0 | BP96: 0 | BR96: 0 | BT96: 0 | BV96: 0 | BX96: 0 | BZ96: 0
L97: 0 | N97: 0 | P97: 0 | R97: 0 | T97: 0 | V97: 0 | X97: 0 | Z97: 0 | AB97: 0 | AD97: 0 | AF97: 0 | AH97: 0 | AJ97: 0 | AL97: 0 | AN97: 0 | AP97: 0 | AR97: 0 | AT97: 0 | AV97: 0 | AX97: 0 | AZ97: 0 | BB97: 0 | BD97: 0 | BF97: 0 | BH97: 0 | BJ97: 0 | BL97: 0 | BN97: 0 | BP97: 0 | BR97: 0 | BT97: 0 | BV97: 0 | BX97: 0 | BZ97: 0
L98: 0 | N98: 0 | P98: 0 | R98: 0 | T98: 0 | V98: 0 | X98: 0 | Z98: 0 | AB98: 0 | AD98: 0 | AF98: 0 | AH98: 0 | AJ98: 0 | AL98: 0 | AN98: 0 | AP98: 0 | AR98: 0 | AT98: 0 | AV98: 0 | AX98: 0 | AZ98: 0 | BB98: 0 | BD98: 0 | BF98: 0 | BH98: 0 | BJ98: 0 | BL98: 0 | BN98: 0 | BP98: 0 | BR98: 0 | BT98: 0 | BV98: 0 | BX98: 0 | BZ98: 0
L99: 0 | N99: 0 | P99: 0 | R99: 0 | T99: 0 | V99: 0 | X99: 0 | Z99: 0 | AB99: 0 | AD99: 0 | AF99: 0 | AH99: 0 | AJ99: 0 | AL99: 0 | AN99: 0 | AP99: 0 | AR99: 0 | AT99: 0 | AV99: 0 | AX99: 0 | AZ99: 0 | BB99: 0 | BD99: 0 | BF99: 0 | BH99: 0 | BJ99: 0 | BL99: 0 | BN99: 0 | BP99: 0 | BR99: 0 | BT99: 0 | BV99: 0 | BX99: 0 | BZ99: 0
L100: 0 | N100: 0 | P100: 0 | R100: 0 | T100: 0 | V100: 0 | X100: 0 | Z100: 0 | AB100: 0 | AD100: 0 | AF100: 0 | AH100: 0 | AJ100: 0 | AL100: 0 | AN100: 0 | AP100: 0 | AR100: 0 | AT100: 0 | AV100: 0 | AX100: 0 | AZ100: 0 | BB100: 0 | BD100: 0 | BF100: 0 | BH100: 0 | BJ100: 0 | BL100: 0 | BN100: 0 | BP100: 0 | BR100: 0 | BT100: 0 | BV100: 0 | BX100: 0 | BZ100: 0
L101: 0 | N101: 0 | P101: 0 | R101: 0 | T101: 0 | V101: 0 | X101: 0 | Z101: 0 | AB101: 0 | AD101: 0 | AF101: 0 | AH101: 0 | AJ101: 0 | AL101: 0 | AN101: 0 | AP101: 0 | AR101: 0 | AT101: 0 | AV101: 0 | AX101: 0 | AZ101: 0 | BB101: 0 | BD101: 0 | BF101: 0 | BH101: 0 | BJ101: 0 | BL101: 0 | BN101: 0 | BP101: 0 | BR101: 0 | BT101: 0 | BV101: 0 | BX101: 0 | BZ101: 0
L102: 0 | N102: 0 | P102: 0 | R102: 0 | T102: 0 | V102: 0 | X102: 0 | Z102: 0 | AB102: 0 | AD102: 0 | AF102: 0 | AH102: 0 | AJ102: 0 | AL102: 0 | AN102: 0 | AP102: 0 | AR102: 0 | AT102: 0 | AV102: 0 | AX102: 0 | AZ102: 0 | BB102: 0 | BD102: 0 | BF102: 0 | BH102: 0 | BJ102: 0 | BL102: 0 | BN102: 0 | BP102: 0 | BR102: 0 | BT102: 0 | BV102: 0 | BX102: 0 | BZ102: 0
C104: CATEGORIAS | H104: QUANTIDADE
K105: =IF($C105=K$4,1,0) -> 0 | M105: =IF($C105=M$4,1,0) -> 0 | O105: =IF($C105=O$4,1,0) -> 0 | Q105: =IF($C105=Q$4,1,0) -> 0 | S105: =IF($C105=S$4,1,0) -> 0 | U105: =IF($C105=U$4,1,0) -> 0 | W105: =IF($C105=W$4,1,0) -> 0 | Y105: =IF($C105=Y$4,1,0) -> 0 | AA105: =IF($C105=AA$4,1,0) -> 0 | AC105: =IF($C105=AC$4,1,0) -> 0 | AE105: =IF($C105=AE$4,1,0) -> 0 | AG105: =IF($C105=AG$4,1,0) -> 0 | AI105: =IF($C105=AI$4,1,0) -> 0 | AK105: =IF($C105=AK$4,1,0) -> 0 | AM105: =IF($C105=AM$4,1,0) -> 0 | AO105: =IF($C105=AO$4,1,0) -> 0 | AQ105: =IF($C105=AQ$4,1,0) -> 0 | AS105: =IF($C105=AS$4,1,0) -> 0 | AU105: =IF($C105=AU$4,1,0) -> 0 | AW105: =IF($C105=AW$4,1,0) -> 0 | AY105: =IF($C105=AY$4,1,0) -> 0 | BA105: =IF($C105=BA$4,1,0) -> 0 | BC105: =IF($C105=BC$4,1,0) -> 0 | BE105: =IF($C105=BE$4,1,0) -> 0 | BG105: =IF($C105=BG$4,1,0) -> 0 | BI105: =IF($C105=BI$4,1,0) -> 0 | BK105: =IF($C105=BK$4,1,0) -> 0 | BM105: =IF($C105=BM$4,1,0) -> 0 | BO105: =IF($C105=BO$4,1,0) -> 0 | BQ105: =IF($C105=BQ$4,1,0) -> 0 | BS105: =IF($C105=BS$4,1,0) -> 0 | BU105: =IF($C105=BU$4,1,0) -> 0 | BW105: =IF($C105=BW$4,1,0) -> 0 | BY105: =IF($C105=BY$4,1,0) -> 0
D106: =HLOOKUP($C106,'Dados Gerais'!$D$6:$BI$11,6) ->  | H106: =HLOOKUP($C106,'Dados Gerais'!$D$6:$BI$15,10) ->  | K106: =IF($C106=K$4,1,0) -> 0 | M106: =IF($C106=M$4,1,0) -> 0 | O106: =IF($C106=O$4,1,0) -> 0 | Q106: =IF($C106=Q$4,1,0) -> 0 | S106: =IF($C106=S$4,1,0) -> 0 | U106: =IF($C106=U$4,1,0) -> 0 | W106: =IF($C106=W$4,1,0) -> 0 | Y106: =IF($C106=Y$4,1,0) -> 0 | AA106: =IF($C106=AA$4,1,0) -> 0 | AC106: =IF($C106=AC$4,1,0) -> 0 | AE106: =IF($C106=AE$4,1,0) -> 0 | AG106: =IF($C106=AG$4,1,0) -> 0 | AI106: =IF($C106=AI$4,1,0) -> 0 | AK106: =IF($C106=AK$4,1,0) -> 0 | AM106: =IF($C106=AM$4,1,0) -> 0 | AO106: =IF($C106=AO$4,1,0) -> 0 | AQ106: =IF($C106=AQ$4,1,0) -> 0 | AS106: =IF($C106=AS$4,1,0) -> 0 | AU106: =IF($C106=AU$4,1,0) -> 0 | AW106: =IF($C106=AW$4,1,0) -> 0 | AY106: =IF($C106=AY$4,1,0) -> 0 | BA106: =IF($C106=BA$4,1,0) -> 0 | BC106: =IF($C106=BC$4,1,0) -> 0 | BE106: =IF($C106=BE$4,1,0) -> 0 | BG106: =IF($C106=BG$4,1,0) -> 0 | BI106: =IF($C106=BI$4,1,0) -> 0 | BK106: =IF($C106=BK$4,1,0) -> 0 | BM106: =IF($C106=BM$4,1,0) -> 0 | BO106: =IF($C106=BO$4,1,0) -> 0 | BQ106: =IF($C106=BQ$4,1,0) -> 0 | BS106: =IF($C106=BS$4,1,0) -> 0 | BU106: =IF($C106=BU$4,1,0) -> 0 | BW106: =IF($C106=BW$4,1,0) -> 0 | BY106: =IF($C106=BY$4,1,0) -> 0
K107: =IF($C107=K$4,1,0) -> 0 | M107: =IF($C107=M$4,1,0) -> 0 | O107: =IF($C107=O$4,1,0) -> 0 | Q107: =IF($C107=Q$4,1,0) -> 0 | S107: =IF($C107=S$4,1,0) -> 0 | U107: =IF($C107=U$4,1,0) -> 0 | W107: =IF($C107=W$4,1,0) -> 0 | Y107: =IF($C107=Y$4,1,0) -> 0 | AA107: =IF($C107=AA$4,1,0) -> 0 | AC107: =IF($C107=AC$4,1,0) -> 0 | AE107: =IF($C107=AE$4,1,0) -> 0 | AG107: =IF($C107=AG$4,1,0) -> 0 | AI107: =IF($C107=AI$4,1,0) -> 0 | AK107: =IF($C107=AK$4,1,0) -> 0 | AM107: =IF($C107=AM$4,1,0) -> 0 | AO107: =IF($C107=AO$4,1,0) -> 0 | AQ107: =IF($C107=AQ$4,1,0) -> 0 | AS107: =IF($C107=AS$4,1,0) -> 0 | AU107: =IF($C107=AU$4,1,0) -> 0 | AW107: =IF($C107=AW$4,1,0) -> 0 | AY107: =IF($C107=AY$4,1,0) -> 0 | BA107: =IF($C107=BA$4,1,0) -> 0 | BC107: =IF($C107=BC$4,1,0) -> 0 | BE107: =IF($C107=BE$4,1,0) -> 0 | BG107: =IF($C107=BG$4,1,0) -> 0 | BI107: =IF($C107=BI$4,1,0) -> 0 | BK107: =IF($C107=BK$4,1,0) -> 0 | BM107: =IF($C107=BM$4,1,0) -> 0 | BO107: =IF($C107=BO$4,1,0) -> 0 | BQ107: =IF($C107=BQ$4,1,0) -> 0 | BS107: =IF($C107=BS$4,1,0) -> 0 | BU107: =IF($C107=BU$4,1,0) -> 0 | BW107: =IF($C107=BW$4,1,0) -> 0 | BY107: =IF($C107=BY$4,1,0) -> 0
C109: ITEM | D109: DESCRIÇÃO | E109: QUANT ANUAL POR POSTO | F109: UNIDADE | G109: QUANT DE POSTOS | H109: VALOR
L110: =IF(SUM(K$8:K$10)>0,$E110*$H110,0) -> 0 | N110: =IF(SUM(M$8:M$10)>0,$E110*$H110,0) -> 0 | P110: =IF(SUM(O$8:O$10)>0,$E110*$H110,0) -> 0 | R110: =IF(SUM(Q$8:Q$10)>0,$E110*$H110,0) -> 0 | T110: =IF(SUM(S$8:S$10)>0,$E110*$H110,0) -> 0 | V110: =IF(SUM(U$8:U$10)>0,$E110*$H110,0) -> 0 | X110: =IF(SUM(W$8:W$10)>0,$E110*$H110,0) -> 0 | Z110: =IF(SUM(Y$8:Y$10)>0,$E110*$H110,0) -> 0 | AB110: =IF(SUM(AA$8:AA$10)>0,$E110*$H110,0) -> 0 | AD110: =IF(SUM(AC$8:AC$10)>0,$E110*$H110,0) -> 0 | AF110: =IF(SUM(AE$8:AE$10)>0,$E110*$H110,0) -> 0 | AH110: =IF(SUM(AG$8:AG$10)>0,$E110*$H110,0) -> 0 | AJ110: =IF(SUM(AI$8:AI$10)>0,$E110*$H110,0) -> 0 | AL110: =IF(SUM(AK$8:AK$10)>0,$E110*$H110,0) -> 0 | AN110: =IF(SUM(AM$8:AM$10)>0,$E110*$H110,0) -> 0 | AP110: =IF(SUM(AO$8:AO$10)>0,$E110*$H110,0) -> 0 | AR110: =IF(SUM(AQ$8:AQ$10)>0,$E110*$H110,0) -> 0 | AT110: =IF(SUM(AS$8:AS$10)>0,$E110*$H110,0) -> 0 | AV110: =IF(SUM(AU$8:AU$10)>0,$E110*$H110,0) -> 0 | AX110: =IF(SUM(AW$8:AW$10)>0,$E110*$H110,0) -> 0 | AZ110: =IF(SUM(AY$8:AY$10)>0,$E110*$H110,0) -> 0 | BB110: =IF(SUM(BA$8:BA$10)>0,$E110*$H110,0) -> 0 | BD110: =IF(SUM(BC$8:BC$10)>0,$E110*$H110,0) -> 0 | BF110: =IF(SUM(BE$8:BE$10)>0,$E110*$H110,0) -> 0 | BH110: =IF(SUM(BG$8:BG$10)>0,$E110*$H110,0) -> 0 | BJ110: =IF(SUM(BI$8:BI$10)>0,$E110*$H110,0) -> 0 | BL110: =IF(SUM(BK$8:BK$10)>0,$E110*$H110,0) -> 0 | BN110: =IF(SUM(BM$8:BM$10)>0,$E110*$H110,0) -> 0 | BP110: =IF(SUM(BO$8:BO$10)>0,$E110*$H110,0) -> 0 | BR110: =IF(SUM(BQ$8:BQ$10)>0,$E110*$H110,0) -> 0 | BT110: =IF(SUM(BS$8:BS$10)>0,$E110*$H110,0) -> 0 | BV110: =IF(SUM(BU$8:BU$10)>0,$E110*$H110,0) -> 0 | BX110: =IF(SUM(BW$8:BW$10)>0,$E110*$H110,0) -> 0 | BZ110: =IF(SUM(BY$8:BY$10)>0,$E110*$H110,0) -> 0
L111: =ROUND(IF(SUM(K$105:K$107)>0,$E111*$G111*$H111/$H$106,0),2) -> 0 | N111: =ROUND(IF(SUM(M$105:M$107)>0,$E111*$G111*$H111/$H$106,0),2) -> 0 | P111: =ROUND(IF(SUM(O$105:O$107)>0,$E111*$G111*$H111/$H$106,0),2) -> 0 | R111: =ROUND(IF(SUM(Q$105:Q$107)>0,$E111*$G111*$H111/$H$106,0),2) -> 0 | T111: =ROUND(IF(SUM(S$105:S$107)>0,$E111*$G111*$H111/$H$106,0),2) -> 0 | V111: =ROUND(IF(SUM(U$105:U$107)>0,$E111*$G111*$H111/$H$106,0),2) -> 0 | X111: =ROUND(IF(SUM(W$105:W$107)>0,$E111*$G111*$H111/$H$106,0),2) -> 0 | Z111: =ROUND(IF(SUM(Y$105:Y$107)>0,$E111*$G111*$H111/$H$106,0),2) -> 0 | AB111: =ROUND(IF(SUM(AA$105:AA$107)>0,$E111*$G111*$H111/$H$106,0),2) -> 0 | AD111: =ROUND(IF(SUM(AC$105:AC$107)>0,$E111*$G111*$H111/$H$106,0),2) -> 0 | AF111: =ROUND(IF(SUM(AE$105:AE$107)>0,$E111*$G111*$H111/$H$106,0),2) -> 0 | AH111: =ROUND(IF(SUM(AG$105:AG$107)>0,$E111*$G111*$H111/$H$106,0),2) -> 0 | AJ111: =ROUND(IF(SUM(AI$105:AI$107)>0,$E111*$G111*$H111/$H$106,0),2) -> 0 | AL111: =ROUND(IF(SUM(AK$105:AK$107)>0,$E111*$G111*$H111/$H$106,0),2) -> 0 | AN111: =ROUND(IF(SUM(AM$105:AM$107)>0,$E111*$G111*$H111/$H$106,0),2) -> 0 | AP111: =ROUND(IF(SUM(AO$105:AO$107)>0,$E111*$G111*$H111/$H$106,0),2) -> 0 | AR111: =ROUND(IF(SUM(AQ$105:AQ$107)>0,$E111*$G111*$H111/$H$106,0),2) -> 0 | AT111: =ROUND(IF(SUM(AS$105:AS$107)>0,$E111*$G111*$H111/$H$106,0),2) -> 0 | AV111: =ROUND(IF(SUM(AU$105:AU$107)>0,$E111*$G111*$H111/$H$106,0),2) -> 0 | AX111: =ROUND(IF(SUM(AW$105:AW$107)>0,$E111*$G111*$H111/$H$106,0),2) -> 0 | AZ111: =ROUND(IF(SUM(AY$105:AY$107)>0,$E111*$G111*$H111/$H$106,0),2) -> 0 | BB111: =ROUND(IF(SUM(BA$105:BA$107)>0,$E111*$G111*$H111/$H$106,0),2) -> 0 | BD111: =ROUND(IF(SUM(BC$105:BC$107)>0,$E111*$G111*$H111/$H$106,0),2) -> 0 | BF111: =ROUND(IF(SUM(BE$105:BE$107)>0,$E111*$G111*$H111/$H$106,0),2) -> 0 | BH111: =ROUND(IF(SUM(BG$105:BG$107)>0,$E111*$G111*$H111/$H$106,0),2) -> 0 | BJ111: =ROUND(IF(SUM(BI$105:BI$107)>0,$E111*$G111*$H111/$H$106,0),2) -> 0 | BL111: =ROUND(IF(SUM(BK$105:BK$107)>0,$E111*$G111*$H111/$H$106,0),2) -> 0 | BN111: =ROUND(IF(SUM(BM$105:BM$107)>0,$E111*$G111*$H111/$H$106,0),2) -> 0 | BP111: =ROUND(IF(SUM(BO$105:BO$107)>0,$E111*$G111*$H111/$H$106,0),2) -> 0 | BR111: =ROUND(IF(SUM(BQ$105:BQ$107)>0,$E111*$G111*$H111/$H$106,0),2) -> 0 | BT111: =ROUND(IF(SUM(BS$105:BS$107)>0,$E111*$G111*$H111/$H$106,0),2) -> 0 | BV111: =ROUND(IF(SUM(BU$105:BU$107)>0,$E111*$G111*$H111/$H$106,0),2) -> 0 | BX111: =ROUND(IF(SUM(BW$105:BW$107)>0,$E111*$G111*$H111/$H$106,0),2) -> 0 | BZ111: =ROUND(IF(SUM(BY$105:BY$107)>0,$E111*$G111*$H111/$H$106,0),2) -> 0
L112: 0 | N112: 0 | P112: 0 | R112: 0 | T112: 0 | V112: 0 | X112: 0 | Z112: 0 | AB112: 0 | AD112: 0 | AF112: 0 | AH112: 0 | AJ112: 0 | AL112: 0 | AN112: 0 | AP112: 0 | AR112: 0 | AT112: 0 | AV112: 0 | AX112: 0 | AZ112: 0 | BB112: 0 | BD112: 0 | BF112: 0 | BH112: 0 | BJ112: 0 | BL112: 0 | BN112: 0 | BP112: 0 | BR112: 0 | BT112: 0 | BV112: 0 | BX112: 0 | BZ112: 0
L113: 0 | N113: 0 | P113: 0 | R113: 0 | T113: 0 | V113: 0 | X113: 0 | Z113: 0 | AB113: 0 | AD113: 0 | AF113: 0 | AH113: 0 | AJ113: 0 | AL113: 0 | AN113: 0 | AP113: 0 | AR113: 0 | AT113: 0 | AV113: 0 | AX113: 0 | AZ113: 0 | BB113: 0 | BD113: 0 | BF113: 0 | BH113: 0 | BJ113: 0 | BL113: 0 | BN113: 0 | BP113: 0 | BR113: 0 | BT113: 0 | BV113: 0 | BX113: 0 | BZ113: 0
L114: 0 | N114: 0 | P114: 0 | R114: 0 | T114: 0 | V114: 0 | X114: 0 | Z114: 0 | AB114: 0 | AD114: 0 | AF114: 0 | AH114: 0 | AJ114: 0 | AL114: 0 | AN114: 0 | AP114: 0 | AR114: 0 | AT114: 0 | AV114: 0 | AX114: 0 | AZ114: 0 | BB114: 0 | BD114: 0 | BF114: 0 | BH114: 0 | BJ114: 0 | BL114: 0 | BN114: 0 | BP114: 0 | BR114: 0 | BT114: 0 | BV114: 0 | BX114: 0 | BZ114: 0
L115: 0 | N115: 0 | P115: 0 | R115: 0 | T115: 0 | V115: 0 | X115: 0 | Z115: 0 | AB115: 0 | AD115: 0 | AF115: 0 | AH115: 0 | AJ115: 0 | AL115: 0 | AN115: 0 | AP115: 0 | AR115: 0 | AT115: 0 | AV115: 0 | AX115: 0 | AZ115: 0 | BB115: 0 | BD115: 0 | BF115: 0 | BH115: 0 | BJ115: 0 | BL115: 0 | BN115: 0 | BP115: 0 | BR115: 0 | BT115: 0 | BV115: 0 | BX115: 0 | BZ115: 0
L116: 0 | N116: 0 | P116: 0 | R116: 0 | T116: 0 | V116: 0 | X116: 0 | Z116: 0 | AB116: 0 | AD116: 0 | AF116: 0 | AH116: 0 | AJ116: 0 | AL116: 0 | AN116: 0 | AP116: 0 | AR116: 0 | AT116: 0 | AV116: 0 | AX116: 0 | AZ116: 0 | BB116: 0 | BD116: 0 | BF116: 0 | BH116: 0 | BJ116: 0 | BL116: 0 | BN116: 0 | BP116: 0 | BR116: 0 | BT116: 0 | BV116: 0 | BX116: 0 | BZ116: 0
L117: 0 | N117: 0 | P117: 0 | R117: 0 | T117: 0 | V117: 0 | X117: 0 | Z117: 0 | AB117: 0 | AD117: 0 | AF117: 0 | AH117: 0 | AJ117: 0 | AL117: 0 | AN117: 0 | AP117: 0 | AR117: 0 | AT117: 0 | AV117: 0 | AX117: 0 | AZ117: 0 | BB117: 0 | BD117: 0 | BF117: 0 | BH117: 0 | BJ117: 0 | BL117: 0 | BN117: 0 | BP117: 0 | BR117: 0 | BT117: 0 | BV117: 0 | BX117: 0 | BZ117: 0
C119: CATEGORIAS | H119: QUANTIDADE
K120: =IF($C120=K$4,1,0) -> 0 | M120: =IF($C120=M$4,1,0) -> 0 | O120: =IF($C120=O$4,1,0) -> 0 | Q120: =IF($C120=Q$4,1,0) -> 0 | S120: =IF($C120=S$4,1,0) -> 0 | U120: =IF($C120=U$4,1,0) -> 0 | W120: =IF($C120=W$4,1,0) -> 0 | Y120: =IF($C120=Y$4,1,0) -> 0 | AA120: =IF($C120=AA$4,1,0) -> 0 | AC120: =IF($C120=AC$4,1,0) -> 0 | AE120: =IF($C120=AE$4,1,0) -> 0 | AG120: =IF($C120=AG$4,1,0) -> 0 | AI120: =IF($C120=AI$4,1,0) -> 0 | AK120: =IF($C120=AK$4,1,0) -> 0 | AM120: =IF($C120=AM$4,1,0) -> 0 | AO120: =IF($C120=AO$4,1,0) -> 0 | AQ120: =IF($C120=AQ$4,1,0) -> 0 | AS120: =IF($C120=AS$4,1,0) -> 0 | AU120: =IF($C120=AU$4,1,0) -> 0 | AW120: =IF($C120=AW$4,1,0) -> 0 | AY120: =IF($C120=AY$4,1,0) -> 0 | BA120: =IF($C120=BA$4,1,0) -> 0 | BC120: =IF($C120=BC$4,1,0) -> 0 | BE120: =IF($C120=BE$4,1,0) -> 0 | BG120: =IF($C120=BG$4,1,0) -> 0 | BI120: =IF($C120=BI$4,1,0) -> 0 | BK120: =IF($C120=BK$4,1,0) -> 0 | BM120: =IF($C120=BM$4,1,0) -> 0 | BO120: =IF($C120=BO$4,1,0) -> 0 | BQ120: =IF($C120=BQ$4,1,0) -> 0 | BS120: =IF($C120=BS$4,1,0) -> 0 | BU120: =IF($C120=BU$4,1,0) -> 0 | BW120: =IF($C120=BW$4,1,0) -> 0 | BY120: =IF($C120=BY$4,1,0) -> 0
D121: =HLOOKUP($C121,'Dados Gerais'!$D$6:$BI$11,6) ->  | H121: =HLOOKUP($C121,'Dados Gerais'!$D$6:$BI$15,10) ->  | K121: =IF($C121=K$4,1,0) -> 0 | M121: =IF($C121=M$4,1,0) -> 0 | O121: =IF($C121=O$4,1,0) -> 0 | Q121: =IF($C121=Q$4,1,0) -> 0 | S121: =IF($C121=S$4,1,0) -> 0 | U121: =IF($C121=U$4,1,0) -> 0 | W121: =IF($C121=W$4,1,0) -> 0 | Y121: =IF($C121=Y$4,1,0) -> 0 | AA121: =IF($C121=AA$4,1,0) -> 0 | AC121: =IF($C121=AC$4,1,0) -> 0 | AE121: =IF($C121=AE$4,1,0) -> 0 | AG121: =IF($C121=AG$4,1,0) -> 0 | AI121: =IF($C121=AI$4,1,0) -> 0 | AK121: =IF($C121=AK$4,1,0) -> 0 | AM121: =IF($C121=AM$4,1,0) -> 0 | AO121: =IF($C121=AO$4,1,0) -> 0 | AQ121: =IF($C121=AQ$4,1,0) -> 0 | AS121: =IF($C121=AS$4,1,0) -> 0 | AU121: =IF($C121=AU$4,1,0) -> 0 | AW121: =IF($C121=AW$4,1,0) -> 0 | AY121: =IF($C121=AY$4,1,0) -> 0 | BA121: =IF($C121=BA$4,1,0) -> 0 | BC121: =IF($C121=BC$4,1,0) -> 0 | BE121: =IF($C121=BE$4,1,0) -> 0 | BG121: =IF($C121=BG$4,1,0) -> 0 | BI121: =IF($C121=BI$4,1,0) -> 0 | BK121: =IF($C121=BK$4,1,0) -> 0 | BM121: =IF($C121=BM$4,1,0) -> 0 | BO121: =IF($C121=BO$4,1,0) -> 0 | BQ121: =IF($C121=BQ$4,1,0) -> 0 | BS121: =IF($C121=BS$4,1,0) -> 0 | BU121: =IF($C121=BU$4,1,0) -> 0 | BW121: =IF($C121=BW$4,1,0) -> 0 | BY121: =IF($C121=BY$4,1,0) -> 0
K122: =IF($C122=K$4,1,0) -> 0 | M122: =IF($C122=M$4,1,0) -> 0 | O122: =IF($C122=O$4,1,0) -> 0 | Q122: =IF($C122=Q$4,1,0) -> 0 | S122: =IF($C122=S$4,1,0) -> 0 | U122: =IF($C122=U$4,1,0) -> 0 | W122: =IF($C122=W$4,1,0) -> 0 | Y122: =IF($C122=Y$4,1,0) -> 0 | AA122: =IF($C122=AA$4,1,0) -> 0 | AC122: =IF($C122=AC$4,1,0) -> 0 | AE122: =IF($C122=AE$4,1,0) -> 0 | AG122: =IF($C122=AG$4,1,0) -> 0 | AI122: =IF($C122=AI$4,1,0) -> 0 | AK122: =IF($C122=AK$4,1,0) -> 0 | AM122: =IF($C122=AM$4,1,0) -> 0 | AO122: =IF($C122=AO$4,1,0) -> 0 | AQ122: =IF($C122=AQ$4,1,0) -> 0 | AS122: =IF($C122=AS$4,1,0) -> 0 | AU122: =IF($C122=AU$4,1,0) -> 0 | AW122: =IF($C122=AW$4,1,0) -> 0 | AY122: =IF($C122=AY$4,1,0) -> 0 | BA122: =IF($C122=BA$4,1,0) -> 0 | BC122: =IF($C122=BC$4,1,0) -> 0 | BE122: =IF($C122=BE$4,1,0) -> 0 | BG122: =IF($C122=BG$4,1,0) -> 0 | BI122: =IF($C122=BI$4,1,0) -> 0 | BK122: =IF($C122=BK$4,1,0) -> 0 | BM122: =IF($C122=BM$4,1,0) -> 0 | BO122: =IF($C122=BO$4,1,0) -> 0 | BQ122: =IF($C122=BQ$4,1,0) -> 0 | BS122: =IF($C122=BS$4,1,0) -> 0 | BU122: =IF($C122=BU$4,1,0) -> 0 | BW122: =IF($C122=BW$4,1,0) -> 0 | BY122: =IF($C122=BY$4,1,0) -> 0
C124: ITEM | D124: DESCRIÇÃO | E124: QUANT ANUAL POR POSTO | F124: UNIDADE | G124: QUANT DE POSTOS | H124: VALOR
L125: =IF(SUM(K$8:K$10)>0,$E125*$H125,0) -> 0 | N125: =IF(SUM(M$8:M$10)>0,$E125*$H125,0) -> 0 | P125: =IF(SUM(O$8:O$10)>0,$E125*$H125,0) -> 0 | R125: =IF(SUM(Q$8:Q$10)>0,$E125*$H125,0) -> 0 | T125: =IF(SUM(S$8:S$10)>0,$E125*$H125,0) -> 0 | V125: =IF(SUM(U$8:U$10)>0,$E125*$H125,0) -> 0 | X125: =IF(SUM(W$8:W$10)>0,$E125*$H125,0) -> 0 | Z125: =IF(SUM(Y$8:Y$10)>0,$E125*$H125,0) -> 0 | AB125: =IF(SUM(AA$8:AA$10)>0,$E125*$H125,0) -> 0 | AD125: =IF(SUM(AC$8:AC$10)>0,$E125*$H125,0) -> 0 | AF125: =IF(SUM(AE$8:AE$10)>0,$E125*$H125,0) -> 0 | AH125: =IF(SUM(AG$8:AG$10)>0,$E125*$H125,0) -> 0 | AJ125: =IF(SUM(AI$8:AI$10)>0,$E125*$H125,0) -> 0 | AL125: =IF(SUM(AK$8:AK$10)>0,$E125*$H125,0) -> 0 | AN125: =IF(SUM(AM$8:AM$10)>0,$E125*$H125,0) -> 0 | AP125: =IF(SUM(AO$8:AO$10)>0,$E125*$H125,0) -> 0 | AR125: =IF(SUM(AQ$8:AQ$10)>0,$E125*$H125,0) -> 0 | AT125: =IF(SUM(AS$8:AS$10)>0,$E125*$H125,0) -> 0 | AV125: =IF(SUM(AU$8:AU$10)>0,$E125*$H125,0) -> 0 | AX125: =IF(SUM(AW$8:AW$10)>0,$E125*$H125,0) -> 0 | AZ125: =IF(SUM(AY$8:AY$10)>0,$E125*$H125,0) -> 0 | BB125: =IF(SUM(BA$8:BA$10)>0,$E125*$H125,0) -> 0 | BD125: =IF(SUM(BC$8:BC$10)>0,$E125*$H125,0) -> 0 | BF125: =IF(SUM(BE$8:BE$10)>0,$E125*$H125,0) -> 0 | BH125: =IF(SUM(BG$8:BG$10)>0,$E125*$H125,0) -> 0 | BJ125: =IF(SUM(BI$8:BI$10)>0,$E125*$H125,0) -> 0 | BL125: =IF(SUM(BK$8:BK$10)>0,$E125*$H125,0) -> 0 | BN125: =IF(SUM(BM$8:BM$10)>0,$E125*$H125,0) -> 0 | BP125: =IF(SUM(BO$8:BO$10)>0,$E125*$H125,0) -> 0 | BR125: =IF(SUM(BQ$8:BQ$10)>0,$E125*$H125,0) -> 0 | BT125: =IF(SUM(BS$8:BS$10)>0,$E125*$H125,0) -> 0 | BV125: =IF(SUM(BU$8:BU$10)>0,$E125*$H125,0) -> 0 | BX125: =IF(SUM(BW$8:BW$10)>0,$E125*$H125,0) -> 0 | BZ125: =IF(SUM(BY$8:BY$10)>0,$E125*$H125,0) -> 0
L126: =ROUND(IF(SUM(K$120:K$122)>0,$E126*$G126*$H126/$H$121,0),2) -> 0 | N126: =ROUND(IF(SUM(M$120:M$122)>0,$E126*$G126*$H126/$H$121,0),2) -> 0 | P126: =ROUND(IF(SUM(O$120:O$122)>0,$E126*$G126*$H126/$H$121,0),2) -> 0 | R126: =ROUND(IF(SUM(Q$120:Q$122)>0,$E126*$G126*$H126/$H$121,0),2) -> 0 | T126: =ROUND(IF(SUM(S$120:S$122)>0,$E126*$G126*$H126/$H$121,0),2) -> 0 | V126: =ROUND(IF(SUM(U$120:U$122)>0,$E126*$G126*$H126/$H$121,0),2) -> 0 | X126: =ROUND(IF(SUM(W$120:W$122)>0,$E126*$G126*$H126/$H$121,0),2) -> 0 | Z126: =ROUND(IF(SUM(Y$120:Y$122)>0,$E126*$G126*$H126/$H$121,0),2) -> 0 | AB126: =ROUND(IF(SUM(AA$120:AA$122)>0,$E126*$G126*$H126/$H$121,0),2) -> 0 | AD126: =ROUND(IF(SUM(AC$120:AC$122)>0,$E126*$G126*$H126/$H$121,0),2) -> 0 | AF126: =ROUND(IF(SUM(AE$120:AE$122)>0,$E126*$G126*$H126/$H$121,0),2) -> 0 | AH126: =ROUND(IF(SUM(AG$120:AG$122)>0,$E126*$G126*$H126/$H$121,0),2) -> 0 | AJ126: =ROUND(IF(SUM(AI$120:AI$122)>0,$E126*$G126*$H126/$H$121,0),2) -> 0 | AL126: =ROUND(IF(SUM(AK$120:AK$122)>0,$E126*$G126*$H126/$H$121,0),2) -> 0 | AN126: =ROUND(IF(SUM(AM$120:AM$122)>0,$E126*$G126*$H126/$H$121,0),2) -> 0 | AP126: =ROUND(IF(SUM(AO$120:AO$122)>0,$E126*$G126*$H126/$H$121,0),2) -> 0 | AR126: =ROUND(IF(SUM(AQ$120:AQ$122)>0,$E126*$G126*$H126/$H$121,0),2) -> 0 | AT126: =ROUND(IF(SUM(AS$120:AS$122)>0,$E126*$G126*$H126/$H$121,0),2) -> 0 | AV126: =ROUND(IF(SUM(AU$120:AU$122)>0,$E126*$G126*$H126/$H$121,0),2) -> 0 | AX126: =ROUND(IF(SUM(AW$120:AW$122)>0,$E126*$G126*$H126/$H$121,0),2) -> 0 | AZ126: =ROUND(IF(SUM(AY$120:AY$122)>0,$E126*$G126*$H126/$H$121,0),2) -> 0 | BB126: =ROUND(IF(SUM(BA$120:BA$122)>0,$E126*$G126*$H126/$H$121,0),2) -> 0 | BD126: =ROUND(IF(SUM(BC$120:BC$122)>0,$E126*$G126*$H126/$H$121,0),2) -> 0 | BF126: =ROUND(IF(SUM(BE$120:BE$122)>0,$E126*$G126*$H126/$H$121,0),2) -> 0 | BH126: =ROUND(IF(SUM(BG$120:BG$122)>0,$E126*$G126*$H126/$H$121,0),2) -> 0 | BJ126: =ROUND(IF(SUM(BI$120:BI$122)>0,$E126*$G126*$H126/$H$121,0),2) -> 0 | BL126: =ROUND(IF(SUM(BK$120:BK$122)>0,$E126*$G126*$H126/$H$121,0),2) -> 0 | BN126: =ROUND(IF(SUM(BM$120:BM$122)>0,$E126*$G126*$H126/$H$121,0),2) -> 0 | BP126: =ROUND(IF(SUM(BO$120:BO$122)>0,$E126*$G126*$H126/$H$121,0),2) -> 0 | BR126: =ROUND(IF(SUM(BQ$120:BQ$122)>0,$E126*$G126*$H126/$H$121,0),2) -> 0 | BT126: =ROUND(IF(SUM(BS$120:BS$122)>0,$E126*$G126*$H126/$H$121,0),2) -> 0 | BV126: =ROUND(IF(SUM(BU$120:BU$122)>0,$E126*$G126*$H126/$H$121,0),2) -> 0 | BX126: =ROUND(IF(SUM(BW$120:BW$122)>0,$E126*$G126*$H126/$H$121,0),2) -> 0 | BZ126: =ROUND(IF(SUM(BY$120:BY$122)>0,$E126*$G126*$H126/$H$121,0),2) -> 0
L127: 0 | N127: 0 | P127: 0 | R127: 0 | T127: 0 | V127: 0 | X127: 0 | Z127: 0 | AB127: 0 | AD127: 0 | AF127: 0 | AH127: 0 | AJ127: 0 | AL127: 0 | AN127: 0 | AP127: 0 | AR127: 0 | AT127: 0 | AV127: 0 | AX127: 0 | AZ127: 0 | BB127: 0 | BD127: 0 | BF127: 0 | BH127: 0 | BJ127: 0 | BL127: 0 | BN127: 0 | BP127: 0 | BR127: 0 | BT127: 0 | BV127: 0 | BX127: 0 | BZ127: 0
L128: 0 | N128: 0 | P128: 0 | R128: 0 | T128: 0 | V128: 0 | X128: 0 | Z128: 0 | AB128: 0 | AD128: 0 | AF128: 0 | AH128: 0 | AJ128: 0 | AL128: 0 | AN128: 0 | AP128: 0 | AR128: 0 | AT128: 0 | AV128: 0 | AX128: 0 | AZ128: 0 | BB128: 0 | BD128: 0 | BF128: 0 | BH128: 0 | BJ128: 0 | BL128: 0 | BN128: 0 | BP128: 0 | BR128: 0 | BT128: 0 | BV128: 0 | BX128: 0 | BZ128: 0
L129: 0 | N129: 0 | P129: 0 | R129: 0 | T129: 0 | V129: 0 | X129: 0 | Z129: 0 | AB129: 0 | AD129: 0 | AF129: 0 | AH129: 0 | AJ129: 0 | AL129: 0 | AN129: 0 | AP129: 0 | AR129: 0 | AT129: 0 | AV129: 0 | AX129: 0 | AZ129: 0 | BB129: 0 | BD129: 0 | BF129: 0 | BH129: 0 | BJ129: 0 | BL129: 0 | BN129: 0 | BP129: 0 | BR129: 0 | BT129: 0 | BV129: 0 | BX129: 0 | BZ129: 0
L130: 0 | N130: 0 | P130: 0 | R130: 0 | T130: 0 | V130: 0 | X130: 0 | Z130: 0 | AB130: 0 | AD130: 0 | AF130: 0 | AH130: 0 | AJ130: 0 | AL130: 0 | AN130: 0 | AP130: 0 | AR130: 0 | AT130: 0 | AV130: 0 | AX130: 0 | AZ130: 0 | BB130: 0 | BD130: 0 | BF130: 0 | BH130: 0 | BJ130: 0 | BL130: 0 | BN130: 0 | BP130: 0 | BR130: 0 | BT130: 0 | BV130: 0 | BX130: 0 | BZ130: 0
L131: 0 | N131: 0 | P131: 0 | R131: 0 | T131: 0 | V131: 0 | X131: 0 | Z131: 0 | AB131: 0 | AD131: 0 | AF131: 0 | AH131: 0 | AJ131: 0 | AL131: 0 | AN131: 0 | AP131: 0 | AR131: 0 | AT131: 0 | AV131: 0 | AX131: 0 | AZ131: 0 | BB131: 0 | BD131: 0 | BF131: 0 | BH131: 0 | BJ131: 0 | BL131: 0 | BN131: 0 | BP131: 0 | BR131: 0 | BT131: 0 | BV131: 0 | BX131: 0 | BZ131: 0
L132: 0 | N132: 0 | P132: 0 | R132: 0 | T132: 0 | V132: 0 | X132: 0 | Z132: 0 | AB132: 0 | AD132: 0 | AF132: 0 | AH132: 0 | AJ132: 0 | AL132: 0 | AN132: 0 | AP132: 0 | AR132: 0 | AT132: 0 | AV132: 0 | AX132: 0 | AZ132: 0 | BB132: 0 | BD132: 0 | BF132: 0 | BH132: 0 | BJ132: 0 | BL132: 0 | BN132: 0 | BP132: 0 | BR132: 0 | BT132: 0 | BV132: 0 | BX132: 0 | BZ132: 0
L133: 0 | N133: 0 | P133: 0 | R133: 0 | T133: 0 | V133: 0 | X133: 0 | Z133: 0 | AB133: 0 | AD133: 0 | AF133: 0 | AH133: 0 | AJ133: 0 | AL133: 0 | AN133: 0 | AP133: 0 | AR133: 0 | AT133: 0 | AV133: 0 | AX133: 0 | AZ133: 0 | BB133: 0 | BD133: 0 | BF133: 0 | BH133: 0 | BJ133: 0 | BL133: 0 | BN133: 0 | BP133: 0 | BR133: 0 | BT133: 0 | BV133: 0 | BX133: 0 | BZ133: 0
L134: 0 | N134: 0 | P134: 0 | R134: 0 | T134: 0 | V134: 0 | X134: 0 | Z134: 0 | AB134: 0 | AD134: 0 | AF134: 0 | AH134: 0 | AJ134: 0 | AL134: 0 | AN134: 0 | AP134: 0 | AR134: 0 | AT134: 0 | AV134: 0 | AX134: 0 | AZ134: 0 | BB134: 0 | BD134: 0 | BF134: 0 | BH134: 0 | BJ134: 0 | BL134: 0 | BN134: 0 | BP134: 0 | BR134: 0 | BT134: 0 | BV134: 0 | BX134: 0 | BZ134: 0
L135: 0 | N135: 0 | P135: 0 | R135: 0 | T135: 0 | V135: 0 | X135: 0 | Z135: 0 | AB135: 0 | AD135: 0 | AF135: 0 | AH135: 0 | AJ135: 0 | AL135: 0 | AN135: 0 | AP135: 0 | AR135: 0 | AT135: 0 | AV135: 0 | AX135: 0 | AZ135: 0 | BB135: 0 | BD135: 0 | BF135: 0 | BH135: 0 | BJ135: 0 | BL135: 0 | BN135: 0 | BP135: 0 | BR135: 0 | BT135: 0 | BV135: 0 | BX135: 0 | BZ135: 0
L136: 0 | N136: 0 | P136: 0 | R136: 0 | T136: 0 | V136: 0 | X136: 0 | Z136: 0 | AB136: 0 | AD136: 0 | AF136: 0 | AH136: 0 | AJ136: 0 | AL136: 0 | AN136: 0 | AP136: 0 | AR136: 0 | AT136: 0 | AV136: 0 | AX136: 0 | AZ136: 0 | BB136: 0 | BD136: 0 | BF136: 0 | BH136: 0 | BJ136: 0 | BL136: 0 | BN136: 0 | BP136: 0 | BR136: 0 | BT136: 0 | BV136: 0 | BX136: 0 | BZ136: 0
L137: 0 | N137: 0 | P137: 0 | R137: 0 | T137: 0 | V137: 0 | X137: 0 | Z137: 0 | AB137: 0 | AD137: 0 | AF137: 0 | AH137: 0 | AJ137: 0 | AL137: 0 | AN137: 0 | AP137: 0 | AR137: 0 | AT137: 0 | AV137: 0 | AX137: 0 | AZ137: 0 | BB137: 0 | BD137: 0 | BF137: 0 | BH137: 0 | BJ137: 0 | BL137: 0 | BN137: 0 | BP137: 0 | BR137: 0 | BT137: 0 | BV137: 0 | BX137: 0 | BZ137: 0
L138: 0 | N138: 0 | P138: 0 | R138: 0 | T138: 0 | V138: 0 | X138: 0 | Z138: 0 | AB138: 0 | AD138: 0 | AF138: 0 | AH138: 0 | AJ138: 0 | AL138: 0 | AN138: 0 | AP138: 0 | AR138: 0 | AT138: 0 | AV138: 0 | AX138: 0 | AZ138: 0 | BB138: 0 | BD138: 0 | BF138: 0 | BH138: 0 | BJ138: 0 | BL138: 0 | BN138: 0 | BP138: 0 | BR138: 0 | BT138: 0 | BV138: 0 | BX138: 0 | BZ138: 0
L139: 0 | N139: 0 | P139: 0 | R139: 0 | T139: 0 | V139: 0 | X139: 0 | Z139: 0 | AB139: 0 | AD139: 0 | AF139: 0 | AH139: 0 | AJ139: 0 | AL139: 0 | AN139: 0 | AP139: 0 | AR139: 0 | AT139: 0 | AV139: 0 | AX139: 0 | AZ139: 0 | BB139: 0 | BD139: 0 | BF139: 0 | BH139: 0 | BJ139: 0 | BL139: 0 | BN139: 0 | BP139: 0 | BR139: 0 | BT139: 0 | BV139: 0 | BX139: 0 | BZ139: 0
L140: 0 | N140: 0 | P140: 0 | R140: 0 | T140: 0 | V140: 0 | X140: 0 | Z140: 0 | AB140: 0 | AD140: 0 | AF140: 0 | AH140: 0 | AJ140: 0 | AL140: 0 | AN140: 0 | AP140: 0 | AR140: 0 | AT140: 0 | AV140: 0 | AX140: 0 | AZ140: 0 | BB140: 0 | BD140: 0 | BF140: 0 | BH140: 0 | BJ140: 0 | BL140: 0 | BN140: 0 | BP140: 0 | BR140: 0 | BT140: 0 | BV140: 0 | BX140: 0 | BZ140: 0
L141: 0 | N141: 0 | P141: 0 | R141: 0 | T141: 0 | V141: 0 | X141: 0 | Z141: 0 | AB141: 0 | AD141: 0 | AF141: 0 | AH141: 0 | AJ141: 0 | AL141: 0 | AN141: 0 | AP141: 0 | AR141: 0 | AT141: 0 | AV141: 0 | AX141: 0 | AZ141: 0 | BB141: 0 | BD141: 0 | BF141: 0 | BH141: 0 | BJ141: 0 | BL141: 0 | BN141: 0 | BP141: 0 | BR141: 0 | BT141: 0 | BV141: 0 | BX141: 0 | BZ141: 0
L142: 0 | N142: 0 | P142: 0 | R142: 0 | T142: 0 | V142: 0 | X142: 0 | Z142: 0 | AB142: 0 | AD142: 0 | AF142: 0 | AH142: 0 | AJ142: 0 | AL142: 0 | AN142: 0 | AP142: 0 | AR142: 0 | AT142: 0 | AV142: 0 | AX142: 0 | AZ142: 0 | BB142: 0 | BD142: 0 | BF142: 0 | BH142: 0 | BJ142: 0 | BL142: 0 | BN142: 0 | BP142: 0 | BR142: 0 | BT142: 0 | BV142: 0 | BX142: 0 | BZ142: 0
L143: 0 | N143: 0 | P143: 0 | R143: 0 | T143: 0 | V143: 0 | X143: 0 | Z143: 0 | AB143: 0 | AD143: 0 | AF143: 0 | AH143: 0 | AJ143: 0 | AL143: 0 | AN143: 0 | AP143: 0 | AR143: 0 | AT143: 0 | AV143: 0 | AX143: 0 | AZ143: 0 | BB143: 0 | BD143: 0 | BF143: 0 | BH143: 0 | BJ143: 0 | BL143: 0 | BN143: 0 | BP143: 0 | BR143: 0 | BT143: 0 | BV143: 0 | BX143: 0 | BZ143: 0
L144: 0 | N144: 0 | P144: 0 | R144: 0 | T144: 0 | V144: 0 | X144: 0 | Z144: 0 | AB144: 0 | AD144: 0 | AF144: 0 | AH144: 0 | AJ144: 0 | AL144: 0 | AN144: 0 | AP144: 0 | AR144: 0 | AT144: 0 | AV144: 0 | AX144: 0 | AZ144: 0 | BB144: 0 | BD144: 0 | BF144: 0 | BH144: 0 | BJ144: 0 | BL144: 0 | BN144: 0 | BP144: 0 | BR144: 0 | BT144: 0 | BV144: 0 | BX144: 0 | BZ144: 0
L145: 0 | N145: 0 | P145: 0 | R145: 0 | T145: 0 | V145: 0 | X145: 0 | Z145: 0 | AB145: 0 | AD145: 0 | AF145: 0 | AH145: 0 | AJ145: 0 | AL145: 0 | AN145: 0 | AP145: 0 | AR145: 0 | AT145: 0 | AV145: 0 | AX145: 0 | AZ145: 0 | BB145: 0 | BD145: 0 | BF145: 0 | BH145: 0 | BJ145: 0 | BL145: 0 | BN145: 0 | BP145: 0 | BR145: 0 | BT145: 0 | BV145: 0 | BX145: 0 | BZ145: 0
L146: 0 | N146: 0 | P146: 0 | R146: 0 | T146: 0 | V146: 0 | X146: 0 | Z146: 0 | AB146: 0 | AD146: 0 | AF146: 0 | AH146: 0 | AJ146: 0 | AL146: 0 | AN146: 0 | AP146: 0 | AR146: 0 | AT146: 0 | AV146: 0 | AX146: 0 | AZ146: 0 | BB146: 0 | BD146: 0 | BF146: 0 | BH146: 0 | BJ146: 0 | BL146: 0 | BN146: 0 | BP146: 0 | BR146: 0 | BT146: 0 | BV146: 0 | BX146: 0 | BZ146: 0
L147: 0 | N147: 0 | P147: 0 | R147: 0 | T147: 0 | V147: 0 | X147: 0 | Z147: 0 | AB147: 0 | AD147: 0 | AF147: 0 | AH147: 0 | AJ147: 0 | AL147: 0 | AN147: 0 | AP147: 0 | AR147: 0 | AT147: 0 | AV147: 0 | AX147: 0 | AZ147: 0 | BB147: 0 | BD147: 0 | BF147: 0 | BH147: 0 | BJ147: 0 | BL147: 0 | BN147: 0 | BP147: 0 | BR147: 0 | BT147: 0 | BV147: 0 | BX147: 0 | BZ147: 0
C149: CATEGORIAS | H149: QUANTIDADE
K150: =IF($C150=K$4,1,0) -> 0 | M150: =IF($C150=M$4,1,0) -> 0 | O150: =IF($C150=O$4,1,0) -> 0 | Q150: =IF($C150=Q$4,1,0) -> 0 | S150: =IF($C150=S$4,1,0) -> 0 | U150: =IF($C150=U$4,1,0) -> 0 | W150: =IF($C150=W$4,1,0) -> 0 | Y150: =IF($C150=Y$4,1,0) -> 0 | AA150: =IF($C150=AA$4,1,0) -> 0 | AC150: =IF($C150=AC$4,1,0) -> 0 | AE150: =IF($C150=AE$4,1,0) -> 0 | AG150: =IF($C150=AG$4,1,0) -> 0 | AI150: =IF($C150=AI$4,1,0) -> 0 | AK150: =IF($C150=AK$4,1,0) -> 0 | AM150: =IF($C150=AM$4,1,0) -> 0 | AO150: =IF($C150=AO$4,1,0) -> 0 | AQ150: =IF($C150=AQ$4,1,0) -> 0 | AS150: =IF($C150=AS$4,1,0) -> 0 | AU150: =IF($C150=AU$4,1,0) -> 0 | AW150: =IF($C150=AW$4,1,0) -> 0 | AY150: =IF($C150=AY$4,1,0) -> 0 | BA150: =IF($C150=BA$4,1,0) -> 0 | BC150: =IF($C150=BC$4,1,0) -> 0 | BE150: =IF($C150=BE$4,1,0) -> 0 | BG150: =IF($C150=BG$4,1,0) -> 0 | BI150: =IF($C150=BI$4,1,0) -> 0 | BK150: =IF($C150=BK$4,1,0) -> 0 | BM150: =IF($C150=BM$4,1,0) -> 0 | BO150: =IF($C150=BO$4,1,0) -> 0 | BQ150: =IF($C150=BQ$4,1,0) -> 0 | BS150: =IF($C150=BS$4,1,0) -> 0 | BU150: =IF($C150=BU$4,1,0) -> 0 | BW150: =IF($C150=BW$4,1,0) -> 0 | BY150: =IF($C150=BY$4,1,0) -> 0
D151: =HLOOKUP($C151,'Dados Gerais'!$D$6:$BI$11,6) ->  | H151: =HLOOKUP($C151,'Dados Gerais'!$D$6:$BI$15,10) ->  | K151: =IF($C151=K$4,1,0) -> 0 | M151: =IF($C151=M$4,1,0) -> 0 | O151: =IF($C151=O$4,1,0) -> 0 | Q151: =IF($C151=Q$4,1,0) -> 0 | S151: =IF($C151=S$4,1,0) -> 0 | U151: =IF($C151=U$4,1,0) -> 0 | W151: =IF($C151=W$4,1,0) -> 0 | Y151: =IF($C151=Y$4,1,0) -> 0 | AA151: =IF($C151=AA$4,1,0) -> 0 | AC151: =IF($C151=AC$4,1,0) -> 0 | AE151: =IF($C151=AE$4,1,0) -> 0 | AG151: =IF($C151=AG$4,1,0) -> 0 | AI151: =IF($C151=AI$4,1,0) -> 0 | AK151: =IF($C151=AK$4,1,0) -> 0 | AM151: =IF($C151=AM$4,1,0) -> 0 | AO151: =IF($C151=AO$4,1,0) -> 0 | AQ151: =IF($C151=AQ$4,1,0) -> 0 | AS151: =IF($C151=AS$4,1,0) -> 0 | AU151: =IF($C151=AU$4,1,0) -> 0 | AW151: =IF($C151=AW$4,1,0) -> 0 | AY151: =IF($C151=AY$4,1,0) -> 0 | BA151: =IF($C151=BA$4,1,0) -> 0 | BC151: =IF($C151=BC$4,1,0) -> 0 | BE151: =IF($C151=BE$4,1,0) -> 0 | BG151: =IF($C151=BG$4,1,0) -> 0 | BI151: =IF($C151=BI$4,1,0) -> 0 | BK151: =IF($C151=BK$4,1,0) -> 0 | BM151: =IF($C151=BM$4,1,0) -> 0 | BO151: =IF($C151=BO$4,1,0) -> 0 | BQ151: =IF($C151=BQ$4,1,0) -> 0 | BS151: =IF($C151=BS$4,1,0) -> 0 | BU151: =IF($C151=BU$4,1,0) -> 0 | BW151: =IF($C151=BW$4,1,0) -> 0 | BY151: =IF($C151=BY$4,1,0) -> 0
K152: =IF($C152=K$4,1,0) -> 0 | M152: =IF($C152=M$4,1,0) -> 0 | O152: =IF($C152=O$4,1,0) -> 0 | Q152: =IF($C152=Q$4,1,0) -> 0 | S152: =IF($C152=S$4,1,0) -> 0 | U152: =IF($C152=U$4,1,0) -> 0 | W152: =IF($C152=W$4,1,0) -> 0 | Y152: =IF($C152=Y$4,1,0) -> 0 | AA152: =IF($C152=AA$4,1,0) -> 0 | AC152: =IF($C152=AC$4,1,0) -> 0 | AE152: =IF($C152=AE$4,1,0) -> 0 | AG152: =IF($C152=AG$4,1,0) -> 0 | AI152: =IF($C152=AI$4,1,0) -> 0 | AK152: =IF($C152=AK$4,1,0) -> 0 | AM152: =IF($C152=AM$4,1,0) -> 0 | AO152: =IF($C152=AO$4,1,0) -> 0 | AQ152: =IF($C152=AQ$4,1,0) -> 0 | AS152: =IF($C152=AS$4,1,0) -> 0 | AU152: =IF($C152=AU$4,1,0) -> 0 | AW152: =IF($C152=AW$4,1,0) -> 0 | AY152: =IF($C152=AY$4,1,0) -> 0 | BA152: =IF($C152=BA$4,1,0) -> 0 | BC152: =IF($C152=BC$4,1,0) -> 0 | BE152: =IF($C152=BE$4,1,0) -> 0 | BG152: =IF($C152=BG$4,1,0) -> 0 | BI152: =IF($C152=BI$4,1,0) -> 0 | BK152: =IF($C152=BK$4,1,0) -> 0 | BM152: =IF($C152=BM$4,1,0) -> 0 | BO152: =IF($C152=BO$4,1,0) -> 0 | BQ152: =IF($C152=BQ$4,1,0) -> 0 | BS152: =IF($C152=BS$4,1,0) -> 0 | BU152: =IF($C152=BU$4,1,0) -> 0 | BW152: =IF($C152=BW$4,1,0) -> 0 | BY152: =IF($C152=BY$4,1,0) -> 0
C154: ITEM | D154: DESCRIÇÃO | E154: QUANT ANUAL POR POSTO | F154: UNIDADE | G154: QUANT DE POSTOS | H154: VALOR
L155: =IF(SUM(K$8:K$10)>0,$E155*$H155,0) -> 0 | N155: =IF(SUM(M$8:M$10)>0,$E155*$H155,0) -> 0 | P155: =IF(SUM(O$8:O$10)>0,$E155*$H155,0) -> 0 | R155: =IF(SUM(Q$8:Q$10)>0,$E155*$H155,0) -> 0 | T155: =IF(SUM(S$8:S$10)>0,$E155*$H155,0) -> 0 | V155: =IF(SUM(U$8:U$10)>0,$E155*$H155,0) -> 0 | X155: =IF(SUM(W$8:W$10)>0,$E155*$H155,0) -> 0 | Z155: =IF(SUM(Y$8:Y$10)>0,$E155*$H155,0) -> 0 | AB155: =IF(SUM(AA$8:AA$10)>0,$E155*$H155,0) -> 0 | AD155: =IF(SUM(AC$8:AC$10)>0,$E155*$H155,0) -> 0 | AF155: =IF(SUM(AE$8:AE$10)>0,$E155*$H155,0) -> 0 | AH155: =IF(SUM(AG$8:AG$10)>0,$E155*$H155,0) -> 0 | AJ155: =IF(SUM(AI$8:AI$10)>0,$E155*$H155,0) -> 0 | AL155: =IF(SUM(AK$8:AK$10)>0,$E155*$H155,0) -> 0 | AN155: =IF(SUM(AM$8:AM$10)>0,$E155*$H155,0) -> 0 | AP155: =IF(SUM(AO$8:AO$10)>0,$E155*$H155,0) -> 0 | AR155: =IF(SUM(AQ$8:AQ$10)>0,$E155*$H155,0) -> 0 | AT155: =IF(SUM(AS$8:AS$10)>0,$E155*$H155,0) -> 0 | AV155: =IF(SUM(AU$8:AU$10)>0,$E155*$H155,0) -> 0 | AX155: =IF(SUM(AW$8:AW$10)>0,$E155*$H155,0) -> 0 | AZ155: =IF(SUM(AY$8:AY$10)>0,$E155*$H155,0) -> 0 | BB155: =IF(SUM(BA$8:BA$10)>0,$E155*$H155,0) -> 0 | BD155: =IF(SUM(BC$8:BC$10)>0,$E155*$H155,0) -> 0 | BF155: =IF(SUM(BE$8:BE$10)>0,$E155*$H155,0) -> 0 | BH155: =IF(SUM(BG$8:BG$10)>0,$E155*$H155,0) -> 0 | BJ155: =IF(SUM(BI$8:BI$10)>0,$E155*$H155,0) -> 0 | BL155: =IF(SUM(BK$8:BK$10)>0,$E155*$H155,0) -> 0 | BN155: =IF(SUM(BM$8:BM$10)>0,$E155*$H155,0) -> 0 | BP155: =IF(SUM(BO$8:BO$10)>0,$E155*$H155,0) -> 0 | BR155: =IF(SUM(BQ$8:BQ$10)>0,$E155*$H155,0) -> 0 | BT155: =IF(SUM(BS$8:BS$10)>0,$E155*$H155,0) -> 0 | BV155: =IF(SUM(BU$8:BU$10)>0,$E155*$H155,0) -> 0 | BX155: =IF(SUM(BW$8:BW$10)>0,$E155*$H155,0) -> 0 | BZ155: =IF(SUM(BY$8:BY$10)>0,$E155*$H155,0) -> 0
L156: =ROUND(IF(SUM(K$150:K$152)>0,$E156*$G156*$H156/$H$151,0),2) -> 0 | N156: =ROUND(IF(SUM(M$150:M$152)>0,$E156*$G156*$H156/$H$151,0),2) -> 0 | P156: =ROUND(IF(SUM(O$150:O$152)>0,$E156*$G156*$H156/$H$151,0),2) -> 0 | R156: =ROUND(IF(SUM(Q$150:Q$152)>0,$E156*$G156*$H156/$H$151,0),2) -> 0 | T156: =ROUND(IF(SUM(S$150:S$152)>0,$E156*$G156*$H156/$H$151,0),2) -> 0 | V156: =ROUND(IF(SUM(U$150:U$152)>0,$E156*$G156*$H156/$H$151,0),2) -> 0 | X156: =ROUND(IF(SUM(W$150:W$152)>0,$E156*$G156*$H156/$H$151,0),2) -> 0 | Z156: =ROUND(IF(SUM(Y$150:Y$152)>0,$E156*$G156*$H156/$H$151,0),2) -> 0 | AB156: =ROUND(IF(SUM(AA$150:AA$152)>0,$E156*$G156*$H156/$H$151,0),2) -> 0 | AD156: =ROUND(IF(SUM(AC$150:AC$152)>0,$E156*$G156*$H156/$H$151,0),2) -> 0 | AF156: =ROUND(IF(SUM(AE$150:AE$152)>0,$E156*$G156*$H156/$H$151,0),2) -> 0 | AH156: =ROUND(IF(SUM(AG$150:AG$152)>0,$E156*$G156*$H156/$H$151,0),2) -> 0 | AJ156: =ROUND(IF(SUM(AI$150:AI$152)>0,$E156*$G156*$H156/$H$151,0),2) -> 0 | AL156: =ROUND(IF(SUM(AK$150:AK$152)>0,$E156*$G156*$H156/$H$151,0),2) -> 0 | AN156: =ROUND(IF(SUM(AM$150:AM$152)>0,$E156*$G156*$H156/$H$151,0),2) -> 0 | AP156: =ROUND(IF(SUM(AO$150:AO$152)>0,$E156*$G156*$H156/$H$151,0),2) -> 0 | AR156: =ROUND(IF(SUM(AQ$150:AQ$152)>0,$E156*$G156*$H156/$H$151,0),2) -> 0 | AT156: =ROUND(IF(SUM(AS$150:AS$152)>0,$E156*$G156*$H156/$H$151,0),2) -> 0 | AV156: =ROUND(IF(SUM(AU$150:AU$152)>0,$E156*$G156*$H156/$H$151,0),2) -> 0 | AX156: =ROUND(IF(SUM(AW$150:AW$152)>0,$E156*$G156*$H156/$H$151,0),2) -> 0 | AZ156: =ROUND(IF(SUM(AY$150:AY$152)>0,$E156*$G156*$H156/$H$151,0),2) -> 0 | BB156: =ROUND(IF(SUM(BA$150:BA$152)>0,$E156*$G156*$H156/$H$151,0),2) -> 0 | BD156: =ROUND(IF(SUM(BC$150:BC$152)>0,$E156*$G156*$H156/$H$151,0),2) -> 0 | BF156: =ROUND(IF(SUM(BE$150:BE$152)>0,$E156*$G156*$H156/$H$151,0),2) -> 0 | BH156: =ROUND(IF(SUM(BG$150:BG$152)>0,$E156*$G156*$H156/$H$151,0),2) -> 0 | BJ156: =ROUND(IF(SUM(BI$150:BI$152)>0,$E156*$G156*$H156/$H$151,0),2) -> 0 | BL156: =ROUND(IF(SUM(BK$150:BK$152)>0,$E156*$G156*$H156/$H$151,0),2) -> 0 | BN156: =ROUND(IF(SUM(BM$150:BM$152)>0,$E156*$G156*$H156/$H$151,0),2) -> 0 | BP156: =ROUND(IF(SUM(BO$150:BO$152)>0,$E156*$G156*$H156/$H$151,0),2) -> 0 | BR156: =ROUND(IF(SUM(BQ$150:BQ$152)>0,$E156*$G156*$H156/$H$151,0),2) -> 0 | BT156: =ROUND(IF(SUM(BS$150:BS$152)>0,$E156*$G156*$H156/$H$151,0),2) -> 0 | BV156: =ROUND(IF(SUM(BU$150:BU$152)>0,$E156*$G156*$H156/$H$151,0),2) -> 0 | BX156: =ROUND(IF(SUM(BW$150:BW$152)>0,$E156*$G156*$H156/$H$151,0),2) -> 0 | BZ156: =ROUND(IF(SUM(BY$150:BY$152)>0,$E156*$G156*$H156/$H$151,0),2) -> 0
L157: 0 | N157: 0 | P157: 0 | R157: 0 | T157: 0 | V157: 0 | X157: 0 | Z157: 0 | AB157: 0 | AD157: 0 | AF157: 0 | AH157: 0 | AJ157: 0 | AL157: 0 | AN157: 0 | AP157: 0 | AR157: 0 | AT157: 0 | AV157: 0 | AX157: 0 | AZ157: 0 | BB157: 0 | BD157: 0 | BF157: 0 | BH157: 0 | BJ157: 0 | BL157: 0 | BN157: 0 | BP157: 0 | BR157: 0 | BT157: 0 | BV157: 0 | BX157: 0 | BZ157: 0
L158: 0 | N158: 0 | P158: 0 | R158: 0 | T158: 0 | V158: 0 | X158: 0 | Z158: 0 | AB158: 0 | AD158: 0 | AF158: 0 | AH158: 0 | AJ158: 0 | AL158: 0 | AN158: 0 | AP158: 0 | AR158: 0 | AT158: 0 | AV158: 0 | AX158: 0 | AZ158: 0 | BB158: 0 | BD158: 0 | BF158: 0 | BH158: 0 | BJ158: 0 | BL158: 0 | BN158: 0 | BP158: 0 | BR158: 0 | BT158: 0 | BV158: 0 | BX158: 0 | BZ158: 0
L159: 0 | N159: 0 | P159: 0 | R159: 0 | T159: 0 | V159: 0 | X159: 0 | Z159: 0 | AB159: 0 | AD159: 0 | AF159: 0 | AH159: 0 | AJ159: 0 | AL159: 0 | AN159: 0 | AP159: 0 | AR159: 0 | AT159: 0 | AV159: 0 | AX159: 0 | AZ159: 0 | BB159: 0 | BD159: 0 | BF159: 0 | BH159: 0 | BJ159: 0 | BL159: 0 | BN159: 0 | BP159: 0 | BR159: 0 | BT159: 0 | BV159: 0 | BX159: 0 | BZ159: 0
L160: 0 | N160: 0 | P160: 0 | R160: 0 | T160: 0 | V160: 0 | X160: 0 | Z160: 0 | AB160: 0 | AD160: 0 | AF160: 0 | AH160: 0 | AJ160: 0 | AL160: 0 | AN160: 0 | AP160: 0 | AR160: 0 | AT160: 0 | AV160: 0 | AX160: 0 | AZ160: 0 | BB160: 0 | BD160: 0 | BF160: 0 | BH160: 0 | BJ160: 0 | BL160: 0 | BN160: 0 | BP160: 0 | BR160: 0 | BT160: 0 | BV160: 0 | BX160: 0 | BZ160: 0
L161: 0 | N161: 0 | P161: 0 | R161: 0 | T161: 0 | V161: 0 | X161: 0 | Z161: 0 | AB161: 0 | AD161: 0 | AF161: 0 | AH161: 0 | AJ161: 0 | AL161: 0 | AN161: 0 | AP161: 0 | AR161: 0 | AT161: 0 | AV161: 0 | AX161: 0 | AZ161: 0 | BB161: 0 | BD161: 0 | BF161: 0 | BH161: 0 | BJ161: 0 | BL161: 0 | BN161: 0 | BP161: 0 | BR161: 0 | BT161: 0 | BV161: 0 | BX161: 0 | BZ161: 0
L162: 0 | N162: 0 | P162: 0 | R162: 0 | T162: 0 | V162: 0 | X162: 0 | Z162: 0 | AB162: 0 | AD162: 0 | AF162: 0 | AH162: 0 | AJ162: 0 | AL162: 0 | AN162: 0 | AP162: 0 | AR162: 0 | AT162: 0 | AV162: 0 | AX162: 0 | AZ162: 0 | BB162: 0 | BD162: 0 | BF162: 0 | BH162: 0 | BJ162: 0 | BL162: 0 | BN162: 0 | BP162: 0 | BR162: 0 | BT162: 0 | BV162: 0 | BX162: 0 | BZ162: 0
L163: 0 | N163: 0 | P163: 0 | R163: 0 | T163: 0 | V163: 0 | X163: 0 | Z163: 0 | AB163: 0 | AD163: 0 | AF163: 0 | AH163: 0 | AJ163: 0 | AL163: 0 | AN163: 0 | AP163: 0 | AR163: 0 | AT163: 0 | AV163: 0 | AX163: 0 | AZ163: 0 | BB163: 0 | BD163: 0 | BF163: 0 | BH163: 0 | BJ163: 0 | BL163: 0 | BN163: 0 | BP163: 0 | BR163: 0 | BT163: 0 | BV163: 0 | BX163: 0 | BZ163: 0
L164: 0 | N164: 0 | P164: 0 | R164: 0 | T164: 0 | V164: 0 | X164: 0 | Z164: 0 | AB164: 0 | AD164: 0 | AF164: 0 | AH164: 0 | AJ164: 0 | AL164: 0 | AN164: 0 | AP164: 0 | AR164: 0 | AT164: 0 | AV164: 0 | AX164: 0 | AZ164: 0 | BB164: 0 | BD164: 0 | BF164: 0 | BH164: 0 | BJ164: 0 | BL164: 0 | BN164: 0 | BP164: 0 | BR164: 0 | BT164: 0 | BV164: 0 | BX164: 0 | BZ164: 0
L165: 0 | N165: 0 | P165: 0 | R165: 0 | T165: 0 | V165: 0 | X165: 0 | Z165: 0 | AB165: 0 | AD165: 0 | AF165: 0 | AH165: 0 | AJ165: 0 | AL165: 0 | AN165: 0 | AP165: 0 | AR165: 0 | AT165: 0 | AV165: 0 | AX165: 0 | AZ165: 0 | BB165: 0 | BD165: 0 | BF165: 0 | BH165: 0 | BJ165: 0 | BL165: 0 | BN165: 0 | BP165: 0 | BR165: 0 | BT165: 0 | BV165: 0 | BX165: 0 | BZ165: 0
L166: 0 | N166: 0 | P166: 0 | R166: 0 | T166: 0 | V166: 0 | X166: 0 | Z166: 0 | AB166: 0 | AD166: 0 | AF166: 0 | AH166: 0 | AJ166: 0 | AL166: 0 | AN166: 0 | AP166: 0 | AR166: 0 | AT166: 0 | AV166: 0 | AX166: 0 | AZ166: 0 | BB166: 0 | BD166: 0 | BF166: 0 | BH166: 0 | BJ166: 0 | BL166: 0 | BN166: 0 | BP166: 0 | BR166: 0 | BT166: 0 | BV166: 0 | BX166: 0 | BZ166: 0
L167: 0 | N167: 0 | P167: 0 | R167: 0 | T167: 0 | V167: 0 | X167: 0 | Z167: 0 | AB167: 0 | AD167: 0 | AF167: 0 | AH167: 0 | AJ167: 0 | AL167: 0 | AN167: 0 | AP167: 0 | AR167: 0 | AT167: 0 | AV167: 0 | AX167: 0 | AZ167: 0 | BB167: 0 | BD167: 0 | BF167: 0 | BH167: 0 | BJ167: 0 | BL167: 0 | BN167: 0 | BP167: 0 | BR167: 0 | BT167: 0 | BV167: 0 | BX167: 0 | BZ167: 0
L168: 0 | N168: 0 | P168: 0 | R168: 0 | T168: 0 | V168: 0 | X168: 0 | Z168: 0 | AB168: 0 | AD168: 0 | AF168: 0 | AH168: 0 | AJ168: 0 | AL168: 0 | AN168: 0 | AP168: 0 | AR168: 0 | AT168: 0 | AV168: 0 | AX168: 0 | AZ168: 0 | BB168: 0 | BD168: 0 | BF168: 0 | BH168: 0 | BJ168: 0 | BL168: 0 | BN168: 0 | BP168: 0 | BR168: 0 | BT168: 0 | BV168: 0 | BX168: 0 | BZ168: 0
L169: 0 | N169: 0 | P169: 0 | R169: 0 | T169: 0 | V169: 0 | X169: 0 | Z169: 0 | AB169: 0 | AD169: 0 | AF169: 0 | AH169: 0 | AJ169: 0 | AL169: 0 | AN169: 0 | AP169: 0 | AR169: 0 | AT169: 0 | AV169: 0 | AX169: 0 | AZ169: 0 | BB169: 0 | BD169: 0 | BF169: 0 | BH169: 0 | BJ169: 0 | BL169: 0 | BN169: 0 | BP169: 0 | BR169: 0 | BT169: 0 | BV169: 0 | BX169: 0 | BZ169: 0
L170: 0 | N170: 0 | P170: 0 | R170: 0 | T170: 0 | V170: 0 | X170: 0 | Z170: 0 | AB170: 0 | AD170: 0 | AF170: 0 | AH170: 0 | AJ170: 0 | AL170: 0 | AN170: 0 | AP170: 0 | AR170: 0 | AT170: 0 | AV170: 0 | AX170: 0 | AZ170: 0 | BB170: 0 | BD170: 0 | BF170: 0 | BH170: 0 | BJ170: 0 | BL170: 0 | BN170: 0 | BP170: 0 | BR170: 0 | BT170: 0 | BV170: 0 | BX170: 0 | BZ170: 0
L171: 0 | N171: 0 | P171: 0 | R171: 0 | T171: 0 | V171: 0 | X171: 0 | Z171: 0 | AB171: 0 | AD171: 0 | AF171: 0 | AH171: 0 | AJ171: 0 | AL171: 0 | AN171: 0 | AP171: 0 | AR171: 0 | AT171: 0 | AV171: 0 | AX171: 0 | AZ171: 0 | BB171: 0 | BD171: 0 | BF171: 0 | BH171: 0 | BJ171: 0 | BL171: 0 | BN171: 0 | BP171: 0 | BR171: 0 | BT171: 0 | BV171: 0 | BX171: 0 | BZ171: 0
L172: 0 | N172: 0 | P172: 0 | R172: 0 | T172: 0 | V172: 0 | X172: 0 | Z172: 0 | AB172: 0 | AD172: 0 | AF172: 0 | AH172: 0 | AJ172: 0 | AL172: 0 | AN172: 0 | AP172: 0 | AR172: 0 | AT172: 0 | AV172: 0 | AX172: 0 | AZ172: 0 | BB172: 0 | BD172: 0 | BF172: 0 | BH172: 0 | BJ172: 0 | BL172: 0 | BN172: 0 | BP172: 0 | BR172: 0 | BT172: 0 | BV172: 0 | BX172: 0 | BZ172: 0
L173: 0 | N173: 0 | P173: 0 | R173: 0 | T173: 0 | V173: 0 | X173: 0 | Z173: 0 | AB173: 0 | AD173: 0 | AF173: 0 | AH173: 0 | AJ173: 0 | AL173: 0 | AN173: 0 | AP173: 0 | AR173: 0 | AT173: 0 | AV173: 0 | AX173: 0 | AZ173: 0 | BB173: 0 | BD173: 0 | BF173: 0 | BH173: 0 | BJ173: 0 | BL173: 0 | BN173: 0 | BP173: 0 | BR173: 0 | BT173: 0 | BV173: 0 | BX173: 0 | BZ173: 0
L174: 0 | N174: 0 | P174: 0 | R174: 0 | T174: 0 | V174: 0 | X174: 0 | Z174: 0 | AB174: 0 | AD174: 0 | AF174: 0 | AH174: 0 | AJ174: 0 | AL174: 0 | AN174: 0 | AP174: 0 | AR174: 0 | AT174: 0 | AV174: 0 | AX174: 0 | AZ174: 0 | BB174: 0 | BD174: 0 | BF174: 0 | BH174: 0 | BJ174: 0 | BL174: 0 | BN174: 0 | BP174: 0 | BR174: 0 | BT174: 0 | BV174: 0 | BX174: 0 | BZ174: 0
L175: 0 | N175: 0 | P175: 0 | R175: 0 | T175: 0 | V175: 0 | X175: 0 | Z175: 0 | AB175: 0 | AD175: 0 | AF175: 0 | AH175: 0 | AJ175: 0 | AL175: 0 | AN175: 0 | AP175: 0 | AR175: 0 | AT175: 0 | AV175: 0 | AX175: 0 | AZ175: 0 | BB175: 0 | BD175: 0 | BF175: 0 | BH175: 0 | BJ175: 0 | BL175: 0 | BN175: 0 | BP175: 0 | BR175: 0 | BT175: 0 | BV175: 0 | BX175: 0 | BZ175: 0
L176: 0 | N176: 0 | P176: 0 | R176: 0 | T176: 0 | V176: 0 | X176: 0 | Z176: 0 | AB176: 0 | AD176: 0 | AF176: 0 | AH176: 0 | AJ176: 0 | AL176: 0 | AN176: 0 | AP176: 0 | AR176: 0 | AT176: 0 | AV176: 0 | AX176: 0 | AZ176: 0 | BB176: 0 | BD176: 0 | BF176: 0 | BH176: 0 | BJ176: 0 | BL176: 0 | BN176: 0 | BP176: 0 | BR176: 0 | BT176: 0 | BV176: 0 | BX176: 0 | BZ176: 0
L177: 0 | N177: 0 | P177: 0 | R177: 0 | T177: 0 | V177: 0 | X177: 0 | Z177: 0 | AB177: 0 | AD177: 0 | AF177: 0 | AH177: 0 | AJ177: 0 | AL177: 0 | AN177: 0 | AP177: 0 | AR177: 0 | AT177: 0 | AV177: 0 | AX177: 0 | AZ177: 0 | BB177: 0 | BD177: 0 | BF177: 0 | BH177: 0 | BJ177: 0 | BL177: 0 | BN177: 0 | BP177: 0 | BR177: 0 | BT177: 0 | BV177: 0 | BX177: 0 | BZ177: 0
L178: 0 | N178: 0 | P178: 0 | R178: 0 | T178: 0 | V178: 0 | X178: 0 | Z178: 0 | AB178: 0 | AD178: 0 | AF178: 0 | AH178: 0 | AJ178: 0 | AL178: 0 | AN178: 0 | AP178: 0 | AR178: 0 | AT178: 0 | AV178: 0 | AX178: 0 | AZ178: 0 | BB178: 0 | BD178: 0 | BF178: 0 | BH178: 0 | BJ178: 0 | BL178: 0 | BN178: 0 | BP178: 0 | BR178: 0 | BT178: 0 | BV178: 0 | BX178: 0 | BZ178: 0
L179: 0 | N179: 0 | P179: 0 | R179: 0 | T179: 0 | V179: 0 | X179: 0 | Z179: 0 | AB179: 0 | AD179: 0 | AF179: 0 | AH179: 0 | AJ179: 0 | AL179: 0 | AN179: 0 | AP179: 0 | AR179: 0 | AT179: 0 | AV179: 0 | AX179: 0 | AZ179: 0 | BB179: 0 | BD179: 0 | BF179: 0 | BH179: 0 | BJ179: 0 | BL179: 0 | BN179: 0 | BP179: 0 | BR179: 0 | BT179: 0 | BV179: 0 | BX179: 0 | BZ179: 0
L180: 0 | N180: 0 | P180: 0 | R180: 0 | T180: 0 | V180: 0 | X180: 0 | Z180: 0 | AB180: 0 | AD180: 0 | AF180: 0 | AH180: 0 | AJ180: 0 | AL180: 0 | AN180: 0 | AP180: 0 | AR180: 0 | AT180: 0 | AV180: 0 | AX180: 0 | AZ180: 0 | BB180: 0 | BD180: 0 | BF180: 0 | BH180: 0 | BJ180: 0 | BL180: 0 | BN180: 0 | BP180: 0 | BR180: 0 | BT180: 0 | BV180: 0 | BX180: 0 | BZ180: 0
C182: CATEGORIAS
K183: =IF($C183=K$4,1,0) -> 0 | M183: =IF($C183=M$4,1,0) -> 0 | O183: =IF($C183=O$4,1,0) -> 0 | Q183: =IF($C183=Q$4,1,0) -> 0 | S183: =IF($C183=S$4,1,0) -> 0 | U183: =IF($C183=U$4,1,0) -> 0 | W183: =IF($C183=W$4,1,0) -> 0 | Y183: =IF($C183=Y$4,1,0) -> 0 | AA183: =IF($C183=AA$4,1,0) -> 0 | AC183: =IF($C183=AC$4,1,0) -> 0 | AE183: =IF($C183=AE$4,1,0) -> 0 | AG183: =IF($C183=AG$4,1,0) -> 0 | AI183: =IF($C183=AI$4,1,0) -> 0 | AK183: =IF($C183=AK$4,1,0) -> 0 | AM183: =IF($C183=AM$4,1,0) -> 0 | AO183: =IF($C183=AO$4,1,0) -> 0 | AQ183: =IF($C183=AQ$4,1,0) -> 0 | AS183: =IF($C183=AS$4,1,0) -> 0 | AU183: =IF($C183=AU$4,1,0) -> 0 | AW183: =IF($C183=AW$4,1,0) -> 0 | AY183: =IF($C183=AY$4,1,0) -> 0 | BA183: =IF($C183=BA$4,1,0) -> 0 | BC183: =IF($C183=BC$4,1,0) -> 0 | BE183: =IF($C183=BE$4,1,0) -> 0 | BG183: =IF($C183=BG$4,1,0) -> 0 | BI183: =IF($C183=BI$4,1,0) -> 0 | BK183: =IF($C183=BK$4,1,0) -> 0 | BM183: =IF($C183=BM$4,1,0) -> 0 | BO183: =IF($C183=BO$4,1,0) -> 0 | BQ183: =IF($C183=BQ$4,1,0) -> 0 | BS183: =IF($C183=BS$4,1,0) -> 0 | BU183: =IF($C183=BU$4,1,0) -> 0 | BW183: =IF($C183=BW$4,1,0) -> 0 | BY183: =IF($C183=BY$4,1,0) -> 0
D184: =HLOOKUP($C184,'Dados Gerais'!$D$6:$BI$11,6) ->  | H184: =HLOOKUP($C184,'Dados Gerais'!$D$6:$BI$15,10) ->  | K184: =IF($C184=K$4,1,0) -> 0 | M184: =IF($C184=M$4,1,0) -> 0 | O184: =IF($C184=O$4,1,0) -> 0 | Q184: =IF($C184=Q$4,1,0) -> 0 | S184: =IF($C184=S$4,1,0) -> 0 | U184: =IF($C184=U$4,1,0) -> 0 | W184: =IF($C184=W$4,1,0) -> 0 | Y184: =IF($C184=Y$4,1,0) -> 0 | AA184: =IF($C184=AA$4,1,0) -> 0 | AC184: =IF($C184=AC$4,1,0) -> 0 | AE184: =IF($C184=AE$4,1,0) -> 0 | AG184: =IF($C184=AG$4,1,0) -> 0 | AI184: =IF($C184=AI$4,1,0) -> 0 | AK184: =IF($C184=AK$4,1,0) -> 0 | AM184: =IF($C184=AM$4,1,0) -> 0 | AO184: =IF($C184=AO$4,1,0) -> 0 | AQ184: =IF($C184=AQ$4,1,0) -> 0 | AS184: =IF($C184=AS$4,1,0) -> 0 | AU184: =IF($C184=AU$4,1,0) -> 0 | AW184: =IF($C184=AW$4,1,0) -> 0 | AY184: =IF($C184=AY$4,1,0) -> 0 | BA184: =IF($C184=BA$4,1,0) -> 0 | BC184: =IF($C184=BC$4,1,0) -> 0 | BE184: =IF($C184=BE$4,1,0) -> 0 | BG184: =IF($C184=BG$4,1,0) -> 0 | BI184: =IF($C184=BI$4,1,0) -> 0 | BK184: =IF($C184=BK$4,1,0) -> 0 | BM184: =IF($C184=BM$4,1,0) -> 0 | BO184: =IF($C184=BO$4,1,0) -> 0 | BQ184: =IF($C184=BQ$4,1,0) -> 0 | BS184: =IF($C184=BS$4,1,0) -> 0 | BU184: =IF($C184=BU$4,1,0) -> 0 | BW184: =IF($C184=BW$4,1,0) -> 0 | BY184: =IF($C184=BY$4,1,0) -> 0
K185: =IF($C185=K$4,1,0) -> 0 | M185: =IF($C185=M$4,1,0) -> 0 | O185: =IF($C185=O$4,1,0) -> 0 | Q185: =IF($C185=Q$4,1,0) -> 0 | S185: =IF($C185=S$4,1,0) -> 0 | U185: =IF($C185=U$4,1,0) -> 0 | W185: =IF($C185=W$4,1,0) -> 0 | Y185: =IF($C185=Y$4,1,0) -> 0 | AA185: =IF($C185=AA$4,1,0) -> 0 | AC185: =IF($C185=AC$4,1,0) -> 0 | AE185: =IF($C185=AE$4,1,0) -> 0 | AG185: =IF($C185=AG$4,1,0) -> 0 | AI185: =IF($C185=AI$4,1,0) -> 0 | AK185: =IF($C185=AK$4,1,0) -> 0 | AM185: =IF($C185=AM$4,1,0) -> 0 | AO185: =IF($C185=AO$4,1,0) -> 0 | AQ185: =IF($C185=AQ$4,1,0) -> 0 | AS185: =IF($C185=AS$4,1,0) -> 0 | AU185: =IF($C185=AU$4,1,0) -> 0 | AW185: =IF($C185=AW$4,1,0) -> 0 | AY185: =IF($C185=AY$4,1,0) -> 0 | BA185: =IF($C185=BA$4,1,0) -> 0 | BC185: =IF($C185=BC$4,1,0) -> 0 | BE185: =IF($C185=BE$4,1,0) -> 0 | BG185: =IF($C185=BG$4,1,0) -> 0 | BI185: =IF($C185=BI$4,1,0) -> 0 | BK185: =IF($C185=BK$4,1,0) -> 0 | BM185: =IF($C185=BM$4,1,0) -> 0 | BO185: =IF($C185=BO$4,1,0) -> 0 | BQ185: =IF($C185=BQ$4,1,0) -> 0 | BS185: =IF($C185=BS$4,1,0) -> 0 | BU185: =IF($C185=BU$4,1,0) -> 0 | BW185: =IF($C185=BW$4,1,0) -> 0 | BY185: =IF($C185=BY$4,1,0) -> 0
C187: ITEM | D187: DESCRIÇÃO | E187: QUANT ANUAL POR POSTO | F187: UNIDADE | G187: QUANT DE POSTOS | H187: VALOR
L188: =IF(SUM(K$8:K$10)>0,$E188*$H188,0) -> 0 | N188: =IF(SUM(M$8:M$10)>0,$E188*$H188,0) -> 0 | P188: =IF(SUM(O$8:O$10)>0,$E188*$H188,0) -> 0 | R188: =IF(SUM(Q$8:Q$10)>0,$E188*$H188,0) -> 0 | T188: =IF(SUM(S$8:S$10)>0,$E188*$H188,0) -> 0 | V188: =IF(SUM(U$8:U$10)>0,$E188*$H188,0) -> 0 | X188: =IF(SUM(W$8:W$10)>0,$E188*$H188,0) -> 0 | Z188: =IF(SUM(Y$8:Y$10)>0,$E188*$H188,0) -> 0 | AB188: =IF(SUM(AA$8:AA$10)>0,$E188*$H188,0) -> 0 | AD188: =IF(SUM(AC$8:AC$10)>0,$E188*$H188,0) -> 0 | AF188: =IF(SUM(AE$8:AE$10)>0,$E188*$H188,0) -> 0 | AH188: =IF(SUM(AG$8:AG$10)>0,$E188*$H188,0) -> 0 | AJ188: =IF(SUM(AI$8:AI$10)>0,$E188*$H188,0) -> 0 | AL188: =IF(SUM(AK$8:AK$10)>0,$E188*$H188,0) -> 0 | AN188: =IF(SUM(AM$8:AM$10)>0,$E188*$H188,0) -> 0 | AP188: =IF(SUM(AO$8:AO$10)>0,$E188*$H188,0) -> 0 | AR188: =IF(SUM(AQ$8:AQ$10)>0,$E188*$H188,0) -> 0 | AT188: =IF(SUM(AS$8:AS$10)>0,$E188*$H188,0) -> 0 | AV188: =IF(SUM(AU$8:AU$10)>0,$E188*$H188,0) -> 0 | AX188: =IF(SUM(AW$8:AW$10)>0,$E188*$H188,0) -> 0 | AZ188: =IF(SUM(AY$8:AY$10)>0,$E188*$H188,0) -> 0 | BB188: =IF(SUM(BA$8:BA$10)>0,$E188*$H188,0) -> 0 | BD188: =IF(SUM(BC$8:BC$10)>0,$E188*$H188,0) -> 0 | BF188: =IF(SUM(BE$8:BE$10)>0,$E188*$H188,0) -> 0 | BH188: =IF(SUM(BG$8:BG$10)>0,$E188*$H188,0) -> 0 | BJ188: =IF(SUM(BI$8:BI$10)>0,$E188*$H188,0) -> 0 | BL188: =IF(SUM(BK$8:BK$10)>0,$E188*$H188,0) -> 0 | BN188: =IF(SUM(BM$8:BM$10)>0,$E188*$H188,0) -> 0 | BP188: =IF(SUM(BO$8:BO$10)>0,$E188*$H188,0) -> 0 | BR188: =IF(SUM(BQ$8:BQ$10)>0,$E188*$H188,0) -> 0 | BT188: =IF(SUM(BS$8:BS$10)>0,$E188*$H188,0) -> 0 | BV188: =IF(SUM(BU$8:BU$10)>0,$E188*$H188,0) -> 0 | BX188: =IF(SUM(BW$8:BW$10)>0,$E188*$H188,0) -> 0 | BZ188: =IF(SUM(BY$8:BY$10)>0,$E188*$H188,0) -> 0
L189: =ROUND(IF(SUM(K$183:K$185)>0,$E189*$G189*$H189/$H$184,0),2) -> 0 | N189: =ROUND(IF(SUM(M$183:M$185)>0,$E189*$G189*$H189/$H$184,0),2) -> 0 | P189: =ROUND(IF(SUM(O$183:O$185)>0,$E189*$G189*$H189/$H$184,0),2) -> 0 | R189: =ROUND(IF(SUM(Q$183:Q$185)>0,$E189*$G189*$H189/$H$184,0),2) -> 0 | T189: =ROUND(IF(SUM(S$183:S$185)>0,$E189*$G189*$H189/$H$184,0),2) -> 0 | V189: =ROUND(IF(SUM(U$183:U$185)>0,$E189*$G189*$H189/$H$184,0),2) -> 0 | X189: =ROUND(IF(SUM(W$183:W$185)>0,$E189*$G189*$H189/$H$184,0),2) -> 0 | Z189: =ROUND(IF(SUM(Y$183:Y$185)>0,$E189*$G189*$H189/$H$184,0),2) -> 0 | AB189: =ROUND(IF(SUM(AA$183:AA$185)>0,$E189*$G189*$H189/$H$184,0),2) -> 0 | AD189: =ROUND(IF(SUM(AC$183:AC$185)>0,$E189*$G189*$H189/$H$184,0),2) -> 0 | AF189: =ROUND(IF(SUM(AE$183:AE$185)>0,$E189*$G189*$H189/$H$184,0),2) -> 0 | AH189: =ROUND(IF(SUM(AG$183:AG$185)>0,$E189*$G189*$H189/$H$184,0),2) -> 0 | AJ189: =ROUND(IF(SUM(AI$183:AI$185)>0,$E189*$G189*$H189/$H$184,0),2) -> 0 | AL189: =ROUND(IF(SUM(AK$183:AK$185)>0,$E189*$G189*$H189/$H$184,0),2) -> 0 | AN189: =ROUND(IF(SUM(AM$183:AM$185)>0,$E189*$G189*$H189/$H$184,0),2) -> 0 | AP189: =ROUND(IF(SUM(AO$183:AO$185)>0,$E189*$G189*$H189/$H$184,0),2) -> 0 | AR189: =ROUND(IF(SUM(AQ$183:AQ$185)>0,$E189*$G189*$H189/$H$184,0),2) -> 0 | AT189: =ROUND(IF(SUM(AS$183:AS$185)>0,$E189*$G189*$H189/$H$184,0),2) -> 0 | AV189: =ROUND(IF(SUM(AU$183:AU$185)>0,$E189*$G189*$H189/$H$184,0),2) -> 0 | AX189: =ROUND(IF(SUM(AW$183:AW$185)>0,$E189*$G189*$H189/$H$184,0),2) -> 0 | AZ189: =ROUND(IF(SUM(AY$183:AY$185)>0,$E189*$G189*$H189/$H$184,0),2) -> 0 | BB189: =ROUND(IF(SUM(BA$183:BA$185)>0,$E189*$G189*$H189/$H$184,0),2) -> 0 | BD189: =ROUND(IF(SUM(BC$183:BC$185)>0,$E189*$G189*$H189/$H$184,0),2) -> 0 | BF189: =ROUND(IF(SUM(BE$183:BE$185)>0,$E189*$G189*$H189/$H$184,0),2) -> 0 | BH189: =ROUND(IF(SUM(BG$183:BG$185)>0,$E189*$G189*$H189/$H$184,0),2) -> 0 | BJ189: =ROUND(IF(SUM(BI$183:BI$185)>0,$E189*$G189*$H189/$H$184,0),2) -> 0 | BL189: =ROUND(IF(SUM(BK$183:BK$185)>0,$E189*$G189*$H189/$H$184,0),2) -> 0 | BN189: =ROUND(IF(SUM(BM$183:BM$185)>0,$E189*$G189*$H189/$H$184,0),2) -> 0 | BP189: =ROUND(IF(SUM(BO$183:BO$185)>0,$E189*$G189*$H189/$H$184,0),2) -> 0 | BR189: =ROUND(IF(SUM(BQ$183:BQ$185)>0,$E189*$G189*$H189/$H$184,0),2) -> 0 | BT189: =ROUND(IF(SUM(BS$183:BS$185)>0,$E189*$G189*$H189/$H$184,0),2) -> 0 | BV189: =ROUND(IF(SUM(BU$183:BU$185)>0,$E189*$G189*$H189/$H$184,0),2) -> 0 | BX189: =ROUND(IF(SUM(BW$183:BW$185)>0,$E189*$G189*$H189/$H$184,0),2) -> 0 | BZ189: =ROUND(IF(SUM(BY$183:BY$185)>0,$E189*$G189*$H189/$H$184,0),2) -> 0
L190: 0 | N190: 0 | P190: 0 | R190: 0 | T190: 0 | V190: 0 | X190: 0 | Z190: 0 | AB190: 0 | AD190: 0 | AF190: 0 | AH190: 0 | AJ190: 0 | AL190: 0 | AN190: 0 | AP190: 0 | AR190: 0 | AT190: 0 | AV190: 0 | AX190: 0 | AZ190: 0 | BB190: 0 | BD190: 0 | BF190: 0 | BH190: 0 | BJ190: 0 | BL190: 0 | BN190: 0 | BP190: 0 | BR190: 0 | BT190: 0 | BV190: 0 | BX190: 0 | BZ190: 0
L191: 0 | N191: 0 | P191: 0 | R191: 0 | T191: 0 | V191: 0 | X191: 0 | Z191: 0 | AB191: 0 | AD191: 0 | AF191: 0 | AH191: 0 | AJ191: 0 | AL191: 0 | AN191: 0 | AP191: 0 | AR191: 0 | AT191: 0 | AV191: 0 | AX191: 0 | AZ191: 0 | BB191: 0 | BD191: 0 | BF191: 0 | BH191: 0 | BJ191: 0 | BL191: 0 | BN191: 0 | BP191: 0 | BR191: 0 | BT191: 0 | BV191: 0 | BX191: 0 | BZ191: 0
L192: 0 | N192: 0 | P192: 0 | R192: 0 | T192: 0 | V192: 0 | X192: 0 | Z192: 0 | AB192: 0 | AD192: 0 | AF192: 0 | AH192: 0 | AJ192: 0 | AL192: 0 | AN192: 0 | AP192: 0 | AR192: 0 | AT192: 0 | AV192: 0 | AX192: 0 | AZ192: 0 | BB192: 0 | BD192: 0 | BF192: 0 | BH192: 0 | BJ192: 0 | BL192: 0 | BN192: 0 | BP192: 0 | BR192: 0 | BT192: 0 | BV192: 0 | BX192: 0 | BZ192: 0
L193: 0 | N193: 0 | P193: 0 | R193: 0 | T193: 0 | V193: 0 | X193: 0 | Z193: 0 | AB193: 0 | AD193: 0 | AF193: 0 | AH193: 0 | AJ193: 0 | AL193: 0 | AN193: 0 | AP193: 0 | AR193: 0 | AT193: 0 | AV193: 0 | AX193: 0 | AZ193: 0 | BB193: 0 | BD193: 0 | BF193: 0 | BH193: 0 | BJ193: 0 | BL193: 0 | BN193: 0 | BP193: 0 | BR193: 0 | BT193: 0 | BV193: 0 | BX193: 0 | BZ193: 0
L194: 0 | N194: 0 | P194: 0 | R194: 0 | T194: 0 | V194: 0 | X194: 0 | Z194: 0 | AB194: 0 | AD194: 0 | AF194: 0 | AH194: 0 | AJ194: 0 | AL194: 0 | AN194: 0 | AP194: 0 | AR194: 0 | AT194: 0 | AV194: 0 | AX194: 0 | AZ194: 0 | BB194: 0 | BD194: 0 | BF194: 0 | BH194: 0 | BJ194: 0 | BL194: 0 | BN194: 0 | BP194: 0 | BR194: 0 | BT194: 0 | BV194: 0 | BX194: 0 | BZ194: 0
C196: CATEGORIAS | H196: QUANTIDADE
K197: =IF($C197=K$4,1,0) -> 0 | M197: =IF($C197=M$4,1,0) -> 0 | O197: =IF($C197=O$4,1,0) -> 0 | Q197: =IF($C197=Q$4,1,0) -> 0 | S197: =IF($C197=S$4,1,0) -> 0 | U197: =IF($C197=U$4,1,0) -> 0 | W197: =IF($C197=W$4,1,0) -> 0 | Y197: =IF($C197=Y$4,1,0) -> 0 | AA197: =IF($C197=AA$4,1,0) -> 0 | AC197: =IF($C197=AC$4,1,0) -> 0 | AE197: =IF($C197=AE$4,1,0) -> 0 | AG197: =IF($C197=AG$4,1,0) -> 0 | AI197: =IF($C197=AI$4,1,0) -> 0 | AK197: =IF($C197=AK$4,1,0) -> 0 | AM197: =IF($C197=AM$4,1,0) -> 0 | AO197: =IF($C197=AO$4,1,0) -> 0 | AQ197: =IF($C197=AQ$4,1,0) -> 0 | AS197: =IF($C197=AS$4,1,0) -> 0 | AU197: =IF($C197=AU$4,1,0) -> 0 | AW197: =IF($C197=AW$4,1,0) -> 0 | AY197: =IF($C197=AY$4,1,0) -> 0 | BA197: =IF($C197=BA$4,1,0) -> 0 | BC197: =IF($C197=BC$4,1,0) -> 0 | BE197: =IF($C197=BE$4,1,0) -> 0 | BG197: =IF($C197=BG$4,1,0) -> 0 | BI197: =IF($C197=BI$4,1,0) -> 0 | BK197: =IF($C197=BK$4,1,0) -> 0 | BM197: =IF($C197=BM$4,1,0) -> 0 | BO197: =IF($C197=BO$4,1,0) -> 0 | BQ197: =IF($C197=BQ$4,1,0) -> 0 | BS197: =IF($C197=BS$4,1,0) -> 0 | BU197: =IF($C197=BU$4,1,0) -> 0 | BW197: =IF($C197=BW$4,1,0) -> 0 | BY197: =IF($C197=BY$4,1,0) -> 0
D198: =HLOOKUP($C198,'Dados Gerais'!$D$6:$BI$11,6) ->  | H198: =HLOOKUP($C198,'Dados Gerais'!$D$6:$BI$15,10) ->  | K198: =IF($C198=K$4,1,0) -> 0 | M198: =IF($C198=M$4,1,0) -> 0 | O198: =IF($C198=O$4,1,0) -> 0 | Q198: =IF($C198=Q$4,1,0) -> 0 | S198: =IF($C198=S$4,1,0) -> 0 | U198: =IF($C198=U$4,1,0) -> 0 | W198: =IF($C198=W$4,1,0) -> 0 | Y198: =IF($C198=Y$4,1,0) -> 0 | AA198: =IF($C198=AA$4,1,0) -> 0 | AC198: =IF($C198=AC$4,1,0) -> 0 | AE198: =IF($C198=AE$4,1,0) -> 0 | AG198: =IF($C198=AG$4,1,0) -> 0 | AI198: =IF($C198=AI$4,1,0) -> 0 | AK198: =IF($C198=AK$4,1,0) -> 0 | AM198: =IF($C198=AM$4,1,0) -> 0 | AO198: =IF($C198=AO$4,1,0) -> 0 | AQ198: =IF($C198=AQ$4,1,0) -> 0 | AS198: =IF($C198=AS$4,1,0) -> 0 | AU198: =IF($C198=AU$4,1,0) -> 0 | AW198: =IF($C198=AW$4,1,0) -> 0 | AY198: =IF($C198=AY$4,1,0) -> 0 | BA198: =IF($C198=BA$4,1,0) -> 0 | BC198: =IF($C198=BC$4,1,0) -> 0 | BE198: =IF($C198=BE$4,1,0) -> 0 | BG198: =IF($C198=BG$4,1,0) -> 0 | BI198: =IF($C198=BI$4,1,0) -> 0 | BK198: =IF($C198=BK$4,1,0) -> 0 | BM198: =IF($C198=BM$4,1,0) -> 0 | BO198: =IF($C198=BO$4,1,0) -> 0 | BQ198: =IF($C198=BQ$4,1,0) -> 0 | BS198: =IF($C198=BS$4,1,0) -> 0 | BU198: =IF($C198=BU$4,1,0) -> 0 | BW198: =IF($C198=BW$4,1,0) -> 0 | BY198: =IF($C198=BY$4,1,0) -> 0
K199: =IF($C199=K$4,1,0) -> 0 | M199: =IF($C199=M$4,1,0) -> 0 | O199: =IF($C199=O$4,1,0) -> 0 | Q199: =IF($C199=Q$4,1,0) -> 0 | S199: =IF($C199=S$4,1,0) -> 0 | U199: =IF($C199=U$4,1,0) -> 0 | W199: =IF($C199=W$4,1,0) -> 0 | Y199: =IF($C199=Y$4,1,0) -> 0 | AA199: =IF($C199=AA$4,1,0) -> 0 | AC199: =IF($C199=AC$4,1,0) -> 0 | AE199: =IF($C199=AE$4,1,0) -> 0 | AG199: =IF($C199=AG$4,1,0) -> 0 | AI199: =IF($C199=AI$4,1,0) -> 0 | AK199: =IF($C199=AK$4,1,0) -> 0 | AM199: =IF($C199=AM$4,1,0) -> 0 | AO199: =IF($C199=AO$4,1,0) -> 0 | AQ199: =IF($C199=AQ$4,1,0) -> 0 | AS199: =IF($C199=AS$4,1,0) -> 0 | AU199: =IF($C199=AU$4,1,0) -> 0 | AW199: =IF($C199=AW$4,1,0) -> 0 | AY199: =IF($C199=AY$4,1,0) -> 0 | BA199: =IF($C199=BA$4,1,0) -> 0 | BC199: =IF($C199=BC$4,1,0) -> 0 | BE199: =IF($C199=BE$4,1,0) -> 0 | BG199: =IF($C199=BG$4,1,0) -> 0 | BI199: =IF($C199=BI$4,1,0) -> 0 | BK199: =IF($C199=BK$4,1,0) -> 0 | BM199: =IF($C199=BM$4,1,0) -> 0 | BO199: =IF($C199=BO$4,1,0) -> 0 | BQ199: =IF($C199=BQ$4,1,0) -> 0 | BS199: =IF($C199=BS$4,1,0) -> 0 | BU199: =IF($C199=BU$4,1,0) -> 0 | BW199: =IF($C199=BW$4,1,0) -> 0 | BY199: =IF($C199=BY$4,1,0) -> 0
C201: ITEM | D201: DESCRIÇÃO | E201: QUANT ANUAL POR POSTO | F201: UNIDADE | G201: QUANT DE POSTOS | H201: VALOR
L202: =IF(SUM(K$8:K$10)>0,$E202*$H202,0) -> 0 | N202: =IF(SUM(M$8:M$10)>0,$E202*$H202,0) -> 0 | P202: =IF(SUM(O$8:O$10)>0,$E202*$H202,0) -> 0 | R202: =IF(SUM(Q$8:Q$10)>0,$E202*$H202,0) -> 0 | T202: =IF(SUM(S$8:S$10)>0,$E202*$H202,0) -> 0 | V202: =IF(SUM(U$8:U$10)>0,$E202*$H202,0) -> 0 | X202: =IF(SUM(W$8:W$10)>0,$E202*$H202,0) -> 0 | Z202: =IF(SUM(Y$8:Y$10)>0,$E202*$H202,0) -> 0 | AB202: =IF(SUM(AA$8:AA$10)>0,$E202*$H202,0) -> 0 | AD202: =IF(SUM(AC$8:AC$10)>0,$E202*$H202,0) -> 0 | AF202: =IF(SUM(AE$8:AE$10)>0,$E202*$H202,0) -> 0 | AH202: =IF(SUM(AG$8:AG$10)>0,$E202*$H202,0) -> 0 | AJ202: =IF(SUM(AI$8:AI$10)>0,$E202*$H202,0) -> 0 | AL202: =IF(SUM(AK$8:AK$10)>0,$E202*$H202,0) -> 0 | AN202: =IF(SUM(AM$8:AM$10)>0,$E202*$H202,0) -> 0 | AP202: =IF(SUM(AO$8:AO$10)>0,$E202*$H202,0) -> 0 | AR202: =IF(SUM(AQ$8:AQ$10)>0,$E202*$H202,0) -> 0 | AT202: =IF(SUM(AS$8:AS$10)>0,$E202*$H202,0) -> 0 | AV202: =IF(SUM(AU$8:AU$10)>0,$E202*$H202,0) -> 0 | AX202: =IF(SUM(AW$8:AW$10)>0,$E202*$H202,0) -> 0 | AZ202: =IF(SUM(AY$8:AY$10)>0,$E202*$H202,0) -> 0 | BB202: =IF(SUM(BA$8:BA$10)>0,$E202*$H202,0) -> 0 | BD202: =IF(SUM(BC$8:BC$10)>0,$E202*$H202,0) -> 0 | BF202: =IF(SUM(BE$8:BE$10)>0,$E202*$H202,0) -> 0 | BH202: =IF(SUM(BG$8:BG$10)>0,$E202*$H202,0) -> 0 | BJ202: =IF(SUM(BI$8:BI$10)>0,$E202*$H202,0) -> 0 | BL202: =IF(SUM(BK$8:BK$10)>0,$E202*$H202,0) -> 0 | BN202: =IF(SUM(BM$8:BM$10)>0,$E202*$H202,0) -> 0 | BP202: =IF(SUM(BO$8:BO$10)>0,$E202*$H202,0) -> 0 | BR202: =IF(SUM(BQ$8:BQ$10)>0,$E202*$H202,0) -> 0 | BT202: =IF(SUM(BS$8:BS$10)>0,$E202*$H202,0) -> 0 | BV202: =IF(SUM(BU$8:BU$10)>0,$E202*$H202,0) -> 0 | BX202: =IF(SUM(BW$8:BW$10)>0,$E202*$H202,0) -> 0 | BZ202: =IF(SUM(BY$8:BY$10)>0,$E202*$H202,0) -> 0
L203: =ROUND(IF(SUM(K$197:K$199)>0,$E203*$G203*$H203/$H$198,0),2) -> 0 | N203: =ROUND(IF(SUM(M$197:M$199)>0,$E203*$G203*$H203/$H$198,0),2) -> 0 | P203: =ROUND(IF(SUM(O$197:O$199)>0,$E203*$G203*$H203/$H$198,0),2) -> 0 | R203: =ROUND(IF(SUM(Q$197:Q$199)>0,$E203*$G203*$H203/$H$198,0),2) -> 0 | T203: =ROUND(IF(SUM(S$197:S$199)>0,$E203*$G203*$H203/$H$198,0),2) -> 0 | V203: =ROUND(IF(SUM(U$197:U$199)>0,$E203*$G203*$H203/$H$198,0),2) -> 0 | X203: =ROUND(IF(SUM(W$197:W$199)>0,$E203*$G203*$H203/$H$198,0),2) -> 0 | Z203: =ROUND(IF(SUM(Y$197:Y$199)>0,$E203*$G203*$H203/$H$198,0),2) -> 0 | AB203: =ROUND(IF(SUM(AA$197:AA$199)>0,$E203*$G203*$H203/$H$198,0),2) -> 0 | AD203: =ROUND(IF(SUM(AC$197:AC$199)>0,$E203*$G203*$H203/$H$198,0),2) -> 0 | AF203: =ROUND(IF(SUM(AE$197:AE$199)>0,$E203*$G203*$H203/$H$198,0),2) -> 0 | AH203: =ROUND(IF(SUM(AG$197:AG$199)>0,$E203*$G203*$H203/$H$198,0),2) -> 0 | AJ203: =ROUND(IF(SUM(AI$197:AI$199)>0,$E203*$G203*$H203/$H$198,0),2) -> 0 | AL203: =ROUND(IF(SUM(AK$197:AK$199)>0,$E203*$G203*$H203/$H$198,0),2) -> 0 | AN203: =ROUND(IF(SUM(AM$197:AM$199)>0,$E203*$G203*$H203/$H$198,0),2) -> 0 | AP203: =ROUND(IF(SUM(AO$197:AO$199)>0,$E203*$G203*$H203/$H$198,0),2) -> 0 | AR203: =ROUND(IF(SUM(AQ$197:AQ$199)>0,$E203*$G203*$H203/$H$198,0),2) -> 0 | AT203: =ROUND(IF(SUM(AS$197:AS$199)>0,$E203*$G203*$H203/$H$198,0),2) -> 0 | AV203: =ROUND(IF(SUM(AU$197:AU$199)>0,$E203*$G203*$H203/$H$198,0),2) -> 0 | AX203: =ROUND(IF(SUM(AW$197:AW$199)>0,$E203*$G203*$H203/$H$198,0),2) -> 0 | AZ203: =ROUND(IF(SUM(AY$197:AY$199)>0,$E203*$G203*$H203/$H$198,0),2) -> 0 | BB203: =ROUND(IF(SUM(BA$197:BA$199)>0,$E203*$G203*$H203/$H$198,0),2) -> 0 | BD203: =ROUND(IF(SUM(BC$197:BC$199)>0,$E203*$G203*$H203/$H$198,0),2) -> 0 | BF203: =ROUND(IF(SUM(BE$197:BE$199)>0,$E203*$G203*$H203/$H$198,0),2) -> 0 | BH203: =ROUND(IF(SUM(BG$197:BG$199)>0,$E203*$G203*$H203/$H$198,0),2) -> 0 | BJ203: =ROUND(IF(SUM(BI$197:BI$199)>0,$E203*$G203*$H203/$H$198,0),2) -> 0 | BL203: =ROUND(IF(SUM(BK$197:BK$199)>0,$E203*$G203*$H203/$H$198,0),2) -> 0 | BN203: =ROUND(IF(SUM(BM$197:BM$199)>0,$E203*$G203*$H203/$H$198,0),2) -> 0 | BP203: =ROUND(IF(SUM(BO$197:BO$199)>0,$E203*$G203*$H203/$H$198,0),2) -> 0 | BR203: =ROUND(IF(SUM(BQ$197:BQ$199)>0,$E203*$G203*$H203/$H$198,0),2) -> 0 | BT203: =ROUND(IF(SUM(BS$197:BS$199)>0,$E203*$G203*$H203/$H$198,0),2) -> 0 | BV203: =ROUND(IF(SUM(BU$197:BU$199)>0,$E203*$G203*$H203/$H$198,0),2) -> 0 | BX203: =ROUND(IF(SUM(BW$197:BW$199)>0,$E203*$G203*$H203/$H$198,0),2) -> 0 | BZ203: =ROUND(IF(SUM(BY$197:BY$199)>0,$E203*$G203*$H203/$H$198,0),2) -> 0
L204: =ROUND(IF(SUM(K$197:K$199)>0,$E204*$G204*$H204/$H$198,0),2) -> 0 | N204: =ROUND(IF(SUM(M$197:M$199)>0,$E204*$G204*$H204/$H$198,0),2) -> 0 | P204: =ROUND(IF(SUM(O$197:O$199)>0,$E204*$G204*$H204/$H$198,0),2) -> 0 | R204: =ROUND(IF(SUM(Q$197:Q$199)>0,$E204*$G204*$H204/$H$198,0),2) -> 0 | T204: =ROUND(IF(SUM(S$197:S$199)>0,$E204*$G204*$H204/$H$198,0),2) -> 0 | V204: =ROUND(IF(SUM(U$197:U$199)>0,$E204*$G204*$H204/$H$198,0),2) -> 0 | X204: =ROUND(IF(SUM(W$197:W$199)>0,$E204*$G204*$H204/$H$198,0),2) -> 0 | Z204: =ROUND(IF(SUM(Y$197:Y$199)>0,$E204*$G204*$H204/$H$198,0),2) -> 0 | AB204: =ROUND(IF(SUM(AA$197:AA$199)>0,$E204*$G204*$H204/$H$198,0),2) -> 0 | AD204: =ROUND(IF(SUM(AC$197:AC$199)>0,$E204*$G204*$H204/$H$198,0),2) -> 0 | AF204: =ROUND(IF(SUM(AE$197:AE$199)>0,$E204*$G204*$H204/$H$198,0),2) -> 0 | AH204: =ROUND(IF(SUM(AG$197:AG$199)>0,$E204*$G204*$H204/$H$198,0),2) -> 0 | AJ204: =ROUND(IF(SUM(AI$197:AI$199)>0,$E204*$G204*$H204/$H$198,0),2) -> 0 | AL204: =ROUND(IF(SUM(AK$197:AK$199)>0,$E204*$G204*$H204/$H$198,0),2) -> 0 | AN204: =ROUND(IF(SUM(AM$197:AM$199)>0,$E204*$G204*$H204/$H$198,0),2) -> 0 | AP204: =ROUND(IF(SUM(AO$197:AO$199)>0,$E204*$G204*$H204/$H$198,0),2) -> 0 | AR204: =ROUND(IF(SUM(AQ$197:AQ$199)>0,$E204*$G204*$H204/$H$198,0),2) -> 0 | AT204: =ROUND(IF(SUM(AS$197:AS$199)>0,$E204*$G204*$H204/$H$198,0),2) -> 0 | AV204: =ROUND(IF(SUM(AU$197:AU$199)>0,$E204*$G204*$H204/$H$198,0),2) -> 0 | AX204: =ROUND(IF(SUM(AW$197:AW$199)>0,$E204*$G204*$H204/$H$198,0),2) -> 0 | AZ204: =ROUND(IF(SUM(AY$197:AY$199)>0,$E204*$G204*$H204/$H$198,0),2) -> 0 | BB204: =ROUND(IF(SUM(BA$197:BA$199)>0,$E204*$G204*$H204/$H$198,0),2) -> 0 | BD204: =ROUND(IF(SUM(BC$197:BC$199)>0,$E204*$G204*$H204/$H$198,0),2) -> 0 | BF204: =ROUND(IF(SUM(BE$197:BE$199)>0,$E204*$G204*$H204/$H$198,0),2) -> 0 | BH204: =ROUND(IF(SUM(BG$197:BG$199)>0,$E204*$G204*$H204/$H$198,0),2) -> 0 | BJ204: =ROUND(IF(SUM(BI$197:BI$199)>0,$E204*$G204*$H204/$H$198,0),2) -> 0 | BL204: =ROUND(IF(SUM(BK$197:BK$199)>0,$E204*$G204*$H204/$H$198,0),2) -> 0 | BN204: =ROUND(IF(SUM(BM$197:BM$199)>0,$E204*$G204*$H204/$H$198,0),2) -> 0 | BP204: =ROUND(IF(SUM(BO$197:BO$199)>0,$E204*$G204*$H204/$H$198,0),2) -> 0 | BR204: =ROUND(IF(SUM(BQ$197:BQ$199)>0,$E204*$G204*$H204/$H$198,0),2) -> 0 | BT204: =ROUND(IF(SUM(BS$197:BS$199)>0,$E204*$G204*$H204/$H$198,0),2) -> 0 | BV204: =ROUND(IF(SUM(BU$197:BU$199)>0,$E204*$G204*$H204/$H$198,0),2) -> 0 | BX204: =ROUND(IF(SUM(BW$197:BW$199)>0,$E204*$G204*$H204/$H$198,0),2) -> 0 | BZ204: =ROUND(IF(SUM(BY$197:BY$199)>0,$E204*$G204*$H204/$H$198,0),2) -> 0
L205: =ROUND(IF(SUM(K$197:K$199)>0,$E205*$G205*$H205/$H$198,0),2) -> 0 | N205: =ROUND(IF(SUM(M$197:M$199)>0,$E205*$G205*$H205/$H$198,0),2) -> 0 | P205: =ROUND(IF(SUM(O$197:O$199)>0,$E205*$G205*$H205/$H$198,0),2) -> 0 | R205: =ROUND(IF(SUM(Q$197:Q$199)>0,$E205*$G205*$H205/$H$198,0),2) -> 0 | T205: =ROUND(IF(SUM(S$197:S$199)>0,$E205*$G205*$H205/$H$198,0),2) -> 0 | V205: =ROUND(IF(SUM(U$197:U$199)>0,$E205*$G205*$H205/$H$198,0),2) -> 0 | X205: =ROUND(IF(SUM(W$197:W$199)>0,$E205*$G205*$H205/$H$198,0),2) -> 0 | Z205: =ROUND(IF(SUM(Y$197:Y$199)>0,$E205*$G205*$H205/$H$198,0),2) -> 0 | AB205: =ROUND(IF(SUM(AA$197:AA$199)>0,$E205*$G205*$H205/$H$198,0),2) -> 0 | AD205: =ROUND(IF(SUM(AC$197:AC$199)>0,$E205*$G205*$H205/$H$198,0),2) -> 0 | AF205: =ROUND(IF(SUM(AE$197:AE$199)>0,$E205*$G205*$H205/$H$198,0),2) -> 0 | AH205: =ROUND(IF(SUM(AG$197:AG$199)>0,$E205*$G205*$H205/$H$198,0),2) -> 0 | AJ205: =ROUND(IF(SUM(AI$197:AI$199)>0,$E205*$G205*$H205/$H$198,0),2) -> 0 | AL205: =ROUND(IF(SUM(AK$197:AK$199)>0,$E205*$G205*$H205/$H$198,0),2) -> 0 | AN205: =ROUND(IF(SUM(AM$197:AM$199)>0,$E205*$G205*$H205/$H$198,0),2) -> 0 | AP205: =ROUND(IF(SUM(AO$197:AO$199)>0,$E205*$G205*$H205/$H$198,0),2) -> 0 | AR205: =ROUND(IF(SUM(AQ$197:AQ$199)>0,$E205*$G205*$H205/$H$198,0),2) -> 0 | AT205: =ROUND(IF(SUM(AS$197:AS$199)>0,$E205*$G205*$H205/$H$198,0),2) -> 0 | AV205: =ROUND(IF(SUM(AU$197:AU$199)>0,$E205*$G205*$H205/$H$198,0),2) -> 0 | AX205: =ROUND(IF(SUM(AW$197:AW$199)>0,$E205*$G205*$H205/$H$198,0),2) -> 0 | AZ205: =ROUND(IF(SUM(AY$197:AY$199)>0,$E205*$G205*$H205/$H$198,0),2) -> 0 | BB205: =ROUND(IF(SUM(BA$197:BA$199)>0,$E205*$G205*$H205/$H$198,0),2) -> 0 | BD205: =ROUND(IF(SUM(BC$197:BC$199)>0,$E205*$G205*$H205/$H$198,0),2) -> 0 | BF205: =ROUND(IF(SUM(BE$197:BE$199)>0,$E205*$G205*$H205/$H$198,0),2) -> 0 | BH205: =ROUND(IF(SUM(BG$197:BG$199)>0,$E205*$G205*$H205/$H$198,0),2) -> 0 | BJ205: =ROUND(IF(SUM(BI$197:BI$199)>0,$E205*$G205*$H205/$H$198,0),2) -> 0 | BL205: =ROUND(IF(SUM(BK$197:BK$199)>0,$E205*$G205*$H205/$H$198,0),2) -> 0 | BN205: =ROUND(IF(SUM(BM$197:BM$199)>0,$E205*$G205*$H205/$H$198,0),2) -> 0 | BP205: =ROUND(IF(SUM(BO$197:BO$199)>0,$E205*$G205*$H205/$H$198,0),2) -> 0 | BR205: =ROUND(IF(SUM(BQ$197:BQ$199)>0,$E205*$G205*$H205/$H$198,0),2) -> 0 | BT205: =ROUND(IF(SUM(BS$197:BS$199)>0,$E205*$G205*$H205/$H$198,0),2) -> 0 | BV205: =ROUND(IF(SUM(BU$197:BU$199)>0,$E205*$G205*$H205/$H$198,0),2) -> 0 | BX205: =ROUND(IF(SUM(BW$197:BW$199)>0,$E205*$G205*$H205/$H$198,0),2) -> 0 | BZ205: =ROUND(IF(SUM(BY$197:BY$199)>0,$E205*$G205*$H205/$H$198,0),2) -> 0
L206: =ROUND(IF(SUM(K$197:K$199)>0,$E206*$G206*$H206/$H$198,0),2) -> 0 | N206: =ROUND(IF(SUM(M$197:M$199)>0,$E206*$G206*$H206/$H$198,0),2) -> 0 | P206: =ROUND(IF(SUM(O$197:O$199)>0,$E206*$G206*$H206/$H$198,0),2) -> 0 | R206: =ROUND(IF(SUM(Q$197:Q$199)>0,$E206*$G206*$H206/$H$198,0),2) -> 0 | T206: =ROUND(IF(SUM(S$197:S$199)>0,$E206*$G206*$H206/$H$198,0),2) -> 0 | V206: =ROUND(IF(SUM(U$197:U$199)>0,$E206*$G206*$H206/$H$198,0),2) -> 0 | X206: =ROUND(IF(SUM(W$197:W$199)>0,$E206*$G206*$H206/$H$198,0),2) -> 0 | Z206: =ROUND(IF(SUM(Y$197:Y$199)>0,$E206*$G206*$H206/$H$198,0),2) -> 0 | AB206: =ROUND(IF(SUM(AA$197:AA$199)>0,$E206*$G206*$H206/$H$198,0),2) -> 0 | AD206: =ROUND(IF(SUM(AC$197:AC$199)>0,$E206*$G206*$H206/$H$198,0),2) -> 0 | AF206: =ROUND(IF(SUM(AE$197:AE$199)>0,$E206*$G206*$H206/$H$198,0),2) -> 0 | AH206: =ROUND(IF(SUM(AG$197:AG$199)>0,$E206*$G206*$H206/$H$198,0),2) -> 0 | AJ206: =ROUND(IF(SUM(AI$197:AI$199)>0,$E206*$G206*$H206/$H$198,0),2) -> 0 | AL206: =ROUND(IF(SUM(AK$197:AK$199)>0,$E206*$G206*$H206/$H$198,0),2) -> 0 | AN206: =ROUND(IF(SUM(AM$197:AM$199)>0,$E206*$G206*$H206/$H$198,0),2) -> 0 | AP206: =ROUND(IF(SUM(AO$197:AO$199)>0,$E206*$G206*$H206/$H$198,0),2) -> 0 | AR206: =ROUND(IF(SUM(AQ$197:AQ$199)>0,$E206*$G206*$H206/$H$198,0),2) -> 0 | AT206: =ROUND(IF(SUM(AS$197:AS$199)>0,$E206*$G206*$H206/$H$198,0),2) -> 0 | AV206: =ROUND(IF(SUM(AU$197:AU$199)>0,$E206*$G206*$H206/$H$198,0),2) -> 0 | AX206: =ROUND(IF(SUM(AW$197:AW$199)>0,$E206*$G206*$H206/$H$198,0),2) -> 0 | AZ206: =ROUND(IF(SUM(AY$197:AY$199)>0,$E206*$G206*$H206/$H$198,0),2) -> 0 | BB206: =ROUND(IF(SUM(BA$197:BA$199)>0,$E206*$G206*$H206/$H$198,0),2) -> 0 | BD206: =ROUND(IF(SUM(BC$197:BC$199)>0,$E206*$G206*$H206/$H$198,0),2) -> 0 | BF206: =ROUND(IF(SUM(BE$197:BE$199)>0,$E206*$G206*$H206/$H$198,0),2) -> 0 | BH206: =ROUND(IF(SUM(BG$197:BG$199)>0,$E206*$G206*$H206/$H$198,0),2) -> 0 | BJ206: =ROUND(IF(SUM(BI$197:BI$199)>0,$E206*$G206*$H206/$H$198,0),2) -> 0 | BL206: =ROUND(IF(SUM(BK$197:BK$199)>0,$E206*$G206*$H206/$H$198,0),2) -> 0 | BN206: =ROUND(IF(SUM(BM$197:BM$199)>0,$E206*$G206*$H206/$H$198,0),2) -> 0 | BP206: =ROUND(IF(SUM(BO$197:BO$199)>0,$E206*$G206*$H206/$H$198,0),2) -> 0 | BR206: =ROUND(IF(SUM(BQ$197:BQ$199)>0,$E206*$G206*$H206/$H$198,0),2) -> 0 | BT206: =ROUND(IF(SUM(BS$197:BS$199)>0,$E206*$G206*$H206/$H$198,0),2) -> 0 | BV206: =ROUND(IF(SUM(BU$197:BU$199)>0,$E206*$G206*$H206/$H$198,0),2) -> 0 | BX206: =ROUND(IF(SUM(BW$197:BW$199)>0,$E206*$G206*$H206/$H$198,0),2) -> 0 | BZ206: =ROUND(IF(SUM(BY$197:BY$199)>0,$E206*$G206*$H206/$H$198,0),2) -> 0
L207: =ROUND(IF(SUM(K$197:K$199)>0,$E207*$G207*$H207/$H$198,0),2) -> 0 | N207: =ROUND(IF(SUM(M$197:M$199)>0,$E207*$G207*$H207/$H$198,0),2) -> 0 | P207: =ROUND(IF(SUM(O$197:O$199)>0,$E207*$G207*$H207/$H$198,0),2) -> 0 | R207: =ROUND(IF(SUM(Q$197:Q$199)>0,$E207*$G207*$H207/$H$198,0),2) -> 0 | T207: =ROUND(IF(SUM(S$197:S$199)>0,$E207*$G207*$H207/$H$198,0),2) -> 0 | V207: =ROUND(IF(SUM(U$197:U$199)>0,$E207*$G207*$H207/$H$198,0),2) -> 0 | X207: =ROUND(IF(SUM(W$197:W$199)>0,$E207*$G207*$H207/$H$198,0),2) -> 0 | Z207: =ROUND(IF(SUM(Y$197:Y$199)>0,$E207*$G207*$H207/$H$198,0),2) -> 0 | AB207: =ROUND(IF(SUM(AA$197:AA$199)>0,$E207*$G207*$H207/$H$198,0),2) -> 0 | AD207: =ROUND(IF(SUM(AC$197:AC$199)>0,$E207*$G207*$H207/$H$198,0),2) -> 0 | AF207: =ROUND(IF(SUM(AE$197:AE$199)>0,$E207*$G207*$H207/$H$198,0),2) -> 0 | AH207: =ROUND(IF(SUM(AG$197:AG$199)>0,$E207*$G207*$H207/$H$198,0),2) -> 0 | AJ207: =ROUND(IF(SUM(AI$197:AI$199)>0,$E207*$G207*$H207/$H$198,0),2) -> 0 | AL207: =ROUND(IF(SUM(AK$197:AK$199)>0,$E207*$G207*$H207/$H$198,0),2) -> 0 | AN207: =ROUND(IF(SUM(AM$197:AM$199)>0,$E207*$G207*$H207/$H$198,0),2) -> 0 | AP207: =ROUND(IF(SUM(AO$197:AO$199)>0,$E207*$G207*$H207/$H$198,0),2) -> 0 | AR207: =ROUND(IF(SUM(AQ$197:AQ$199)>0,$E207*$G207*$H207/$H$198,0),2) -> 0 | AT207: =ROUND(IF(SUM(AS$197:AS$199)>0,$E207*$G207*$H207/$H$198,0),2) -> 0 | AV207: =ROUND(IF(SUM(AU$197:AU$199)>0,$E207*$G207*$H207/$H$198,0),2) -> 0 | AX207: =ROUND(IF(SUM(AW$197:AW$199)>0,$E207*$G207*$H207/$H$198,0),2) -> 0 | AZ207: =ROUND(IF(SUM(AY$197:AY$199)>0,$E207*$G207*$H207/$H$198,0),2) -> 0 | BB207: =ROUND(IF(SUM(BA$197:BA$199)>0,$E207*$G207*$H207/$H$198,0),2) -> 0 | BD207: =ROUND(IF(SUM(BC$197:BC$199)>0,$E207*$G207*$H207/$H$198,0),2) -> 0 | BF207: =ROUND(IF(SUM(BE$197:BE$199)>0,$E207*$G207*$H207/$H$198,0),2) -> 0 | BH207: =ROUND(IF(SUM(BG$197:BG$199)>0,$E207*$G207*$H207/$H$198,0),2) -> 0 | BJ207: =ROUND(IF(SUM(BI$197:BI$199)>0,$E207*$G207*$H207/$H$198,0),2) -> 0 | BL207: =ROUND(IF(SUM(BK$197:BK$199)>0,$E207*$G207*$H207/$H$198,0),2) -> 0 | BN207: =ROUND(IF(SUM(BM$197:BM$199)>0,$E207*$G207*$H207/$H$198,0),2) -> 0 | BP207: =ROUND(IF(SUM(BO$197:BO$199)>0,$E207*$G207*$H207/$H$198,0),2) -> 0 | BR207: =ROUND(IF(SUM(BQ$197:BQ$199)>0,$E207*$G207*$H207/$H$198,0),2) -> 0 | BT207: =ROUND(IF(SUM(BS$197:BS$199)>0,$E207*$G207*$H207/$H$198,0),2) -> 0 | BV207: =ROUND(IF(SUM(BU$197:BU$199)>0,$E207*$G207*$H207/$H$198,0),2) -> 0 | BX207: =ROUND(IF(SUM(BW$197:BW$199)>0,$E207*$G207*$H207/$H$198,0),2) -> 0 | BZ207: =ROUND(IF(SUM(BY$197:BY$199)>0,$E207*$G207*$H207/$H$198,0),2) -> 0
C209: CATEGORIAS | H209: QUANTIDADE
K210: =IF($C210=K$4,1,0) -> 0 | M210: =IF($C210=M$4,1,0) -> 0 | O210: =IF($C210=O$4,1,0) -> 0 | Q210: =IF($C210=Q$4,1,0) -> 0 | S210: =IF($C210=S$4,1,0) -> 0 | U210: =IF($C210=U$4,1,0) -> 0 | W210: =IF($C210=W$4,1,0) -> 0 | Y210: =IF($C210=Y$4,1,0) -> 0 | AA210: =IF($C210=AA$4,1,0) -> 0 | AC210: =IF($C210=AC$4,1,0) -> 0 | AE210: =IF($C210=AE$4,1,0) -> 0 | AG210: =IF($C210=AG$4,1,0) -> 0 | AI210: =IF($C210=AI$4,1,0) -> 0 | AK210: =IF($C210=AK$4,1,0) -> 0 | AM210: =IF($C210=AM$4,1,0) -> 0 | AO210: =IF($C210=AO$4,1,0) -> 0 | AQ210: =IF($C210=AQ$4,1,0) -> 0 | AS210: =IF($C210=AS$4,1,0) -> 0 | AU210: =IF($C210=AU$4,1,0) -> 0 | AW210: =IF($C210=AW$4,1,0) -> 0 | AY210: =IF($C210=AY$4,1,0) -> 0 | BA210: =IF($C210=BA$4,1,0) -> 0 | BC210: =IF($C210=BC$4,1,0) -> 0 | BE210: =IF($C210=BE$4,1,0) -> 0 | BG210: =IF($C210=BG$4,1,0) -> 0 | BI210: =IF($C210=BI$4,1,0) -> 0 | BK210: =IF($C210=BK$4,1,0) -> 0 | BM210: =IF($C210=BM$4,1,0) -> 0 | BO210: =IF($C210=BO$4,1,0) -> 0 | BQ210: =IF($C210=BQ$4,1,0) -> 0 | BS210: =IF($C210=BS$4,1,0) -> 0 | BU210: =IF($C210=BU$4,1,0) -> 0 | BW210: =IF($C210=BW$4,1,0) -> 0 | BY210: =IF($C210=BY$4,1,0) -> 0
D211: =HLOOKUP($C211,'Dados Gerais'!$D$6:$BI$11,6) ->  | H211: =HLOOKUP($C211,'Dados Gerais'!$D$6:$BI$15,10) ->  | K211: =IF($C211=K$4,1,0) -> 0 | M211: =IF($C211=M$4,1,0) -> 0 | O211: =IF($C211=O$4,1,0) -> 0 | Q211: =IF($C211=Q$4,1,0) -> 0 | S211: =IF($C211=S$4,1,0) -> 0 | U211: =IF($C211=U$4,1,0) -> 0 | W211: =IF($C211=W$4,1,0) -> 0 | Y211: =IF($C211=Y$4,1,0) -> 0 | AA211: =IF($C211=AA$4,1,0) -> 0 | AC211: =IF($C211=AC$4,1,0) -> 0 | AE211: =IF($C211=AE$4,1,0) -> 0 | AG211: =IF($C211=AG$4,1,0) -> 0 | AI211: =IF($C211=AI$4,1,0) -> 0 | AK211: =IF($C211=AK$4,1,0) -> 0 | AM211: =IF($C211=AM$4,1,0) -> 0 | AO211: =IF($C211=AO$4,1,0) -> 0 | AQ211: =IF($C211=AQ$4,1,0) -> 0 | AS211: =IF($C211=AS$4,1,0) -> 0 | AU211: =IF($C211=AU$4,1,0) -> 0 | AW211: =IF($C211=AW$4,1,0) -> 0 | AY211: =IF($C211=AY$4,1,0) -> 0 | BA211: =IF($C211=BA$4,1,0) -> 0 | BC211: =IF($C211=BC$4,1,0) -> 0 | BE211: =IF($C211=BE$4,1,0) -> 0 | BG211: =IF($C211=BG$4,1,0) -> 0 | BI211: =IF($C211=BI$4,1,0) -> 0 | BK211: =IF($C211=BK$4,1,0) -> 0 | BM211: =IF($C211=BM$4,1,0) -> 0 | BO211: =IF($C211=BO$4,1,0) -> 0 | BQ211: =IF($C211=BQ$4,1,0) -> 0 | BS211: =IF($C211=BS$4,1,0) -> 0 | BU211: =IF($C211=BU$4,1,0) -> 0 | BW211: =IF($C211=BW$4,1,0) -> 0 | BY211: =IF($C211=BY$4,1,0) -> 0
K212: =IF($C212=K$4,1,0) -> 0 | M212: =IF($C212=M$4,1,0) -> 0 | O212: =IF($C212=O$4,1,0) -> 0 | Q212: =IF($C212=Q$4,1,0) -> 0 | S212: =IF($C212=S$4,1,0) -> 0 | U212: =IF($C212=U$4,1,0) -> 0 | W212: =IF($C212=W$4,1,0) -> 0 | Y212: =IF($C212=Y$4,1,0) -> 0 | AA212: =IF($C212=AA$4,1,0) -> 0 | AC212: =IF($C212=AC$4,1,0) -> 0 | AE212: =IF($C212=AE$4,1,0) -> 0 | AG212: =IF($C212=AG$4,1,0) -> 0 | AI212: =IF($C212=AI$4,1,0) -> 0 | AK212: =IF($C212=AK$4,1,0) -> 0 | AM212: =IF($C212=AM$4,1,0) -> 0 | AO212: =IF($C212=AO$4,1,0) -> 0 | AQ212: =IF($C212=AQ$4,1,0) -> 0 | AS212: =IF($C212=AS$4,1,0) -> 0 | AU212: =IF($C212=AU$4,1,0) -> 0 | AW212: =IF($C212=AW$4,1,0) -> 0 | AY212: =IF($C212=AY$4,1,0) -> 0 | BA212: =IF($C212=BA$4,1,0) -> 0 | BC212: =IF($C212=BC$4,1,0) -> 0 | BE212: =IF($C212=BE$4,1,0) -> 0 | BG212: =IF($C212=BG$4,1,0) -> 0 | BI212: =IF($C212=BI$4,1,0) -> 0 | BK212: =IF($C212=BK$4,1,0) -> 0 | BM212: =IF($C212=BM$4,1,0) -> 0 | BO212: =IF($C212=BO$4,1,0) -> 0 | BQ212: =IF($C212=BQ$4,1,0) -> 0 | BS212: =IF($C212=BS$4,1,0) -> 0 | BU212: =IF($C212=BU$4,1,0) -> 0 | BW212: =IF($C212=BW$4,1,0) -> 0 | BY212: =IF($C212=BY$4,1,0) -> 0
C214: ITEM | D214: DESCRIÇÃO | E214: QUANT ANUAL POR POSTO | F214: UNIDADE | G214: QUANT DE POSTOS | H214: VALOR
L215: =IF(SUM(K$8:K$10)>0,$E215*$H215,0) -> 0 | N215: =IF(SUM(M$8:M$10)>0,$E215*$H215,0) -> 0 | P215: =IF(SUM(O$8:O$10)>0,$E215*$H215,0) -> 0 | R215: =IF(SUM(Q$8:Q$10)>0,$E215*$H215,0) -> 0 | T215: =IF(SUM(S$8:S$10)>0,$E215*$H215,0) -> 0 | V215: =IF(SUM(U$8:U$10)>0,$E215*$H215,0) -> 0 | X215: =IF(SUM(W$8:W$10)>0,$E215*$H215,0) -> 0 | Z215: =IF(SUM(Y$8:Y$10)>0,$E215*$H215,0) -> 0 | AB215: =IF(SUM(AA$8:AA$10)>0,$E215*$H215,0) -> 0 | AD215: =IF(SUM(AC$8:AC$10)>0,$E215*$H215,0) -> 0 | AF215: =IF(SUM(AE$8:AE$10)>0,$E215*$H215,0) -> 0 | AH215: =IF(SUM(AG$8:AG$10)>0,$E215*$H215,0) -> 0 | AJ215: =IF(SUM(AI$8:AI$10)>0,$E215*$H215,0) -> 0 | AL215: =IF(SUM(AK$8:AK$10)>0,$E215*$H215,0) -> 0 | AN215: =IF(SUM(AM$8:AM$10)>0,$E215*$H215,0) -> 0 | AP215: =IF(SUM(AO$8:AO$10)>0,$E215*$H215,0) -> 0 | AR215: =IF(SUM(AQ$8:AQ$10)>0,$E215*$H215,0) -> 0 | AT215: =IF(SUM(AS$8:AS$10)>0,$E215*$H215,0) -> 0 | AV215: =IF(SUM(AU$8:AU$10)>0,$E215*$H215,0) -> 0 | AX215: =IF(SUM(AW$8:AW$10)>0,$E215*$H215,0) -> 0 | AZ215: =IF(SUM(AY$8:AY$10)>0,$E215*$H215,0) -> 0 | BB215: =IF(SUM(BA$8:BA$10)>0,$E215*$H215,0) -> 0 | BD215: =IF(SUM(BC$8:BC$10)>0,$E215*$H215,0) -> 0 | BF215: =IF(SUM(BE$8:BE$10)>0,$E215*$H215,0) -> 0 | BH215: =IF(SUM(BG$8:BG$10)>0,$E215*$H215,0) -> 0 | BJ215: =IF(SUM(BI$8:BI$10)>0,$E215*$H215,0) -> 0 | BL215: =IF(SUM(BK$8:BK$10)>0,$E215*$H215,0) -> 0 | BN215: =IF(SUM(BM$8:BM$10)>0,$E215*$H215,0) -> 0 | BP215: =IF(SUM(BO$8:BO$10)>0,$E215*$H215,0) -> 0 | BR215: =IF(SUM(BQ$8:BQ$10)>0,$E215*$H215,0) -> 0 | BT215: =IF(SUM(BS$8:BS$10)>0,$E215*$H215,0) -> 0 | BV215: =IF(SUM(BU$8:BU$10)>0,$E215*$H215,0) -> 0 | BX215: =IF(SUM(BW$8:BW$10)>0,$E215*$H215,0) -> 0 | BZ215: =IF(SUM(BY$8:BY$10)>0,$E215*$H215,0) -> 0
L216: =ROUND(IF(SUM(K$210:K$212)>0,$E216*$G216*$H216/$H$211,0),2) -> 0 | N216: =ROUND(IF(SUM(M$210:M$212)>0,$E216*$G216*$H216/$H$211,0),2) -> 0 | P216: =ROUND(IF(SUM(O$210:O$212)>0,$E216*$G216*$H216/$H$211,0),2) -> 0 | R216: =ROUND(IF(SUM(Q$210:Q$212)>0,$E216*$G216*$H216/$H$211,0),2) -> 0 | T216: =ROUND(IF(SUM(S$210:S$212)>0,$E216*$G216*$H216/$H$211,0),2) -> 0 | V216: =ROUND(IF(SUM(U$210:U$212)>0,$E216*$G216*$H216/$H$211,0),2) -> 0 | X216: =ROUND(IF(SUM(W$210:W$212)>0,$E216*$G216*$H216/$H$211,0),2) -> 0 | Z216: =ROUND(IF(SUM(Y$210:Y$212)>0,$E216*$G216*$H216/$H$211,0),2) -> 0 | AB216: =ROUND(IF(SUM(AA$210:AA$212)>0,$E216*$G216*$H216/$H$211,0),2) -> 0 | AD216: =ROUND(IF(SUM(AC$210:AC$212)>0,$E216*$G216*$H216/$H$211,0),2) -> 0 | AF216: =ROUND(IF(SUM(AE$210:AE$212)>0,$E216*$G216*$H216/$H$211,0),2) -> 0 | AH216: =ROUND(IF(SUM(AG$210:AG$212)>0,$E216*$G216*$H216/$H$211,0),2) -> 0 | AJ216: =ROUND(IF(SUM(AI$210:AI$212)>0,$E216*$G216*$H216/$H$211,0),2) -> 0 | AL216: =ROUND(IF(SUM(AK$210:AK$212)>0,$E216*$G216*$H216/$H$211,0),2) -> 0 | AN216: =ROUND(IF(SUM(AM$210:AM$212)>0,$E216*$G216*$H216/$H$211,0),2) -> 0 | AP216: =ROUND(IF(SUM(AO$210:AO$212)>0,$E216*$G216*$H216/$H$211,0),2) -> 0 | AR216: =ROUND(IF(SUM(AQ$210:AQ$212)>0,$E216*$G216*$H216/$H$211,0),2) -> 0 | AT216: =ROUND(IF(SUM(AS$210:AS$212)>0,$E216*$G216*$H216/$H$211,0),2) -> 0 | AV216: =ROUND(IF(SUM(AU$210:AU$212)>0,$E216*$G216*$H216/$H$211,0),2) -> 0 | AX216: =ROUND(IF(SUM(AW$210:AW$212)>0,$E216*$G216*$H216/$H$211,0),2) -> 0 | AZ216: =ROUND(IF(SUM(AY$210:AY$212)>0,$E216*$G216*$H216/$H$211,0),2) -> 0 | BB216: =ROUND(IF(SUM(BA$210:BA$212)>0,$E216*$G216*$H216/$H$211,0),2) -> 0 | BD216: =ROUND(IF(SUM(BC$210:BC$212)>0,$E216*$G216*$H216/$H$211,0),2) -> 0 | BF216: =ROUND(IF(SUM(BE$210:BE$212)>0,$E216*$G216*$H216/$H$211,0),2) -> 0 | BH216: =ROUND(IF(SUM(BG$210:BG$212)>0,$E216*$G216*$H216/$H$211,0),2) -> 0 | BJ216: =ROUND(IF(SUM(BI$210:BI$212)>0,$E216*$G216*$H216/$H$211,0),2) -> 0 | BL216: =ROUND(IF(SUM(BK$210:BK$212)>0,$E216*$G216*$H216/$H$211,0),2) -> 0 | BN216: =ROUND(IF(SUM(BM$210:BM$212)>0,$E216*$G216*$H216/$H$211,0),2) -> 0 | BP216: =ROUND(IF(SUM(BO$210:BO$212)>0,$E216*$G216*$H216/$H$211,0),2) -> 0 | BR216: =ROUND(IF(SUM(BQ$210:BQ$212)>0,$E216*$G216*$H216/$H$211,0),2) -> 0 | BT216: =ROUND(IF(SUM(BS$210:BS$212)>0,$E216*$G216*$H216/$H$211,0),2) -> 0 | BV216: =ROUND(IF(SUM(BU$210:BU$212)>0,$E216*$G216*$H216/$H$211,0),2) -> 0 | BX216: =ROUND(IF(SUM(BW$210:BW$212)>0,$E216*$G216*$H216/$H$211,0),2) -> 0 | BZ216: =ROUND(IF(SUM(BY$210:BY$212)>0,$E216*$G216*$H216/$H$211,0),2) -> 0
L217: 0 | N217: 0 | P217: 0 | R217: 0 | T217: 0 | V217: 0 | X217: 0 | Z217: 0 | AB217: 0 | AD217: 0 | AF217: 0 | AH217: 0 | AJ217: 0 | AL217: 0 | AN217: 0 | AP217: 0 | AR217: 0 | AT217: 0 | AV217: 0 | AX217: 0 | AZ217: 0 | BB217: 0 | BD217: 0 | BF217: 0 | BH217: 0 | BJ217: 0 | BL217: 0 | BN217: 0 | BP217: 0 | BR217: 0 | BT217: 0 | BV217: 0 | BX217: 0 | BZ217: 0
L218: 0 | N218: 0 | P218: 0 | R218: 0 | T218: 0 | V218: 0 | X218: 0 | Z218: 0 | AB218: 0 | AD218: 0 | AF218: 0 | AH218: 0 | AJ218: 0 | AL218: 0 | AN218: 0 | AP218: 0 | AR218: 0 | AT218: 0 | AV218: 0 | AX218: 0 | AZ218: 0 | BB218: 0 | BD218: 0 | BF218: 0 | BH218: 0 | BJ218: 0 | BL218: 0 | BN218: 0 | BP218: 0 | BR218: 0 | BT218: 0 | BV218: 0 | BX218: 0 | BZ218: 0
L219: 0 | N219: 0 | P219: 0 | R219: 0 | T219: 0 | V219: 0 | X219: 0 | Z219: 0 | AB219: 0 | AD219: 0 | AF219: 0 | AH219: 0 | AJ219: 0 | AL219: 0 | AN219: 0 | AP219: 0 | AR219: 0 | AT219: 0 | AV219: 0 | AX219: 0 | AZ219: 0 | BB219: 0 | BD219: 0 | BF219: 0 | BH219: 0 | BJ219: 0 | BL219: 0 | BN219: 0 | BP219: 0 | BR219: 0 | BT219: 0 | BV219: 0 | BX219: 0 | BZ219: 0
L220: 0 | N220: 0 | P220: 0 | R220: 0 | T220: 0 | V220: 0 | X220: 0 | Z220: 0 | AB220: 0 | AD220: 0 | AF220: 0 | AH220: 0 | AJ220: 0 | AL220: 0 | AN220: 0 | AP220: 0 | AR220: 0 | AT220: 0 | AV220: 0 | AX220: 0 | AZ220: 0 | BB220: 0 | BD220: 0 | BF220: 0 | BH220: 0 | BJ220: 0 | BL220: 0 | BN220: 0 | BP220: 0 | BR220: 0 | BT220: 0 | BV220: 0 | BX220: 0 | BZ220: 0
L221: 0 | N221: 0 | P221: 0 | R221: 0 | T221: 0 | V221: 0 | X221: 0 | Z221: 0 | AB221: 0 | AD221: 0 | AF221: 0 | AH221: 0 | AJ221: 0 | AL221: 0 | AN221: 0 | AP221: 0 | AR221: 0 | AT221: 0 | AV221: 0 | AX221: 0 | AZ221: 0 | BB221: 0 | BD221: 0 | BF221: 0 | BH221: 0 | BJ221: 0 | BL221: 0 | BN221: 0 | BP221: 0 | BR221: 0 | BT221: 0 | BV221: 0 | BX221: 0 | BZ221: 0
L222: 0 | N222: 0 | P222: 0 | R222: 0 | T222: 0 | V222: 0 | X222: 0 | Z222: 0 | AB222: 0 | AD222: 0 | AF222: 0 | AH222: 0 | AJ222: 0 | AL222: 0 | AN222: 0 | AP222: 0 | AR222: 0 | AT222: 0 | AV222: 0 | AX222: 0 | AZ222: 0 | BB222: 0 | BD222: 0 | BF222: 0 | BH222: 0 | BJ222: 0 | BL222: 0 | BN222: 0 | BP222: 0 | BR222: 0 | BT222: 0 | BV222: 0 | BX222: 0 | BZ222: 0
L223: 0 | N223: 0 | P223: 0 | R223: 0 | T223: 0 | V223: 0 | X223: 0 | Z223: 0 | AB223: 0 | AD223: 0 | AF223: 0 | AH223: 0 | AJ223: 0 | AL223: 0 | AN223: 0 | AP223: 0 | AR223: 0 | AT223: 0 | AV223: 0 | AX223: 0 | AZ223: 0 | BB223: 0 | BD223: 0 | BF223: 0 | BH223: 0 | BJ223: 0 | BL223: 0 | BN223: 0 | BP223: 0 | BR223: 0 | BT223: 0 | BV223: 0 | BX223: 0 | BZ223: 0
L224: 0 | N224: 0 | P224: 0 | R224: 0 | T224: 0 | V224: 0 | X224: 0 | Z224: 0 | AB224: 0 | AD224: 0 | AF224: 0 | AH224: 0 | AJ224: 0 | AL224: 0 | AN224: 0 | AP224: 0 | AR224: 0 | AT224: 0 | AV224: 0 | AX224: 0 | AZ224: 0 | BB224: 0 | BD224: 0 | BF224: 0 | BH224: 0 | BJ224: 0 | BL224: 0 | BN224: 0 | BP224: 0 | BR224: 0 | BT224: 0 | BV224: 0 | BX224: 0 | BZ224: 0
L225: 0 | N225: 0 | P225: 0 | R225: 0 | T225: 0 | V225: 0 | X225: 0 | Z225: 0 | AB225: 0 | AD225: 0 | AF225: 0 | AH225: 0 | AJ225: 0 | AL225: 0 | AN225: 0 | AP225: 0 | AR225: 0 | AT225: 0 | AV225: 0 | AX225: 0 | AZ225: 0 | BB225: 0 | BD225: 0 | BF225: 0 | BH225: 0 | BJ225: 0 | BL225: 0 | BN225: 0 | BP225: 0 | BR225: 0 | BT225: 0 | BV225: 0 | BX225: 0 | BZ225: 0
... 68 more rows

Sheet QTDE POSTOS POR CATEGORIA (hidden)
A1: Detalhamento dos quantitativos dos postos de trabalho
A2: Função | B2: Manutenção de elementos não estruturais | C2: Gestão de materiais | D2: Manutenção de elementos estruturais | E2: Intervenções eletivas | F2: Gestão de documentos | G2: Cequi | H2: Cohab | I2: Total previsto
A3: Ajudante de campo | B3: 12 | D3: 7 | E3: 12 | G3: 4 | H3: 8 | I3: 43
A4: Ajudante de campo com insalubridade (tapeçaria) | B4: 1 | H4: 0 | I4: 1
A5: Ajudante de campo com insalubridade (estofamento) | B5: 4 | H5: 0 | I5: 4
A6: Ajudante de campo com insalubridade (impermeabilização) | B6: 3 | H6: 1 | I6: 4
A7: Ajudante de campo com insalubridade (pintura) | B7: 4 | E7: 3 | H7: 2 | I7: 9
A8: Ajudante de campo com insalubridade (marcenaria) | B8: 4 | E8: 15 | H8: 2 | I8: 21
A9: Ajudante de campo com insalubridade (serralheria) | B9: 3 | E9: 5 | H9: 1 | I9: 9
A10: Assistente de controle de recursos físicos | C10: 3 | H10: 2 | I10: 5
A11: Chaveiro | B11: 2 | H11: 0 | I11: 2
A12: Encarregado de serviços (marcenaria) | E12: 2 | H12: 0 | I12: 2
A13: Encarregado de serviços (obra civil) | E13: 1 | H13: 0 | I13: 1
A14: Encarregado de serviços (pintura) | E14: 1 | H14: 0 | I14: 1
A15: Encarregado de serviços (serralheria) | E15: 1 | H15: 0 | I15: 1
A16: Encarregado de serviços (geral) | B16: 3 | H16: 3 | I16: 6
A17: Estofador | B17: 4 | H17: 0 | I17: 4
A18: Gesseiro | B18: 3 | E18: 2 | H18: 0 | I18: 5
A19: Impermeabilizador | B19: 3 | H19: 2 | I19: 5
A20: Instalador de pisos e revestimentos | B20: 2 | E20: 1 | H20: 0 | I20: 3
A21: Marceneiro | B21: 6 | E21: 21 | H21: 5 | I21: 32
A22: Mecânico de máquinas | B22: 1 | H22: 0 | I22: 1
A23: Mestre de obras | E23: 2 | H23: 3 | I23: 5
A24: Pedreiro | B24: 5 | D24: 3 | E24: 7 | H24: 4 | I24: 19
A25: Pintor | B25: 4 | E25: 4 | H25: 6 | I25: 14
A26: Projetista de elementos construtivos | B26: 1 | D26: 1 | H26: 0 | I26: 2
A27: Serralheiro | B27: 3 | E27: 5 | H27: 1 | I27: 9
A28: Supervisor-geral | F28: 1 | H28: 0 | I28: 1
A29: Técnico de controle de recursos físicos | C29: 6 | E29: 2 | H29: 2 | I29: 10
A30: Técnico de facilities I | B30: 3 | C30: 4 | D30: 1 | H30: 0 | I30: 8
A31: Técnico de facilities II | B31: 1 | C31: 2 | D31: 1 | E31: 1 | F31: 3 | H31: 12 | I31: 20
A32: Técnico de facilities III | B32: 1 | D32: 1 | E32: 1 | H32: 0 | I32: 3
A33: Técnico em persianas | B33: 2 | H33: 1 | I33: 3
A34: Torneiro mecânico | E34: 1 | H34: 0 | I34: 1
A35: Vidraceiro | B35: 3 | H35: 1 | I35: 4
A36: Total | B36: 78 | C36: 15 | D36: 14 | E36: 87 | F36: 4 | G36: 4 | H36: 56 | I36: 258

Sheet Relacion - Ferram
B3: FERRAMENTAS INDIVIDUAIS RELACIONADOS AO POSTO - PAGAMENTO DA DEPRECIAÇÃO / MANUTENÇÃO | Q3: 1 | S3: =Q3+1 -> 2 | U3: =S3+1 -> 3 | W3: =U3+1 -> 4 | Y3: =W3+1 -> 5 | AA3: =Y3+1 -> 6 | AC3: =AA3+1 -> 7 | AE3: =AC3+1 -> 8 | AG3: =AE3+1 -> 9 | AI3: =AG3+1 -> 10 | AK3: =AI3+1 -> 11 | AM3: =AK3+1 -> 12 | AO3: =AM3+1 -> 13 | AQ3: =AO3+1 -> 14 | AS3: =AQ3+1 -> 15 | AU3: =AS3+1 -> 16 | AW3: =AU3+1 -> 17 | AY3: =AW3+1 -> 18 | BA3: =AY3+1 -> 19 | BC3: =BA3+1 -> 20 | BE3: =BC3+1 -> 21 | BG3: =BE3+1 -> 22 | BI3: =BG3+1 -> 23 | BK3: =BI3+1 -> 24 | BM3: =BK3+1 -> 25 | BO3: =BM3+1 -> 26 | BQ3: =BO3+1 -> 27 | BS3: =BQ3+1 -> 28 | BU3: =BS3+1 -> 29 | BW3: =BU3+1 -> 30 | BY3: =BW3+1 -> 31 | CA3: =BY3+1 -> 32 | CC3: =CA3+1 -> 33 | CE3: =CC3+1 -> 34 | CG3: =CE3+1 -> 35 | CI3: =CG3+1 -> 36 | CK3: =CI3+1 -> 37 | CM3: =CK3+1 -> 38 | CO3: =CM3+1 -> 39 | CQ3: =CO3+1 -> 40 | CS3: =CQ3+1 -> 41 | CU3: =CS3+1 -> 42 | CW3: =CU3+1 -> 43 | CY3: =CW3+1 -> 44 | DA3: =CY3+1 -> 45 | DC3: =DA3+1 -> 46 | DE3: =DC3+1 -> 47 | DG3: =DE3+1 -> 48 | DI3: =DG3+1 -> 49 | DK3: =DI3+1 -> 50 | DM3: =DK3+1 -> 51 | DO3: =DM3+1 -> 52 | DQ3: =DO3+1 -> 53 | DS3: =DQ3+1 -> 54 | DU3: =DS3+1 -> 55 | DW3: =DU3+1 -> 56 | DY3: =DW3+1 -> 57 | EA3: =DY3+1 -> 58 | EC3: =EA3+1 -> 59 | EE3: =EC3+1 -> 60 | EG3: =EE3+1 -> 61
Q5: =SUM(R4:R258) -> 0 | S5: =SUM(T4:T258) -> 0 | U5: =SUM(V4:V258) -> 0 | W5: =SUM(X4:X258) -> 0 | Y5: =SUM(Z4:Z258) -> 5.37 | AA5: =SUM(AB4:AB258) -> 5.37 | AC5: =SUM(AD4:AD258) -> 0 | AE5: =SUM(AF4:AF258) -> 5.37 | AG5: =SUM(AH4:AH258) -> 5.37 | AI5: =SUM(AJ4:AJ258) -> 0 | AK5: =SUM(AL4:AL258) -> 0 | AM5: =SUM(AN4:AN258) -> 0 | AO5: =SUM(AP4:AP258) -> 0 | AQ5: =SUM(AR4:AR258) -> 0 | AS5: =SUM(AT4:AT258) -> 0 | AU5: =SUM(AV4:AV258) -> 0 | AW5: =SUM(AX4:AX258) -> 0 | AY5: =SUM(AZ4:AZ258) -> 0 | BA5: =SUM(BB4:BB258) -> 0 | BC5: =SUM(BD4:BD258) -> 0 | BE5: =SUM(BF4:BF258) -> 0 | BG5: =SUM(BH4:BH258) -> 0 | BI5: =SUM(BJ4:BJ258) -> 0 | BK5: =SUM(BL4:BL258) -> 0 | BM5: =SUM(BN4:BN258) -> 0 | BO5: =SUM(BP4:BP258) -> 0 | BQ5: =SUM(BR4:BR258) -> 0 | BS5: =SUM(BT4:BT258) -> 0 | BU5: =SUM(BV4:BV258) -> 0 | BW5: =SUM(BX4:BX258) -> 0 | BY5: =SUM(BZ4:BZ258) -> 0 | CA5: =SUM(CB4:CB258) -> 0 | CC5: =SUM(CD4:CD258) -> 0 | CE5: =SUM(CF4:CF258) -> 0 | CG5: =SUM(CH4:CH258) -> 0 | CI5: =SUM(CJ4:CJ258) -> 0 | CK5: =SUM(CL4:CL258) -> 0 | CM5: =SUM(CN4:CN258) -> 0 | CO5: =SUM(CP4:CP258) -> 0 | CQ5: =SUM(CR4:CR258) -> 0 | CS5: =SUM(CT4:CT258) -> 0 | CU5: =SUM(CV4:CV258) -> 0 | CW5: =SUM(CX4:CX258) -> 0 | CY5: =SUM(CZ4:CZ258) -> 0 | DA5: =SUM(DB4:DB258) -> 0 | DC5: =SUM(DD4:DD258) -> 0 | DE5: =SUM(DF4:DF258) -> 0 | DG5: =SUM(DH4:DH258) -> 0 | DI5: =SUM(DJ4:DJ258) -> 0 | DK5: =SUM(DL4:DL258) -> 0 | DM5: =SUM(DN4:DN258) -> 0 | DO5: =SUM(DP4:DP258) -> 0 | DQ5: =SUM(DR4:DR258) -> 0 | DS5: =SUM(DT4:DT258) -> 0 | DU5: =SUM(DV4:DV258) -> 0 | DW5: =SUM(DX4:DX258) -> 0 | DY5: =SUM(DZ4:DZ258) -> 0 | EA5: =SUM(EB4:EB258) -> 0 | EC5: =SUM(ED4:ED258) -> 0 | EE5: =SUM(EF4:EF258) -> 0 | EG5: =SUM(EH4:EH258) -> 0
C6: CATEGORIAS | E6: QUANTIDADE | Q6: =SUM(Q7:Q12) -> 0 | S6: =SUM(S7:S12) -> 0 | U6: =SUM(U7:U12) -> 0 | W6: =SUM(W7:W12) -> 0 | Y6: =SUM(Y7:Y12) -> 1 | AA6: =SUM(AA7:AA12) -> 1 | AC6: =SUM(AC7:AC12) -> 0 | AE6: =SUM(AE7:AE12) -> 1 | AG6: =SUM(AG7:AG12) -> 1 | AI6: =SUM(AI7:AI12) -> 0 | AK6: =SUM(AK7:AK12) -> 0 | AM6: =SUM(AM7:AM12) -> 0 | AO6: =SUM(AO7:AO12) -> 0 | AQ6: =SUM(AQ7:AQ12) -> 0 | AS6: =SUM(AS7:AS12) -> 0 | AU6: =SUM(AU7:AU12) -> 0 | AW6: =SUM(AW7:AW12) -> 0 | AY6: =SUM(AY7:AY12) -> 0 | BA6: =SUM(BA7:BA12) -> 0 | BC6: =SUM(BC7:BC12) -> 0 | BE6: =SUM(BE7:BE12) -> 0 | BG6: =SUM(BG7:BG12) -> 0 | BI6: =SUM(BI7:BI12) -> 0 | BK6: =SUM(BK7:BK12) -> 0 | BM6: =SUM(BM7:BM12) -> 0 | BO6: =SUM(BO7:BO12) -> 0 | BQ6: =SUM(BQ7:BQ12) -> 0 | BS6: =SUM(BS7:BS12) -> 0 | BU6: =SUM(BU7:BU12) -> 0 | BW6: =SUM(BW7:BW12) -> 0 | BY6: =SUM(BY7:BY12) -> 0 | CA6: =SUM(CA7:CA12) -> 0 | CC6: =SUM(CC7:CC12) -> 0 | CE6: =SUM(CE7:CE12) -> 0 | CG6: =SUM(CG7:CG12) -> 0 | CI6: =SUM(CI7:CI12) -> 0 | CK6: =SUM(CK7:CK12) -> 0 | CM6: =SUM(CM7:CM12) -> 0 | CO6: =SUM(CO7:CO12) -> 0 | CQ6: =SUM(CQ7:CQ12) -> 0 | CS6: =SUM(CS7:CS12) -> 0 | CU6: =SUM(CU7:CU12) -> 0 | CW6: =SUM(CW7:CW12) -> 0 | CY6: =SUM(CY7:CY12) -> 0 | DA6: =SUM(DA7:DA12) -> 0 | DC6: =SUM(DC7:DC12) -> 0 | DE6: =SUM(DE7:DE12) -> 0 | DG6: =SUM(DG7:DG12) -> 0 | DI6: =SUM(DI7:DI12) -> 0 | DK6: =SUM(DK7:DK12) -> 0 | DM6: =SUM(DM7:DM12) -> 0 | DO6: =SUM(DO7:DO12) -> 0 | DQ6: =SUM(DQ7:DQ12) -> 0 | DS6: =SUM(DS7:DS12) -> 0 | DU6: =SUM(DU7:DU12) -> 0 | DW6: =SUM(DW7:DW12) -> 0 | DY6: =SUM(DY7:DY12) -> 0 | EA6: =SUM(EA7:EA12) -> 0 | EC6: =SUM(EC7:EC12) -> 0 | EE6: =SUM(EE7:EE12) -> 0 | EG6: =SUM(EG7:EG12) -> 0
Q7: =IF($C7=Q$3,1,0) -> 0 | S7: =IF($C7=S$3,1,0) -> 0 | U7: =IF($C7=U$3,1,0) -> 0 | W7: =IF($C7=W$3,1,0) -> 0 | Y7: =IF($C7=Y$3,1,0) -> 0 | AA7: =IF($C7=AA$3,1,0) -> 0 | AC7: =IF($C7=AC$3,1,0) -> 0 | AE7: =IF($C7=AE$3,1,0) -> 0 | AG7: =IF($C7=AG$3,1,0) -> 0 | AI7: =IF($C7=AI$3,1,0) -> 0 | AK7: =IF($C7=AK$3,1,0) -> 0 | AM7: =IF($C7=AM$3,1,0) -> 0 | AO7: =IF($C7=AO$3,1,0) -> 0 | AQ7: =IF($C7=AQ$3,1,0) -> 0 | AS7: =IF($C7=AS$3,1,0) -> 0 | AU7: =IF($C7=AU$3,1,0) -> 0 | AW7: =IF($C7=AW$3,1,0) -> 0 | AY7: =IF($C7=AY$3,1,0) -> 0 | BA7: =IF($C7=BA$3,1,0) -> 0 | BC7: =IF($C7=BC$3,1,0) -> 0 | BE7: =IF($C7=BE$3,1,0) -> 0 | BG7: =IF($C7=BG$3,1,0) -> 0 | BI7: =IF($C7=BI$3,1,0) -> 0 | BK7: =IF($C7=BK$3,1,0) -> 0 | BM7: =IF($C7=BM$3,1,0) -> 0 | BO7: =IF($C7=BO$3,1,0) -> 0 | BQ7: =IF($C7=BQ$3,1,0) -> 0 | BS7: =IF($C7=BS$3,1,0) -> 0 | BU7: =IF($C7=BU$3,1,0) -> 0 | BW7: =IF($C7=BW$3,1,0) -> 0 | BY7: =IF($C7=BY$3,1,0) -> 0 | CA7: =IF($C7=CA$3,1,0) -> 0 | CC7: =IF($C7=CC$3,1,0) -> 0 | CE7: =IF($C7=CE$3,1,0) -> 0 | CG7: =IF($C7=CG$3,1,0) -> 0 | CI7: =IF($C7=CI$3,1,0) -> 0 | CK7: =IF($C7=CK$3,1,0) -> 0 | CM7: =IF($C7=CM$3,1,0) -> 0 | CO7: =IF($C7=CO$3,1,0) -> 0 | CQ7: =IF($C7=CQ$3,1,0) -> 0 | CS7: =IF($C7=CS$3,1,0) -> 0 | CU7: 0 | CW7: 0 | CY7: 0 | DA7: 0 | DC7: 0 | DE7: 0 | DG7: 0 | DI7: 0 | DK7: 0 | DM7: 0 | DO7: 0 | DQ7: 0 | DS7: 0 | DU7: 0 | DW7: 0 | DY7: 0 | EA7: 0 | EC7: 0 | EE7: 0 | EG7: 0
C8: 5 | D8: =HLOOKUP($C8,'Dados Gerais'!$D$6:$BI$11,6) -> DIRETOR DE IMAGENS – 30H | E8: =HLOOKUP($C8,'Dados Gerais'!$D$6:$BI$15,10) -> 24 | Q8: 0 | S8: =IF($C8=S$3,1,0) -> 0 | U8: =IF($C8=U$3,1,0) -> 0 | W8: =IF($C8=W$3,1,0) -> 0 | Y8: =IF($C8=Y$3,1,0) -> 1 | AA8: =IF($C8=AA$3,1,0) -> 0 | AC8: =IF($C8=AC$3,1,0) -> 0 | AE8: =IF($C8=AE$3,1,0) -> 0 | AG8: =IF($C8=AG$3,1,0) -> 0 | AI8: =IF($C8=AI$3,1,0) -> 0 | AK8: =IF($C8=AK$3,1,0) -> 0 | AM8: =IF($C8=AM$3,1,0) -> 0 | AO8: =IF($C8=AO$3,1,0) -> 0 | AQ8: =IF($C8=AQ$3,1,0) -> 0 | AS8: =IF($C8=AS$3,1,0) -> 0 | AU8: =IF($C8=AU$3,1,0) -> 0 | AW8: =IF($C8=AW$3,1,0) -> 0 | AY8: =IF($C8=AY$3,1,0) -> 0 | BA8: =IF($C8=BA$3,1,0) -> 0 | BC8: =IF($C8=BC$3,1,0) -> 0 | BE8: =IF($C8=BE$3,1,0) -> 0 | BG8: =IF($C8=BG$3,1,0) -> 0 | BI8: =IF($C8=BI$3,1,0) -> 0 | BK8: =IF($C8=BK$3,1,0) -> 0 | BM8: =IF($C8=BM$3,1,0) -> 0 | BO8: =IF($C8=BO$3,1,0) -> 0 | BQ8: =IF($C8=BQ$3,1,0) -> 0 | BS8: =IF($C8=BS$3,1,0) -> 0 | BU8: =IF($C8=BU$3,1,0) -> 0 | BW8: =IF($C8=BW$3,1,0) -> 0 | BY8: =IF($C8=BY$3,1,0) -> 0 | CA8: =IF($C8=CA$3,1,0) -> 0 | CC8: =IF($C8=CC$3,1,0) -> 0 | CE8: 0 | CG8: 0 | CI8: 0 | CK8: 0 | CM8: 0 | CO8: 0 | CQ8: 0 | CS8: 0 | CU8: 0 | CW8: 0 | CY8: 0 | DA8: 0 | DC8: 0 | DE8: 0 | DG8: 0 | DI8: 0 | DK8: 0 | DM8: 0 | DO8: 0 | DQ8: 0 | DS8: 0 | DU8: 0 | DW8: 0 | DY8: 0 | EA8: 0 | EC8: 0 | EE8: 0 | EG8: 0
C9: 6 | D9: =HLOOKUP($C9,'Dados Gerais'!$D$6:$BI$11,6) -> DIRETOR DE IMAGENS – 18H | E9: =HLOOKUP($C9,'Dados Gerais'!$D$6:$BI$15,10) -> 21 | Q9: 0 | S9: =IF($C9=S$3,1,0) -> 0 | U9: =IF($C9=U$3,1,0) -> 0 | W9: =IF($C9=W$3,1,0) -> 0 | Y9: =IF($C9=Y$3,1,0) -> 0 | AA9: =IF($C9=AA$3,1,0) -> 1 | AC9: =IF($C9=AC$3,1,0) -> 0 | AE9: =IF($C9=AE$3,1,0) -> 0 | AG9: =IF($C9=AG$3,1,0) -> 0 | AI9: =IF($C9=AI$3,1,0) -> 0 | AK9: =IF($C9=AK$3,1,0) -> 0 | AM9: =IF($C9=AM$3,1,0) -> 0 | AO9: =IF($C9=AO$3,1,0) -> 0 | AQ9: =IF($C9=AQ$3,1,0) -> 0 | AS9: =IF($C9=AS$3,1,0) -> 0 | AU9: =IF($C9=AU$3,1,0) -> 0 | AW9: =IF($C9=AW$3,1,0) -> 0 | AY9: =IF($C9=AY$3,1,0) -> 0 | BA9: =IF($C9=BA$3,1,0) -> 0 | BC9: =IF($C9=BC$3,1,0) -> 0 | BE9: =IF($C9=BE$3,1,0) -> 0 | BG9: =IF($C9=BG$3,1,0) -> 0 | BI9: =IF($C9=BI$3,1,0) -> 0 | BK9: =IF($C9=BK$3,1,0) -> 0 | BM9: =IF($C9=BM$3,1,0) -> 0 | BO9: =IF($C9=BO$3,1,0) -> 0 | BQ9: =IF($C9=BQ$3,1,0) -> 0 | BS9: =IF($C9=BS$3,1,0) -> 0 | BU9: =IF($C9=BU$3,1,0) -> 0 | BW9: =IF($C9=BW$3,1,0) -> 0 | BY9: =IF($C9=BY$3,1,0) -> 0 | CA9: =IF($C9=CA$3,1,0) -> 0 | CC9: =IF($C9=CC$3,1,0) -> 0 | CE9: 0 | CG9: 0 | CI9: 0 | CK9: 0 | CM9: 0 | CO9: 0 | CQ9: 0 | CS9: 0 | CU9: 0 | CW9: 0 | CY9: 0 | DA9: 0 | DC9: 0 | DE9: 0 | DG9: 0 | DI9: 0 | DK9: 0 | DM9: 0 | DO9: 0 | DQ9: 0 | DS9: 0 | DU9: 0 | DW9: 0 | DY9: 0 | EA9: 0 | EC9: 0 | EE9: 0 | EG9: 0
C10: 8 | D10: =HLOOKUP($C10,'Dados Gerais'!$D$6:$BI$11,6) -> OPERADOR DE MÍDIA AUDIOVISUAL – 30H | E10: =HLOOKUP($C10,'Dados Gerais'!$D$6:$BI$15,10) -> 34 | Q10: 0 | S10: =IF($C10=S$3,1,0) -> 0 | U10: =IF($C10=U$3,1,0) -> 0 | W10: =IF($C10=W$3,1,0) -> 0 | Y10: =IF($C10=Y$3,1,0) -> 0 | AA10: =IF($C10=AA$3,1,0) -> 0 | AC10: =IF($C10=AC$3,1,0) -> 0 | AE10: =IF($C10=AE$3,1,0) -> 1 | AG10: =IF($C10=AG$3,1,0) -> 0 | AI10: =IF($C10=AI$3,1,0) -> 0 | AK10: =IF($C10=AK$3,1,0) -> 0 | AM10: =IF($C10=AM$3,1,0) -> 0 | AO10: =IF($C10=AO$3,1,0) -> 0 | AQ10: =IF($C10=AQ$3,1,0) -> 0 | AS10: =IF($C10=AS$3,1,0) -> 0 | AU10: =IF($C10=AU$3,1,0) -> 0 | AW10: =IF($C10=AW$3,1,0) -> 0 | AY10: =IF($C10=AY$3,1,0) -> 0 | BA10: =IF($C10=BA$3,1,0) -> 0 | BC10: =IF($C10=BC$3,1,0) -> 0 | BE10: =IF($C10=BE$3,1,0) -> 0 | BG10: =IF($C10=BG$3,1,0) -> 0 | BI10: =IF($C10=BI$3,1,0) -> 0 | BK10: =IF($C10=BK$3,1,0) -> 0 | BM10: =IF($C10=BM$3,1,0) -> 0 | BO10: =IF($C10=BO$3,1,0) -> 0 | BQ10: =IF($C10=BQ$3,1,0) -> 0 | BS10: =IF($C10=BS$3,1,0) -> 0 | BU10: =IF($C10=BU$3,1,0) -> 0 | BW10: =IF($C10=BW$3,1,0) -> 0 | BY10: =IF($C10=BY$3,1,0) -> 0 | CA10: =IF($C10=CA$3,1,0) -> 0 | CC10: =IF($C10=CC$3,1,0) -> 0 | CE10: 0 | CG10: 0 | CI10: 0 | CK10: 0 | CM10: 0 | CO10: 0 | CQ10: 0 | CS10: 0 | CU10: 0 | CW10: 0 | CY10: 0 | DA10: 0 | DC10: 0 | DE10: 0 | DG10: 0 | DI10: 0 | DK10: 0 | DM10: 0 | DO10: 0 | DQ10: 0 | DS10: 0 | DU10: 0 | DW10: 0 | DY10: 0 | EA10: 0 | EC10: 0 | EE10: 0 | EG10: 0
C11: 9 | D11: =HLOOKUP($C11,'Dados Gerais'!$D$6:$BI$11,6) -> OPERADOR DE MÍDIA AUDIOVISUAL – 18H | E11: =HLOOKUP($C11,'Dados Gerais'!$D$6:$BI$15,10) -> 26 | Q11: 0 | S11: =IF($C11=S$3,1,0) -> 0 | U11: =IF($C11=U$3,1,0) -> 0 | W11: =IF($C11=W$3,1,0) -> 0 | Y11: =IF($C11=Y$3,1,0) -> 0 | AA11: =IF($C11=AA$3,1,0) -> 0 | AC11: =IF($C11=AC$3,1,0) -> 0 | AE11: =IF($C11=AE$3,1,0) -> 0 | AG11: =IF($C11=AG$3,1,0) -> 1 | AI11: =IF($C11=AI$3,1,0) -> 0 | AK11: =IF($C11=AK$3,1,0) -> 0 | AM11: =IF($C11=AM$3,1,0) -> 0 | AO11: =IF($C11=AO$3,1,0) -> 0 | AQ11: =IF($C11=AQ$3,1,0) -> 0 | AS11: =IF($C11=AS$3,1,0) -> 0 | AU11: =IF($C11=AU$3,1,0) -> 0 | AW11: =IF($C11=AW$3,1,0) -> 0 | AY11: =IF($C11=AY$3,1,0) -> 0 | BA11: =IF($C11=BA$3,1,0) -> 0 | BC11: =IF($C11=BC$3,1,0) -> 0 | BE11: =IF($C11=BE$3,1,0) -> 0 | BG11: =IF($C11=BG$3,1,0) -> 0 | BI11: =IF($C11=BI$3,1,0) -> 0 | BK11: =IF($C11=BK$3,1,0) -> 0 | BM11: =IF($C11=BM$3,1,0) -> 0 | BO11: =IF($C11=BO$3,1,0) -> 0 | BQ11: =IF($C11=BQ$3,1,0) -> 0 | BS11: =IF($C11=BS$3,1,0) -> 0 | BU11: =IF($C11=BU$3,1,0) -> 0 | BW11: =IF($C11=BW$3,1,0) -> 0 | BY11: =IF($C11=BY$3,1,0) -> 0 | CA11: =IF($C11=CA$3,1,0) -> 0 | CC11: =IF($C11=CC$3,1,0) -> 0 | CE11: 0 | CG11: 0 | CI11: 0 | CK11: 0 | CM11: 0 | CO11: 0 | CQ11: 0 | CS11: 0 | CU11: 0 | CW11: 0 | CY11: 0 | DA11: 0 | DC11: 0 | DE11: 0 | DG11: 0 | DI11: 0 | DK11: 0 | DM11: 0 | DO11: 0 | DQ11: 0 | DS11: 0 | DU11: 0 | DW11: 0 | DY11: 0 | EA11: 0 | EC11: 0 | EE11: 0 | EG11: 0
Q12: 0 | S12: =IF($C12=S$3,1,0) -> 0 | U12: 0 | W12: 0 | Y12: 0 | AA12: 0 | AC12: 0 | AE12: 0 | AG12: 0 | AI12: 0 | AK12: 0 | AM12: 0 | AO12: 0 | AQ12: 0 | AS12: 0 | AU12: 0 | AW12: 0 | AY12: 0 | BA12: 0 | BC12: 0 | BE12: 0 | BG12: 0 | BI12: 0 | BK12: 0 | BM12: 0 | BO12: 0 | BQ12: 0 | BS12: 0 | BU12: 0 | BW12: 0 | BY12: 0 | CA12: 0 | CC12: 0 | CE12: 0 | CG12: 0 | CI12: 0 | CK12: 0 | CM12: 0 | CO12: 0 | CQ12: 0 | CS12: =IF($C12=CS$3,1,0) -> 0 | CU12: =IF($C12=CU$3,1,0) -> 0 | CW12: =IF($C12=CW$3,1,0) -> 0 | CY12: =IF($C12=CY$3,1,0) -> 0 | DA12: =IF($C12=DA$3,1,0) -> 0 | DC12: =IF($C12=DC$3,1,0) -> 0 | DE12: =IF($C12=DE$3,1,0) -> 0 | DG12: =IF($C12=DG$3,1,0) -> 0 | DI12: =IF($C12=DI$3,1,0) -> 0 | DK12: =IF($C12=DK$3,1,0) -> 0 | DM12: =IF($C12=DM$3,1,0) -> 0 | DO12: =IF($C12=DO$3,1,0) -> 0 | DQ12: =IF($C12=DQ$3,1,0) -> 0 | DS12: =IF($C12=DS$3,1,0) -> 0 | DU12: =IF($C12=DU$3,1,0) -> 0 | DW12: =IF($C12=DW$3,1,0) -> 0 | DY12: =IF($C12=DY$3,1,0) -> 0 | EA12: =IF($C12=EA$3,1,0) -> 0 | EC12: =IF($C12=EC$3,1,0) -> 0 | EE12: =IF($C12=EE$3,1,0) -> 0 | EG12: =IF($C12=EG$3,1,0) -> 0
C14: PAGAMENTO DA DEPRECIAÇÃO
C15: ITEM | D15: DESCRIÇÃO | E15: QUANT ANUAL | F15: CONTA SIAFI | G15: VALOR DE AQ. | H15: % RESIDUAL | I15: VIDA ÚTIL | J15: DEP. MENSAL | K15: CUSTO TOTAL | L15: MANUTENÇÃO (%) | M15: PREÇO TOTAL | N15: FONTE | O15: REFERÊNCIA
D17: FONE DE OUVIDO CARACTERÍSTICA(S): fone de ouvido circumaural (over-ear) estereofônico dinâmico do tipo fechado; protetor e arco do fone acolchoados; arco com ajuste de tamanho; conexão por cabo único, unilateral; resposta mínima em frequência de 20Hz a 20KHz; sensibilidade de 105dB a 1KHz / 1mW, ou melhor; cabo com tamanho mínimo de 2m (dois metros); conector do tipo P2 estéreo de 1/8" (um oitavo de polegada). ACESSÓRIO(S): adaptador para conector do tipo P10 estéreo de 1/4" (um quarto de polegada). MARCA(S)/MODELO(S) DE REFERÊNCIA: BEHRINGER/HPM-1000; AKG/K52; SENNHEISER/HD 205 II. | E17: 1 | G17: 212.97 | H17: 0.05 | I17: 5 | J17: =G17*(1-H17)/(I17*12) -> 3.372025 | K17: =J17*E17 -> 3.372025 | L17: =J225 -> 0.5937624 | M17: =ROUND(K17*(1+L17),2) -> 5.37 | N17: COTAÇÃO | R17: =IF(SUM(Q$6)>0,$M17,0) -> 0 | T17: =IF(SUM(S$6)>0,$M17,0) -> 0 | V17: =IF(SUM(U$6)>0,$M17,0) -> 0 | X17: =IF(SUM(W$6)>0,$M17,0) -> 0 | Z17: =IF(SUM(Y$6)>0,$M17,0) -> 5.37 | AB17: =IF(SUM(AA$6)>0,$M17,0) -> 5.37 | AD17: =IF(SUM(AC$6)>0,$M17,0) -> 0 | AF17: =IF(SUM(AE$6)>0,$M17,0) -> 5.37 | AH17: =IF(SUM(AG$6)>0,$M17,0) -> 5.37 | AJ17: =IF(SUM(AI$6)>0,$M17,0) -> 0 | AL17: =IF(SUM(AK$6)>0,$M17,0) -> 0 | AN17: =IF(SUM(AM$6)>0,$M17,0) -> 0 | AP17: =IF(SUM(AO$6)>0,$M17,0) -> 0 | AR17: =IF(SUM(AQ$6)>0,$M17,0) -> 0 | AT17: =IF(SUM(AS$6)>0,$M17,0) -> 0 | AV17: =IF(SUM(AU$6)>0,$M17,0) -> 0 | AX17: =IF(SUM(AW$6)>0,$M17,0) -> 0 | AZ17: =IF(SUM(AY$6)>0,$M17,0) -> 0 | BB17: =IF(SUM(BA$6)>0,$M17,0) -> 0 | BD17: =IF(SUM(BC$6)>0,$M17,0) -> 0 | BF17: =IF(SUM(BE$6)>0,$M17,0) -> 0 | BH17: =IF(SUM(BG$6)>0,$M17,0) -> 0 | BJ17: =IF(SUM(BI$6)>0,$M17,0) -> 0 | BL17: =IF(SUM(BK$6)>0,$M17,0) -> 0 | BN17: =IF(SUM(BM$6)>0,$M17,0) -> 0 | BP17: =IF(SUM(BO$6)>0,$M17,0) -> 0 | BR17: =IF(SUM(BQ$6)>0,$M17,0) -> 0 | BT17: =IF(SUM(BS$6)>0,$M17,0) -> 0 | BV17: =IF(SUM(BU$6)>0,$M17,0) -> 0 | BX17: =IF(SUM(BW$6)>0,$M17,0) -> 0 | BZ17: =IF(SUM(BY$6)>0,$M17,0) -> 0 | CB17: =IF(SUM(CA$6)>0,$M17,0) -> 0 | CD17: =IF(SUM(CC$6)>0,$M17,0) -> 0 | CF17: =IF(SUM(CE$6)>0,$M17,0) -> 0 | CH17: =IF(SUM(CG$6)>0,$M17,0) -> 0 | CJ17: =IF(SUM(CI$6)>0,$M17,0) -> 0 | CL17: =IF(SUM(CK$6)>0,$M17,0) -> 0 | CN17: =IF(SUM(CM$6)>0,$M17,0) -> 0 | CP17: =IF(SUM(CO$6)>0,$M17,0) -> 0 | CR17: =IF(SUM(CQ$6)>0,$M17,0) -> 0 | CT17: =IF(SUM(CS$6)>0,$M17,0) -> 0 | CV17: =IF(SUM(CU$6)>0,$M17,0) -> 0 | CX17: =IF(SUM(CW$6)>0,$M17,0) -> 0 | CZ17: =IF(SUM(CY$6)>0,$M17,0) -> 0 | DB17: =IF(SUM(DA$6)>0,$M17,0) -> 0 | DD17: =IF(SUM(DC$6)>0,$M17,0) -> 0 | DF17: =IF(SUM(DE$6)>0,$M17,0) -> 0 | DH17: =IF(SUM(DG$6)>0,$M17,0) -> 0 | DJ17: =IF(SUM(DI$6)>0,$M17,0) -> 0 | DL17: =IF(SUM(DK$6)>0,$M17,0) -> 0 | DN17: =IF(SUM(DM$6)>0,$M17,0) -> 0 | DP17: =IF(SUM(DO$6)>0,$M17,0) -> 0 | DR17: =IF(SUM(DQ$6)>0,$M17,0) -> 0 | DT17: =IF(SUM(DS$6)>0,$M17,0) -> 0 | DV17: =IF(SUM(DU$6)>0,$M17,0) -> 0 | DX17: =IF(SUM(DW$6)>0,$M17,0) -> 0 | DZ17: =IF(SUM(DY$6)>0,$M17,0) -> 0 | EB17: =IF(SUM(EA$6)>0,$M17,0) -> 0 | ED17: =IF(SUM(EC$6)>0,$M17,0) -> 0 | EF17: =IF(SUM(EE$6)>0,$M17,0) -> 0 | EH17: =IF(SUM(EG$6)>0,$M17,0) -> 0
C20: CATEGORIAS | E20: QUANTIDADE
Q21: 0 | S21: 0 | U21: 0 | W21: 0 | Y21: 0 | AA21: 0 | AC21: 0 | AE21: 0 | AG21: 0 | AI21: 0 | AK21: 0 | AM21: 0 | AO21: 0 | AQ21: 0 | AS21: 0 | AU21: 0 | AW21: 0 | AY21: 0 | BA21: 0 | BC21: 0 | BE21: 0 | BG21: 0 | BI21: 0 | BK21: 0 | BM21: 0 | BO21: 0 | BQ21: 0 | BS21: 0 | BU21: 0 | BW21: 0 | BY21: 0 | CA21: 0 | CC21: 0 | CE21: 0 | CG21: 0 | CI21: 0 | CK21: 0 | CM21: 0 | CO21: 0 | CQ21: 0 | CS21: 0 | CU21: 0 | CW21: 0 | CY21: 0 | DA21: 0 | DC21: 0 | DE21: 0 | DG21: 0 | DI21: 0 | DK21: 0 | DM21: 0 | DO21: 0 | DQ21: 0 | DS21: 0 | DU21: 0 | DW21: 0 | DY21: 0 | EA21: 0 | EC21: 0 | EE21: 0 | EG21: 0
D22: =HLOOKUP($C22,'Dados Gerais'!$D$6:$BI$11,6) ->  | E22: =HLOOKUP($C22,'Dados Gerais'!$D$6:$BI$15,10) ->  | Q22: =IF($C22=Q$3,1,0) -> 0 | S22: =IF($C22=S$3,1,0) -> 0 | U22: =IF($C22=U$3,1,0) -> 0 | W22: =IF($C22=W$3,1,0) -> 0 | Y22: =IF($C22=Y$3,1,0) -> 0 | AA22: =IF($C22=AA$3,1,0) -> 0 | AC22: =IF($C22=AC$3,1,0) -> 0 | AE22: =IF($C22=AE$3,1,0) -> 0 | AG22: =IF($C22=AG$3,1,0) -> 0 | AI22: =IF($C22=AI$3,1,0) -> 0 | AK22: =IF($C22=AK$3,1,0) -> 0 | AM22: =IF($C22=AM$3,1,0) -> 0 | AO22: =IF($C22=AO$3,1,0) -> 0 | AQ22: =IF($C22=AQ$3,1,0) -> 0 | AS22: =IF($C22=AS$3,1,0) -> 0 | AU22: =IF($C22=AU$3,1,0) -> 0 | AW22: =IF($C22=AW$3,1,0) -> 0 | AY22: =IF($C22=AY$3,1,0) -> 0 | BA22: =IF($C22=BA$3,1,0) -> 0 | BC22: =IF($C22=BC$3,1,0) -> 0 | BE22: =IF($C22=BE$3,1,0) -> 0 | BG22: =IF($C22=BG$3,1,0) -> 0 | BI22: =IF($C22=BI$3,1,0) -> 0 | BK22: =IF($C22=BK$3,1,0) -> 0 | BM22: =IF($C22=BM$3,1,0) -> 0 | BO22: =IF($C22=BO$3,1,0) -> 0 | BQ22: =IF($C22=BQ$3,1,0) -> 0 | BS22: =IF($C22=BS$3,1,0) -> 0 | BU22: =IF($C22=BU$3,1,0) -> 0 | BW22: =IF($C22=BW$3,1,0) -> 0 | BY22: =IF($C22=BY$3,1,0) -> 0 | CA22: =IF($C22=CA$3,1,0) -> 0 | CC22: =IF($C22=CC$3,1,0) -> 0 | CE22: =IF($C22=CE$3,1,0) -> 0 | CG22: =IF($C22=CG$3,1,0) -> 0 | CI22: =IF($C22=CI$3,1,0) -> 0 | CK22: =IF($C22=CK$3,1,0) -> 0 | CM22: =IF($C22=CM$3,1,0) -> 0 | CO22: =IF($C22=CO$3,1,0) -> 0 | CQ22: =IF($C22=CQ$3,1,0) -> 0 | CS22: =IF($C22=CS$3,1,0) -> 0 | CU22: =IF($C22=CU$3,1,0) -> 0 | CW22: =IF($C22=CW$3,1,0) -> 0 | CY22: =IF($C22=CY$3,1,0) -> 0 | DA22: =IF($C22=DA$3,1,0) -> 0 | DC22: =IF($C22=DC$3,1,0) -> 0 | DE22: =IF($C22=DE$3,1,0) -> 0 | DG22: =IF($C22=DG$3,1,0) -> 0 | DI22: =IF($C22=DI$3,1,0) -> 0 | DK22: =IF($C22=DK$3,1,0) -> 0 | DM22: =IF($C22=DM$3,1,0) -> 0 | DO22: =IF($C22=DO$3,1,0) -> 0 | DQ22: =IF($C22=DQ$3,1,0) -> 0 | DS22: =IF($C22=DS$3,1,0) -> 0 | DU22: =IF($C22=DU$3,1,0) -> 0 | DW22: =IF($C22=DW$3,1,0) -> 0 | DY22: =IF($C22=DY$3,1,0) -> 0 | EA22: =IF($C22=EA$3,1,0) -> 0 | EC22: =IF($C22=EC$3,1,0) -> 0 | EE22: =IF($C22=EE$3,1,0) -> 0 | EG22: =IF($C22=EG$3,1,0) -> 0
Q23: 0 | S23: 0 | U23: 0 | W23: 0 | Y23: 0 | AA23: 0 | AC23: 0 | AE23: 0 | AG23: 0 | AI23: 0 | AK23: 0 | AM23: 0 | AO23: 0 | AQ23: 0 | AS23: 0 | AU23: 0 | AW23: 0 | AY23: 0 | BA23: 0 | BC23: 0 | BE23: 0 | BG23: 0 | BI23: 0 | BK23: 0 | BM23: 0 | BO23: 0 | BQ23: 0 | BS23: 0 | BU23: 0 | BW23: 0 | BY23: 0 | CA23: 0 | CC23: 0 | CE23: 0 | CG23: 0 | CI23: 0 | CK23: 0 | CM23: 0 | CO23: 0 | CQ23: 0 | CS23: 0 | CU23: 0 | CW23: 0 | CY23: 0 | DA23: 0 | DC23: 0 | DE23: 0 | DG23: 0 | DI23: 0 | DK23: 0 | DM23: 0 | DO23: 0 | DQ23: 0 | DS23: 0 | DU23: 0 | DW23: 0 | DY23: 0 | EA23: 0 | EC23: 0 | EE23: 0 | EG23: 0
C25: PAGAMENTO DA DEPRECIAÇÃO
C26: ITEM | D26: DESCRIÇÃO | E26: QUANT ANUAL | F26: CONTA SIAFI | G26: VALOR DE AQ. | H26: % RESIDUAL | I26: VIDA ÚTIL | J26: DEP. MENSAL | K26: CUSTO TOTAL | L26: MAN (%) | M26: PREÇO TOTAL | N26: FONTE | O26: REFERÊNCIA
H28: 0.05 | I28: 5 | J28: =G28*(1-H28)/(I28*12) -> 0 | K28: =J28*E28 -> 0 | L28: =$J$225 -> 0.5937624 | M28: =ROUND(K28*(1+L28),2) -> 0 | N28: COTAÇÃO | R28: =IF(SUM(Q$21:Q$23)>0,$M28,0) -> 0 | T28: =IF(SUM(S$21:S$23)>0,$M28,0) -> 0 | V28: =IF(SUM(U$21:U$23)>0,$M28,0) -> 0 | Z28: =IF(SUM(Y$21:Y$23)>0,$M28,0) -> 0 | AB28: =IF(SUM(AA$21:AA$23)>0,$M28,0) -> 0 | AD28: =IF(SUM(AC$21:AC$23)>0,$M28,0) -> 0 | AF28: =IF(SUM(AE$21:AE$23)>0,$M28,0) -> 0 | AH28: =IF(SUM(AG$21:AG$23)>0,$M28,0) -> 0 | AJ28: =IF(SUM(AI$21:AI$23)>0,$M28,0) -> 0 | AL28: =IF(SUM(AK$21:AK$23)>0,$M28,0) -> 0 | AN28: =IF(SUM(AM$21:AM$23)>0,$M28,0) -> 0 | AP28: =IF(SUM(AO$21:AO$23)>0,$M28,0) -> 0 | AR28: =IF(SUM(AQ$21:AQ$23)>0,$M28,0) -> 0 | AT28: =IF(SUM(AS$21:AS$23)>0,$M28,0) -> 0 | AV28: =IF(SUM(AU$21:AU$23)>0,$M28,0) -> 0 | AX28: =IF(SUM(AW$21:AW$23)>0,$M28,0) -> 0 | AZ28: =IF(SUM(AY$21:AY$23)>0,$M28,0) -> 0 | BB28: =IF(SUM(BA$21:BA$23)>0,$M28,0) -> 0 | BD28: =IF(SUM(BC$21:BC$23)>0,$M28,0) -> 0 | BF28: =IF(SUM(BE$21:BE$23)>0,$M28,0) -> 0 | BH28: =IF(SUM(BG$21:BG$23)>0,$M28,0) -> 0 | BJ28: =IF(SUM(BI$21:BI$23)>0,$M28,0) -> 0 | BL28: =IF(SUM(BK$21:BK$23)>0,$M28,0) -> 0 | BN28: =IF(SUM(BM$21:BM$23)>0,$M28,0) -> 0 | BP28: =IF(SUM(BO$21:BO$23)>0,$M28,0) -> 0 | BR28: =IF(SUM(BQ$21:BQ$23)>0,$M28,0) -> 0 | BT28: =IF(SUM(BS$21:BS$23)>0,$M28,0) -> 0 | BV28: =IF(SUM(BU$21:BU$23)>0,$M28,0) -> 0 | BX28: =IF(SUM(BW$21:BW$23)>0,$M28,0) -> 0 | BZ28: =IF(SUM(BY$21:BY$23)>0,$M28,0) -> 0 | CB28: =IF(SUM(CA$21:CA$23)>0,$M28,0) -> 0 | CD28: =IF(SUM(CC$21:CC$23)>0,$M28,0) -> 0 | CF28: =IF(SUM(CE$21:CE$23)>0,$M28,0) -> 0 | CH28: =IF(SUM(CG$21:CG$23)>0,$M28,0) -> 0 | CJ28: =IF(SUM(CI$21:CI$23)>0,$M28,0) -> 0 | CL28: =IF(SUM(CK$21:CK$23)>0,$M28,0) -> 0 | CN28: =IF(SUM(CM$21:CM$23)>0,$M28,0) -> 0 | CP28: =IF(SUM(CO$21:CO$23)>0,$M28,0) -> 0 | CR28: =IF(SUM(CQ$21:CQ$23)>0,$M28,0) -> 0 | CT28: =IF(SUM(CS$21:CS$23)>0,$M28,0) -> 0 | CV28: =IF(SUM(CU$21:CU$23)>0,$M28,0) -> 0 | CX28: =IF(SUM(CW$21:CW$23)>0,$M28,0) -> 0 | CZ28: =IF(SUM(CY$21:CY$23)>0,$M28,0) -> 0 | DB28: =IF(SUM(DA$21:DA$23)>0,$M28,0) -> 0 | DD28: =IF(SUM(DC$21:DC$23)>0,$M28,0) -> 0 | DF28: =IF(SUM(DE$21:DE$23)>0,$M28,0) -> 0 | DH28: =IF(SUM(DG$21:DG$23)>0,$M28,0) -> 0 | DJ28: =IF(SUM(DI$21:DI$23)>0,$M28,0) -> 0 | DL28: =IF(SUM(DK$21:DK$23)>0,$M28,0) -> 0 | DN28: =IF(SUM(DM$21:DM$23)>0,$M28,0) -> 0 | DP28: =IF(SUM(DO$21:DO$23)>0,$M28,0) -> 0 | DR28: =IF(SUM(DQ$21:DQ$23)>0,$M28,0) -> 0 | DT28: =IF(SUM(DS$21:DS$23)>0,$M28,0) -> 0 | DV28: =IF(SUM(DU$21:DU$23)>0,$M28,0) -> 0 | DX28: =IF(SUM(DW$21:DW$23)>0,$M28,0) -> 0 | DZ28: =IF(SUM(DY$21:DY$23)>0,$M28,0) -> 0 | EB28: =IF(SUM(EA$21:EA$23)>0,$M28,0) -> 0 | ED28: =IF(SUM(EC$21:EC$23)>0,$M28,0) -> 0 | EF28: =IF(SUM(EE$21:EE$23)>0,$M28,0) -> 0 | EH28: =IF(SUM(EG$21:EG$23)>0,$M28,0) -> 0
H29: 0.05 | I29: 5 | J29: =G29*(1-H29)/(I29*12) -> 0 | K29: =J29*E29 -> 0 | L29: 0.5937624 | M29: =ROUND(K29*(1+L29),2) -> 0 | N29: COTAÇÃO | R29: 0 | T29: 0 | V29: 0 | Z29: 0 | AB29: 0 | AD29: =IF(SUM(AC$21:AC$23)>0,$M29,0) -> 0 | AF29: 0 | AH29: 0 | AJ29: 0 | AL29: 0 | AN29: 0 | AP29: 0 | AR29: 0 | AT29: 0 | AV29: 0 | AX29: 0 | AZ29: 0 | BB29: 0 | BD29: 0 | BF29: 0 | BH29: 0 | BJ29: 0 | BL29: 0 | BN29: 0 | BP29: 0 | BR29: 0 | BT29: 0 | BV29: 0 | BX29: 0 | BZ29: 0 | CB29: 0 | CD29: 0 | CF29: 0 | CH29: 0 | CJ29: 0 | CL29: 0 | CN29: 0 | CP29: 0 | CR29: 0 | CT29: 0 | CV29: 0 | CX29: 0 | CZ29: 0 | DB29: 0 | DD29: 0 | DF29: 0 | DH29: 0 | DJ29: 0 | DL29: 0 | DN29: 0 | DP29: 0 | DR29: 0 | DT29: 0 | DV29: 0 | DX29: 0 | DZ29: 0 | EB29: 0 | ED29: 0 | EF29: 0 | EH29: 0
H30: 0.05 | I30: 5 | J30: =G30*(1-H30)/(I30*12) -> 0 | K30: =J30*E30 -> 0 | L30: 0.5937624 | M30: =ROUND(K30*(1+L30),2) -> 0 | N30: COTAÇÃO | R30: 0 | T30: 0 | V30: 0 | Z30: 0 | AB30: 0 | AD30: =IF(SUM(AC$21:AC$23)>0,$M30,0) -> 0 | AF30: 0 | AH30: 0 | AJ30: 0 | AL30: 0 | AN30: 0 | AP30: 0 | AR30: 0 | AT30: 0 | AV30: 0 | AX30: 0 | AZ30: 0 | BB30: 0 | BD30: 0 | BF30: 0 | BH30: 0 | BJ30: 0 | BL30: 0 | BN30: 0 | BP30: 0 | BR30: 0 | BT30: 0 | BV30: 0 | BX30: 0 | BZ30: 0 | CB30: 0 | CD30: 0 | CF30: 0 | CH30: 0 | CJ30: 0 | CL30: 0 | CN30: 0 | CP30: 0 | CR30: 0 | CT30: 0 | CV30: 0 | CX30: 0 | CZ30: 0 | DB30: 0 | DD30: 0 | DF30: 0 | DH30: 0 | DJ30: 0 | DL30: 0 | DN30: 0 | DP30: 0 | DR30: 0 | DT30: 0 | DV30: 0 | DX30: 0 | DZ30: 0 | EB30: 0 | ED30: 0 | EF30: 0 | EH30: 0
H31: 0.05 | I31: 5 | J31: =G31*(1-H31)/(I31*12) -> 0 | K31: =J31*E31 -> 0 | L31: 0.5937624 | M31: =ROUND(K31*(1+L31),2) -> 0 | N31: COTAÇÃO | R31: 0 | T31: 0 | V31: 0 | Z31: 0 | AB31: 0 | AD31: 0 | AF31: 0 | AH31: 0 | AJ31: 0 | AL31: 0 | AN31: 0 | AP31: 0 | AR31: 0 | AT31: 0 | AV31: 0 | AX31: 0 | AZ31: 0 | BB31: 0 | BD31: 0 | BF31: 0 | BH31: 0 | BJ31: 0 | BL31: 0 | BN31: 0 | BP31: 0 | BR31: 0 | BT31: 0 | BV31: 0 | BX31: 0 | BZ31: 0 | CB31: 0 | CD31: 0 | CF31: 0 | CH31: 0 | CJ31: 0 | CL31: 0 | CN31: 0 | CP31: 0 | CR31: 0 | CT31: 0 | CV31: 0 | CX31: 0 | CZ31: 0 | DB31: 0 | DD31: 0 | DF31: 0 | DH31: 0 | DJ31: 0 | DL31: 0 | DN31: 0 | DP31: 0 | DR31: 0 | DT31: 0 | DV31: 0 | DX31: 0 | DZ31: 0 | EB31: 0 | ED31: 0 | EF31: 0 | EH31: 0
H32: 0.05 | I32: 5 | J32: =G32*(1-H32)/(I32*12) -> 0 | K32: =J32*E32 -> 0 | L32: 0.5937624 | M32: =ROUND(K32*(1+L32),2) -> 0 | N32: COTAÇÃO | R32: 0 | T32: 0 | V32: 0 | Z32: 0 | AB32: 0 | AD32: 0 | AF32: 0 | AH32: 0 | AJ32: 0 | AL32: 0 | AN32: 0 | AP32: 0 | AR32: 0 | AT32: 0 | AV32: 0 | AX32: 0 | AZ32: 0 | BB32: 0 | BD32: 0 | BF32: 0 | BH32: 0 | BJ32: 0 | BL32: 0 | BN32: 0 | BP32: 0 | BR32: 0 | BT32: 0 | BV32: 0 | BX32: 0 | BZ32: 0 | CB32: 0 | CD32: 0 | CF32: 0 | CH32: 0 | CJ32: 0 | CL32: 0 | CN32: 0 | CP32: 0 | CR32: 0 | CT32: 0 | CV32: 0 | CX32: 0 | CZ32: 0 | DB32: 0 | DD32: 0 | DF32: 0 | DH32: 0 | DJ32: 0 | DL32: 0 | DN32: 0 | DP32: 0 | DR32: 0 | DT32: 0 | DV32: 0 | DX32: 0 | DZ32: 0 | EB32: 0 | ED32: 0 | EF32: 0 | EH32: 0
H33: 0.05 | I33: 5 | J33: =G33*(1-H33)/(I33*12) -> 0 | K33: =J33*E33 -> 0 | L33: 0.5937624 | M33: =ROUND(K33*(1+L33),2) -> 0 | N33: COTAÇÃO | R33: 0 | T33: 0 | V33: 0 | Z33: 0 | AB33: 0 | AD33: 0 | AF33: 0 | AH33: 0 | AJ33: 0 | AL33: 0 | AN33: 0 | AP33: 0 | AR33: 0 | AT33: 0 | AV33: 0 | AX33: 0 | AZ33: 0 | BB33: 0 | BD33: 0 | BF33: 0 | BH33: 0 | BJ33: 0 | BL33: 0 | BN33: 0 | BP33: 0 | BR33: 0 | BT33: 0 | BV33: 0 | BX33: 0 | BZ33: 0 | CB33: 0 | CD33: 0 | CF33: 0 | CH33: 0 | CJ33: 0 | CL33: 0 | CN33: 0 | CP33: 0 | CR33: 0 | CT33: 0 | CV33: 0 | CX33: 0 | CZ33: 0 | DB33: 0 | DD33: 0 | DF33: 0 | DH33: 0 | DJ33: 0 | DL33: 0 | DN33: 0 | DP33: 0 | DR33: 0 | DT33: 0 | DV33: 0 | DX33: 0 | DZ33: 0 | EB33: 0 | ED33: 0 | EF33: 0 | EH33: 0
H34: 0.05 | I34: 5 | J34: 0 | K34: 0 | L34: 0.5937624 | M34: 0 | N34: COTAÇÃO | R34: 0 | T34: 0 | V34: 0 | Z34: 0 | AB34: 0 | AD34: 0 | AF34: 0 | AH34: 0 | AJ34: 0 | AL34: 0 | AN34: 0 | AP34: 0 | AR34: 0 | AT34: 0 | AV34: 0 | AX34: 0 | AZ34: 0 | BB34: 0 | BD34: 0 | BF34: 0 | BH34: 0 | BJ34: 0 | BL34: 0 | BN34: 0 | BP34: 0 | BR34: 0 | BT34: 0 | BV34: 0 | BX34: 0 | BZ34: 0 | CB34: 0 | CD34: 0 | CF34: 0 | CH34: 0 | CJ34: 0 | CL34: 0 | CN34: 0 | CP34: 0 | CR34: 0 | CT34: 0 | CV34: 0 | CX34: 0 | CZ34: 0 | DB34: 0 | DD34: 0 | DF34: 0 | DH34: 0 | DJ34: 0 | DL34: 0 | DN34: 0 | DP34: 0 | DR34: 0 | DT34: 0 | DV34: 0 | DX34: 0 | DZ34: 0 | EB34: 0 | ED34: 0 | EF34: 0 | EH34: 0
H35: 0.05 | I35: 5 | J35: 0 | K35: 0 | L35: 0.5937624 | M35: 0 | N35: COTAÇÃO | R35: 0 | T35: 0 | V35: 0 | Z35: 0 | AB35: 0 | AD35: 0 | AF35: 0 | AH35: 0 | AJ35: 0 | AL35: 0 | AN35: 0 | AP35: 0 | AR35: 0 | AT35: 0 | AV35: 0 | AX35: 0 | AZ35: 0 | BB35: 0 | BD35: 0 | BF35: 0 | BH35: 0 | BJ35: 0 | BL35: 0 | BN35: 0 | BP35: 0 | BR35: 0 | BT35: 0 | BV35: 0 | BX35: 0 | BZ35: 0 | CB35: 0 | CD35: 0 | CF35: 0 | CH35: 0 | CJ35: 0 | CL35: 0 | CN35: 0 | CP35: 0 | CR35: 0 | CT35: 0 | CV35: 0 | CX35: 0 | CZ35: 0 | DB35: 0 | DD35: 0 | DF35: 0 | DH35: 0 | DJ35: 0 | DL35: 0 | DN35: 0 | DP35: 0 | DR35: 0 | DT35: 0 | DV35: 0 | DX35: 0 | DZ35: 0 | EB35: 0 | ED35: 0 | EF35: 0 | EH35: 0
H36: 0.05 | I36: 5 | J36: 0 | K36: 0 | L36: 0.5937624 | M36: 0 | N36: COTAÇÃO | R36: 0 | T36: 0 | V36: 0 | Z36: 0 | AB36: 0 | AD36: 0 | AF36: 0 | AH36: 0 | AJ36: 0 | AL36: 0 | AN36: 0 | AP36: 0 | AR36: 0 | AT36: 0 | AV36: 0 | AX36: 0 | AZ36: 0 | BB36: 0 | BD36: 0 | BF36: 0 | BH36: 0 | BJ36: 0 | BL36: 0 | BN36: 0 | BP36: 0 | BR36: 0 | BT36: 0 | BV36: 0 | BX36: 0 | BZ36: 0 | CB36: 0 | CD36: 0 | CF36: 0 | CH36: 0 | CJ36: 0 | CL36: 0 | CN36: 0 | CP36: 0 | CR36: 0 | CT36: 0 | CV36: 0 | CX36: 0 | CZ36: 0 | DB36: 0 | DD36: 0 | DF36: 0 | DH36: 0 | DJ36: 0 | DL36: 0 | DN36: 0 | DP36: 0 | DR36: 0 | DT36: 0 | DV36: 0 | DX36: 0 | DZ36: 0 | EB36: 0 | ED36: 0 | EF36: 0 | EH36: 0
H37: 0.05 | I37: 5 | J37: 0 | K37: 0 | L37: 0.5937624 | M37: 0 | N37: COTAÇÃO | R37: 0 | T37: 0 | V37: 0 | Z37: 0 | AB37: 0 | AD37: 0 | AF37: 0 | AH37: 0 | AJ37: 0 | AL37: 0 | AN37: 0 | AP37: 0 | AR37: 0 | AT37: 0 | AV37: 0 | AX37: 0 | AZ37: 0 | BB37: 0 | BD37: 0 | BF37: 0 | BH37: 0 | BJ37: 0 | BL37: 0 | BN37: 0 | BP37: 0 | BR37: 0 | BT37: 0 | BV37: 0 | BX37: 0 | BZ37: 0 | CB37: 0 | CD37: 0 | CF37: 0 | CH37: 0 | CJ37: 0 | CL37: 0 | CN37: 0 | CP37: 0 | CR37: 0 | CT37: 0 | CV37: 0 | CX37: 0 | CZ37: 0 | DB37: 0 | DD37: 0 | DF37: 0 | DH37: 0 | DJ37: 0 | DL37: 0 | DN37: 0 | DP37: 0 | DR37: 0 | DT37: 0 | DV37: 0 | DX37: 0 | DZ37: 0 | EB37: 0 | ED37: 0 | EF37: 0 | EH37: 0
H38: 0.05 | I38: 5 | J38: 0 | K38: 0 | L38: 0.5937624 | M38: 0 | N38: COTAÇÃO | R38: 0 | T38: 0 | V38: 0 | Z38: 0 | AB38: 0 | AD38: 0 | AF38: 0 | AH38: 0 | AJ38: 0 | AL38: 0 | AN38: 0 | AP38: 0 | AR38: 0 | AT38: 0 | AV38: 0 | AX38: 0 | AZ38: 0 | BB38: 0 | BD38: 0 | BF38: 0 | BH38: 0 | BJ38: 0 | BL38: 0 | BN38: 0 | BP38: 0 | BR38: 0 | BT38: 0 | BV38: 0 | BX38: 0 | BZ38: 0 | CB38: 0 | CD38: 0 | CF38: 0 | CH38: 0 | CJ38: 0 | CL38: 0 | CN38: 0 | CP38: 0 | CR38: 0 | CT38: 0 | CV38: 0 | CX38: 0 | CZ38: 0 | DB38: 0 | DD38: 0 | DF38: 0 | DH38: 0 | DJ38: 0 | DL38: 0 | DN38: 0 | DP38: 0 | DR38: 0 | DT38: 0 | DV38: 0 | DX38: 0 | DZ38: 0 | EB38: 0 | ED38: 0 | EF38: 0 | EH38: 0
H39: 0.05 | I39: 5 | J39: 0 | K39: 0 | L39: 0.5937624 | M39: 0 | N39: COTAÇÃO | R39: 0 | T39: 0 | V39: 0 | Z39: 0 | AB39: 0 | AD39: 0 | AF39: 0 | AH39: 0 | AJ39: 0 | AL39: 0 | AN39: 0 | AP39: 0 | AR39: 0 | AT39: 0 | AV39: 0 | AX39: 0 | AZ39: 0 | BB39: 0 | BD39: 0 | BF39: 0 | BH39: 0 | BJ39: 0 | BL39: 0 | BN39: 0 | BP39: 0 | BR39: 0 | BT39: 0 | BV39: 0 | BX39: 0 | BZ39: 0 | CB39: 0 | CD39: 0 | CF39: 0 | CH39: 0 | CJ39: 0 | CL39: 0 | CN39: 0 | CP39: 0 | CR39: 0 | CT39: 0 | CV39: 0 | CX39: 0 | CZ39: 0 | DB39: 0 | DD39: 0 | DF39: 0 | DH39: 0 | DJ39: 0 | DL39: 0 | DN39: 0 | DP39: 0 | DR39: 0 | DT39: 0 | DV39: 0 | DX39: 0 | DZ39: 0 | EB39: 0 | ED39: 0 | EF39: 0 | EH39: 0
H40: 0.05 | I40: 5 | J40: =G40*(1-H40)/(I40*12) -> 0 | K40: =J40*E40 -> 0 | L40: 0.5937624 | M40: =ROUND(K40*(1+L40),2) -> 0 | N40: COTAÇÃO | R40: 0 | T40: 0 | V40: 0 | Z40: 0 | AB40: 0 | AD40: 0 | AF40: 0 | AH40: 0 | AJ40: 0 | AL40: 0 | AN40: 0 | AP40: 0 | AR40: 0 | AT40: 0 | AV40: 0 | AX40: 0 | AZ40: 0 | BB40: 0 | BD40: 0 | BF40: 0 | BH40: 0 | BJ40: 0 | BL40: 0 | BN40: 0 | BP40: 0 | BR40: 0 | BT40: 0 | BV40: 0 | BX40: 0 | BZ40: 0 | CB40: 0 | CD40: 0 | CF40: 0 | CH40: 0 | CJ40: 0 | CL40: 0 | CN40: 0 | CP40: 0 | CR40: 0 | CT40: 0 | CV40: 0 | CX40: 0 | CZ40: 0 | DB40: 0 | DD40: 0 | DF40: 0 | DH40: 0 | DJ40: 0 | DL40: 0 | DN40: 0 | DP40: 0 | DR40: 0 | DT40: 0 | DV40: 0 | DX40: 0 | DZ40: 0 | EB40: 0 | ED40: 0 | EF40: 0 | EH40: 0
H41: 0.05 | I41: 5 | J41: 0 | K41: 0 | L41: 0.5937624 | M41: 0 | N41: COTAÇÃO | R41: 0 | T41: 0 | V41: 0 | Z41: 0 | AB41: 0 | AD41: 0 | AF41: 0 | AH41: 0 | AJ41: 0 | AL41: 0 | AN41: 0 | AP41: 0 | AR41: 0 | AT41: 0 | AV41: 0 | AX41: 0 | AZ41: 0 | BB41: 0 | BD41: 0 | BF41: 0 | BH41: 0 | BJ41: 0 | BL41: 0 | BN41: 0 | BP41: 0 | BR41: 0 | BT41: 0 | BV41: 0 | BX41: 0 | BZ41: 0 | CB41: 0 | CD41: 0 | CF41: 0 | CH41: 0 | CJ41: 0 | CL41: 0 | CN41: 0 | CP41: 0 | CR41: 0 | CT41: 0 | CV41: 0 | CX41: 0 | CZ41: 0 | DB41: 0 | DD41: 0 | DF41: 0 | DH41: 0 | DJ41: 0 | DL41: 0 | DN41: 0 | DP41: 0 | DR41: 0 | DT41: 0 | DV41: 0 | DX41: 0 | DZ41: 0 | EB41: 0 | ED41: 0 | EF41: 0 | EH41: 0
H42: 0.05 | I42: 5 | J42: 0 | K42: 0 | L42: 0.5937624 | M42: 0 | N42: COTAÇÃO | R42: 0 | T42: 0 | V42: 0 | Z42: 0 | AB42: 0 | AD42: 0 | AF42: 0 | AH42: 0 | AJ42: 0 | AL42: 0 | AN42: 0 | AP42: 0 | AR42: 0 | AT42: 0 | AV42: 0 | AX42: 0 | AZ42: 0 | BB42: 0 | BD42: 0 | BF42: 0 | BH42: 0 | BJ42: 0 | BL42: 0 | BN42: 0 | BP42: 0 | BR42: 0 | BT42: 0 | BV42: 0 | BX42: 0 | BZ42: 0 | CB42: 0 | CD42: 0 | CF42: 0 | CH42: 0 | CJ42: 0 | CL42: 0 | CN42: 0 | CP42: 0 | CR42: 0 | CT42: 0 | CV42: 0 | CX42: 0 | CZ42: 0 | DB42: 0 | DD42: 0 | DF42: 0 | DH42: 0 | DJ42: 0 | DL42: 0 | DN42: 0 | DP42: 0 | DR42: 0 | DT42: 0 | DV42: 0 | DX42: 0 | DZ42: 0 | EB42: 0 | ED42: 0 | EF42: 0 | EH42: 0
H43: 0.05 | I43: 5 | J43: 0 | K43: 0 | L43: 0.5937624 | M43: 0 | N43: COTAÇÃO | R43: 0 | T43: 0 | V43: 0 | Z43: 0 | AB43: 0 | AD43: 0 | AF43: 0 | AH43: 0 | AJ43: 0 | AL43: 0 | AN43: 0 | AP43: 0 | AR43: 0 | AT43: 0 | AV43: 0 | AX43: 0 | AZ43: 0 | BB43: 0 | BD43: 0 | BF43: 0 | BH43: 0 | BJ43: 0 | BL43: 0 | BN43: 0 | BP43: 0 | BR43: 0 | BT43: 0 | BV43: 0 | BX43: 0 | BZ43: 0 | CB43: 0 | CD43: 0 | CF43: 0 | CH43: 0 | CJ43: 0 | CL43: 0 | CN43: 0 | CP43: 0 | CR43: 0 | CT43: 0 | CV43: 0 | CX43: 0 | CZ43: 0 | DB43: 0 | DD43: 0 | DF43: 0 | DH43: 0 | DJ43: 0 | DL43: 0 | DN43: 0 | DP43: 0 | DR43: 0 | DT43: 0 | DV43: 0 | DX43: 0 | DZ43: 0 | EB43: 0 | ED43: 0 | EF43: 0 | EH43: 0
H44: 0.05 | I44: 5 | J44: 0 | K44: 0 | L44: 0.5937624 | M44: 0 | N44: COTAÇÃO | R44: 0 | T44: 0 | V44: 0 | Z44: 0 | AB44: 0 | AD44: 0 | AF44: 0 | AH44: 0 | AJ44: 0 | AL44: 0 | AN44: 0 | AP44: 0 | AR44: 0 | AT44: 0 | AV44: 0 | AX44: 0 | AZ44: 0 | BB44: 0 | BD44: 0 | BF44: 0 | BH44: 0 | BJ44: 0 | BL44: 0 | BN44: 0 | BP44: 0 | BR44: 0 | BT44: 0 | BV44: 0 | BX44: 0 | BZ44: 0 | CB44: 0 | CD44: 0 | CF44: 0 | CH44: 0 | CJ44: 0 | CL44: 0 | CN44: 0 | CP44: 0 | CR44: 0 | CT44: 0 | CV44: 0 | CX44: 0 | CZ44: 0 | DB44: 0 | DD44: 0 | DF44: 0 | DH44: 0 | DJ44: 0 | DL44: 0 | DN44: 0 | DP44: 0 | DR44: 0 | DT44: 0 | DV44: 0 | DX44: 0 | DZ44: 0 | EB44: 0 | ED44: 0 | EF44: 0 | EH44: 0
H45: 0.05 | I45: 5 | J45: 0 | K45: 0 | L45: 0.5937624 | M45: 0 | N45: COTAÇÃO | R45: 0 | T45: 0 | V45: 0 | Z45: 0 | AB45: 0 | AD45: 0 | AF45: 0 | AH45: 0 | AJ45: 0 | AL45: 0 | AN45: 0 | AP45: 0 | AR45: 0 | AT45: 0 | AV45: 0 | AX45: 0 | AZ45: 0 | BB45: 0 | BD45: 0 | BF45: 0 | BH45: 0 | BJ45: 0 | BL45: 0 | BN45: 0 | BP45: 0 | BR45: 0 | BT45: 0 | BV45: 0 | BX45: 0 | BZ45: 0 | CB45: 0 | CD45: 0 | CF45: 0 | CH45: 0 | CJ45: 0 | CL45: 0 | CN45: 0 | CP45: 0 | CR45: 0 | CT45: 0 | CV45: 0 | CX45: 0 | CZ45: 0 | DB45: 0 | DD45: 0 | DF45: 0 | DH45: 0 | DJ45: 0 | DL45: 0 | DN45: 0 | DP45: 0 | DR45: 0 | DT45: 0 | DV45: 0 | DX45: 0 | DZ45: 0 | EB45: 0 | ED45: 0 | EF45: 0 | EH45: 0
H46: 0.05 | I46: 5 | J46: 0 | K46: 0 | L46: 0.5937624 | M46: 0 | N46: COTAÇÃO | R46: 0 | T46: 0 | V46: 0 | Z46: 0 | AB46: 0 | AD46: 0 | AF46: 0 | AH46: 0 | AJ46: 0 | AL46: 0 | AN46: 0 | AP46: 0 | AR46: 0 | AT46: 0 | AV46: 0 | AX46: 0 | AZ46: 0 | BB46: 0 | BD46: 0 | BF46: 0 | BH46: 0 | BJ46: 0 | BL46: 0 | BN46: 0 | BP46: 0 | BR46: 0 | BT46: 0 | BV46: 0 | BX46: 0 | BZ46: 0 | CB46: 0 | CD46: 0 | CF46: 0 | CH46: 0 | CJ46: 0 | CL46: 0 | CN46: 0 | CP46: 0 | CR46: 0 | CT46: 0 | CV46: 0 | CX46: 0 | CZ46: 0 | DB46: 0 | DD46: 0 | DF46: 0 | DH46: 0 | DJ46: 0 | DL46: 0 | DN46: 0 | DP46: 0 | DR46: 0 | DT46: 0 | DV46: 0 | DX46: 0 | DZ46: 0 | EB46: 0 | ED46: 0 | EF46: 0 | EH46: 0
H47: 0.05 | I47: 5 | J47: =G47*(1-H47)/(I47*12) -> 0 | K47: =J47*E47 -> 0 | L47: 0.5937624 | M47: =ROUND(K47*(1+L47),2) -> 0 | N47: COTAÇÃO | R47: 0 | T47: 0 | V47: 0 | Z47: 0 | AB47: 0 | AD47: 0 | AF47: 0 | AH47: 0 | AJ47: 0 | AL47: 0 | AN47: 0 | AP47: 0 | AR47: 0 | AT47: 0 | AV47: 0 | AX47: 0 | AZ47: 0 | BB47: 0 | BD47: 0 | BF47: 0 | BH47: 0 | BJ47: 0 | BL47: 0 | BN47: 0 | BP47: 0 | BR47: 0 | BT47: 0 | BV47: 0 | BX47: 0 | BZ47: 0 | CB47: 0 | CD47: 0 | CF47: 0 | CH47: 0 | CJ47: 0 | CL47: 0 | CN47: 0 | CP47: 0 | CR47: 0 | CT47: 0 | CV47: 0 | CX47: 0 | CZ47: 0 | DB47: 0 | DD47: 0 | DF47: 0 | DH47: 0 | DJ47: 0 | DL47: 0 | DN47: 0 | DP47: 0 | DR47: 0 | DT47: 0 | DV47: 0 | DX47: 0 | DZ47: 0 | EB47: 0 | ED47: 0 | EF47: 0 | EH47: 0
H48: 0.05 | I48: 5 | J48: 0 | K48: 0 | L48: 0.5937624 | M48: 0 | N48: COTAÇÃO | R48: 0 | T48: 0 | V48: 0 | Z48: 0 | AB48: 0 | AD48: 0 | AF48: 0 | AH48: 0 | AJ48: 0 | AL48: 0 | AN48: 0 | AP48: 0 | AR48: 0 | AT48: 0 | AV48: 0 | AX48: 0 | AZ48: 0 | BB48: 0 | BD48: 0 | BF48: 0 | BH48: 0 | BJ48: 0 | BL48: 0 | BN48: 0 | BP48: 0 | BR48: 0 | BT48: 0 | BV48: 0 | BX48: 0 | BZ48: 0 | CB48: 0 | CD48: 0 | CF48: 0 | CH48: 0 | CJ48: 0 | CL48: 0 | CN48: 0 | CP48: 0 | CR48: 0 | CT48: 0 | CV48: 0 | CX48: 0 | CZ48: 0 | DB48: 0 | DD48: 0 | DF48: 0 | DH48: 0 | DJ48: 0 | DL48: 0 | DN48: 0 | DP48: 0 | DR48: 0 | DT48: 0 | DV48: 0 | DX48: 0 | DZ48: 0 | EB48: 0 | ED48: 0 | EF48: 0 | EH48: 0
H49: 0.05 | I49: 5 | J49: 0 | K49: 0 | L49: 0.5937624 | M49: 0 | N49: COTAÇÃO | R49: 0 | T49: 0 | V49: 0 | Z49: 0 | AB49: 0 | AD49: 0 | AF49: 0 | AH49: 0 | AJ49: 0 | AL49: 0 | AN49: 0 | AP49: 0 | AR49: 0 | AT49: 0 | AV49: 0 | AX49: 0 | AZ49: 0 | BB49: 0 | BD49: 0 | BF49: 0 | BH49: 0 | BJ49: 0 | BL49: 0 | BN49: 0 | BP49: 0 | BR49: 0 | BT49: 0 | BV49: 0 | BX49: 0 | BZ49: 0 | CB49: 0 | CD49: 0 | CF49: 0 | CH49: 0 | CJ49: 0 | CL49: 0 | CN49: 0 | CP49: 0 | CR49: 0 | CT49: 0 | CV49: 0 | CX49: 0 | CZ49: 0 | DB49: 0 | DD49: 0 | DF49: 0 | DH49: 0 | DJ49: 0 | DL49: 0 | DN49: 0 | DP49: 0 | DR49: 0 | DT49: 0 | DV49: 0 | DX49: 0 | DZ49: 0 | EB49: 0 | ED49: 0 | EF49: 0 | EH49: 0
H50: 0.05 | I50: 5 | J50: 0 | K50: 0 | L50: 0.5937624 | M50: 0 | N50: COTAÇÃO | R50: 0 | T50: 0 | V50: 0 | Z50: 0 | AB50: 0 | AD50: 0 | AF50: 0 | AH50: 0 | AJ50: 0 | AL50: 0 | AN50: 0 | AP50: 0 | AR50: 0 | AT50: 0 | AV50: 0 | AX50: 0 | AZ50: 0 | BB50: 0 | BD50: 0 | BF50: 0 | BH50: 0 | BJ50: 0 | BL50: 0 | BN50: 0 | BP50: 0 | BR50: 0 | BT50: 0 | BV50: 0 | BX50: 0 | BZ50: 0 | CB50: 0 | CD50: 0 | CF50: 0 | CH50: 0 | CJ50: 0 | CL50: 0 | CN50: 0 | CP50: 0 | CR50: 0 | CT50: 0 | CV50: 0 | CX50: 0 | CZ50: 0 | DB50: 0 | DD50: 0 | DF50: 0 | DH50: 0 | DJ50: 0 | DL50: 0 | DN50: 0 | DP50: 0 | DR50: 0 | DT50: 0 | DV50: 0 | DX50: 0 | DZ50: 0 | EB50: 0 | ED50: 0 | EF50: 0 | EH50: 0
